Workbook

Sheet Menu
B2: TABLERO DE CONTROL 2018 INSTITUTO COLOMBIANO DE BIENESTAR FAMILIAR ICBF MENU
C5: El tablero de control 2018, es la herramienta gerencial para medir los avances de la gestión institucional a nivel nacional, regional y zonal. A continuación se presentan las siguientes opciones para navegar en la herramienta:
C7: Febrero | F7: Seleccione el mes de corte para revisión de información y de click en el botón gris para actualizar la herramienta
C9: Nacional
C11: Seleccione la opción que desea revisar:
D13: Avances de la gestión institucional a nivel nacional
D14: - Comportamiento Nacional (Tablero de Control, Plan de Acción y Plan Indicativo)
D15: - Plan de Acción Institucional (ranking regional)
D16: - Modelo Integrado de Planeación y Gestión (decreto 2482 de 2012)
D17: - Mapa Estrategico Institucional
D18: - Mapa de Procesos del ICBF
D19: - Analisis general de áreas
D20: - Objetivos SIGE
D21: Comportamiento Plan Indicativo Institucional
D22: Comportamiento SINERGIA
D23: Comportamiento macroregionales
D24: Comportamiento por agregados (indicadores)
D25: Matriz de seguimiento indicadores tablero de control
C27: Áreas
C29: Nutrición | F29: Seleccione el área y escoja una de las siguientes opciones
C31: Seleccione la opción que desea revisar:
D33: Comportamiento áreas (ficha)
C35: Regional
C37: Bogotá | E37: =+VLOOKUP(C37,Referencias!$W$2:$X$34,2,FALSE) -> Bog | F37: Seleccione la regional y de click en el botón gris para actualizar la información
C39: Seleccione la opción que desea revisar:
D41: Avances de la gestión institucional a nivel regional
D42: =+"- Comportamiento Regional (Tablero de Control, Plan de Acción, Ranking regional, Centros zonales)" -> - Comportamiento Regional (Tablero de Control, Plan de Acción, Ranking regional, Centros zonales)
D43: - Modelo Integrado de Planeación y Gestión (decreto 2482 de 2012)
D44: - Mapa Estrategico Institucional
D45: - Mapa de Procesos del ICBF
D46: ="- Analisis áreas" -> - Analisis áreas
D47: - Objetivos SIGE
D49: =+"- Revisión Centros zonales:" -> - Revisión Centros zonales: | G49: CZ Ciudad Bolivar | K49: =+IFERROR(VLOOKUP($C$37&$G$49,'información graf'!$CR$60:$CU$300,4,FALSE),"") -> 1101
I50: Seleccione el centro zonal a revisar y de click en el boton verde
D51: Matriz de seguimiento indicadores tablero de control regional

Sheet nacional
C2: TABLERO DE CONTROL 2018 INSTITUTO COLOMBIANO DE BIENESTAR FAMILIAR ICBF SEGUIMIENTO TABLERO DE CONTROL - ANÁLISIS GENERAL
C5: Mes analisis | D5: =+Menu!C7 -> Febrero | S5: Volver al menú
D6: =+VLOOKUP(D5,Referencias!$A$132:$C$143,3,FALSE) -> Feb | E6: =+VLOOKUP(D6,Referencias!C131:I143,7,FALSE) -> 2
N10: Comportamiento general
N11: T. control | O11: P. Acción | P11: P. Indicativo
L12: 2 | M12: Optimo | N12: =+HLOOKUP($D$6,'información graf'!$BO$3:$BZ$8,2,FALSE) -> 20 | O12: =+HLOOKUP($D$6,'información graf'!$BO$17:$BZ$22,2,FALSE) -> 9 | P12: =+HLOOKUP($D$6,'información graf'!$BO$31:$BZ$36,2,FALSE) -> 6
L13: 3 | M13: Adecuado | N13: =+HLOOKUP($D$6,'información graf'!$BO$3:$BZ$8,3,FALSE) -> 9 | O13: =+HLOOKUP($D$6,'información graf'!$BO$17:$BZ$22,3,FALSE) -> 4 | P13: =+HLOOKUP($D$6,'información graf'!$BO$31:$BZ$36,3,FALSE) -> 1
L14: 4 | M14: En riesgo | N14: =+HLOOKUP($D$6,'información graf'!$BO$3:$BZ$8,4,FALSE) -> 3 | O14: =+HLOOKUP($D$6,'información graf'!$BO$17:$BZ$22,4,FALSE) -> 2 | P14: =+HLOOKUP($D$6,'información graf'!$BO$31:$BZ$36,4,FALSE) -> 2
L15: 5 | M15: Critico | N15: =+HLOOKUP($D$6,'información graf'!$BO$3:$BZ$8,5,FALSE) -> 0 | O15: =+HLOOKUP($D$6,'información graf'!$BO$17:$BZ$22,5,FALSE) -> 0 | P15: =+HLOOKUP($D$6,'información graf'!$BO$31:$BZ$36,5,FALSE) -> 0
L16: 6 | M16: NA | N16: =+HLOOKUP($D$6,'información graf'!$BO$3:$BZ$8,6,FALSE) -> 125 | O16: =+HLOOKUP($D$6,'información graf'!$BO$17:$BZ$22,6,FALSE) -> 75 | P16: =+HLOOKUP($D$6,'información graf'!$BO$31:$BZ$36,6,FALSE) -> 59
L17: 7 | M17: Total | N17: =SUM(N12:N16) -> 157 | O17: =SUM(O12:O16) -> 90 | P17: =SUM(P12:P16) -> 68
M18: Aplicaron en el mes de corte | N18: =+N12+N13+N14+N15 -> 32 | O18: =+O12+O13+O14+O15 -> 15 | P18: =+P12+P13+P14+P15 -> 9 | AG18: Comparación vigencias 2017 - 2018
M19: =+"Corte "&$D$5 -> Corte Febrero
D20: =+"Corte "&$D$5 -> Corte Febrero
C23: Tablero de Control | H23: Plan de Acción | M23: Plan Indicativo
AH44: Tablero | AJ44: Ene | AK44: Feb | AL44: Mar | AM44: Abr | AN44: May | AO44: Jun | AP44: Jul | AQ44: Agt | AR44: Sep | AS44: Oct | AT44: Nov | AU44: Dic
AI45: 2017 | AJ45: =+'información graf'!AM4 -> 0.9168138095 | AK45: =+'información graf'!AN4 -> 0.91983321 | AL45: =+'información graf'!AO4 ->  | AM45: =+'información graf'!AP4 ->  | AN45: =+'información graf'!AQ4 ->  | AO45: =+'información graf'!AR4 ->  | AP45: =+'información graf'!AS4 ->  | AQ45: =+'información graf'!AT4 ->  | AR45: =+'información graf'!AU4 ->  | AS45: =+'información graf'!AV4 ->  | AT45: =+'información graf'!AW4 ->  | AU45: =+'información graf'!AX4 -> 
AI46: 2018 | AJ46: =+'información graf'!AM5 -> 0.969664479 | AK46: =+'información graf'!AN5 -> 0.9341908075 | AL46: =+'información graf'!AO5 ->  | AM46: =+'información graf'!AP5 ->  | AN46: =+'información graf'!AQ5 ->  | AO46: =+'información graf'!AR5 ->  | AP46: =+'información graf'!AS5 ->  | AQ46: =+'información graf'!AT5 ->  | AR46: =+'información graf'!AU5 ->  | AS46: =+'información graf'!AV5 ->  | AT46: =+'información graf'!AW5 ->  | AU46: =+'información graf'!AX5 -> 
C47: =+"Corte "&$D$5 -> Corte Febrero | H47: =+"Corte "&$D$5 -> Corte Febrero | M47: =+"Corte "&$D$5 -> Corte Febrero | AI47: ∆ | AJ47: =+IFERROR((AJ46/AJ45)-1,0) -> 0.05764602261 | AK47: =+IFERROR((AK46/AK45)-1,0) -> 0.01560891398 | AL47: 0 | AM47: 0 | AN47: 0 | AO47: 0 | AP47: 0 | AQ47: 0 | AR47: 0 | AS47: 0 | AT47: 0 | AU47: 0
T48: 1 | U48: 2 | V48: 3 | W48: 4 | X48: 5 | Y48: 6 | Z48: 7 | AA48: 8 | AB48: 9 | AC48: 10 | AD48: 11 | AE48: 12
T49: Seguimiento mes a mes gestión ICBF | AH49: Plan de Acción | AJ49: Ene | AK49: Feb | AL49: Mar | AM49: Abr | AN49: May | AO49: Jun | AP49: Jul | AQ49: Agt | AR49: Sep | AS49: Oct | AT49: Nov | AU49: Dic
T50: Ene | U50: Feb | V50: Mar | W50: Abr | X50: May | Y50: Jun | Z50: Jul | AA50: Agt | AB50: Sep | AC50: Oct | AD50: Nov | AE50: Dic | AI50: 2017 | AJ50: =+'información graf'!AM8 -> 0.9090868196 | AK50: =+'información graf'!AN8 -> 0.9101128668 | AL50: =+'información graf'!AO8 ->  | AM50: =+'información graf'!AP8 ->  | AN50: =+'información graf'!AQ8 ->  | AO50: =+'información graf'!AR8 ->  | AP50: =+'información graf'!AS8 ->  | AQ50: =+'información graf'!AT8 ->  | AR50: =+'información graf'!AU8 ->  | AS50: =+'información graf'!AV8 ->  | AT50: =+'información graf'!AW8 ->  | AU50: =+'información graf'!AX8 -> 
S51: T. control | T51: =+IFERROR('información graf'!BA4,"") -> 0.969664479 | U51: =+IFERROR('información graf'!BB4,"") -> 0.9341908075 | V51: =+IFERROR('información graf'!BC4,"") ->  | W51: =+IFERROR('información graf'!BD4,"") ->  | X51: =+IFERROR('información graf'!BE4,"") ->  | Y51: =+IFERROR('información graf'!BF4,"") ->  | Z51: =+IFERROR('información graf'!BG4,"") ->  | AA51: =+IFERROR('información graf'!BH4,"") ->  | AB51: =+IFERROR('información graf'!BI4,"") ->  | AC51: =+IFERROR('información graf'!BJ4,"") ->  | AD51: =+IFERROR('información graf'!BK4,"") ->  | AE51: =+IFERROR('información graf'!BL4,"") ->  | AI51: 2018 | AJ51: =+'información graf'!AM9 -> 0.9751143823 | AK51: =+'información graf'!AN9 -> 0.9283862897 | AL51: =+'información graf'!AO9 ->  | AM51: =+'información graf'!AP9 ->  | AN51: =+'información graf'!AQ9 ->  | AO51: =+'información graf'!AR9 ->  | AP51: =+'información graf'!AS9 ->  | AQ51: =+'información graf'!AT9 ->  | AR51: =+'información graf'!AU9 ->  | AS51: =+'información graf'!AV9 ->  | AT51: =+'información graf'!AW9 ->  | AU51: =+'información graf'!AX9 -> 
S52: Aplican | T52: =IF(T$48<=$E$6,Tablero!BM33,"") -> 12 | U52: =IF(U$48<=$E$6,Tablero!BN33,"") -> 32 | V52: =IF(V$48<=$E$6,Tablero!BO33,"") ->  | W52: =IF(W$48<=$E$6,Tablero!BP33,"") ->  | X52: =IF(X$48<=$E$6,Tablero!BQ33,"") ->  | Y52: =IF(Y$48<=$E$6,Tablero!BR33,"") ->  | Z52: =IF(Z$48<=$E$6,Tablero!BS33,"") ->  | AA52: =IF(AA$48<=$E$6,Tablero!BT33,"") ->  | AB52: =IF(AB$48<=$E$6,Tablero!BU33,"") ->  | AC52: =IF(AC$48<=$E$6,Tablero!BV33,"") ->  | AD52: =IF(AD$48<=$E$6,Tablero!BW33,"") ->  | AE52: =IF(AE$48<=$E$6,Tablero!BX33,"") ->  | AI52: ∆ | AJ52: =+IFERROR((AJ51/AJ50)-1,0) -> 0.07263064572 | AK52: 0.02007819422 | AL52: 0 | AM52: 0 | AN52: 0 | AO52: 0 | AP52: 0 | AQ52: 0 | AR52: 0 | AS52: 0 | AT52: 0 | AU52: 0
S53: P. Acción | T53: =+IFERROR('información graf'!BA5,"") -> 0.9751143823 | U53: =+IFERROR('información graf'!BB5,"") -> 0.9283862897 | V53: =+IFERROR('información graf'!BC5,"") ->  | W53: =+IFERROR('información graf'!BD5,"") ->  | X53: =+IFERROR('información graf'!BE5,"") ->  | Y53: =+IFERROR('información graf'!BF5,"") ->  | Z53: =+IFERROR('información graf'!BG5,"") ->  | AA53: =+IFERROR('información graf'!BH5,"") ->  | AB53: =+IFERROR('información graf'!BI5,"") ->  | AC53: =+IFERROR('información graf'!BJ5,"") ->  | AD53: =+IFERROR('información graf'!BK5,"") ->  | AE53: =+IFERROR('información graf'!BL5,"") -> 
S54: Aplican | T54: =IF(T$48<=$E$6,Tablero!BM37,"") -> 8 | U54: =IF(U$48<=$E$6,Tablero!BN37,"") -> 15 | V54: =IF(V$48<=$E$6,Tablero!BO37,"") ->  | W54: =IF(W$48<=$E$6,Tablero!BP37,"") ->  | X54: =IF(X$48<=$E$6,Tablero!BQ37,"") ->  | Y54: =IF(Y$48<=$E$6,Tablero!BR37,"") ->  | Z54: =IF(Z$48<=$E$6,Tablero!BS37,"") ->  | AA54: =IF(AA$48<=$E$6,Tablero!BT37,"") ->  | AB54: =IF(AB$48<=$E$6,Tablero!BU37,"") ->  | AC54: =IF(AC$48<=$E$6,Tablero!BV37,"") ->  | AD54: =IF(AD$48<=$E$6,Tablero!BW37,"") ->  | AE54: =IF(AE$48<=$E$6,Tablero!BX37,"") ->  | AH54: Plan Indicativo | AJ54: Ene | AK54: Feb | AL54: Mar | AM54: Abr | AN54: May | AO54: Jun | AP54: Jul | AQ54: Agt | AR54: Sep | AS54: Oct | AT54: Nov | AU54: Dic
S55: P. Indicativo | T55: =+IFERROR('información graf'!BA6,"") -> 0.9852850755 | U55: =+IFERROR('información graf'!BB6,"") -> 0.9147925436 | V55: =+IFERROR('información graf'!BC6,"") ->  | W55: =+IFERROR('información graf'!BD6,"") ->  | X55: =+IFERROR('información graf'!BE6,"") ->  | Y55: =+IFERROR('información graf'!BF6,"") ->  | Z55: =+IFERROR('información graf'!BG6,"") ->  | AA55: =+IFERROR('información graf'!BH6,"") ->  | AB55: =+IFERROR('información graf'!BI6,"") ->  | AC55: =+IFERROR('información graf'!BJ6,"") ->  | AD55: =+IFERROR('información graf'!BK6,"") ->  | AE55: =+IFERROR('información graf'!BL6,"") ->  | AI55: 2017 | AJ55: =+'información graf'!AM12 -> 0.8877481177 | AK55: =+'información graf'!AN12 -> 0.9212335129 | AL55: =+'información graf'!AO12 ->  | AM55: =+'información graf'!AP12 ->  | AN55: =+'información graf'!AQ12 ->  | AO55: =+'información graf'!AR12 ->  | AP55: =+'información graf'!AS12 ->  | AQ55: =+'información graf'!AT12 ->  | AR55: =+'información graf'!AU12 ->  | AS55: =+'información graf'!AV12 ->  | AT55: =+'información graf'!AW12 ->  | AU55: =+'información graf'!AX12 -> 
S56: Aplican | T56: =IF(T$48<=$E$6,Tablero!BM42,"") -> 6 | U56: =IF(U$48<=$E$6,Tablero!BN42,"") -> 9 | V56: =IF(V$48<=$E$6,Tablero!BO42,"") ->  | W56: =IF(W$48<=$E$6,Tablero!BP42,"") ->  | X56: =IF(X$48<=$E$6,Tablero!BQ42,"") ->  | Y56: =IF(Y$48<=$E$6,Tablero!BR42,"") ->  | Z56: =IF(Z$48<=$E$6,Tablero!BS42,"") ->  | AA56: =IF(AA$48<=$E$6,Tablero!BT42,"") ->  | AB56: =IF(AB$48<=$E$6,Tablero!BU42,"") ->  | AC56: =IF(AC$48<=$E$6,Tablero!BV42,"") ->  | AD56: =IF(AD$48<=$E$6,Tablero!BW42,"") ->  | AE56: =IF(AE$48<=$E$6,Tablero!BX42,"") ->  | AI56: 2018 | AJ56: =+'información graf'!AM13 -> 0.9852850755 | AK56: =+'información graf'!AN13 -> 0.9147925436 | AL56: =+'información graf'!AO13 ->  | AM56: =+'información graf'!AP13 ->  | AN56: =+'información graf'!AQ13 ->  | AO56: =+'información graf'!AR13 ->  | AP56: =+'información graf'!AS13 ->  | AQ56: =+'información graf'!AT13 ->  | AR56: =+'información graf'!AU13 ->  | AS56: =+'información graf'!AV13 ->  | AT56: =+'información graf'!AW13 ->  | AU56: =+'información graf'!AX13 -> 
AI57: ∆ | AJ57: =+IFERROR((AJ56/AJ55)-1,0) -> 0.1098700811 | AK57: -0.006991679335 | AL57: 0 | AM57: 0 | AN57: 0 | AO57: 0 | AP57: 0 | AQ57: 0 | AR57: 0 | AS57: 0 | AT57: 0 | AU57: 0
C65: Plan de Acción Institucional | U65: Resultados Plan de Acción frente a la vigencia
M78: Ranking Regional
C93: Macroregiones
I116: Pacífico | J116: =+'información graf'!CP63 -> 0.8672857571
I117: Centro Sur | J117: =+'información graf'!CP64 -> 0.9572591267
I118: Llanos | J118: =+'información graf'!CP65 -> 0.82475823
I119: Eje Cafetero | J119: =+'información graf'!CP66 -> 0.9297935195
I120: Caribe | J120: =+'información graf'!CP67 -> 0.8315443315
I121: Centro Oriente | J121: =+'información graf'!CP68 -> 0.9045151356
C127: Modelo Integrado de Planeación y Gestión - decreto 2482 de 2012, DAFP | AW127: Gestión misional y de Gobierno | BC127: Transparencia, participación y servicio al ciudadano | BJ127: Gestión del talento humano
T129: optimo | U129: adecuado | V129: en riesgo | W129: critico | X129: NA
H130: Líneas de politica | J130: Componentes | S130: Comportamiento agregado de indicadores
Y131: Total
M132: LP1 | N132: Gestión misional y de gobierno | S132: LP1 | T132: =+T133 -> 8 | U132: 3 | V132: 0 | W132: 0 | X132: 46 | Y132: 57
N133: LP1-C1 | O133: Indicadores y metas de Gobierno | S133: LP1-C1 | T133: =+VLOOKUP($S133&T$129,'td1'!$EX$169:$FJ$258,'información graf'!$G$2,FALSE) -> 8 | U133: =+VLOOKUP($S133&U$129,'td1'!$EX$169:$FJ$258,'información graf'!$G$2,FALSE) -> 3 | V133: =+VLOOKUP($S133&V$129,'td1'!$EX$169:$FJ$258,'información graf'!$G$2,FALSE) -> 0 | W133: =+VLOOKUP($S133&W$129,'td1'!$EX$169:$FJ$258,'información graf'!$G$2,FALSE) -> 0 | X133: =+VLOOKUP($S133&X$129,'td1'!$EX$169:$FJ$258,'información graf'!$G$2,FALSE) -> 46 | Y133: =+SUM(T133:X133) -> 57
M134: LP2 | N134: Transparencia, participación y servicio al ciudadano | S134: LP2 | T134: =+T135+T136+T137+T138 -> 0 | U134: 1 | V134: 0 | W134: 0 | X134: 11 | Y134: 12
N135: LP2-C2 | O135: Participación Ciudadana en la Gestión | S135: LP2-C2 | T135: =+VLOOKUP($S135&T$129,'td1'!$EX$169:$FJ$258,'información graf'!$G$2,FALSE) -> 0 | U135: =+VLOOKUP($S135&U$129,'td1'!$EX$169:$FJ$258,'información graf'!$G$2,FALSE) -> 0 | V135: =+VLOOKUP($S135&V$129,'td1'!$EX$169:$FJ$258,'información graf'!$G$2,FALSE) -> 0 | W135: =+VLOOKUP($S135&W$129,'td1'!$EX$169:$FJ$258,'información graf'!$G$2,FALSE) -> 0 | X135: =+VLOOKUP($S135&X$129,'td1'!$EX$169:$FJ$258,'información graf'!$G$2,FALSE) -> 6 | Y135: =+SUM(T135:X135) -> 6
N136: LP2-C3 | O136: Rendición de Cuentas a la ciudadania | S136: LP2-C3 | T136: =+VLOOKUP($S136&T$129,'td1'!$EX$169:$FJ$258,'información graf'!$G$2,FALSE) -> 0 | U136: =+VLOOKUP($S136&U$129,'td1'!$EX$169:$FJ$258,'información graf'!$G$2,FALSE) -> 0 | V136: =+VLOOKUP($S136&V$129,'td1'!$EX$169:$FJ$258,'información graf'!$G$2,FALSE) -> 0 | W136: =+VLOOKUP($S136&W$129,'td1'!$EX$169:$FJ$258,'información graf'!$G$2,FALSE) -> 0 | X136: =+VLOOKUP($S136&X$129,'td1'!$EX$169:$FJ$258,'información graf'!$G$2,FALSE) -> 1 | Y136: =+SUM(T136:X136) -> 1
N137: LP2-C4 | O137: Servicio al Ciudadano | S137: LP2-C4 | T137: =+VLOOKUP($S137&T$129,'td1'!$EX$169:$FJ$258,'información graf'!$G$2,FALSE) -> 0 | U137: =+VLOOKUP($S137&U$129,'td1'!$EX$169:$FJ$258,'información graf'!$G$2,FALSE) -> 1 | V137: =+VLOOKUP($S137&V$129,'td1'!$EX$169:$FJ$258,'información graf'!$G$2,FALSE) -> 0 | W137: =+VLOOKUP($S137&W$129,'td1'!$EX$169:$FJ$258,'información graf'!$G$2,FALSE) -> 0 | X137: =+VLOOKUP($S137&X$129,'td1'!$EX$169:$FJ$258,'información graf'!$G$2,FALSE) -> 2 | Y137: =+SUM(T137:X137) -> 3
N138: LP2-C5 | O138: Plan Anticorrupción y de Atención al Ciudadano | S138: LP2-C5 | T138: =+VLOOKUP($S138&T$129,'td1'!$EX$169:$FJ$258,'información graf'!$G$2,FALSE) -> 0 | U138: =+VLOOKUP($S138&U$129,'td1'!$EX$169:$FJ$258,'información graf'!$G$2,FALSE) -> 0 | V138: =+VLOOKUP($S138&V$129,'td1'!$EX$169:$FJ$258,'información graf'!$G$2,FALSE) -> 0 | W138: =+VLOOKUP($S138&W$129,'td1'!$EX$169:$FJ$258,'información graf'!$G$2,FALSE) -> 0 | X138: =+VLOOKUP($S138&X$129,'td1'!$EX$169:$FJ$258,'información graf'!$G$2,FALSE) -> 2 | Y138: =+SUM(T138:X138) -> 2
M139: LP3 | N139: Gestión del talento humano | S139: LP3 | T139: =+T140+T141+T142+T143 -> 0 | U139: 0 | V139: 0 | W139: 0 | X139: 4 | Y139: 4
N140: LP3-C1 | O140: Plan Estratégico de Recursos Humanos | S140: LP3-C1 | T140: =+VLOOKUP($S140&T$129,'td1'!$EX$169:$FJ$258,'información graf'!$G$2,FALSE) -> 0 | U140: =+VLOOKUP($S140&U$129,'td1'!$EX$169:$FJ$258,'información graf'!$G$2,FALSE) -> 0 | V140: =+VLOOKUP($S140&V$129,'td1'!$EX$169:$FJ$258,'información graf'!$G$2,FALSE) -> 0 | W140: =+VLOOKUP($S140&W$129,'td1'!$EX$169:$FJ$258,'información graf'!$G$2,FALSE) -> 0 | X140: =+VLOOKUP($S140&X$129,'td1'!$EX$169:$FJ$258,'información graf'!$G$2,FALSE) -> 1 | Y140: =+SUM(T140:X140) -> 1
N141: LP3-C2 | O141: Plan Anual de Vacantes | S141: LP3-C2 | T141: =+VLOOKUP($S141&T$129,'td1'!$EX$169:$FJ$258,'información graf'!$G$2,FALSE) -> 0 | U141: =+VLOOKUP($S141&U$129,'td1'!$EX$169:$FJ$258,'información graf'!$G$2,FALSE) -> 0 | V141: =+VLOOKUP($S141&V$129,'td1'!$EX$169:$FJ$258,'información graf'!$G$2,FALSE) -> 0 | W141: =+VLOOKUP($S141&W$129,'td1'!$EX$169:$FJ$258,'información graf'!$G$2,FALSE) -> 0 | X141: =+VLOOKUP($S141&X$129,'td1'!$EX$169:$FJ$258,'información graf'!$G$2,FALSE) -> 1 | Y141: =+SUM(T141:X141) -> 1
N142: LP3-C3 | O142: Capacitación | S142: LP3-C3 | T142: =+VLOOKUP($S142&T$129,'td1'!$EX$169:$FJ$258,'información graf'!$G$2,FALSE) -> 0 | U142: =+VLOOKUP($S142&U$129,'td1'!$EX$169:$FJ$258,'información graf'!$G$2,FALSE) -> 0 | V142: =+VLOOKUP($S142&V$129,'td1'!$EX$169:$FJ$258,'información graf'!$G$2,FALSE) -> 0 | W142: =+VLOOKUP($S142&W$129,'td1'!$EX$169:$FJ$258,'información graf'!$G$2,FALSE) -> 0 | X142: =+VLOOKUP($S142&X$129,'td1'!$EX$169:$FJ$258,'información graf'!$G$2,FALSE) -> 1 | Y142: =+SUM(T142:X142) -> 1
N143: LP3-C4 | O143: Bienestar e Incentivos | S143: LP3-C4 | T143: =+VLOOKUP($S143&T$129,'td1'!$EX$169:$FJ$258,'información graf'!$G$2,FALSE) -> 0 | U143: =+VLOOKUP($S143&U$129,'td1'!$EX$169:$FJ$258,'información graf'!$G$2,FALSE) -> 0 | V143: =+VLOOKUP($S143&V$129,'td1'!$EX$169:$FJ$258,'información graf'!$G$2,FALSE) -> 0 | W143: =+VLOOKUP($S143&W$129,'td1'!$EX$169:$FJ$258,'información graf'!$G$2,FALSE) -> 0 | X143: =+VLOOKUP($S143&X$129,'td1'!$EX$169:$FJ$258,'información graf'!$G$2,FALSE) -> 1 | Y143: =+SUM(T143:X143) -> 1
M144: LP4 | N144: Eficiencia administrativa | S144: LP4 | T144: =+T145+T146+T147+T148+T149+T150 -> 0 | U144: 0 | V144: 0 | W144: 0 | X144: 13 | Y144: 13 | AZ144: Eficiencia administrativa | BI144: Gestión financiera
N145: LP4-C1 | O145: Gestión de la Calidad | S145: LP4-C1 | T145: =+VLOOKUP($S145&T$129,'td1'!$EX$169:$FJ$258,'información graf'!$G$2,FALSE) -> 0 | U145: =+VLOOKUP($S145&U$129,'td1'!$EX$169:$FJ$258,'información graf'!$G$2,FALSE) -> 0 | V145: =+VLOOKUP($S145&V$129,'td1'!$EX$169:$FJ$258,'información graf'!$G$2,FALSE) -> 0 | W145: =+VLOOKUP($S145&W$129,'td1'!$EX$169:$FJ$258,'información graf'!$G$2,FALSE) -> 0 | X145: =+VLOOKUP($S145&X$129,'td1'!$EX$169:$FJ$258,'información graf'!$G$2,FALSE) -> 7 | Y145: =+SUM(T145:X145) -> 7
N146: LP4-C2 | O146: Eficiencia Administrativa y Cero Papel | S146: LP4-C2 | T146: =+VLOOKUP($S146&T$129,'td1'!$EX$169:$FJ$258,'información graf'!$G$2,FALSE) -> 0 | U146: =+VLOOKUP($S146&U$129,'td1'!$EX$169:$FJ$258,'información graf'!$G$2,FALSE) -> 0 | V146: =+VLOOKUP($S146&V$129,'td1'!$EX$169:$FJ$258,'información graf'!$G$2,FALSE) -> 0 | W146: =+VLOOKUP($S146&W$129,'td1'!$EX$169:$FJ$258,'información graf'!$G$2,FALSE) -> 0 | X146: =+VLOOKUP($S146&X$129,'td1'!$EX$169:$FJ$258,'información graf'!$G$2,FALSE) -> 1 | Y146: 1
N147: LP4-C3 | O147: Racionalización de Trámites | S147: LP4-C3 | T147: =+VLOOKUP($S147&T$129,'td1'!$EX$169:$FJ$258,'información graf'!$G$2,FALSE) -> 0 | U147: =+VLOOKUP($S147&U$129,'td1'!$EX$169:$FJ$258,'información graf'!$G$2,FALSE) -> 0 | V147: =+VLOOKUP($S147&V$129,'td1'!$EX$169:$FJ$258,'información graf'!$G$2,FALSE) -> 0 | W147: =+VLOOKUP($S147&W$129,'td1'!$EX$169:$FJ$258,'información graf'!$G$2,FALSE) -> 0 | X147: =+VLOOKUP($S147&X$129,'td1'!$EX$169:$FJ$258,'información graf'!$G$2,FALSE) -> 1 | Y147: 1
N148: LP4-C4 | O148: Modernización Institucional | S148: LP4-C4 | T148: =+VLOOKUP($S148&T$129,'td1'!$EX$169:$FJ$258,'información graf'!$G$2,FALSE) -> 0 | U148: =+VLOOKUP($S148&U$129,'td1'!$EX$169:$FJ$258,'información graf'!$G$2,FALSE) -> 0 | V148: =+VLOOKUP($S148&V$129,'td1'!$EX$169:$FJ$258,'información graf'!$G$2,FALSE) -> 0 | W148: =+VLOOKUP($S148&W$129,'td1'!$EX$169:$FJ$258,'información graf'!$G$2,FALSE) -> 0 | X148: =+VLOOKUP($S148&X$129,'td1'!$EX$169:$FJ$258,'información graf'!$G$2,FALSE) -> 1 | Y148: 1
N149: LP4-C5 | O149: Gestión de Tecnologías de información | S149: LP4-C5 | T149: =+VLOOKUP($S149&T$129,'td1'!$EX$169:$FJ$258,'información graf'!$G$2,FALSE) -> 0 | U149: =+VLOOKUP($S149&U$129,'td1'!$EX$169:$FJ$258,'información graf'!$G$2,FALSE) -> 0 | V149: =+VLOOKUP($S149&V$129,'td1'!$EX$169:$FJ$258,'información graf'!$G$2,FALSE) -> 0 | W149: =+VLOOKUP($S149&W$129,'td1'!$EX$169:$FJ$258,'información graf'!$G$2,FALSE) -> 0 | X149: =+VLOOKUP($S149&X$129,'td1'!$EX$169:$FJ$258,'información graf'!$G$2,FALSE) -> 2 | Y149: 2
N150: LP4-C6 | O150: Gestión Documental | S150: LP4-C6 | T150: =+VLOOKUP($S150&T$129,'td1'!$EX$169:$FJ$258,'información graf'!$G$2,FALSE) -> 0 | U150: =+VLOOKUP($S150&U$129,'td1'!$EX$169:$FJ$258,'información graf'!$G$2,FALSE) -> 0 | V150: =+VLOOKUP($S150&V$129,'td1'!$EX$169:$FJ$258,'información graf'!$G$2,FALSE) -> 0 | W150: =+VLOOKUP($S150&W$129,'td1'!$EX$169:$FJ$258,'información graf'!$G$2,FALSE) -> 0 | X150: =+VLOOKUP($S150&X$129,'td1'!$EX$169:$FJ$258,'información graf'!$G$2,FALSE) -> 1 | Y150: 1
M151: LP5 | N151: Gestión financiera | S151: LP5 | T151: =+T152+T153+T154+T155 -> 1 | U151: 0 | V151: 2 | W151: 0 | X151: 1 | Y151: 4
N152: LP5-C1 | O152: Programación y Ejecución Presupuestal | S152: LP5-C1 | T152: =+VLOOKUP($S152&T$129,'td1'!$EX$169:$FJ$258,'información graf'!$G$2,FALSE) -> 1 | U152: =+VLOOKUP($S152&U$129,'td1'!$EX$169:$FJ$258,'información graf'!$G$2,FALSE) -> 0 | V152: =+VLOOKUP($S152&V$129,'td1'!$EX$169:$FJ$258,'información graf'!$G$2,FALSE) -> 0 | W152: =+VLOOKUP($S152&W$129,'td1'!$EX$169:$FJ$258,'información graf'!$G$2,FALSE) -> 0 | X152: =+VLOOKUP($S152&X$129,'td1'!$EX$169:$FJ$258,'información graf'!$G$2,FALSE) -> 0 | Y152: =+SUM(T152:X152) -> 1
N153: LP5-C2 | O153: Programa Anual Mensualizado de Caja – PAC | S153: LP5-C2 | T153: =+VLOOKUP($S153&T$129,'td1'!$EX$169:$FJ$258,'información graf'!$G$2,FALSE) -> 0 | U153: =+VLOOKUP($S153&U$129,'td1'!$EX$169:$FJ$258,'información graf'!$G$2,FALSE) -> 0 | V153: =+VLOOKUP($S153&V$129,'td1'!$EX$169:$FJ$258,'información graf'!$G$2,FALSE) -> 2 | W153: =+VLOOKUP($S153&W$129,'td1'!$EX$169:$FJ$258,'información graf'!$G$2,FALSE) -> 0 | X153: =+VLOOKUP($S153&X$129,'td1'!$EX$169:$FJ$258,'información graf'!$G$2,FALSE) -> 0 | Y153: =+SUM(T153:X153) -> 2
N154: LP5-C4 | O154: Plan Anual de Adquisiciones (PAA) | S154: LP5-C4 | T154: =+VLOOKUP($S154&T$129,'td1'!$EX$169:$FJ$258,'información graf'!$G$2,FALSE) -> 0 | U154: =+VLOOKUP($S154&U$129,'td1'!$EX$169:$FJ$258,'información graf'!$G$2,FALSE) -> 0 | V154: =+VLOOKUP($S154&V$129,'td1'!$EX$169:$FJ$258,'información graf'!$G$2,FALSE) -> 0 | W154: =+VLOOKUP($S154&W$129,'td1'!$EX$169:$FJ$258,'información graf'!$G$2,FALSE) -> 0 | X154: =+VLOOKUP($S154&X$129,'td1'!$EX$169:$FJ$258,'información graf'!$G$2,FALSE) -> 1 | Y154: =+SUM(T154:X154) -> 1
S156: Total | T156: =+T132+T134+T139+T144+T151 -> 9 | U156: 4 | V156: 2 | W156: 0 | X156: 75 | Y156: 90
T157: =+T156/$Y$156 -> 0.1 | U157: =+U156/$Y$156 -> 0.04444444444 | V157: =+V156/$Y$156 -> 0.02222222222 | W157: =+W156/$Y$156 -> 0 | X157: =+X156/$Y$156 -> 0.8333333333
C163: Mapa Estratégico 2015 -2018
U164: Categoria | Y164: Perspectivas
C166: =+"Corte "&$D$5 -> Corte Febrero
AI173: Comportamiento agregado de indicadores
AI174: 7 | AJ174: optimo | AK174: adecuado | AL174: en riesgo | AM174: critico | AN174: NA
AO175: Total
AH176: Servicios | AJ176: =+SUM(AJ177:AJ181) -> 12 | AK176: =+SUM(AK177:AK181) -> 5 | AL176: =+SUM(AL177:AL181) -> 0 | AM176: =+SUM(AM177:AM181) -> 0 | AN176: =+SUM(AN177:AN181) -> 48 | AO176: =+SUM(AJ176:AN176) -> 65
AI177: PS1 | AJ177: =+VLOOKUP($AI177&AJ$174,'td1'!$EH$169:$ET$228,'información graf'!$G$2,FALSE) -> 1 | AK177: =+VLOOKUP($AI177&AK$174,'td1'!$EH$169:$ET$228,'información graf'!$G$2,FALSE) -> 1 | AL177: =+VLOOKUP($AI177&AL$174,'td1'!$EH$169:$ET$228,'información graf'!$G$2,FALSE) -> 0 | AM177: =+VLOOKUP($AI177&AM$174,'td1'!$EH$169:$ET$228,'información graf'!$G$2,FALSE) -> 0 | AN177: =+VLOOKUP($AI177&AN$174,'td1'!$EH$169:$ET$228,'información graf'!$G$2,FALSE) -> 15 | AO177: =+SUM(AJ177:AN177) -> 17
AI178: PS2 | AJ178: =+VLOOKUP($AI178&AJ$174,'td1'!$EH$169:$ET$228,'información graf'!$G$2,FALSE) -> 3 | AK178: =+VLOOKUP($AI178&AK$174,'td1'!$EH$169:$ET$228,'información graf'!$G$2,FALSE) -> 0 | AL178: =+VLOOKUP($AI178&AL$174,'td1'!$EH$169:$ET$228,'información graf'!$G$2,FALSE) -> 0 | AM178: =+VLOOKUP($AI178&AM$174,'td1'!$EH$169:$ET$228,'información graf'!$G$2,FALSE) -> 0 | AN178: =+VLOOKUP($AI178&AN$174,'td1'!$EH$169:$ET$228,'información graf'!$G$2,FALSE) -> 7 | AO178: 10
AI179: PS3 | AJ179: =+VLOOKUP($AI179&AJ$174,'td1'!$EH$169:$ET$228,'información graf'!$G$2,FALSE) -> 2 | AK179: =+VLOOKUP($AI179&AK$174,'td1'!$EH$169:$ET$228,'información graf'!$G$2,FALSE) -> 1 | AL179: =+VLOOKUP($AI179&AL$174,'td1'!$EH$169:$ET$228,'información graf'!$G$2,FALSE) -> 0 | AM179: =+VLOOKUP($AI179&AM$174,'td1'!$EH$169:$ET$228,'información graf'!$G$2,FALSE) -> 0 | AN179: =+VLOOKUP($AI179&AN$174,'td1'!$EH$169:$ET$228,'información graf'!$G$2,FALSE) -> 5 | AO179: 8
AI180: PS4 | AJ180: =+VLOOKUP($AI180&AJ$174,'td1'!$EH$169:$ET$228,'información graf'!$G$2,FALSE) -> 3 | AK180: =+VLOOKUP($AI180&AK$174,'td1'!$EH$169:$ET$228,'información graf'!$G$2,FALSE) -> 0 | AL180: =+VLOOKUP($AI180&AL$174,'td1'!$EH$169:$ET$228,'información graf'!$G$2,FALSE) -> 0 | AM180: =+VLOOKUP($AI180&AM$174,'td1'!$EH$169:$ET$228,'información graf'!$G$2,FALSE) -> 0 | AN180: =+VLOOKUP($AI180&AN$174,'td1'!$EH$169:$ET$228,'información graf'!$G$2,FALSE) -> 5 | AO180: 8
AI181: PS5 | AJ181: =+VLOOKUP($AI181&AJ$174,'td1'!$EH$169:$ET$228,'información graf'!$G$2,FALSE) -> 3 | AK181: =+VLOOKUP($AI181&AK$174,'td1'!$EH$169:$ET$228,'información graf'!$G$2,FALSE) -> 3 | AL181: =+VLOOKUP($AI181&AL$174,'td1'!$EH$169:$ET$228,'información graf'!$G$2,FALSE) -> 0 | AM181: =+VLOOKUP($AI181&AM$174,'td1'!$EH$169:$ET$228,'información graf'!$G$2,FALSE) -> 0 | AN181: =+VLOOKUP($AI181&AN$174,'td1'!$EH$169:$ET$228,'información graf'!$G$2,FALSE) -> 16 | AO181: 22
AH182: Procesos | AJ182: =+SUM(AJ183:AJ186) -> 3 | AK182: =+SUM(AK183:AK186) -> 0 | AL182: =+SUM(AL183:AL186) -> 0 | AM182: =+SUM(AM183:AM186) -> 0 | AN182: =+SUM(AN183:AN186) -> 39 | AO182: 42
T183: =+"Corte "&$D$5 -> Corte Febrero | AI183: PP1 | AJ183: =+VLOOKUP($AI183&AJ$174,'td1'!$EH$169:$ET$228,'información graf'!$G$2,FALSE) -> 0 | AK183: =+VLOOKUP($AI183&AK$174,'td1'!$EH$169:$ET$228,'información graf'!$G$2,FALSE) -> 0 | AL183: =+VLOOKUP($AI183&AL$174,'td1'!$EH$169:$ET$228,'información graf'!$G$2,FALSE) -> 0 | AM183: =+VLOOKUP($AI183&AM$174,'td1'!$EH$169:$ET$228,'información graf'!$G$2,FALSE) -> 0 | AN183: =+VLOOKUP($AI183&AN$174,'td1'!$EH$169:$ET$228,'información graf'!$G$2,FALSE) -> 22 | AO183: 22
AI184: PP2 | AJ184: =+VLOOKUP($AI184&AJ$174,'td1'!$EH$169:$ET$228,'información graf'!$G$2,FALSE) -> 3 | AK184: =+VLOOKUP($AI184&AK$174,'td1'!$EH$169:$ET$228,'información graf'!$G$2,FALSE) -> 0 | AL184: =+VLOOKUP($AI184&AL$174,'td1'!$EH$169:$ET$228,'información graf'!$G$2,FALSE) -> 0 | AM184: =+VLOOKUP($AI184&AM$174,'td1'!$EH$169:$ET$228,'información graf'!$G$2,FALSE) -> 0 | AN184: =+VLOOKUP($AI184&AN$174,'td1'!$EH$169:$ET$228,'información graf'!$G$2,FALSE) -> 8 | AO184: 11
P185: PS | R185: Perspectiva de Servicios | AI185: PP3 | AJ185: =+VLOOKUP($AI185&AJ$174,'td1'!$EH$169:$ET$228,'información graf'!$G$2,FALSE) -> 0 | AK185: =+VLOOKUP($AI185&AK$174,'td1'!$EH$169:$ET$228,'información graf'!$G$2,FALSE) -> 0 | AL185: =+VLOOKUP($AI185&AL$174,'td1'!$EH$169:$ET$228,'información graf'!$G$2,FALSE) -> 0 | AM185: =+VLOOKUP($AI185&AM$174,'td1'!$EH$169:$ET$228,'información graf'!$G$2,FALSE) -> 0 | AN185: =+VLOOKUP($AI185&AN$174,'td1'!$EH$169:$ET$228,'información graf'!$G$2,FALSE) -> 4 | AO185: 4
R186: PS1 | S186: Ampliar cobertura y mejorar calidad en la atención integral de la Primera Infancia | AI186: PP4 | AJ186: =+VLOOKUP($AI186&AJ$174,'td1'!$EH$169:$ET$228,'información graf'!$G$2,FALSE) -> 0 | AK186: =+VLOOKUP($AI186&AK$174,'td1'!$EH$169:$ET$228,'información graf'!$G$2,FALSE) -> 0 | AL186: =+VLOOKUP($AI186&AL$174,'td1'!$EH$169:$ET$228,'información graf'!$G$2,FALSE) -> 0 | AM186: =+VLOOKUP($AI186&AM$174,'td1'!$EH$169:$ET$228,'información graf'!$G$2,FALSE) -> 0 | AN186: =+VLOOKUP($AI186&AN$174,'td1'!$EH$169:$ET$228,'información graf'!$G$2,FALSE) -> 5 | AO186: 5
R187: PS2 | S187: Promover los derechos de los niños, niñas y adolescentes y prevenir los riesgos o amenazas de su vulneración | AH187: Aliados y Sociedad | AJ187: =+SUM(AJ188:AJ189) -> 3 | AK187: =+SUM(AK188:AK189) -> 4 | AL187: =+SUM(AL188:AL189) -> 1 | AM187: =+SUM(AM188:AM189) -> 0 | AN187: =+SUM(AN188:AN189) -> 24 | AO187: 32
R188: PS3 | S188: Promover el desarrollo, fortalecer los vinculos de cuidado mutuo y prevenir violencia intrafamiliar y de género en las familias y las comunidades | AI188: PAS1 | AJ188: =+VLOOKUP($AI188&AJ$174,'td1'!$EH$169:$ET$228,'información graf'!$G$2,FALSE) -> 1 | AK188: =+VLOOKUP($AI188&AK$174,'td1'!$EH$169:$ET$228,'información graf'!$G$2,FALSE) -> 0 | AL188: =+VLOOKUP($AI188&AL$174,'td1'!$EH$169:$ET$228,'información graf'!$G$2,FALSE) -> 0 | AM188: =+VLOOKUP($AI188&AM$174,'td1'!$EH$169:$ET$228,'información graf'!$G$2,FALSE) -> 0 | AN188: =+VLOOKUP($AI188&AN$174,'td1'!$EH$169:$ET$228,'información graf'!$G$2,FALSE) -> 15 | AO188: 16
R189: PS4 | S189: Promover la seguridad alimentaria y Nutricional | AI189: PAS2 | AJ189: =+VLOOKUP($AI189&AJ$174,'td1'!$EH$169:$ET$228,'información graf'!$G$2,FALSE) -> 2 | AK189: =+VLOOKUP($AI189&AK$174,'td1'!$EH$169:$ET$228,'información graf'!$G$2,FALSE) -> 4 | AL189: =+VLOOKUP($AI189&AL$174,'td1'!$EH$169:$ET$228,'información graf'!$G$2,FALSE) -> 1 | AM189: =+VLOOKUP($AI189&AM$174,'td1'!$EH$169:$ET$228,'información graf'!$G$2,FALSE) -> 0 | AN189: =+VLOOKUP($AI189&AN$174,'td1'!$EH$169:$ET$228,'información graf'!$G$2,FALSE) -> 9 | AO189: 16
R190: PS5 | S190: Garantizar la Protección integral de los niños, niñas y adolescentes | AH190: Financiera | AJ190: =+AJ191 -> 2 | AK190: =+AK191 -> 0 | AL190: =+AL191 -> 2 | AM190: =+AM191 -> 0 | AN190: =+AN191 -> 14 | AO190: 18
P191: PP | R191: Perspectiva de Procesos | AI191: PF | AJ191: =+VLOOKUP($AI191&AJ$174,'td1'!$EH$169:$ET$228,'información graf'!$G$2,FALSE) -> 2 | AK191: =+VLOOKUP($AI191&AK$174,'td1'!$EH$169:$ET$228,'información graf'!$G$2,FALSE) -> 0 | AL191: =+VLOOKUP($AI191&AL$174,'td1'!$EH$169:$ET$228,'información graf'!$G$2,FALSE) -> 2 | AM191: =+VLOOKUP($AI191&AM$174,'td1'!$EH$169:$ET$228,'información graf'!$G$2,FALSE) -> 0 | AN191: =+VLOOKUP($AI191&AN$174,'td1'!$EH$169:$ET$228,'información graf'!$G$2,FALSE) -> 14 | AO191: 18
R192: PP1 | S192: Impulsar una cultura de la evaluación y gestión de la calidad para el mejoramiento continuo | AH192: Total | AJ192: =+AJ176+AJ182+AJ187+AJ190 -> 20 | AK192: 9 | AL192: 3 | AM192: 0 | AN192: 125 | AO192: 157
R193: PP2 | S193: Promover condiciones laborales que hagan del ICBF el mejor lugar para trabajar | AJ193: =+AJ192/$AO$192 -> 0.127388535 | AK193: =+AK192/$AO$192 -> 0.05732484076 | AL193: =+AL192/$AO$192 -> 0.01910828025 | AM193: =+AM192/$AO$192 -> 0 | AN193: =+AN192/$AO$192 -> 0.7961783439
R194: PP3 | S194: Reducir los impactos ambientales generados por nuestra actividad | AI194: =+"Corte "&$D$5 -> Corte Febrero
R195: PP4 | S195: Gestionar el conocimiento institucional, con sistemas de información integrados y seguros
P196: PAS | R196: Perspectiva de Aliados y sociedad
R197: PAS1 | S197: Articular las instancias del Instituto Colombiano de Bienestar Familiar y del Sistema Nacional de Bienestar Familiar
R198: PAS2 | S198: Trabajar con transparencia y buen Gobierno para promover el control social y la participación ciudadana
P199: PF | R199: Perspectiva Financiera
R200: PF | S200: Hacer un uso eficiente de los recursos de los niños, niñas y adolescentes, porque son sagrados
C208: =+"Corte "&$D$5 -> Corte Febrero
T211: Procesos | AA211: Comportamiento agregado de indicadores
AA212: 7 | AB212: optimo | AC212: adecuado | AD212: en riesgo | AE212: critico | AF212: NA
AG213: Total
M214: Misionales | Z214: Misionales | AB214: =+AB215+AB216 -> 9 | AC214: =+AC215+AC216 -> 5 | AD214: =+AD215+AD216 -> 0 | AE214: =+AE215+AE216 -> 0 | AF214: =+AF215+AF216 -> 35 | AG214: =+SUM(AB214:AF214) -> 49
M215: PM1 | N215: Promoción y prevención | AA215: PM1 | AB215: =+VLOOKUP($AA215&AB$212,'td1'!$DR$169:$ED$248,'información graf'!$G$2,FALSE) -> 6 | AC215: =+VLOOKUP($AA215&AC$212,'td1'!$DR$169:$ED$248,'información graf'!$G$2,FALSE) -> 2 | AD215: =+VLOOKUP($AA215&AD$212,'td1'!$DR$169:$ED$248,'información graf'!$G$2,FALSE) -> 0 | AE215: =+VLOOKUP($AA215&AE$212,'td1'!$DR$169:$ED$248,'información graf'!$G$2,FALSE) -> 0 | AF215: =+VLOOKUP($AA215&AF$212,'td1'!$DR$169:$ED$248,'información graf'!$G$2,FALSE) -> 26 | AG215: 34
M216: PM2 | N216: Protección | AA216: PM2 | AB216: =+VLOOKUP($AA216&AB$212,'td1'!$DR$169:$ED$248,'información graf'!$G$2,FALSE) -> 3 | AC216: =+VLOOKUP($AA216&AC$212,'td1'!$DR$169:$ED$248,'información graf'!$G$2,FALSE) -> 3 | AD216: =+VLOOKUP($AA216&AD$212,'td1'!$DR$169:$ED$248,'información graf'!$G$2,FALSE) -> 0 | AE216: =+VLOOKUP($AA216&AE$212,'td1'!$DR$169:$ED$248,'información graf'!$G$2,FALSE) -> 0 | AF216: =+VLOOKUP($AA216&AF$212,'td1'!$DR$169:$ED$248,'información graf'!$G$2,FALSE) -> 9 | AG216: 15
M217: Apoyo | Z217: Apoyo | AB217: =+AB218+AB219+AB220+AB221+AB222 -> 6 | AC217: =+AC218+AC219+AC220+AC221+AC222 -> 0 | AD217: =+AD218+AD219+AD220+AD221+AD222 -> 2 | AE217: =+AE218+AE219+AE220+AE221+AE222 -> 0 | AF217: =+AF218+AF219+AF220+AF221+AF222 -> 33 | AG217: 41
M218: PA1 | N218: Gestión financiera | AA218: PA1 | AB218: =+VLOOKUP($AA218&AB$212,'td1'!$DR$169:$ED$248,'información graf'!$G$2,FALSE) -> 0 | AC218: =+VLOOKUP($AA218&AC$212,'td1'!$DR$169:$ED$248,'información graf'!$G$2,FALSE) -> 0 | AD218: =+VLOOKUP($AA218&AD$212,'td1'!$DR$169:$ED$248,'información graf'!$G$2,FALSE) -> 2 | AE218: =+VLOOKUP($AA218&AE$212,'td1'!$DR$169:$ED$248,'información graf'!$G$2,FALSE) -> 0 | AF218: =+VLOOKUP($AA218&AF$212,'td1'!$DR$169:$ED$248,'información graf'!$G$2,FALSE) -> 5 | AG218: 7
M219: PA2 | N219: Adquisición de bienes y servicios | AA219: PA2 | AB219: =+VLOOKUP($AA219&AB$212,'td1'!$DR$169:$ED$248,'información graf'!$G$2,FALSE) -> 3 | AC219: =+VLOOKUP($AA219&AC$212,'td1'!$DR$169:$ED$248,'información graf'!$G$2,FALSE) -> 0 | AD219: =+VLOOKUP($AA219&AD$212,'td1'!$DR$169:$ED$248,'información graf'!$G$2,FALSE) -> 0 | AE219: =+VLOOKUP($AA219&AE$212,'td1'!$DR$169:$ED$248,'información graf'!$G$2,FALSE) -> 0 | AF219: =+VLOOKUP($AA219&AF$212,'td1'!$DR$169:$ED$248,'información graf'!$G$2,FALSE) -> 5 | AG219: 8
M220: PA3 | N220: Servicios administrativos | AA220: PA3 | AB220: =+VLOOKUP($AA220&AB$212,'td1'!$DR$169:$ED$248,'información graf'!$G$2,FALSE) -> 0 | AC220: =+VLOOKUP($AA220&AC$212,'td1'!$DR$169:$ED$248,'información graf'!$G$2,FALSE) -> 0 | AD220: =+VLOOKUP($AA220&AD$212,'td1'!$DR$169:$ED$248,'información graf'!$G$2,FALSE) -> 0 | AE220: =+VLOOKUP($AA220&AE$212,'td1'!$DR$169:$ED$248,'información graf'!$G$2,FALSE) -> 0 | AF220: =+VLOOKUP($AA220&AF$212,'td1'!$DR$169:$ED$248,'información graf'!$G$2,FALSE) -> 9 | AG220: 9
M221: PA4 | N221: Gestión de talento humano | AA221: PA4 | AB221: =+VLOOKUP($AA221&AB$212,'td1'!$DR$169:$ED$248,'información graf'!$G$2,FALSE) -> 3 | AC221: =+VLOOKUP($AA221&AC$212,'td1'!$DR$169:$ED$248,'información graf'!$G$2,FALSE) -> 0 | AD221: =+VLOOKUP($AA221&AD$212,'td1'!$DR$169:$ED$248,'información graf'!$G$2,FALSE) -> 0 | AE221: =+VLOOKUP($AA221&AE$212,'td1'!$DR$169:$ED$248,'información graf'!$G$2,FALSE) -> 0 | AF221: =+VLOOKUP($AA221&AF$212,'td1'!$DR$169:$ED$248,'información graf'!$G$2,FALSE) -> 10 | AG221: 13
M222: PA5 | N222: Gestión jurídica | AA222: PA5 | AB222: =+VLOOKUP($AA222&AB$212,'td1'!$DR$169:$ED$248,'información graf'!$G$2,FALSE) -> 0 | AC222: =+VLOOKUP($AA222&AC$212,'td1'!$DR$169:$ED$248,'información graf'!$G$2,FALSE) -> 0 | AD222: =+VLOOKUP($AA222&AD$212,'td1'!$DR$169:$ED$248,'información graf'!$G$2,FALSE) -> 0 | AE222: =+VLOOKUP($AA222&AE$212,'td1'!$DR$169:$ED$248,'información graf'!$G$2,FALSE) -> 0 | AF222: =+VLOOKUP($AA222&AF$212,'td1'!$DR$169:$ED$248,'información graf'!$G$2,FALSE) -> 4 | AG222: 4
M223: Estratégicos | Z223: Estratégicos | AB223: =+AB224+AB225+AB226 -> 2 | AC223: =+AC224+AC225+AC226 -> 0 | AD223: =+AD224+AD225+AD226 -> 0 | AE223: =+AE224+AE225+AE226 -> 0 | AF223: =+AF224+AF225+AF226 -> 18 | AG223: 20
M224: PE1 | N224: Coordinación y articulación del SNBF y agentes | AA224: PE1 | AB224: =+VLOOKUP($AA224&AB$212,'td1'!$DR$169:$ED$248,'información graf'!$G$2,FALSE) -> 1 | AC224: =+VLOOKUP($AA224&AC$212,'td1'!$DR$169:$ED$248,'información graf'!$G$2,FALSE) -> 0 | AD224: =+VLOOKUP($AA224&AD$212,'td1'!$DR$169:$ED$248,'información graf'!$G$2,FALSE) -> 0 | AE224: =+VLOOKUP($AA224&AE$212,'td1'!$DR$169:$ED$248,'información graf'!$G$2,FALSE) -> 0 | AF224: =+VLOOKUP($AA224&AF$212,'td1'!$DR$169:$ED$248,'información graf'!$G$2,FALSE) -> 9 | AG224: 10
M225: PE2 | N225: Direccionamiento Estratégico | AA225: PE2 | AB225: =+VLOOKUP($AA225&AB$212,'td1'!$DR$169:$ED$248,'información graf'!$G$2,FALSE) -> 1 | AC225: =+VLOOKUP($AA225&AC$212,'td1'!$DR$169:$ED$248,'información graf'!$G$2,FALSE) -> 0 | AD225: =+VLOOKUP($AA225&AD$212,'td1'!$DR$169:$ED$248,'información graf'!$G$2,FALSE) -> 0 | AE225: =+VLOOKUP($AA225&AE$212,'td1'!$DR$169:$ED$248,'información graf'!$G$2,FALSE) -> 0 | AF225: =+VLOOKUP($AA225&AF$212,'td1'!$DR$169:$ED$248,'información graf'!$G$2,FALSE) -> 6 | AG225: 7
M226: PE3 | N226: Comunicación estratégica | AA226: PE3 | AB226: =+VLOOKUP($AA226&AB$212,'td1'!$DR$169:$ED$248,'información graf'!$G$2,FALSE) -> 0 | AC226: =+VLOOKUP($AA226&AC$212,'td1'!$DR$169:$ED$248,'información graf'!$G$2,FALSE) -> 0 | AD226: =+VLOOKUP($AA226&AD$212,'td1'!$DR$169:$ED$248,'información graf'!$G$2,FALSE) -> 0 | AE226: =+VLOOKUP($AA226&AE$212,'td1'!$DR$169:$ED$248,'información graf'!$G$2,FALSE) -> 0 | AF226: =+VLOOKUP($AA226&AF$212,'td1'!$DR$169:$ED$248,'información graf'!$G$2,FALSE) -> 3 | AG226: 3
M227: Evaluación | Z227: Evaluación | AB227: =+AB228+AB229+AB230 -> 1 | AC227: =+AC228+AC229+AC230 -> 0 | AD227: =+AD228+AD229+AD230 -> 0 | AE227: =+AE228+AE229+AE230 -> 0 | AF227: =+AF228+AF229+AF230 -> 10 | AG227: 11
M228: PEV1 | N228: Inspección vigilancia y control a operadores | AA228: PEV1 | AB228: =+VLOOKUP($AA228&AB$212,'td1'!$DR$169:$ED$248,'información graf'!$G$2,FALSE) -> 1 | AC228: =+VLOOKUP($AA228&AC$212,'td1'!$DR$169:$ED$248,'información graf'!$G$2,FALSE) -> 0 | AD228: =+VLOOKUP($AA228&AD$212,'td1'!$DR$169:$ED$248,'información graf'!$G$2,FALSE) -> 0 | AE228: =+VLOOKUP($AA228&AE$212,'td1'!$DR$169:$ED$248,'información graf'!$G$2,FALSE) -> 0 | AF228: =+VLOOKUP($AA228&AF$212,'td1'!$DR$169:$ED$248,'información graf'!$G$2,FALSE) -> 4 | AG228: 5
M229: PEV2 | N229: Evaluación y monitoreo de la gestión | AA229: PEV2 | AB229: =+VLOOKUP($AA229&AB$212,'td1'!$DR$169:$ED$248,'información graf'!$G$2,FALSE) -> 0 | AC229: =+VLOOKUP($AA229&AC$212,'td1'!$DR$169:$ED$248,'información graf'!$G$2,FALSE) -> 0 | AD229: =+VLOOKUP($AA229&AD$212,'td1'!$DR$169:$ED$248,'información graf'!$G$2,FALSE) -> 0 | AE229: =+VLOOKUP($AA229&AE$212,'td1'!$DR$169:$ED$248,'información graf'!$G$2,FALSE) -> 0 | AF229: =+VLOOKUP($AA229&AF$212,'td1'!$DR$169:$ED$248,'información graf'!$G$2,FALSE) -> 2 | AG229: 2
M230: PEV3 | N230: Evaluación independiente | AA230: PEV3 | AB230: =+VLOOKUP($AA230&AB$212,'td1'!$DR$169:$ED$248,'información graf'!$G$2,FALSE) -> 0 | AC230: =+VLOOKUP($AA230&AC$212,'td1'!$DR$169:$ED$248,'información graf'!$G$2,FALSE) -> 0 | AD230: =+VLOOKUP($AA230&AD$212,'td1'!$DR$169:$ED$248,'información graf'!$G$2,FALSE) -> 0 | AE230: =+VLOOKUP($AA230&AE$212,'td1'!$DR$169:$ED$248,'información graf'!$G$2,FALSE) -> 0 | AF230: =+VLOOKUP($AA230&AF$212,'td1'!$DR$169:$ED$248,'información graf'!$G$2,FALSE) -> 4 | AG230: =+SUM(AB230:AF230) -> 4
M231: Transversales | Z231: Transversales | AB231: =+AB232+AB233+AB234 -> 2 | AC231: =+AC232+AC233+AC234 -> 4 | AD231: =+AD232+AD233+AD234 -> 1 | AE231: =+AE232+AE233+AE234 -> 0 | AF231: =+AF232+AF233+AF234 -> 29 | AG231: 36
M232: PT1 | N232: Relación con el ciudadano | AA232: PT1 | AB232: =+VLOOKUP($AA232&AB$212,'td1'!$DR$169:$ED$248,'información graf'!$G$2,FALSE) -> 2 | AC232: =+VLOOKUP($AA232&AC$212,'td1'!$DR$169:$ED$248,'información graf'!$G$2,FALSE) -> 4 | AD232: =+VLOOKUP($AA232&AD$212,'td1'!$DR$169:$ED$248,'información graf'!$G$2,FALSE) -> 1 | AE232: =+VLOOKUP($AA232&AE$212,'td1'!$DR$169:$ED$248,'información graf'!$G$2,FALSE) -> 0 | AF232: =+VLOOKUP($AA232&AF$212,'td1'!$DR$169:$ED$248,'información graf'!$G$2,FALSE) -> 4 | AG232: 11
M233: PT2 | N233: Mejora e Innovación | AA233: PT2 | AB233: =+VLOOKUP($AA233&AB$212,'td1'!$DR$169:$ED$248,'información graf'!$G$2,FALSE) -> 0 | AC233: =+VLOOKUP($AA233&AC$212,'td1'!$DR$169:$ED$248,'información graf'!$G$2,FALSE) -> 0 | AD233: =+VLOOKUP($AA233&AD$212,'td1'!$DR$169:$ED$248,'información graf'!$G$2,FALSE) -> 0 | AE233: =+VLOOKUP($AA233&AE$212,'td1'!$DR$169:$ED$248,'información graf'!$G$2,FALSE) -> 0 | AF233: =+VLOOKUP($AA233&AF$212,'td1'!$DR$169:$ED$248,'información graf'!$G$2,FALSE) -> 20 | AG233: 20
M234: PT3 | N234: Gestión de la tecnología e información | AA234: PT3 | AB234: =+VLOOKUP($AA234&AB$212,'td1'!$DR$169:$ED$248,'información graf'!$G$2,FALSE) -> 0 | AC234: =+VLOOKUP($AA234&AC$212,'td1'!$DR$169:$ED$248,'información graf'!$G$2,FALSE) -> 0 | AD234: =+VLOOKUP($AA234&AD$212,'td1'!$DR$169:$ED$248,'información graf'!$G$2,FALSE) -> 0 | AE234: =+VLOOKUP($AA234&AE$212,'td1'!$DR$169:$ED$248,'información graf'!$G$2,FALSE) -> 0 | AF234: =+VLOOKUP($AA234&AF$212,'td1'!$DR$169:$ED$248,'información graf'!$G$2,FALSE) -> 5 | AG234: 5
Z235: Total | AB235: =+AB214+AB217+AB223+AB227+AB231 -> 20 | AC235: =+AC214+AC217+AC223+AC227+AC231 -> 9 | AD235: =+AD214+AD217+AD223+AD227+AD231 -> 3 | AE235: =+AE214+AE217+AE223+AE227+AE231 -> 0 | AF235: =+AF214+AF217+AF223+AF227+AF231 -> 125 | AG235: 157
AB236: =+AB235/$AG$235 -> 0.127388535 | AC236: =+AC235/$AG$235 -> 0.05732484076 | AD236: =+AD235/$AG$235 -> 0.01910828025 | AE236: =+AE235/$AG$235 -> 0 | AF236: =+AF235/$AG$235 -> 0.7961783439
Z237: =+"Corte "&$D$5 -> Corte Febrero
C244: Áreas del ICBF
AD247: Comportamiento indicadores directos | AO247: Comportamiento indicadores transversales | AW247: Total Indicadores por área
S248: 32 | AE248: 7 | AF248: optimo | AG248: adecuado | AH248: en riesgo | AI248: critico | AJ248: NA | AO248: 7 | AP248: optimo | AQ248: adecuado | AR248: en riesgo | AS248: critico | AT248: NA | AY248: optimo | AZ248: adecuado | BA248: en riesgo | BB248: critico | BC248: NA
AL249: Total | AU249: Total | BD249: Total
AF250: Misionales | AG250: =+AG251+AG252+AG253+AG254+AG255 -> 12 | AH250: =+AH251+AH252+AH253+AH254+AH255 -> 5 | AI250: =+AI251+AI252+AI253+AI254+AI255 -> 0 | AJ250: =+AJ251+AJ252+AJ253+AJ254+AJ255 -> 0 | AK250: =+AK251+AK252+AK253+AK254+AK255 -> 48 | AL250: =+SUM(AG250:AK250) -> 65 | AO250: Misionales | AX250: Misionales
AC251: M1 | AF251: M1. Primera Infancia | AG251: =+VLOOKUP($AC251&AF$248,'td1'!$GD$169:$GP$278,'información graf'!$G$2,FALSE) -> 1 | AH251: =+VLOOKUP($AC251&AG$248,'td1'!$GD$169:$GP$278,'información graf'!$G$2,FALSE) -> 1 | AI251: =+VLOOKUP($AC251&AH$248,'td1'!$GD$169:$GP$278,'información graf'!$G$2,FALSE) -> 0 | AJ251: =+VLOOKUP($AC251&AI$248,'td1'!$GD$169:$GP$278,'información graf'!$G$2,FALSE) -> 0 | AK251: =+VLOOKUP($AC251&AJ$248,'td1'!$GD$169:$GP$278,'información graf'!$G$2,FALSE) -> 15 | AL251: 17 | AO251: M1 | AP251: =+VLOOKUP($AC251&AP$248,'td1'!$GD$282:$GP$391,'información graf'!$G$2,FALSE) -> 3 | AQ251: =+VLOOKUP($AC251&AQ$248,'td1'!$GD$282:$GP$391,'información graf'!$G$2,FALSE) -> 0 | AR251: =+VLOOKUP($AC251&AR$248,'td1'!$GD$282:$GP$391,'información graf'!$G$2,FALSE) -> 0 | AS251: =+VLOOKUP($AC251&AS$248,'td1'!$GD$282:$GP$391,'información graf'!$G$2,FALSE) -> 0 | AT251: =+VLOOKUP($AC251&AT$248,'td1'!$GD$282:$GP$391,'información graf'!$G$2,FALSE) -> 14 | AU251: =+SUM(AP251:AT251) -> 17 | AX251: M1 | AY251: =+AG251+AP251 -> 4 | AZ251: 1 | BA251: 0 | BB251: 0 | BC251: 29 | BD251: =+SUM(AY251:BC251) -> 34
AC252: M2 | AF252: M2. Niñez | AG252: =+VLOOKUP($AC252&AF$248,'td1'!$GD$169:$GP$278,'información graf'!$G$2,FALSE) -> 3 | AH252: =+VLOOKUP($AC252&AG$248,'td1'!$GD$169:$GP$278,'información graf'!$G$2,FALSE) -> 0 | AI252: =+VLOOKUP($AC252&AH$248,'td1'!$GD$169:$GP$278,'información graf'!$G$2,FALSE) -> 0 | AJ252: =+VLOOKUP($AC252&AI$248,'td1'!$GD$169:$GP$278,'información graf'!$G$2,FALSE) -> 0 | AK252: =+VLOOKUP($AC252&AJ$248,'td1'!$GD$169:$GP$278,'información graf'!$G$2,FALSE) -> 10 | AL252: 13 | AO252: M2 | AP252: =+VLOOKUP($AC252&AP$248,'td1'!$GD$282:$GP$391,'información graf'!$G$2,FALSE) -> 0 | AQ252: =+VLOOKUP($AC252&AQ$248,'td1'!$GD$282:$GP$391,'información graf'!$G$2,FALSE) -> 0 | AR252: =+VLOOKUP($AC252&AR$248,'td1'!$GD$282:$GP$391,'información graf'!$G$2,FALSE) -> 0 | AS252: =+VLOOKUP($AC252&AS$248,'td1'!$GD$282:$GP$391,'información graf'!$G$2,FALSE) -> 1 | AT252: =+VLOOKUP($AC252&AT$248,'td1'!$GD$282:$GP$391,'información graf'!$G$2,FALSE) -> 16 | AU252: 17 | AX252: M2 | AY252: 3 | AZ252: 0 | BA252: 0 | BB252: 1 | BC252: 26 | BD252: =+SUM(AY252:BC252) -> 30
AC253: M3 | AF253: M3. Familias | AG253: =+VLOOKUP($AC253&AF$248,'td1'!$GD$169:$GP$278,'información graf'!$G$2,FALSE) -> 2 | AH253: =+VLOOKUP($AC253&AG$248,'td1'!$GD$169:$GP$278,'información graf'!$G$2,FALSE) -> 1 | AI253: =+VLOOKUP($AC253&AH$248,'td1'!$GD$169:$GP$278,'información graf'!$G$2,FALSE) -> 0 | AJ253: =+VLOOKUP($AC253&AI$248,'td1'!$GD$169:$GP$278,'información graf'!$G$2,FALSE) -> 0 | AK253: =+VLOOKUP($AC253&AJ$248,'td1'!$GD$169:$GP$278,'información graf'!$G$2,FALSE) -> 5 | AL253: 8 | AO253: M3 | AP253: =+VLOOKUP($AC253&AP$248,'td1'!$GD$282:$GP$391,'información graf'!$G$2,FALSE) -> 1 | AQ253: =+VLOOKUP($AC253&AQ$248,'td1'!$GD$282:$GP$391,'información graf'!$G$2,FALSE) -> 0 | AR253: =+VLOOKUP($AC253&AR$248,'td1'!$GD$282:$GP$391,'información graf'!$G$2,FALSE) -> 0 | AS253: =+VLOOKUP($AC253&AS$248,'td1'!$GD$282:$GP$391,'información graf'!$G$2,FALSE) -> 0 | AT253: =+VLOOKUP($AC253&AT$248,'td1'!$GD$282:$GP$391,'información graf'!$G$2,FALSE) -> 16 | AU253: 17 | AX253: M3 | AY253: 3 | AZ253: 1 | BA253: 0 | BB253: 0 | BC253: 21 | BD253: =+SUM(AY253:BC253) -> 25
AC254: M4 | AF254: M4. Nutrición | AG254: =+VLOOKUP($AC254&AF$248,'td1'!$GD$169:$GP$278,'información graf'!$G$2,FALSE) -> 3 | AH254: =+VLOOKUP($AC254&AG$248,'td1'!$GD$169:$GP$278,'información graf'!$G$2,FALSE) -> 0 | AI254: =+VLOOKUP($AC254&AH$248,'td1'!$GD$169:$GP$278,'información graf'!$G$2,FALSE) -> 0 | AJ254: =+VLOOKUP($AC254&AI$248,'td1'!$GD$169:$GP$278,'información graf'!$G$2,FALSE) -> 0 | AK254: =+VLOOKUP($AC254&AJ$248,'td1'!$GD$169:$GP$278,'información graf'!$G$2,FALSE) -> 5 | AL254: 8 | AO254: M4 | AP254: =+VLOOKUP($AC254&AP$248,'td1'!$GD$282:$GP$391,'información graf'!$G$2,FALSE) -> 3 | AQ254: =+VLOOKUP($AC254&AQ$248,'td1'!$GD$282:$GP$391,'información graf'!$G$2,FALSE) -> 0 | AR254: =+VLOOKUP($AC254&AR$248,'td1'!$GD$282:$GP$391,'información graf'!$G$2,FALSE) -> 0 | AS254: =+VLOOKUP($AC254&AS$248,'td1'!$GD$282:$GP$391,'información graf'!$G$2,FALSE) -> 0 | AT254: =+VLOOKUP($AC254&AT$248,'td1'!$GD$282:$GP$391,'información graf'!$G$2,FALSE) -> 14 | AU254: 17 | AX254: M4 | AY254: 6 | AZ254: 0 | BA254: 0 | BB254: 0 | BC254: 19 | BD254: =+SUM(AY254:BC254) -> 25
AC255: M5 | AF255: M5. Protección | AG255: =+VLOOKUP($AC255&AF$248,'td1'!$GD$169:$GP$278,'información graf'!$G$2,FALSE) -> 3 | AH255: =+VLOOKUP($AC255&AG$248,'td1'!$GD$169:$GP$278,'información graf'!$G$2,FALSE) -> 3 | AI255: =+VLOOKUP($AC255&AH$248,'td1'!$GD$169:$GP$278,'información graf'!$G$2,FALSE) -> 0 | AJ255: =+VLOOKUP($AC255&AI$248,'td1'!$GD$169:$GP$278,'información graf'!$G$2,FALSE) -> 0 | AK255: =+VLOOKUP($AC255&AJ$248,'td1'!$GD$169:$GP$278,'información graf'!$G$2,FALSE) -> 13 | AL255: 19 | AO255: M5 | AP255: =+VLOOKUP($AC255&AP$248,'td1'!$GD$282:$GP$391,'información graf'!$G$2,FALSE) -> 2 | AQ255: =+VLOOKUP($AC255&AQ$248,'td1'!$GD$282:$GP$391,'información graf'!$G$2,FALSE) -> 0 | AR255: =+VLOOKUP($AC255&AR$248,'td1'!$GD$282:$GP$391,'información graf'!$G$2,FALSE) -> 0 | AS255: =+VLOOKUP($AC255&AS$248,'td1'!$GD$282:$GP$391,'información graf'!$G$2,FALSE) -> 1 | AT255: =+VLOOKUP($AC255&AT$248,'td1'!$GD$282:$GP$391,'información graf'!$G$2,FALSE) -> 14 | AU255: 17 | AX255: M5 | AY255: 5 | AZ255: 3 | BA255: 0 | BB255: 1 | BC255: 27 | BD255: =+SUM(AY255:BC255) -> 36
AF256: Apoyo | AG256: =+SUM(AG257:AG273) -> 8 | AH256: =+SUM(AH257:AH273) -> 4 | AI256: =+SUM(AI257:AI273) -> 3 | AJ256: =+SUM(AJ257:AJ273) -> 0 | AK256: =+SUM(AK257:AK273) -> 77 | AL256: 92 | AO256: Apoyo | AX256: Apoyo
AC257: A1 | AF257: A1. Gestión Humana | AG257: =+VLOOKUP($AC257&AF$248,'td1'!$GD$169:$GP$278,'información graf'!$G$2,FALSE) -> 3 | AH257: =+VLOOKUP($AC257&AG$248,'td1'!$GD$169:$GP$278,'información graf'!$G$2,FALSE) -> 0 | AI257: =+VLOOKUP($AC257&AH$248,'td1'!$GD$169:$GP$278,'información graf'!$G$2,FALSE) -> 0 | AJ257: =+VLOOKUP($AC257&AI$248,'td1'!$GD$169:$GP$278,'información graf'!$G$2,FALSE) -> 0 | AK257: =+VLOOKUP($AC257&AJ$248,'td1'!$GD$169:$GP$278,'información graf'!$G$2,FALSE) -> 7 | AL257: 10 | AO257: A1 | AP257: =+VLOOKUP($AC257&AP$248,'td1'!$GD$282:$GP$391,'información graf'!$G$2,FALSE) -> 1 | AQ257: =+VLOOKUP($AC257&AQ$248,'td1'!$GD$282:$GP$391,'información graf'!$G$2,FALSE) -> 1 | AR257: =+VLOOKUP($AC257&AR$248,'td1'!$GD$282:$GP$391,'información graf'!$G$2,FALSE) -> 0 | AS257: =+VLOOKUP($AC257&AS$248,'td1'!$GD$282:$GP$391,'información graf'!$G$2,FALSE) -> 1 | AT257: =+VLOOKUP($AC257&AT$248,'td1'!$GD$282:$GP$391,'información graf'!$G$2,FALSE) -> 14 | AU257: 17 | AX257: A1 | AY257: =+AG257+AP257 -> 4 | AZ257: 1 | BA257: 0 | BB257: 1 | BC257: 21 | BD257: =+SUM(AY257:BC257) -> 27
AC258: A2 | AF258: A2. Financiera | AG258: =+VLOOKUP($AC258&AF$248,'td1'!$GD$169:$GP$278,'información graf'!$G$2,FALSE) -> 0 | AH258: =+VLOOKUP($AC258&AG$248,'td1'!$GD$169:$GP$278,'información graf'!$G$2,FALSE) -> 0 | AI258: =+VLOOKUP($AC258&AH$248,'td1'!$GD$169:$GP$278,'información graf'!$G$2,FALSE) -> 2 | AJ258: =+VLOOKUP($AC258&AI$248,'td1'!$GD$169:$GP$278,'información graf'!$G$2,FALSE) -> 0 | AK258: =+VLOOKUP($AC258&AJ$248,'td1'!$GD$169:$GP$278,'información graf'!$G$2,FALSE) -> 5 | AL258: 7 | AO258: A2 | AP258: =+VLOOKUP($AC258&AP$248,'td1'!$GD$282:$GP$391,'información graf'!$G$2,FALSE) -> 2 | AQ258: =+VLOOKUP($AC258&AQ$248,'td1'!$GD$282:$GP$391,'información graf'!$G$2,FALSE) -> 1 | AR258: =+VLOOKUP($AC258&AR$248,'td1'!$GD$282:$GP$391,'información graf'!$G$2,FALSE) -> 0 | AS258: =+VLOOKUP($AC258&AS$248,'td1'!$GD$282:$GP$391,'información graf'!$G$2,FALSE) -> 0 | AT258: =+VLOOKUP($AC258&AT$248,'td1'!$GD$282:$GP$391,'información graf'!$G$2,FALSE) -> 14 | AU258: 17 | AX258: A2 | AY258: 2 | AZ258: 1 | BA258: 2 | BB258: 0 | BC258: 19 | BD258: 24
AC259: A3 | AF259: A3. Control Interno Disc | AG259: =+VLOOKUP($AC259&AF$248,'td1'!$GD$169:$GP$278,'información graf'!$G$2,FALSE) -> 0 | AH259: =+VLOOKUP($AC259&AG$248,'td1'!$GD$169:$GP$278,'información graf'!$G$2,FALSE) -> 0 | AI259: =+VLOOKUP($AC259&AH$248,'td1'!$GD$169:$GP$278,'información graf'!$G$2,FALSE) -> 0 | AJ259: =+VLOOKUP($AC259&AI$248,'td1'!$GD$169:$GP$278,'información graf'!$G$2,FALSE) -> 0 | AK259: =+VLOOKUP($AC259&AJ$248,'td1'!$GD$169:$GP$278,'información graf'!$G$2,FALSE) -> 3 | AL259: 3 | AO259: A3 | AP259: =+VLOOKUP($AC259&AP$248,'td1'!$GD$282:$GP$391,'información graf'!$G$2,FALSE) -> 1 | AQ259: =+VLOOKUP($AC259&AQ$248,'td1'!$GD$282:$GP$391,'información graf'!$G$2,FALSE) -> 0 | AR259: =+VLOOKUP($AC259&AR$248,'td1'!$GD$282:$GP$391,'información graf'!$G$2,FALSE) -> 0 | AS259: =+VLOOKUP($AC259&AS$248,'td1'!$GD$282:$GP$391,'información graf'!$G$2,FALSE) -> 1 | AT259: =+VLOOKUP($AC259&AT$248,'td1'!$GD$282:$GP$391,'información graf'!$G$2,FALSE) -> 15 | AU259: 17 | AX259: A3 | AY259: 1 | AZ259: 0 | BA259: 0 | BB259: 1 | BC259: 18 | BD259: 20
AC260: A4 | AF260: A4. Abastecimiento | AG260: =+VLOOKUP($AC260&AF$248,'td1'!$GD$169:$GP$278,'información graf'!$G$2,FALSE) -> 1 | AH260: =+VLOOKUP($AC260&AG$248,'td1'!$GD$169:$GP$278,'información graf'!$G$2,FALSE) -> 0 | AI260: =+VLOOKUP($AC260&AH$248,'td1'!$GD$169:$GP$278,'información graf'!$G$2,FALSE) -> 0 | AJ260: =+VLOOKUP($AC260&AI$248,'td1'!$GD$169:$GP$278,'información graf'!$G$2,FALSE) -> 0 | AK260: =+VLOOKUP($AC260&AJ$248,'td1'!$GD$169:$GP$278,'información graf'!$G$2,FALSE) -> 3 | AL260: 4 | AO260: A4 | AP260: =+VLOOKUP($AC260&AP$248,'td1'!$GD$282:$GP$391,'información graf'!$G$2,FALSE) -> 2 | AQ260: =+VLOOKUP($AC260&AQ$248,'td1'!$GD$282:$GP$391,'información graf'!$G$2,FALSE) -> 0 | AR260: =+VLOOKUP($AC260&AR$248,'td1'!$GD$282:$GP$391,'información graf'!$G$2,FALSE) -> 0 | AS260: =+VLOOKUP($AC260&AS$248,'td1'!$GD$282:$GP$391,'información graf'!$G$2,FALSE) -> 0 | AT260: =+VLOOKUP($AC260&AT$248,'td1'!$GD$282:$GP$391,'información graf'!$G$2,FALSE) -> 15 | AU260: 17 | AX260: A4 | AY260: 3 | AZ260: 0 | BA260: 0 | BB260: 0 | BC260: 18 | BD260: 21
AC261: A5 | AF261: A5. Administrativa | AG261: =+VLOOKUP($AC261&AF$248,'td1'!$GD$169:$GP$278,'información graf'!$G$2,FALSE) -> 0 | AH261: =+VLOOKUP($AC261&AG$248,'td1'!$GD$169:$GP$278,'información graf'!$G$2,FALSE) -> 0 | AI261: =+VLOOKUP($AC261&AH$248,'td1'!$GD$169:$GP$278,'información graf'!$G$2,FALSE) -> 0 | AJ261: =+VLOOKUP($AC261&AI$248,'td1'!$GD$169:$GP$278,'información graf'!$G$2,FALSE) -> 0 | AK261: =+VLOOKUP($AC261&AJ$248,'td1'!$GD$169:$GP$278,'información graf'!$G$2,FALSE) -> 9 | AL261: 9 | AO261: A5 | AP261: =+VLOOKUP($AC261&AP$248,'td1'!$GD$282:$GP$391,'información graf'!$G$2,FALSE) -> 2 | AQ261: =+VLOOKUP($AC261&AQ$248,'td1'!$GD$282:$GP$391,'información graf'!$G$2,FALSE) -> 0 | AR261: =+VLOOKUP($AC261&AR$248,'td1'!$GD$282:$GP$391,'información graf'!$G$2,FALSE) -> 1 | AS261: =+VLOOKUP($AC261&AS$248,'td1'!$GD$282:$GP$391,'información graf'!$G$2,FALSE) -> 0 | AT261: =+VLOOKUP($AC261&AT$248,'td1'!$GD$282:$GP$391,'información graf'!$G$2,FALSE) -> 14 | AU261: 17 | AX261: A5 | AY261: 2 | AZ261: 0 | BA261: 1 | BB261: 0 | BC261: 23 | BD261: 26
AC262: A6 | AF262: A6. Contratación | AG262: =+VLOOKUP($AC262&AF$248,'td1'!$GD$169:$GP$278,'información graf'!$G$2,FALSE) -> 0 | AH262: =+VLOOKUP($AC262&AG$248,'td1'!$GD$169:$GP$278,'información graf'!$G$2,FALSE) -> 0 | AI262: =+VLOOKUP($AC262&AH$248,'td1'!$GD$169:$GP$278,'información graf'!$G$2,FALSE) -> 0 | AJ262: =+VLOOKUP($AC262&AI$248,'td1'!$GD$169:$GP$278,'información graf'!$G$2,FALSE) -> 0 | AK262: =+VLOOKUP($AC262&AJ$248,'td1'!$GD$169:$GP$278,'información graf'!$G$2,FALSE) -> 2 | AL262: 2 | AO262: A6 | AP262: =+VLOOKUP($AC262&AP$248,'td1'!$GD$282:$GP$391,'información graf'!$G$2,FALSE) -> 2 | AQ262: =+VLOOKUP($AC262&AQ$248,'td1'!$GD$282:$GP$391,'información graf'!$G$2,FALSE) -> 0 | AR262: =+VLOOKUP($AC262&AR$248,'td1'!$GD$282:$GP$391,'información graf'!$G$2,FALSE) -> 0 | AS262: =+VLOOKUP($AC262&AS$248,'td1'!$GD$282:$GP$391,'información graf'!$G$2,FALSE) -> 0 | AT262: =+VLOOKUP($AC262&AT$248,'td1'!$GD$282:$GP$391,'información graf'!$G$2,FALSE) -> 15 | AU262: 17 | AX262: A6 | AY262: 2 | AZ262: 0 | BA262: 0 | BB262: 0 | BC262: 17 | BD262: 19
AC263: A7 | AF263: A7. Jurídica | AG263: =+VLOOKUP($AC263&AF$248,'td1'!$GD$169:$GP$278,'información graf'!$G$2,FALSE) -> 0 | AH263: =+VLOOKUP($AC263&AG$248,'td1'!$GD$169:$GP$278,'información graf'!$G$2,FALSE) -> 0 | AI263: =+VLOOKUP($AC263&AH$248,'td1'!$GD$169:$GP$278,'información graf'!$G$2,FALSE) -> 0 | AJ263: =+VLOOKUP($AC263&AI$248,'td1'!$GD$169:$GP$278,'información graf'!$G$2,FALSE) -> 0 | AK263: =+VLOOKUP($AC263&AJ$248,'td1'!$GD$169:$GP$278,'información graf'!$G$2,FALSE) -> 4 | AL263: 4 | AO263: A7 | AP263: =+VLOOKUP($AC263&AP$248,'td1'!$GD$282:$GP$391,'información graf'!$G$2,FALSE) -> 2 | AQ263: =+VLOOKUP($AC263&AQ$248,'td1'!$GD$282:$GP$391,'información graf'!$G$2,FALSE) -> 1 | AR263: =+VLOOKUP($AC263&AR$248,'td1'!$GD$282:$GP$391,'información graf'!$G$2,FALSE) -> 0 | AS263: =+VLOOKUP($AC263&AS$248,'td1'!$GD$282:$GP$391,'información graf'!$G$2,FALSE) -> 0 | AT263: =+VLOOKUP($AC263&AT$248,'td1'!$GD$282:$GP$391,'información graf'!$G$2,FALSE) -> 14 | AU263: 17 | AX263: A7 | AY263: 2 | AZ263: 1 | BA263: 0 | BB263: 0 | BC263: 18 | BD263: 21
AC264: A8 | AF264: A8. Gestión Regional | AG264: =+VLOOKUP($AC264&AF$248,'td1'!$GD$169:$GP$278,'información graf'!$G$2,FALSE) -> 0 | AH264: =+VLOOKUP($AC264&AG$248,'td1'!$GD$169:$GP$278,'información graf'!$G$2,FALSE) -> 0 | AI264: =+VLOOKUP($AC264&AH$248,'td1'!$GD$169:$GP$278,'información graf'!$G$2,FALSE) -> 0 | AJ264: =+VLOOKUP($AC264&AI$248,'td1'!$GD$169:$GP$278,'información graf'!$G$2,FALSE) -> 0 | AK264: =+VLOOKUP($AC264&AJ$248,'td1'!$GD$169:$GP$278,'información graf'!$G$2,FALSE) -> 2 | AL264: 2 | AO264: A8 | AP264: =+VLOOKUP($AC264&AP$248,'td1'!$GD$282:$GP$391,'información graf'!$G$2,FALSE) -> 0 | AQ264: =+VLOOKUP($AC264&AQ$248,'td1'!$GD$282:$GP$391,'información graf'!$G$2,FALSE) -> 0 | AR264: =+VLOOKUP($AC264&AR$248,'td1'!$GD$282:$GP$391,'información graf'!$G$2,FALSE) -> 0 | AS264: =+VLOOKUP($AC264&AS$248,'td1'!$GD$282:$GP$391,'información graf'!$G$2,FALSE) -> 0 | AT264: =+VLOOKUP($AC264&AT$248,'td1'!$GD$282:$GP$391,'información graf'!$G$2,FALSE) -> 17 | AU264: 17 | AX264: A8 | AY264: 0 | AZ264: 0 | BA264: 0 | BB264: 0 | BC264: 19 | BD264: 19
AC265: A9 | AF265: A9. Cooperación | AG265: =+VLOOKUP($AC265&AF$248,'td1'!$GD$169:$GP$278,'información graf'!$G$2,FALSE) -> 1 | AH265: =+VLOOKUP($AC265&AG$248,'td1'!$GD$169:$GP$278,'información graf'!$G$2,FALSE) -> 0 | AI265: =+VLOOKUP($AC265&AH$248,'td1'!$GD$169:$GP$278,'información graf'!$G$2,FALSE) -> 0 | AJ265: =+VLOOKUP($AC265&AI$248,'td1'!$GD$169:$GP$278,'información graf'!$G$2,FALSE) -> 0 | AK265: =+VLOOKUP($AC265&AJ$248,'td1'!$GD$169:$GP$278,'información graf'!$G$2,FALSE) -> 3 | AL265: 4 | AO265: A9 | AP265: =+VLOOKUP($AC265&AP$248,'td1'!$GD$282:$GP$391,'información graf'!$G$2,FALSE) -> 1 | AQ265: =+VLOOKUP($AC265&AQ$248,'td1'!$GD$282:$GP$391,'información graf'!$G$2,FALSE) -> 0 | AR265: =+VLOOKUP($AC265&AR$248,'td1'!$GD$282:$GP$391,'información graf'!$G$2,FALSE) -> 0 | AS265: =+VLOOKUP($AC265&AS$248,'td1'!$GD$282:$GP$391,'información graf'!$G$2,FALSE) -> 0 | AT265: =+VLOOKUP($AC265&AT$248,'td1'!$GD$282:$GP$391,'información graf'!$G$2,FALSE) -> 16 | AU265: 17 | AX265: A9 | AY265: 2 | AZ265: 0 | BA265: 0 | BB265: 0 | BC265: 19 | BD265: 21
AC266: A10 | AF266: A10. Servicios y Atención | AG266: =+VLOOKUP($AC266&AF$248,'td1'!$GD$169:$GP$278,'información graf'!$G$2,FALSE) -> 2 | AH266: =+VLOOKUP($AC266&AG$248,'td1'!$GD$169:$GP$278,'información graf'!$G$2,FALSE) -> 4 | AI266: =+VLOOKUP($AC266&AH$248,'td1'!$GD$169:$GP$278,'información graf'!$G$2,FALSE) -> 1 | AJ266: =+VLOOKUP($AC266&AI$248,'td1'!$GD$169:$GP$278,'información graf'!$G$2,FALSE) -> 0 | AK266: =+VLOOKUP($AC266&AJ$248,'td1'!$GD$169:$GP$278,'información graf'!$G$2,FALSE) -> 3 | AL266: 10 | AO266: A10 | AP266: =+VLOOKUP($AC266&AP$248,'td1'!$GD$282:$GP$391,'información graf'!$G$2,FALSE) -> 1 | AQ266: =+VLOOKUP($AC266&AQ$248,'td1'!$GD$282:$GP$391,'información graf'!$G$2,FALSE) -> 1 | AR266: =+VLOOKUP($AC266&AR$248,'td1'!$GD$282:$GP$391,'información graf'!$G$2,FALSE) -> 0 | AS266: =+VLOOKUP($AC266&AS$248,'td1'!$GD$282:$GP$391,'información graf'!$G$2,FALSE) -> 0 | AT266: =+VLOOKUP($AC266&AT$248,'td1'!$GD$282:$GP$391,'información graf'!$G$2,FALSE) -> 15 | AU266: 17 | AX266: A10 | AY266: 3 | AZ266: 5 | BA266: 1 | BB266: 0 | BC266: 18 | BD266: 27
AC267: A11 | AF267: A11. Tecnología | AG267: =+VLOOKUP($AC267&AF$248,'td1'!$GD$169:$GP$278,'información graf'!$G$2,FALSE) -> 0 | AH267: =+VLOOKUP($AC267&AG$248,'td1'!$GD$169:$GP$278,'información graf'!$G$2,FALSE) -> 0 | AI267: =+VLOOKUP($AC267&AH$248,'td1'!$GD$169:$GP$278,'información graf'!$G$2,FALSE) -> 0 | AJ267: =+VLOOKUP($AC267&AI$248,'td1'!$GD$169:$GP$278,'información graf'!$G$2,FALSE) -> 0 | AK267: =+VLOOKUP($AC267&AJ$248,'td1'!$GD$169:$GP$278,'información graf'!$G$2,FALSE) -> 5 | AL267: 5 | AO267: A11 | AP267: =+VLOOKUP($AC267&AP$248,'td1'!$GD$282:$GP$391,'información graf'!$G$2,FALSE) -> 3 | AQ267: =+VLOOKUP($AC267&AQ$248,'td1'!$GD$282:$GP$391,'información graf'!$G$2,FALSE) -> 0 | AR267: =+VLOOKUP($AC267&AR$248,'td1'!$GD$282:$GP$391,'información graf'!$G$2,FALSE) -> 0 | AS267: =+VLOOKUP($AC267&AS$248,'td1'!$GD$282:$GP$391,'información graf'!$G$2,FALSE) -> 0 | AT267: =+VLOOKUP($AC267&AT$248,'td1'!$GD$282:$GP$391,'información graf'!$G$2,FALSE) -> 14 | AU267: 17 | AX267: A11 | AY267: 3 | AZ267: 0 | BA267: 0 | BB267: 0 | BC267: 19 | BD267: 22
AC268: A12 | AF268: A12. Comunicaciones | AG268: =+VLOOKUP($AC268&AF$248,'td1'!$GD$169:$GP$278,'información graf'!$G$2,FALSE) -> 0 | AH268: =+VLOOKUP($AC268&AG$248,'td1'!$GD$169:$GP$278,'información graf'!$G$2,FALSE) -> 0 | AI268: =+VLOOKUP($AC268&AH$248,'td1'!$GD$169:$GP$278,'información graf'!$G$2,FALSE) -> 0 | AJ268: =+VLOOKUP($AC268&AI$248,'td1'!$GD$169:$GP$278,'información graf'!$G$2,FALSE) -> 0 | AK268: =+VLOOKUP($AC268&AJ$248,'td1'!$GD$169:$GP$278,'información graf'!$G$2,FALSE) -> 3 | AL268: 3 | AO268: A12 | AP268: =+VLOOKUP($AC268&AP$248,'td1'!$GD$282:$GP$391,'información graf'!$G$2,FALSE) -> 1 | AQ268: =+VLOOKUP($AC268&AQ$248,'td1'!$GD$282:$GP$391,'información graf'!$G$2,FALSE) -> 0 | AR268: =+VLOOKUP($AC268&AR$248,'td1'!$GD$282:$GP$391,'información graf'!$G$2,FALSE) -> 0 | AS268: =+VLOOKUP($AC268&AS$248,'td1'!$GD$282:$GP$391,'información graf'!$G$2,FALSE) -> 1 | AT268: =+VLOOKUP($AC268&AT$248,'td1'!$GD$282:$GP$391,'información graf'!$G$2,FALSE) -> 15 | AU268: 17 | AX268: A12 | AY268: 1 | AZ268: 0 | BA268: 0 | BB268: 1 | BC268: 18 | BD268: 20
AC269: A13 | AF269: A13. Planeación | AG269: =+VLOOKUP($AC269&AF$248,'td1'!$GD$169:$GP$278,'información graf'!$G$2,FALSE) -> 1 | AH269: =+VLOOKUP($AC269&AG$248,'td1'!$GD$169:$GP$278,'información graf'!$G$2,FALSE) -> 0 | AI269: =+VLOOKUP($AC269&AH$248,'td1'!$GD$169:$GP$278,'información graf'!$G$2,FALSE) -> 0 | AJ269: =+VLOOKUP($AC269&AI$248,'td1'!$GD$169:$GP$278,'información graf'!$G$2,FALSE) -> 0 | AK269: =+VLOOKUP($AC269&AJ$248,'td1'!$GD$169:$GP$278,'información graf'!$G$2,FALSE) -> 13 | AL269: 14 | AO269: A13 | AP269: =+VLOOKUP($AC269&AP$248,'td1'!$GD$282:$GP$391,'información graf'!$G$2,FALSE) -> 2 | AQ269: =+VLOOKUP($AC269&AQ$248,'td1'!$GD$282:$GP$391,'información graf'!$G$2,FALSE) -> 1 | AR269: =+VLOOKUP($AC269&AR$248,'td1'!$GD$282:$GP$391,'información graf'!$G$2,FALSE) -> 0 | AS269: =+VLOOKUP($AC269&AS$248,'td1'!$GD$282:$GP$391,'información graf'!$G$2,FALSE) -> 0 | AT269: =+VLOOKUP($AC269&AT$248,'td1'!$GD$282:$GP$391,'información graf'!$G$2,FALSE) -> 14 | AU269: 17 | AX269: A13 | AY269: 3 | AZ269: 1 | BA269: 0 | BB269: 0 | BC269: 27 | BD269: 31
AC270: A14 | AF270: A14. SNBF | AG270: =+VLOOKUP($AC270&AF$248,'td1'!$GD$169:$GP$278,'información graf'!$G$2,FALSE) -> 0 | AH270: =+VLOOKUP($AC270&AG$248,'td1'!$GD$169:$GP$278,'información graf'!$G$2,FALSE) -> 0 | AI270: =+VLOOKUP($AC270&AH$248,'td1'!$GD$169:$GP$278,'información graf'!$G$2,FALSE) -> 0 | AJ270: =+VLOOKUP($AC270&AI$248,'td1'!$GD$169:$GP$278,'información graf'!$G$2,FALSE) -> 0 | AK270: =+VLOOKUP($AC270&AJ$248,'td1'!$GD$169:$GP$278,'información graf'!$G$2,FALSE) -> 6 | AL270: 6 | AO270: A14 | AP270: =+VLOOKUP($AC270&AP$248,'td1'!$GD$282:$GP$391,'información graf'!$G$2,FALSE) -> 2 | AQ270: =+VLOOKUP($AC270&AQ$248,'td1'!$GD$282:$GP$391,'información graf'!$G$2,FALSE) -> 0 | AR270: =+VLOOKUP($AC270&AR$248,'td1'!$GD$282:$GP$391,'información graf'!$G$2,FALSE) -> 0 | AS270: =+VLOOKUP($AC270&AS$248,'td1'!$GD$282:$GP$391,'información graf'!$G$2,FALSE) -> 0 | AT270: =+VLOOKUP($AC270&AT$248,'td1'!$GD$282:$GP$391,'información graf'!$G$2,FALSE) -> 15 | AU270: 17 | AX270: A14 | AY270: 2 | AZ270: 0 | BA270: 0 | BB270: 0 | BC270: 21 | BD270: 23
AC271: A15 | AF271: A15. Control Interno | AG271: =+VLOOKUP($AC271&AF$248,'td1'!$GD$169:$GP$278,'información graf'!$G$2,FALSE) -> 0 | AH271: =+VLOOKUP($AC271&AG$248,'td1'!$GD$169:$GP$278,'información graf'!$G$2,FALSE) -> 0 | AI271: =+VLOOKUP($AC271&AH$248,'td1'!$GD$169:$GP$278,'información graf'!$G$2,FALSE) -> 0 | AJ271: =+VLOOKUP($AC271&AI$248,'td1'!$GD$169:$GP$278,'información graf'!$G$2,FALSE) -> 0 | AK271: =+VLOOKUP($AC271&AJ$248,'td1'!$GD$169:$GP$278,'información graf'!$G$2,FALSE) -> 4 | AL271: 4 | AO271: A15 | AP271: =+VLOOKUP($AC271&AP$248,'td1'!$GD$282:$GP$391,'información graf'!$G$2,FALSE) -> 0 | AQ271: =+VLOOKUP($AC271&AQ$248,'td1'!$GD$282:$GP$391,'información graf'!$G$2,FALSE) -> 0 | AR271: =+VLOOKUP($AC271&AR$248,'td1'!$GD$282:$GP$391,'información graf'!$G$2,FALSE) -> 0 | AS271: =+VLOOKUP($AC271&AS$248,'td1'!$GD$282:$GP$391,'información graf'!$G$2,FALSE) -> 1 | AT271: =+VLOOKUP($AC271&AT$248,'td1'!$GD$282:$GP$391,'información graf'!$G$2,FALSE) -> 16 | AU271: 17 | AX271: A15 | AY271: 0 | AZ271: 0 | BA271: 0 | BB271: 1 | BC271: 20 | BD271: 21
AC272: A16 | AF272: A16. Aseguramiento | AG272: =+VLOOKUP($AC272&AF$248,'td1'!$GD$169:$GP$278,'información graf'!$G$2,FALSE) -> 0 | AH272: =+VLOOKUP($AC272&AG$248,'td1'!$GD$169:$GP$278,'información graf'!$G$2,FALSE) -> 0 | AI272: =+VLOOKUP($AC272&AH$248,'td1'!$GD$169:$GP$278,'información graf'!$G$2,FALSE) -> 0 | AJ272: =+VLOOKUP($AC272&AI$248,'td1'!$GD$169:$GP$278,'información graf'!$G$2,FALSE) -> 0 | AK272: =+VLOOKUP($AC272&AJ$248,'td1'!$GD$169:$GP$278,'información graf'!$G$2,FALSE) -> 3 | AL272: 3 | AO272: A16 | AP272: =+VLOOKUP($AC272&AP$248,'td1'!$GD$282:$GP$391,'información graf'!$G$2,FALSE) -> 2 | AQ272: =+VLOOKUP($AC272&AQ$248,'td1'!$GD$282:$GP$391,'información graf'!$G$2,FALSE) -> 0 | AR272: =+VLOOKUP($AC272&AR$248,'td1'!$GD$282:$GP$391,'información graf'!$G$2,FALSE) -> 0 | AS272: =+VLOOKUP($AC272&AS$248,'td1'!$GD$282:$GP$391,'información graf'!$G$2,FALSE) -> 0 | AT272: =+VLOOKUP($AC272&AT$248,'td1'!$GD$282:$GP$391,'información graf'!$G$2,FALSE) -> 15 | AU272: 17 | AX272: A16 | AY272: 2 | AZ272: 0 | BA272: 0 | BB272: 0 | BC272: 18 | BD272: 20
AC273: A17 | AF273: A17. Subd General | AG273: =+VLOOKUP($AC273&AF$248,'td1'!$GD$169:$GP$278,'información graf'!$G$2,FALSE) -> 0 | AH273: =+VLOOKUP($AC273&AG$248,'td1'!$GD$169:$GP$278,'información graf'!$G$2,FALSE) -> 0 | AI273: =+VLOOKUP($AC273&AH$248,'td1'!$GD$169:$GP$278,'información graf'!$G$2,FALSE) -> 0 | AJ273: =+VLOOKUP($AC273&AI$248,'td1'!$GD$169:$GP$278,'información graf'!$G$2,FALSE) -> 0 | AK273: =+VLOOKUP($AC273&AJ$248,'td1'!$GD$169:$GP$278,'información graf'!$G$2,FALSE) -> 2 | AL273: 2 | AO273: A17 | AP273: =+VLOOKUP($AC273&AP$248,'td1'!$GD$282:$GP$391,'información graf'!$G$2,FALSE) -> 2 | AQ273: =+VLOOKUP($AC273&AQ$248,'td1'!$GD$282:$GP$391,'información graf'!$G$2,FALSE) -> 0 | AR273: =+VLOOKUP($AC273&AR$248,'td1'!$GD$282:$GP$391,'información graf'!$G$2,FALSE) -> 0 | AS273: =+VLOOKUP($AC273&AS$248,'td1'!$GD$282:$GP$391,'información graf'!$G$2,FALSE) -> 0 | AT273: =+VLOOKUP($AC273&AT$248,'td1'!$GD$282:$GP$391,'información graf'!$G$2,FALSE) -> 15 | AU273: 17 | AX273: A17 | AY273: 2 | AZ273: 0 | BA273: 0 | BB273: 0 | BC273: 17 | BD273: 19
AD274: Total | AG274: =+AG250+AG256 -> 20 | AH274: =+AH250+AH256 -> 9 | AI274: =+AI250+AI256 -> 3 | AJ274: =+AJ250+AJ256 -> 0 | AK274: =+AK250+AK256 -> 125 | AL274: 157
AG275: =+AG274/$AL$274 -> 0.127388535 | AH275: =+AH274/$AL$274 -> 0.05732484076 | AI275: =+AI274/$AL$274 -> 0.01910828025 | AJ275: =+AJ274/$AL$274 -> 0 | AK275: =+AK274/$AL$274 -> 0.7961783439
AD276: =+"Corte "&$D$5 -> Corte Febrero
C282: Sistema Integrado de Gestión - Objetivos SIGE
P283: SIGE1 | R283: Ampliar cobertura y mejorar calidad en la atención integral a la Primera Infancia.
P284: SIGE2 | R284: Promover los derechos de los NNA y prevenir los riesgos o amenazas de vulneración de los mismos
P285: SIGE3 | R285: Fortalecer en las familias y comunidades, capacidades que promuevan su desarrollo, fortalezcan sus vínculos de cuidado mutuo y prevengan la violencia intrafamiliar y de género.
P287: SIGE4 | R287: Promover la seguridad alimentaria y nutricional en el desarrollo de la primera infancia, los NNA y la familia.
P288: SIGE5 | R288: Garantizar la protección integral de los NNA en coordinación con las instancias del SNBF.
P289: SIGE6 | R289: Lograr una adecuada y eficiente gestión institucional a través de la articulación entre servidores, áreas y niveles territoriales; el apoyo administrativo a los procesos misionales, la apropiación de una cultura de la evaluación y la optimización del uso de los recursos
P291: SIGE7 | R291: Promover condiciones laborales que hagan del ICBF el mejor lugar para trabajar.
P292: SIGE8 | R292: Reducir los impactos ambientales generados por nuestra actividad.
P293: SIGE9 | R293: Impulsar una cultura de gestión de la calidad y el mejoramiento continuo.
P294: SIGE10 | R294: Gestionar el conocimiento institucional, con sistemas de información confiables, integrados y disponibles.
R296: Objetivos SIGE
X298: optimo | Y298: adecuado | Z298: en riesgo | AA298: critico | AB298: NA
W299: Comportamiento agregado de indicadores
AC300: Total
W301: SIGE1 | X301: =+VLOOKUP($W301&X$298,'td1'!$FN$169:$FZ$218,'información graf'!$G$2,FALSE) -> 1 | Y301: =+VLOOKUP($W301&Y$298,'td1'!$FN$169:$FZ$218,'información graf'!$G$2,FALSE) -> 1 | Z301: =+VLOOKUP($W301&Z$298,'td1'!$FN$169:$FZ$218,'información graf'!$G$2,FALSE) -> 0 | AA301: =+VLOOKUP($W301&AA$298,'td1'!$FN$169:$FZ$218,'información graf'!$G$2,FALSE) -> 0 | AB301: =+VLOOKUP($W301&AB$298,'td1'!$FN$169:$FZ$218,'información graf'!$G$2,FALSE) -> 15 | AC301: =+SUM(X301:AB301) -> 17
W302: SIGE2 | X302: =+VLOOKUP($W302&X$298,'td1'!$FN$169:$FZ$218,'información graf'!$G$2,FALSE) -> 3 | Y302: =+VLOOKUP($W302&Y$298,'td1'!$FN$169:$FZ$218,'información graf'!$G$2,FALSE) -> 0 | Z302: =+VLOOKUP($W302&Z$298,'td1'!$FN$169:$FZ$218,'información graf'!$G$2,FALSE) -> 0 | AA302: =+VLOOKUP($W302&AA$298,'td1'!$FN$169:$FZ$218,'información graf'!$G$2,FALSE) -> 0 | AB302: =+VLOOKUP($W302&AB$298,'td1'!$FN$169:$FZ$218,'información graf'!$G$2,FALSE) -> 10 | AC302: 13
W303: SIGE3 | X303: =+VLOOKUP($W303&X$298,'td1'!$FN$169:$FZ$218,'información graf'!$G$2,FALSE) -> 2 | Y303: =+VLOOKUP($W303&Y$298,'td1'!$FN$169:$FZ$218,'información graf'!$G$2,FALSE) -> 1 | Z303: =+VLOOKUP($W303&Z$298,'td1'!$FN$169:$FZ$218,'información graf'!$G$2,FALSE) -> 0 | AA303: =+VLOOKUP($W303&AA$298,'td1'!$FN$169:$FZ$218,'información graf'!$G$2,FALSE) -> 0 | AB303: =+VLOOKUP($W303&AB$298,'td1'!$FN$169:$FZ$218,'información graf'!$G$2,FALSE) -> 5 | AC303: 8
W304: SIGE4 | X304: =+VLOOKUP($W304&X$298,'td1'!$FN$169:$FZ$218,'información graf'!$G$2,FALSE) -> 3 | Y304: =+VLOOKUP($W304&Y$298,'td1'!$FN$169:$FZ$218,'información graf'!$G$2,FALSE) -> 0 | Z304: =+VLOOKUP($W304&Z$298,'td1'!$FN$169:$FZ$218,'información graf'!$G$2,FALSE) -> 0 | AA304: =+VLOOKUP($W304&AA$298,'td1'!$FN$169:$FZ$218,'información graf'!$G$2,FALSE) -> 0 | AB304: =+VLOOKUP($W304&AB$298,'td1'!$FN$169:$FZ$218,'información graf'!$G$2,FALSE) -> 5 | AC304: 8
W305: SIGE5 | X305: =+VLOOKUP($W305&X$298,'td1'!$FN$169:$FZ$218,'información graf'!$G$2,FALSE) -> 3 | Y305: =+VLOOKUP($W305&Y$298,'td1'!$FN$169:$FZ$218,'información graf'!$G$2,FALSE) -> 3 | Z305: =+VLOOKUP($W305&Z$298,'td1'!$FN$169:$FZ$218,'información graf'!$G$2,FALSE) -> 0 | AA305: =+VLOOKUP($W305&AA$298,'td1'!$FN$169:$FZ$218,'información graf'!$G$2,FALSE) -> 0 | AB305: =+VLOOKUP($W305&AB$298,'td1'!$FN$169:$FZ$218,'información graf'!$G$2,FALSE) -> 13 | AC305: 19
W306: SIGE6 | X306: =+VLOOKUP($W306&X$298,'td1'!$FN$169:$FZ$218,'información graf'!$G$2,FALSE) -> 6 | Y306: =+VLOOKUP($W306&Y$298,'td1'!$FN$169:$FZ$218,'información graf'!$G$2,FALSE) -> 4 | Z306: =+VLOOKUP($W306&Z$298,'td1'!$FN$169:$FZ$218,'información graf'!$G$2,FALSE) -> 3 | AA306: =+VLOOKUP($W306&AA$298,'td1'!$FN$169:$FZ$218,'información graf'!$G$2,FALSE) -> 0 | AB306: =+VLOOKUP($W306&AB$298,'td1'!$FN$169:$FZ$218,'información graf'!$G$2,FALSE) -> 56 | AC306: 69
W307: SIGE7 | X307: =+VLOOKUP($W307&X$298,'td1'!$FN$169:$FZ$218,'información graf'!$G$2,FALSE) -> 2 | Y307: =+VLOOKUP($W307&Y$298,'td1'!$FN$169:$FZ$218,'información graf'!$G$2,FALSE) -> 0 | Z307: =+VLOOKUP($W307&Z$298,'td1'!$FN$169:$FZ$218,'información graf'!$G$2,FALSE) -> 0 | AA307: =+VLOOKUP($W307&AA$298,'td1'!$FN$169:$FZ$218,'información graf'!$G$2,FALSE) -> 0 | AB307: =+VLOOKUP($W307&AB$298,'td1'!$FN$169:$FZ$218,'información graf'!$G$2,FALSE) -> 4 | AC307: 6
W308: SIGE8 | X308: =+VLOOKUP($W308&X$298,'td1'!$FN$169:$FZ$218,'información graf'!$G$2,FALSE) -> 0 | Y308: =+VLOOKUP($W308&Y$298,'td1'!$FN$169:$FZ$218,'información graf'!$G$2,FALSE) -> 0 | Z308: =+VLOOKUP($W308&Z$298,'td1'!$FN$169:$FZ$218,'información graf'!$G$2,FALSE) -> 0 | AA308: =+VLOOKUP($W308&AA$298,'td1'!$FN$169:$FZ$218,'información graf'!$G$2,FALSE) -> 0 | AB308: =+VLOOKUP($W308&AB$298,'td1'!$FN$169:$FZ$218,'información graf'!$G$2,FALSE) -> 4 | AC308: 4
W309: SIGE9 | X309: =+VLOOKUP($W309&X$298,'td1'!$FN$169:$FZ$218,'información graf'!$G$2,FALSE) -> 0 | Y309: =+VLOOKUP($W309&Y$298,'td1'!$FN$169:$FZ$218,'información graf'!$G$2,FALSE) -> 0 | Z309: =+VLOOKUP($W309&Z$298,'td1'!$FN$169:$FZ$218,'información graf'!$G$2,FALSE) -> 0 | AA309: =+VLOOKUP($W309&AA$298,'td1'!$FN$169:$FZ$218,'información graf'!$G$2,FALSE) -> 0 | AB309: =+VLOOKUP($W309&AB$298,'td1'!$FN$169:$FZ$218,'información graf'!$G$2,FALSE) -> 10 | AC309: 10
W310: SIGE10 | X310: =+VLOOKUP($W310&X$298,'td1'!$FN$169:$FZ$218,'información graf'!$G$2,FALSE) -> 0 | Y310: =+VLOOKUP($W310&Y$298,'td1'!$FN$169:$FZ$218,'información graf'!$G$2,FALSE) -> 0 | Z310: =+VLOOKUP($W310&Z$298,'td1'!$FN$169:$FZ$218,'información graf'!$G$2,FALSE) -> 0 | AA310: =+VLOOKUP($W310&AA$298,'td1'!$FN$169:$FZ$218,'información graf'!$G$2,FALSE) -> 0 | AB310: =+VLOOKUP($W310&AB$298,'td1'!$FN$169:$FZ$218,'información graf'!$G$2,FALSE) -> 3 | AC310: 3
W311: Total | X311: =SUM(X301:X310) -> 20 | Y311: 9 | Z311: 3 | AA311: 0 | AB311: 125 | AC311: 157
X312: =+X311/$AC$311 -> 0.127388535 | Y312: =+Y311/$AC$311 -> 0.05732484076 | Z312: =+Z311/$AC$311 -> 0.01910828025 | AA312: =+AA311/$AC$311 -> 0 | AB312: =+AB311/$AC$311 -> 0.7961783439
C319: Análisis "Cómo vamos" ICBF

Sheet regional
C2: TABLERO DE CONTROL 2018 INSTITUTO COLOMBIANO DE BIENESTAR FAMILIAR ICBF SEGUIMIENTO TABLERO DE CONTROL - ANÁLISIS GENERAL
C3: =+"Regional "&VLOOKUP(Menu!C37,Referencias!$R$2:$T$34,3,FALSE) -> Regional Bogotá
C6: Mes analisis | E6: =+Menu!C7 -> Febrero | S6: Volver al menú
D7: Ene
N11: Comportamiento general
N12: T. control | O12: P. Acción | P12: P. Indicativo
L13: 2 | M13: Optimo | N13: =+VLOOKUP($M13,'td1'!$JA$77:$JM$81,'información graf'!$G$2,FALSE) -> 7 | O13: =+VLOOKUP($M13,'td1'!$JO$77:$KA$81,'información graf'!$G$2,FALSE) -> 3 | P13: =+VLOOKUP($M13,'td1'!$KC$77:$KO$81,'información graf'!$G$2,FALSE) -> 1
L14: 3 | M14: Adecuado | N14: =+VLOOKUP($M14,'td1'!$JA$77:$JM$81,'información graf'!$G$2,FALSE) -> 8 | O14: =+VLOOKUP($M14,'td1'!$JO$77:$KA$81,'información graf'!$G$2,FALSE) -> 4 | P14: =+VLOOKUP($M14,'td1'!$KC$77:$KO$81,'información graf'!$G$2,FALSE) -> 2
L15: 4 | M15: En riesgo | N15: =+VLOOKUP($M15,'td1'!$JA$77:$JM$81,'información graf'!$G$2,FALSE) -> 2 | O15: =+VLOOKUP($M15,'td1'!$JO$77:$KA$81,'información graf'!$G$2,FALSE) -> 1 | P15: =+VLOOKUP($M15,'td1'!$KC$77:$KO$81,'información graf'!$G$2,FALSE) -> 0
L16: 5 | M16: Critico | N16: =+VLOOKUP($M16,'td1'!$JA$77:$JM$81,'información graf'!$G$2,FALSE) -> 3 | O16: =+VLOOKUP($M16,'td1'!$JO$77:$KA$81,'información graf'!$G$2,FALSE) -> 0 | P16: =+VLOOKUP($M16,'td1'!$KC$77:$KO$81,'información graf'!$G$2,FALSE) -> 0
L17: 6 | M17: NA | N17: =+VLOOKUP($M17,'td1'!$JA$77:$JM$81,'información graf'!$G$2,FALSE) -> 50 | O17: =+VLOOKUP($M17,'td1'!$JO$77:$KA$81,'información graf'!$G$2,FALSE) -> 16 | P17: =+VLOOKUP($M17,'td1'!$KC$77:$KO$81,'información graf'!$G$2,FALSE) -> 8
L18: 7 | M18: Total | N18: =SUM(N13:N17) -> 70 | O18: =SUM(O13:O17) -> 24 | P18: =SUM(P13:P17) -> 11
M19: Aplicaron en el mes de corte | N19: =+N13+N14+N15+N16 -> 20 | O19: =+O13+O14+O15+O16 -> 8 | P19: =+P13+P14+P15+P16 -> 3
M20: =+"Corte "&$E$6 -> Corte Febrero
D21: =+"Corte "&$E$6 -> Corte Febrero
AG22: Comparación vigencias 2017 vs 2018
C24: Macroregiones | K24: =+"Ranking "&VLOOKUP(Menu!C37,Referencias!$R$2:$T$34,3,FALSE) -> Ranking Bogotá
K26: Macroregion | L26: =+VLOOKUP(Menu!C37,'información graf'!$CC$62:$CE$99,3,FALSE) -> Centro Oriente
L28: # | M28: Regional | N28: %
K29: =+$L$26&1 -> Centro Oriente1 | L29: 1 | M29: =IFERROR(VLOOKUP($K29,'información graf'!$CI$62:$CK$99,2,FALSE),"") -> Santander | N29: =+IFERROR(VLOOKUP($K29,'información graf'!$CI$62:$CK$99,3,FALSE),"") -> 0.9497879403
K30: =+$L$26&2 -> Centro Oriente2 | L30: =+IF(M30="","",L29+1) -> 2 | M30: =IFERROR(VLOOKUP($K30,'información graf'!$CI$62:$CK$99,2,FALSE),"") -> Boyacá | N30: =+IFERROR(VLOOKUP($K30,'información graf'!$CI$62:$CK$99,3,FALSE),"") -> 0.9238480366
K31: =+$L$26&3 -> Centro Oriente3 | L31: 3 | M31: =IFERROR(VLOOKUP($K31,'información graf'!$CI$62:$CK$99,2,FALSE),"") -> Bogotá | N31: =+IFERROR(VLOOKUP($K31,'información graf'!$CI$62:$CK$99,3,FALSE),"") -> 0.9
K32: =+$L$26&4 -> Centro Oriente4 | L32: 4 | M32: =IFERROR(VLOOKUP($K32,'información graf'!$CI$62:$CK$99,2,FALSE),"") -> N Santander | N32: =+IFERROR(VLOOKUP($K32,'información graf'!$CI$62:$CK$99,3,FALSE),"") -> 0.8963488844
K33: =+$L$26&5 -> Centro Oriente5 | L33: 5 | M33: =IFERROR(VLOOKUP($K33,'información graf'!$CI$62:$CK$99,2,FALSE),"") -> Cundinamarca | N33: =+IFERROR(VLOOKUP($K33,'información graf'!$CI$62:$CK$99,3,FALSE),"") -> 0.8525908169
K34: =+$L$26&6 -> Centro Oriente6 | M34: =IFERROR(VLOOKUP($K34,'información graf'!$CI$62:$CK$99,2,FALSE),"") ->  | N34: =+IFERROR(VLOOKUP($K34,'información graf'!$CI$62:$CK$99,3,FALSE),"") -> 
K35: =+$L$26&7 -> Centro Oriente7 | M35: =IFERROR(VLOOKUP($K35,'información graf'!$CI$62:$CK$99,2,FALSE),"") ->  | N35: =+IFERROR(VLOOKUP($K35,'información graf'!$CI$62:$CK$99,3,FALSE),"") -> 
K36: =+$L$26&8 -> Centro Oriente8 | M36: =IFERROR(VLOOKUP($K36,'información graf'!$CI$62:$CK$99,2,FALSE),"") ->  | N36: =+IFERROR(VLOOKUP($K36,'información graf'!$CI$62:$CK$99,3,FALSE),"") -> 
N37: =+IFERROR(VLOOKUP($K37,'información graf'!$CI$62:$CK$99,3,FALSE),"") -> 
K38: Regional | L38: =+Menu!C37 -> Bogotá | N38: Caq
L40: # | M40: Centro zonal | O40: %
K41: =+$L$38&1 -> Bogotá1 | L41: 1 | M41: =+IFERROR(VLOOKUP($K41,'información graf'!$CY$60:$DB$300,3,FALSE),"") -> CZ Puente Aranda | O41: =+IFERROR(VLOOKUP($K41,'información graf'!$CY$60:$DB$300,4,FALSE),"") -> 1 | P41: =+IFERROR(VLOOKUP($L$38&M41,'información graf'!$CR$60:$CU$300,4,FALSE),"") -> 1107
K42: =+$L$38&2 -> Bogotá2 | L42: =+IF(M42="","",L41+1) -> 2 | M42: =+IFERROR(VLOOKUP($K42,'información graf'!$CY$60:$DB$300,3,FALSE),"") -> CZ Tunjuelito | O42: =+IFERROR(VLOOKUP($K42,'información graf'!$CY$60:$DB$300,4,FALSE),"") -> 0.971048132 | P42: =+IFERROR(VLOOKUP($L$38&M42,'información graf'!$CR$60:$CU$300,4,FALSE),"") -> 1102
K43: =+$L$38&3 -> Bogotá3 | L43: 3 | M43: =+IFERROR(VLOOKUP($K43,'información graf'!$CY$60:$DB$300,3,FALSE),"") -> CZ Martires | O43: =+IFERROR(VLOOKUP($K43,'información graf'!$CY$60:$DB$300,4,FALSE),"") -> 0.9677972985 | P43: =+IFERROR(VLOOKUP($L$38&M43,'información graf'!$CR$60:$CU$300,4,FALSE),"") -> 1116
K44: =+$L$38&4 -> Bogotá4 | L44: 4 | M44: =+IFERROR(VLOOKUP($K44,'información graf'!$CY$60:$DB$300,3,FALSE),"") -> CZ Fontibon | O44: =+IFERROR(VLOOKUP($K44,'información graf'!$CY$60:$DB$300,4,FALSE),"") -> 0.9661118733 | P44: =+IFERROR(VLOOKUP($L$38&M44,'información graf'!$CR$60:$CU$300,4,FALSE),"") -> 1111
K45: =+$L$38&5 -> Bogotá5 | L45: 5 | M45: =+IFERROR(VLOOKUP($K45,'información graf'!$CY$60:$DB$300,3,FALSE),"") -> CZ Rafael Uribe | O45: =+IFERROR(VLOOKUP($K45,'información graf'!$CY$60:$DB$300,4,FALSE),"") -> 0.965662713 | P45: =+IFERROR(VLOOKUP($L$38&M45,'información graf'!$CR$60:$CU$300,4,FALSE),"") -> 1109 | AH45: Tablero | AI45: Ene | AJ45: Feb | AK45: Mar | AL45: Abr | AM45: May | AN45: Jun | AO45: Jul | AP45: Agt | AQ45: Sep | AR45: Oct | AS45: Nov | AT45: Dic
K46: =+$L$38&6 -> Bogotá6 | L46: 6 | M46: =+IFERROR(VLOOKUP($K46,'información graf'!$CY$60:$DB$300,3,FALSE),"") -> CZ Kennedy | O46: =+IFERROR(VLOOKUP($K46,'información graf'!$CY$60:$DB$300,4,FALSE),"") -> 0.9612956314 | P46: =+IFERROR(VLOOKUP($L$38&M46,'información graf'!$CR$60:$CU$300,4,FALSE),"") -> 1105 | AH46: 2017 | AI46: =+'información graf'!AM62 -> 0.9692552395 | AJ46: =+'información graf'!AN62 -> 0.8985421324 | AK46: =+'información graf'!AO62 ->  | AL46: =+'información graf'!AP62 ->  | AM46: =+'información graf'!AQ62 ->  | AN46: =+'información graf'!AR62 ->  | AO46: =+'información graf'!AS62 ->  | AP46: =+'información graf'!AT62 ->  | AQ46: =+'información graf'!AU62 ->  | AR46: =+'información graf'!AV62 ->  | AS46: =+'información graf'!AW62 ->  | AT46: =+'información graf'!AX62 -> 
K47: =+$L$38&7 -> Bogotá7 | L47: 7 | M47: =+IFERROR(VLOOKUP($K47,'información graf'!$CY$60:$DB$300,3,FALSE),"") -> CZ Creer | O47: =+IFERROR(VLOOKUP($K47,'información graf'!$CY$60:$DB$300,4,FALSE),"") -> 0.9577968923 | P47: =+IFERROR(VLOOKUP($L$38&M47,'información graf'!$CR$60:$CU$300,4,FALSE),"") -> 1130 | AH47: 2018 | AI47: =+'información graf'!AM63 -> 0.8930087809 | AJ47: =+'información graf'!AN63 -> 0.8790426617 | AK47: =+'información graf'!AO63 ->  | AL47: =+'información graf'!AP63 ->  | AM47: =+'información graf'!AQ63 ->  | AN47: =+'información graf'!AR63 ->  | AO47: =+'información graf'!AS63 ->  | AP47: =+'información graf'!AT63 ->  | AQ47: =+'información graf'!AU63 ->  | AR47: =+'información graf'!AV63 ->  | AS47: =+'información graf'!AW63 ->  | AT47: =+'información graf'!AX63 -> 
K48: =+$L$38&8 -> Bogotá8 | L48: 8 | M48: =+IFERROR(VLOOKUP($K48,'información graf'!$CY$60:$DB$300,3,FALSE),"") -> CZ Engativa | O48: =+IFERROR(VLOOKUP($K48,'información graf'!$CY$60:$DB$300,4,FALSE),"") -> 0.956217268 | P48: =+IFERROR(VLOOKUP($L$38&M48,'información graf'!$CR$60:$CU$300,4,FALSE),"") -> 1113 | AH48: ∆ | AI48: =+IFERROR((AI47/AI46)-1,0) -> -0.07866499509 | AJ48: -0.02170123136 | AK48: 0 | AL48: 0 | AM48: 0 | AN48: 0 | AO48: 0 | AP48: 0 | AQ48: 0 | AR48: 0 | AS48: 0 | AT48: 0
K49: =+$L$38&9 -> Bogotá9 | L49: 9 | M49: =+IFERROR(VLOOKUP($K49,'información graf'!$CY$60:$DB$300,3,FALSE),"") -> CZ Revivir | O49: =+IFERROR(VLOOKUP($K49,'información graf'!$CY$60:$DB$300,4,FALSE),"") -> 0.9249722531 | P49: =+IFERROR(VLOOKUP($L$38&M49,'información graf'!$CR$60:$CU$300,4,FALSE),"") -> 1106
K50: =+$L$38&10 -> Bogotá10 | L50: 10 | M50: =+IFERROR(VLOOKUP($K50,'información graf'!$CY$60:$DB$300,3,FALSE),"") -> CZ Barrios Unidos | O50: =+IFERROR(VLOOKUP($K50,'información graf'!$CY$60:$DB$300,4,FALSE),"") -> 0.8808989287 | P50: =+IFERROR(VLOOKUP($L$38&M50,'información graf'!$CR$60:$CU$300,4,FALSE),"") -> 1112 | AH50: Plan de Acción | AI50: Ene | AJ50: Feb | AK50: Mar | AL50: Abr | AM50: May | AN50: Jun | AO50: Jul | AP50: Agt | AQ50: Sep | AR50: Oct | AS50: Nov | AT50: Dic
K51: =+$L$38&11 -> Bogotá11 | L51: 11 | M51: =+IFERROR(VLOOKUP($K51,'información graf'!$CY$60:$DB$300,3,FALSE),"") -> CZ Bosa | O51: =+IFERROR(VLOOKUP($K51,'información graf'!$CY$60:$DB$300,4,FALSE),"") -> 0.8660104742 | P51: =+IFERROR(VLOOKUP($L$38&M51,'información graf'!$CR$60:$CU$300,4,FALSE),"") -> 1108 | AH51: 2017 | AI51: =+'información graf'!AM66 -> 0.9748735986 | AJ51: =+'información graf'!AN66 -> 0.8832929164 | AK51: =+'información graf'!AO66 ->  | AL51: =+'información graf'!AP66 ->  | AM51: =+'información graf'!AQ66 ->  | AN51: =+'información graf'!AR66 ->  | AO51: =+'información graf'!AS66 ->  | AP51: =+'información graf'!AT66 ->  | AQ51: =+'información graf'!AU66 ->  | AR51: =+'información graf'!AV66 ->  | AS51: =+'información graf'!AW66 ->  | AT51: =+'información graf'!AX66 -> 
D52: =+'información graf'!CP63 -> 0.8672857571 | E52: Pacífico | K52: =+$L$38&12 -> Bogotá12 | L52: 12 | M52: =+IFERROR(VLOOKUP($K52,'información graf'!$CY$60:$DB$300,3,FALSE),"") -> CZ Usme | O52: =+IFERROR(VLOOKUP($K52,'información graf'!$CY$60:$DB$300,4,FALSE),"") -> 0.8616546978 | P52: =+IFERROR(VLOOKUP($L$38&M52,'información graf'!$CR$60:$CU$300,4,FALSE),"") -> 1103 | AH52: 2018 | AI52: =+'información graf'!AM67 -> 0.910181311 | AJ52: =+'información graf'!AN67 -> 0.9 | AK52: =+'información graf'!AO67 ->  | AL52: =+'información graf'!AP67 ->  | AM52: =+'información graf'!AQ67 ->  | AN52: =+'información graf'!AR67 ->  | AO52: =+'información graf'!AS67 ->  | AP52: =+'información graf'!AT67 ->  | AQ52: =+'información graf'!AU67 ->  | AR52: =+'información graf'!AV67 ->  | AS52: =+'información graf'!AW67 ->  | AT52: =+'información graf'!AX67 -> 
D53: =+'información graf'!CP64 -> 0.9572591267 | E53: Centro Sur | K53: =+$L$38&13 -> Bogotá13 | L53: 13 | M53: =+IFERROR(VLOOKUP($K53,'información graf'!$CY$60:$DB$300,3,FALSE),"") -> CZ Usaquen | O53: =+IFERROR(VLOOKUP($K53,'información graf'!$CY$60:$DB$300,4,FALSE),"") -> 0.7999296197 | P53: =+IFERROR(VLOOKUP($L$38&M53,'información graf'!$CR$60:$CU$300,4,FALSE),"") -> 1115 | T53: Seguimiento mes a mes gestión regional | AH53: ∆ | AI53: =+IFERROR((AI52/AI51)-1,0) -> -0.06635966721 | AJ53: 0.01891454498 | AK53: 0 | AL53: 0 | AM53: 0 | AN53: 0 | AO53: 0 | AP53: 0 | AQ53: 0 | AR53: 0 | AS53: 0 | AT53: 0
D54: =+'información graf'!CP65 -> 0.82475823 | E54: Llanos | K54: =+$L$38&14 -> Bogotá14 | L54: 14 | M54: =+IFERROR(VLOOKUP($K54,'información graf'!$CY$60:$DB$300,3,FALSE),"") -> CZ Santa Fe | O54: =+IFERROR(VLOOKUP($K54,'información graf'!$CY$60:$DB$300,4,FALSE),"") -> 0.7869239976 | P54: =+IFERROR(VLOOKUP($L$38&M54,'información graf'!$CR$60:$CU$300,4,FALSE),"") -> 1110 | T54: Ene | U54: Feb | V54: Mar | W54: Abr | X54: May | Y54: Jun | Z54: Jul | AA54: Agt | AB54: Sep | AC54: Oct | AD54: Nov | AE54: Dic
D55: =+'información graf'!CP66 -> 0.9297935195 | E55: Eje Cafetero | K55: =+$L$38&15 -> Bogotá15 | L55: 15 | M55: =+IFERROR(VLOOKUP($K55,'información graf'!$CY$60:$DB$300,3,FALSE),"") -> CZ Suba | O55: =+IFERROR(VLOOKUP($K55,'información graf'!$CY$60:$DB$300,4,FALSE),"") -> 0.7652963216 | P55: =+IFERROR(VLOOKUP($L$38&M55,'información graf'!$CR$60:$CU$300,4,FALSE),"") -> 1114 | S55: T. control | T55: =IFERROR('información graf'!BA62,"") -> 0.8930087809 | U55: =IFERROR('información graf'!BB62,"") -> 0.8790426617 | V55: =IFERROR('información graf'!BC62,"") ->  | W55: =IFERROR('información graf'!BD62,"") ->  | X55: =IFERROR('información graf'!BE62,"") ->  | Y55: =IFERROR('información graf'!BF62,"") ->  | Z55: =IFERROR('información graf'!BG62,"") ->  | AA55: =IFERROR('información graf'!BH62,"") ->  | AB55: =IFERROR('información graf'!BI62,"") ->  | AC55: =IFERROR('información graf'!BJ62,"") ->  | AD55: =IFERROR('información graf'!BK62,"") ->  | AE55: =IFERROR('información graf'!BL62,"") ->  | AH55: Plan Indicativo | AI55: Ene | AJ55: Feb | AK55: Mar | AL55: Abr | AM55: May | AN55: Jun | AO55: Jul | AP55: Agt | AQ55: Sep | AR55: Oct | AS55: Nov | AT55: Dic
D56: =+'información graf'!CP67 -> 0.8315443315 | E56: Caribe | K56: =+$L$38&16 -> Bogotá16 | L56: 16 | M56: =+IFERROR(VLOOKUP($K56,'información graf'!$CY$60:$DB$300,3,FALSE),"") -> CZ San Cristobal Sur | O56: =+IFERROR(VLOOKUP($K56,'información graf'!$CY$60:$DB$300,4,FALSE),"") -> 0.7600612722 | P56: =+IFERROR(VLOOKUP($L$38&M56,'información graf'!$CR$60:$CU$300,4,FALSE),"") -> 1104 | S56: P. Acción | T56: =IFERROR('información graf'!BA63,"") -> 0.910181311 | U56: =IFERROR('información graf'!BB63,"") -> 0.9 | V56: =IFERROR('información graf'!BC63,"") ->  | W56: =IFERROR('información graf'!BD63,"") ->  | X56: =IFERROR('información graf'!BE63,"") ->  | Y56: =IFERROR('información graf'!BF63,"") ->  | Z56: =IFERROR('información graf'!BG63,"") ->  | AA56: =IFERROR('información graf'!BH63,"") ->  | AB56: =IFERROR('información graf'!BI63,"") ->  | AC56: =IFERROR('información graf'!BJ63,"") ->  | AD56: =IFERROR('información graf'!BK63,"") ->  | AE56: =IFERROR('información graf'!BL63,"") ->  | AH56: 2017 | AI56: =+'información graf'!AM70 -> 1 | AJ56: =+'información graf'!AN70 -> 1 | AK56: =+'información graf'!AO70 ->  | AL56: =+'información graf'!AP70 ->  | AM56: =+'información graf'!AQ70 ->  | AN56: =+'información graf'!AR70 ->  | AO56: =+'información graf'!AS70 ->  | AP56: =+'información graf'!AT70 ->  | AQ56: =+'información graf'!AU70 ->  | AR56: =+'información graf'!AV70 ->  | AS56: =+'información graf'!AW70 ->  | AT56: =+'información graf'!AX70 -> 
D57: =+'información graf'!CP68 -> 0.9045151356 | E57: Centro Oriente | K57: =+$L$38&17 -> Bogotá17 | L57: 17 | M57: =+IFERROR(VLOOKUP($K57,'información graf'!$CY$60:$DB$300,3,FALSE),"") -> CZ Ciudad Bolivar | O57: =+IFERROR(VLOOKUP($K57,'información graf'!$CY$60:$DB$300,4,FALSE),"") -> 0.5743753752 | P57: =+IFERROR(VLOOKUP($L$38&M57,'información graf'!$CR$60:$CU$300,4,FALSE),"") -> 1101 | S57: P. Indicativo | T57: =IFERROR('información graf'!BA64,"") -> 1 | U57: =IFERROR('información graf'!BB64,"") -> 0.9407594937 | V57: =IFERROR('información graf'!BC64,"") ->  | W57: =IFERROR('información graf'!BD64,"") ->  | X57: =IFERROR('información graf'!BE64,"") ->  | Y57: =IFERROR('información graf'!BF64,"") ->  | Z57: =IFERROR('información graf'!BG64,"") ->  | AA57: =IFERROR('información graf'!BH64,"") ->  | AB57: =IFERROR('información graf'!BI64,"") ->  | AC57: =IFERROR('información graf'!BJ64,"") ->  | AD57: =IFERROR('información graf'!BK64,"") ->  | AE57: =IFERROR('información graf'!BL64,"") ->  | AH57: 2018 | AI57: =+'información graf'!AM71 -> 1 | AJ57: =+'información graf'!AN71 -> 0.9407594937 | AK57: =+'información graf'!AO71 ->  | AL57: =+'información graf'!AP71 ->  | AM57: =+'información graf'!AQ71 ->  | AN57: =+'información graf'!AR71 ->  | AO57: =+'información graf'!AS71 ->  | AP57: =+'información graf'!AT71 ->  | AQ57: =+'información graf'!AU71 ->  | AR57: =+'información graf'!AV71 ->  | AS57: =+'información graf'!AW71 ->  | AT57: =+'información graf'!AX71 -> 
K58: =+$L$38&18 -> Bogotá18 | M58: =+IFERROR(VLOOKUP($K58,'información graf'!$CY$60:$DB$300,3,FALSE),"") ->  | P58: =+IFERROR(VLOOKUP($L$38&M58,'información graf'!$CR$60:$CU$300,4,FALSE),"") ->  | AH58: ∆ | AI58: =+IFERROR((AI57/AI56)-1,0) -> 0 | AJ58: -0.05924050633 | AK58: 0 | AL58: 0 | AM58: 0 | AN58: 0 | AO58: 0 | AP58: 0 | AQ58: 0 | AR58: 0 | AS58: 0 | AT58: 0
P59: =+IFERROR(VLOOKUP($L$38&M59,'información graf'!$CR$60:$CU$300,4,FALSE),"") -> 
S60: P. Acción
C64: Modelo Integrado de Planeación y Gestión - decreto 2482 de 2012, DAFP
H67: Líneas de politica | J67: Componentes
T68: optimo | U68: adecuado | V68: en riesgo | W68: critico | X68: NA
S69: Comportamiento agregado de indicadores
Y70: Total
M71: LP1 | N71: Gestión misional y de gobierno | S71: LP1 | T71: =+T72 -> 3 | U71: 1 | V71: 1 | W71: 0 | X71: 8 | Y71: 13
N72: LP1-C1 | O72: Indicadores y metas de Gobierno | S72: LP1-C1 | T72: =+VLOOKUP($S72&T$68,'td1'!$LY$77:$MK$121,'información graf'!$G$2,FALSE) -> 3 | U72: =+VLOOKUP($S72&U$68,'td1'!$LY$77:$MK$121,'información graf'!$G$2,FALSE) -> 1 | V72: =+VLOOKUP($S72&V$68,'td1'!$LY$77:$MK$121,'información graf'!$G$2,FALSE) -> 1 | W72: =+VLOOKUP($S72&W$68,'td1'!$LY$77:$MK$121,'información graf'!$G$2,FALSE) -> 0 | X72: =+VLOOKUP($S72&X$68,'td1'!$LY$77:$MK$121,'información graf'!$G$2,FALSE) -> 8 | Y72: =+SUM(T72:X72) -> 13
M73: LP2 | N73: Transparencia, participación y servicio al ciudadano | S73: LP2 | T73: =+T74+T75+T76 -> 0 | U73: 1 | V73: 0 | W73: 0 | X73: 4 | Y73: 5
N74: LP2-C2 | O74: Participación Ciudadana en la Gestión | S74: LP2-C2 | T74: =+VLOOKUP($S74&T$68,'td1'!$LY$77:$MK$121,'información graf'!$G$2,FALSE) -> 0 | U74: =+VLOOKUP($S74&U$68,'td1'!$LY$77:$MK$121,'información graf'!$G$2,FALSE) -> 0 | V74: =+VLOOKUP($S74&V$68,'td1'!$LY$77:$MK$121,'información graf'!$G$2,FALSE) -> 0 | W74: =+VLOOKUP($S74&W$68,'td1'!$LY$77:$MK$121,'información graf'!$G$2,FALSE) -> 0 | X74: =+VLOOKUP($S74&X$68,'td1'!$LY$77:$MK$121,'información graf'!$G$2,FALSE) -> 3 | Y74: =+SUM(T74:X74) -> 3
N75: LP2-C3 | O75: Rendición de Cuentas a la ciudadania | S75: LP2-C3 | T75: =+VLOOKUP($S75&T$68,'td1'!$LY$77:$MK$121,'información graf'!$G$2,FALSE) -> 0 | U75: =+VLOOKUP($S75&U$68,'td1'!$LY$77:$MK$121,'información graf'!$G$2,FALSE) -> 0 | V75: =+VLOOKUP($S75&V$68,'td1'!$LY$77:$MK$121,'información graf'!$G$2,FALSE) -> 0 | W75: =+VLOOKUP($S75&W$68,'td1'!$LY$77:$MK$121,'información graf'!$G$2,FALSE) -> 0 | X75: =+VLOOKUP($S75&X$68,'td1'!$LY$77:$MK$121,'información graf'!$G$2,FALSE) -> 1 | Y75: =+SUM(T75:X75) -> 1
N76: LP2-C4 | O76: Servicio al Ciudadano | S76: LP2-C4 | T76: =+VLOOKUP($S76&T$68,'td1'!$LY$77:$MK$121,'información graf'!$G$2,FALSE) -> 0 | U76: =+VLOOKUP($S76&U$68,'td1'!$LY$77:$MK$121,'información graf'!$G$2,FALSE) -> 1 | V76: =+VLOOKUP($S76&V$68,'td1'!$LY$77:$MK$121,'información graf'!$G$2,FALSE) -> 0 | W76: =+VLOOKUP($S76&W$68,'td1'!$LY$77:$MK$121,'información graf'!$G$2,FALSE) -> 0 | X76: =+VLOOKUP($S76&X$68,'td1'!$LY$77:$MK$121,'información graf'!$G$2,FALSE) -> 0 | Y76: =+SUM(T76:X76) -> 1
M77: LP3 | N77: Gestión del talento humano | S77: LP3 | T77: =T78+T79 -> 0 | U77: 0 | V77: 0 | W77: 0 | X77: 2 | Y77: 2
N78: LP3-C3 | O78: Capacitación | S78: LP3-C3 | T78: =+VLOOKUP($S78&T$68,'td1'!$LY$77:$MK$121,'información graf'!$G$2,FALSE) -> 0 | U78: =+VLOOKUP($S78&U$68,'td1'!$LY$77:$MK$121,'información graf'!$G$2,FALSE) -> 0 | V78: =+VLOOKUP($S78&V$68,'td1'!$LY$77:$MK$121,'información graf'!$G$2,FALSE) -> 0 | W78: =+VLOOKUP($S78&W$68,'td1'!$LY$77:$MK$121,'información graf'!$G$2,FALSE) -> 0 | X78: =+VLOOKUP($S78&X$68,'td1'!$LY$77:$MK$121,'información graf'!$G$2,FALSE) -> 1 | Y78: =+SUM(T78:X78) -> 1
N79: LP3-C4 | O79: Bienestar e Incentivos | S79: LP3-C4 | T79: =+VLOOKUP($S79&T$68,'td1'!$LY$77:$MK$121,'información graf'!$G$2,FALSE) -> 0 | U79: =+VLOOKUP($S79&U$68,'td1'!$LY$77:$MK$121,'información graf'!$G$2,FALSE) -> 0 | V79: =+VLOOKUP($S79&V$68,'td1'!$LY$77:$MK$121,'información graf'!$G$2,FALSE) -> 0 | W79: =+VLOOKUP($S79&W$68,'td1'!$LY$77:$MK$121,'información graf'!$G$2,FALSE) -> 0 | X79: =+VLOOKUP($S79&X$68,'td1'!$LY$77:$MK$121,'información graf'!$G$2,FALSE) -> 1 | Y79: =+SUM(T79:X79) -> 1
M80: LP4 | N80: Eficiencia administrativa | S80: LP4 | T80: =+T81 -> 0 | U80: 0 | V80: 0 | W80: 0 | X80: 1 | Y80: 1
N81: LP4-C6 | O81: Gestión Documental | S81: LP4-C6 | T81: =+VLOOKUP($S81&T$68,'td1'!$LY$77:$MK$121,'información graf'!$G$2,FALSE) -> 0 | U81: =+VLOOKUP($S81&U$68,'td1'!$LY$77:$MK$121,'información graf'!$G$2,FALSE) -> 0 | V81: =+VLOOKUP($S81&V$68,'td1'!$LY$77:$MK$121,'información graf'!$G$2,FALSE) -> 0 | W81: =+VLOOKUP($S81&W$68,'td1'!$LY$77:$MK$121,'información graf'!$G$2,FALSE) -> 0 | X81: =+VLOOKUP($S81&X$68,'td1'!$LY$77:$MK$121,'información graf'!$G$2,FALSE) -> 1 | Y81: =+SUM(T81:X81) -> 1
M82: LP5 | N82: Gestión financiera | S82: LP5 | T82: =T83+T84 -> 0 | U82: 2 | V82: 0 | W82: 0 | X82: 1 | Y82: 3
N83: LP5-C2 | O83: Programa Anual Mensualizado de Caja – PAC | S83: LP5-C2 | T83: =+VLOOKUP($S83&T$68,'td1'!$LY$77:$MK$121,'información graf'!$G$2,FALSE) -> 0 | U83: =+VLOOKUP($S83&U$68,'td1'!$LY$77:$MK$121,'información graf'!$G$2,FALSE) -> 2 | V83: =+VLOOKUP($S83&V$68,'td1'!$LY$77:$MK$121,'información graf'!$G$2,FALSE) -> 0 | W83: =+VLOOKUP($S83&W$68,'td1'!$LY$77:$MK$121,'información graf'!$G$2,FALSE) -> 0 | X83: =+VLOOKUP($S83&X$68,'td1'!$LY$77:$MK$121,'información graf'!$G$2,FALSE) -> 0 | Y83: =+SUM(T83:X83) -> 2
N84: LP5-C4 | O84: Plan Anual de Adquisiciones (PAA) | S84: LP5-C4 | T84: =+VLOOKUP($S84&T$68,'td1'!$LY$77:$MK$121,'información graf'!$G$2,FALSE) -> 0 | U84: =+VLOOKUP($S84&U$68,'td1'!$LY$77:$MK$121,'información graf'!$G$2,FALSE) -> 0 | V84: =+VLOOKUP($S84&V$68,'td1'!$LY$77:$MK$121,'información graf'!$G$2,FALSE) -> 0 | W84: =+VLOOKUP($S84&W$68,'td1'!$LY$77:$MK$121,'información graf'!$G$2,FALSE) -> 0 | X84: =+VLOOKUP($S84&X$68,'td1'!$LY$77:$MK$121,'información graf'!$G$2,FALSE) -> 1 | Y84: =+SUM(T84:X84) -> 1
S85: Total | T85: =+T71+T73+T77+T80+T82 -> 3 | U85: 4 | V85: 1 | W85: 0 | X85: 16 | Y85: 24
T86: =+T85/$Y$85 -> 0.125 | U86: =+U85/$Y$85 -> 0.1666666667 | V86: =+V85/$Y$85 -> 0.04166666667 | W86: =+W85/$Y$85 -> 0 | X86: =+X85/$Y$85 -> 0.6666666667
C95: Mapa Estratégico 2015 -2018
U96: Categoria | Y96: Perspectivas
C98: =+"Corte "&$E$6 -> Corte Febrero
AH105: Comportamiento agregado de indicadores
AH106: 7 | AI106: optimo | AJ106: adecuado | AK106: en riesgo | AL106: critico | AM106: NA
AN107: Total
AH108: Servicios | AI108: =+SUM(AI109:AI113) -> 4 | AJ108: =+SUM(AJ109:AJ113) -> 2 | AK108: =+SUM(AK109:AK113) -> 2 | AL108: =+SUM(AL109:AL113) -> 1 | AM108: =+SUM(AM109:AM113) -> 22 | AN108: =+SUM(AI108:AM108) -> 31
AH109: PS1 | AI109: =+VLOOKUP($AH109&AI$106,'td1'!$LI$77:$LU$136,'información graf'!$G$2,FALSE) -> 0 | AJ109: =+VLOOKUP($AH109&AJ$106,'td1'!$LI$77:$LU$136,'información graf'!$G$2,FALSE) -> 1 | AK109: =+VLOOKUP($AH109&AK$106,'td1'!$LI$77:$LU$136,'información graf'!$G$2,FALSE) -> 0 | AL109: =+VLOOKUP($AH109&AL$106,'td1'!$LI$77:$LU$136,'información graf'!$G$2,FALSE) -> 1 | AM109: =+VLOOKUP($AH109&AM$106,'td1'!$LI$77:$LU$136,'información graf'!$G$2,FALSE) -> 6 | AN109: 8
AH110: PS2 | AI110: =+VLOOKUP($AH110&AI$106,'td1'!$LI$77:$LU$136,'información graf'!$G$2,FALSE) -> 1 | AJ110: =+VLOOKUP($AH110&AJ$106,'td1'!$LI$77:$LU$136,'información graf'!$G$2,FALSE) -> 0 | AK110: =+VLOOKUP($AH110&AK$106,'td1'!$LI$77:$LU$136,'información graf'!$G$2,FALSE) -> 0 | AL110: =+VLOOKUP($AH110&AL$106,'td1'!$LI$77:$LU$136,'información graf'!$G$2,FALSE) -> 0 | AM110: =+VLOOKUP($AH110&AM$106,'td1'!$LI$77:$LU$136,'información graf'!$G$2,FALSE) -> 2 | AN110: 3
AH111: PS3 | AI111: =+VLOOKUP($AH111&AI$106,'td1'!$LI$77:$LU$136,'información graf'!$G$2,FALSE) -> 0 | AJ111: =+VLOOKUP($AH111&AJ$106,'td1'!$LI$77:$LU$136,'información graf'!$G$2,FALSE) -> 0 | AK111: =+VLOOKUP($AH111&AK$106,'td1'!$LI$77:$LU$136,'información graf'!$G$2,FALSE) -> 0 | AL111: =+VLOOKUP($AH111&AL$106,'td1'!$LI$77:$LU$136,'información graf'!$G$2,FALSE) -> 0 | AM111: =+VLOOKUP($AH111&AM$106,'td1'!$LI$77:$LU$136,'información graf'!$G$2,FALSE) -> 2 | AN111: 2
AH112: PS4 | AI112: =+VLOOKUP($AH112&AI$106,'td1'!$LI$77:$LU$136,'información graf'!$G$2,FALSE) -> 0 | AJ112: =+VLOOKUP($AH112&AJ$106,'td1'!$LI$77:$LU$136,'información graf'!$G$2,FALSE) -> 0 | AK112: =+VLOOKUP($AH112&AK$106,'td1'!$LI$77:$LU$136,'información graf'!$G$2,FALSE) -> 0 | AL112: =+VLOOKUP($AH112&AL$106,'td1'!$LI$77:$LU$136,'información graf'!$G$2,FALSE) -> 0 | AM112: =+VLOOKUP($AH112&AM$106,'td1'!$LI$77:$LU$136,'información graf'!$G$2,FALSE) -> 3 | AN112: 3
AH113: PS5 | AI113: =+VLOOKUP($AH113&AI$106,'td1'!$LI$77:$LU$136,'información graf'!$G$2,FALSE) -> 3 | AJ113: =+VLOOKUP($AH113&AJ$106,'td1'!$LI$77:$LU$136,'información graf'!$G$2,FALSE) -> 1 | AK113: =+VLOOKUP($AH113&AK$106,'td1'!$LI$77:$LU$136,'información graf'!$G$2,FALSE) -> 2 | AL113: =+VLOOKUP($AH113&AL$106,'td1'!$LI$77:$LU$136,'información graf'!$G$2,FALSE) -> 0 | AM113: =+VLOOKUP($AH113&AM$106,'td1'!$LI$77:$LU$136,'información graf'!$G$2,FALSE) -> 9 | AN113: 15
AH114: Procesos | AI114: =+SUM(AI115:AI118) -> 1 | AJ114: =+SUM(AJ115:AJ118) -> 0 | AK114: =+SUM(AK115:AK118) -> 0 | AL114: =+SUM(AL115:AL118) -> 1 | AM114: =+SUM(AM115:AM118) -> 16 | AN114: 18
T115: =+"Corte "&$E$6 -> Corte Febrero | AH115: PP1 | AI115: =+VLOOKUP($AH115&AI$106,'td1'!$LI$77:$LU$136,'información graf'!$G$2,FALSE) -> 0 | AJ115: =+VLOOKUP($AH115&AJ$106,'td1'!$LI$77:$LU$136,'información graf'!$G$2,FALSE) -> 0 | AK115: =+VLOOKUP($AH115&AK$106,'td1'!$LI$77:$LU$136,'información graf'!$G$2,FALSE) -> 0 | AL115: =+VLOOKUP($AH115&AL$106,'td1'!$LI$77:$LU$136,'información graf'!$G$2,FALSE) -> 0 | AM115: =+VLOOKUP($AH115&AM$106,'td1'!$LI$77:$LU$136,'información graf'!$G$2,FALSE) -> 9 | AN115: 9
AH116: PP2 | AI116: =+VLOOKUP($AH116&AI$106,'td1'!$LI$77:$LU$136,'información graf'!$G$2,FALSE) -> 1 | AJ116: =+VLOOKUP($AH116&AJ$106,'td1'!$LI$77:$LU$136,'información graf'!$G$2,FALSE) -> 0 | AK116: =+VLOOKUP($AH116&AK$106,'td1'!$LI$77:$LU$136,'información graf'!$G$2,FALSE) -> 0 | AL116: =+VLOOKUP($AH116&AL$106,'td1'!$LI$77:$LU$136,'información graf'!$G$2,FALSE) -> 1 | AM116: =+VLOOKUP($AH116&AM$106,'td1'!$LI$77:$LU$136,'información graf'!$G$2,FALSE) -> 2 | AN116: 4
Q117: PS | R117: Perspectiva de Servicios | AH117: PP3 | AI117: =+VLOOKUP($AH117&AI$106,'td1'!$LI$77:$LU$136,'información graf'!$G$2,FALSE) -> 0 | AJ117: =+VLOOKUP($AH117&AJ$106,'td1'!$LI$77:$LU$136,'información graf'!$G$2,FALSE) -> 0 | AK117: =+VLOOKUP($AH117&AK$106,'td1'!$LI$77:$LU$136,'información graf'!$G$2,FALSE) -> 0 | AL117: =+VLOOKUP($AH117&AL$106,'td1'!$LI$77:$LU$136,'información graf'!$G$2,FALSE) -> 0 | AM117: =+VLOOKUP($AH117&AM$106,'td1'!$LI$77:$LU$136,'información graf'!$G$2,FALSE) -> 3 | AN117: 3
R118: PS1 | S118: Ampliar cobertura y mejorar calidad en la atención integral de la Primera Infancia | AH118: PP4 | AI118: =+VLOOKUP($AH118&AI$106,'td1'!$LI$77:$LU$136,'información graf'!$G$2,FALSE) -> 0 | AJ118: =+VLOOKUP($AH118&AJ$106,'td1'!$LI$77:$LU$136,'información graf'!$G$2,FALSE) -> 0 | AK118: =+VLOOKUP($AH118&AK$106,'td1'!$LI$77:$LU$136,'información graf'!$G$2,FALSE) -> 0 | AL118: =+VLOOKUP($AH118&AL$106,'td1'!$LI$77:$LU$136,'información graf'!$G$2,FALSE) -> 0 | AM118: =+VLOOKUP($AH118&AM$106,'td1'!$LI$77:$LU$136,'información graf'!$G$2,FALSE) -> 2 | AN118: 2
R119: PS2 | S119: Promover los derechos de los niños, niñas y adolescentes y prevenir los riesgos o amenazas de su vulneración | AH119: Aliados y Sociedad | AI119: =+SUM(AI120:AI121) -> 2 | AJ119: =+SUM(AJ120:AJ121) -> 4 | AK119: =+SUM(AK120:AK121) -> 0 | AL119: =+SUM(AL120:AL121) -> 1 | AM119: =+SUM(AM120:AM121) -> 6 | AN119: 13
R120: PS3 | S120: Promover el desarrollo, fortalecer los vinculos de cuidado mutuo y prevenir violencia intrafamiliar y de género en las familias y las comunidades | AH120: PAS1 | AI120: =+VLOOKUP($AH120&AI$106,'td1'!$LI$77:$LU$136,'información graf'!$G$2,FALSE) -> 0 | AJ120: =+VLOOKUP($AH120&AJ$106,'td1'!$LI$77:$LU$136,'información graf'!$G$2,FALSE) -> 0 | AK120: =+VLOOKUP($AH120&AK$106,'td1'!$LI$77:$LU$136,'información graf'!$G$2,FALSE) -> 0 | AL120: =+VLOOKUP($AH120&AL$106,'td1'!$LI$77:$LU$136,'información graf'!$G$2,FALSE) -> 0 | AM120: =+VLOOKUP($AH120&AM$106,'td1'!$LI$77:$LU$136,'información graf'!$G$2,FALSE) -> 5 | AN120: 5
R121: PS4 | S121: Promover la seguridad alimentaria y Nutricional | AH121: PAS2 | AI121: =+VLOOKUP($AH121&AI$106,'td1'!$LI$77:$LU$136,'información graf'!$G$2,FALSE) -> 2 | AJ121: =+VLOOKUP($AH121&AJ$106,'td1'!$LI$77:$LU$136,'información graf'!$G$2,FALSE) -> 4 | AK121: =+VLOOKUP($AH121&AK$106,'td1'!$LI$77:$LU$136,'información graf'!$G$2,FALSE) -> 0 | AL121: =+VLOOKUP($AH121&AL$106,'td1'!$LI$77:$LU$136,'información graf'!$G$2,FALSE) -> 1 | AM121: =+VLOOKUP($AH121&AM$106,'td1'!$LI$77:$LU$136,'información graf'!$G$2,FALSE) -> 1 | AN121: 8
R122: PS5 | S122: Garantizar la Protección integral de los niños, niñas y adolescentes | AH122: Financiera | AI122: =+AI123 -> 0 | AJ122: =+AJ123 -> 2 | AK122: =+AK123 -> 0 | AL122: =+AL123 -> 0 | AM122: =+AM123 -> 6 | AN122: 8
Q123: PP | R123: Perspectiva de Procesos | AH123: PF | AI123: =+VLOOKUP($AH123&AI$106,'td1'!$LI$77:$LU$136,'información graf'!$G$2,FALSE) -> 0 | AJ123: =+VLOOKUP($AH123&AJ$106,'td1'!$LI$77:$LU$136,'información graf'!$G$2,FALSE) -> 2 | AK123: =+VLOOKUP($AH123&AK$106,'td1'!$LI$77:$LU$136,'información graf'!$G$2,FALSE) -> 0 | AL123: =+VLOOKUP($AH123&AL$106,'td1'!$LI$77:$LU$136,'información graf'!$G$2,FALSE) -> 0 | AM123: =+VLOOKUP($AH123&AM$106,'td1'!$LI$77:$LU$136,'información graf'!$G$2,FALSE) -> 6 | AN123: 8
R124: PP1 | S124: Impulsar una cultura de la evaluación y gestión de la calidad para el mejoramiento continuo | AH124: Total | AI124: =+AI108+AI114+AI119+AI122 -> 7 | AJ124: 8 | AK124: 2 | AL124: 3 | AM124: 50 | AN124: 70
R125: PP2 | S125: Promover condiciones laborales que hagan del ICBF el mejor lugar para trabajar | AI125: =+AI124/$AN$124 -> 0.1 | AJ125: =+AJ124/$AN$124 -> 0.1142857143 | AK125: =+AK124/$AN$124 -> 0.02857142857 | AL125: =+AL124/$AN$124 -> 0.04285714286 | AM125: =+AM124/$AN$124 -> 0.7142857143
R126: PP3 | S126: Reducir los impactos ambientales generados por nuestra actividad | AH126: =+"Corte "&$E$6 -> Corte Febrero
R127: PP4 | S127: Gestionar el conocimiento institucional, con sistemas de información integrados y seguros
Q128: PAS | R128: Perspectiva de Aliados y sociedad
R129: PAS1 | S129: Articular las instancias del Instituto Colombiano de Bienestar Familiar y del Sistema Nacional de Bienestar Familiar
R130: PAS2 | S130: Trabajar con transparencia y buen Gobierno para promover el control social y la participación ciudadana
Q131: PF | R131: Perspectiva Financiera
R132: PF | S132: Hacer un uso eficiente de los recursos de los niños, niñas y adolescentes, porque son sagrados
C139: =+"Corte "&$E$6 -> Corte Febrero
T143: Procesos | AA143: Comportamiento agregado de indicadores
AA144: 7 | AB144: optimo | AC144: adecuado | AD144: en riesgo | AE144: critico | AF144: NA
AG145: Total
M146: Misionales | Z146: Misionales | AB146: =+AB147+AB148 -> 4 | AC146: =+AC147+AC148 -> 2 | AD146: =+AD147+AD148 -> 2 | AE146: =+AE147+AE148 -> 0 | AF146: =+AF147+AF148 -> 21 | AG146: =+SUM(AB146:AF146) -> 29
M147: PM1 | N147: Promoción y prevención | AA147: PM1 | AB147: =+VLOOKUP($AA147&AB$144,'td1'!$KS$77:$LE$151,'información graf'!$G$2,FALSE) -> 1 | AC147: =+VLOOKUP($AA147&AC$144,'td1'!$KS$77:$LE$151,'información graf'!$G$2,FALSE) -> 1 | AD147: =+VLOOKUP($AA147&AD$144,'td1'!$KS$77:$LE$151,'información graf'!$G$2,FALSE) -> 0 | AE147: =+VLOOKUP($AA147&AE$144,'td1'!$KS$77:$LE$151,'información graf'!$G$2,FALSE) -> 0 | AF147: =+VLOOKUP($AA147&AF$144,'td1'!$KS$77:$LE$151,'información graf'!$G$2,FALSE) -> 14 | AG147: 16
M148: PM2 | N148: Protección | AA148: PM2 | AB148: =+VLOOKUP($AA148&AB$144,'td1'!$KS$77:$LE$151,'información graf'!$G$2,FALSE) -> 3 | AC148: =+VLOOKUP($AA148&AC$144,'td1'!$KS$77:$LE$151,'información graf'!$G$2,FALSE) -> 1 | AD148: =+VLOOKUP($AA148&AD$144,'td1'!$KS$77:$LE$151,'información graf'!$G$2,FALSE) -> 2 | AE148: =+VLOOKUP($AA148&AE$144,'td1'!$KS$77:$LE$151,'información graf'!$G$2,FALSE) -> 0 | AF148: =+VLOOKUP($AA148&AF$144,'td1'!$KS$77:$LE$151,'información graf'!$G$2,FALSE) -> 7 | AG148: 13
M149: Apoyo | Z149: Apoyo | AB149: =+AB150+AB151+AB152+AB153+AB154 -> 1 | AC149: =+AC150+AC151+AC152+AC153+AC154 -> 2 | AD149: =+AD150+AD151+AD152+AD153+AD154 -> 0 | AE149: =+AE150+AE151+AE152+AE153+AE154 -> 1 | AF149: =+AF150+AF151+AF152+AF153+AF154 -> 16 | AG149: 20
M150: PA1 | N150: Gestión financiera | AA150: PA1 | AB150: =+VLOOKUP($AA150&AB$144,'td1'!$KS$77:$LE$151,'información graf'!$G$2,FALSE) -> 0 | AC150: =+VLOOKUP($AA150&AC$144,'td1'!$KS$77:$LE$151,'información graf'!$G$2,FALSE) -> 2 | AD150: =+VLOOKUP($AA150&AD$144,'td1'!$KS$77:$LE$151,'información graf'!$G$2,FALSE) -> 0 | AE150: =+VLOOKUP($AA150&AE$144,'td1'!$KS$77:$LE$151,'información graf'!$G$2,FALSE) -> 0 | AF150: =+VLOOKUP($AA150&AF$144,'td1'!$KS$77:$LE$151,'información graf'!$G$2,FALSE) -> 3 | AG150: 5
M151: PA2 | N151: Adquisición de bienes y servicios | AA151: PA2 | AB151: =+VLOOKUP($AA151&AB$144,'td1'!$KS$77:$LE$151,'información graf'!$G$2,FALSE) -> 0 | AC151: =+VLOOKUP($AA151&AC$144,'td1'!$KS$77:$LE$151,'información graf'!$G$2,FALSE) -> 0 | AD151: =+VLOOKUP($AA151&AD$144,'td1'!$KS$77:$LE$151,'información graf'!$G$2,FALSE) -> 0 | AE151: =+VLOOKUP($AA151&AE$144,'td1'!$KS$77:$LE$151,'información graf'!$G$2,FALSE) -> 0 | AF151: =+VLOOKUP($AA151&AF$144,'td1'!$KS$77:$LE$151,'información graf'!$G$2,FALSE) -> 3 | AG151: 3
M152: PA3 | N152: Servicios administrativos | AA152: PA3 | AB152: =+VLOOKUP($AA152&AB$144,'td1'!$KS$77:$LE$151,'información graf'!$G$2,FALSE) -> 0 | AC152: =+VLOOKUP($AA152&AC$144,'td1'!$KS$77:$LE$151,'información graf'!$G$2,FALSE) -> 0 | AD152: =+VLOOKUP($AA152&AD$144,'td1'!$KS$77:$LE$151,'información graf'!$G$2,FALSE) -> 0 | AE152: =+VLOOKUP($AA152&AE$144,'td1'!$KS$77:$LE$151,'información graf'!$G$2,FALSE) -> 0 | AF152: =+VLOOKUP($AA152&AF$144,'td1'!$KS$77:$LE$151,'información graf'!$G$2,FALSE) -> 6 | AG152: 6
M153: PA4 | N153: Gestión de talento humano | AA153: PA4 | AB153: =+VLOOKUP($AA153&AB$144,'td1'!$KS$77:$LE$151,'información graf'!$G$2,FALSE) -> 1 | AC153: =+VLOOKUP($AA153&AC$144,'td1'!$KS$77:$LE$151,'información graf'!$G$2,FALSE) -> 0 | AD153: =+VLOOKUP($AA153&AD$144,'td1'!$KS$77:$LE$151,'información graf'!$G$2,FALSE) -> 0 | AE153: =+VLOOKUP($AA153&AE$144,'td1'!$KS$77:$LE$151,'información graf'!$G$2,FALSE) -> 1 | AF153: =+VLOOKUP($AA153&AF$144,'td1'!$KS$77:$LE$151,'información graf'!$G$2,FALSE) -> 2 | AG153: 4
M154: PA5 | N154: Gestión jurídica | AA154: PA5 | AB154: =+VLOOKUP($AA154&AB$144,'td1'!$KS$77:$LE$151,'información graf'!$G$2,FALSE) -> 0 | AC154: =+VLOOKUP($AA154&AC$144,'td1'!$KS$77:$LE$151,'información graf'!$G$2,FALSE) -> 0 | AD154: =+VLOOKUP($AA154&AD$144,'td1'!$KS$77:$LE$151,'información graf'!$G$2,FALSE) -> 0 | AE154: =+VLOOKUP($AA154&AE$144,'td1'!$KS$77:$LE$151,'información graf'!$G$2,FALSE) -> 0 | AF154: =+VLOOKUP($AA154&AF$144,'td1'!$KS$77:$LE$151,'información graf'!$G$2,FALSE) -> 2 | AG154: 2
M155: Estratégicos | Z155: Estratégicos | AB155: =+AB156 -> 0 | AC155: 0 | AD155: 0 | AE155: 0 | AF155: 3 | AG155: 3
M156: PE1 | N156: Coordinación y articulación del SNBF y agentes | AA156: PE1 | AB156: =+VLOOKUP($AA156&AB$144,'td1'!$KS$77:$LE$151,'información graf'!$G$2,FALSE) -> 0 | AC156: =+VLOOKUP($AA156&AC$144,'td1'!$KS$77:$LE$151,'información graf'!$G$2,FALSE) -> 0 | AD156: =+VLOOKUP($AA156&AD$144,'td1'!$KS$77:$LE$151,'información graf'!$G$2,FALSE) -> 0 | AE156: =+VLOOKUP($AA156&AE$144,'td1'!$KS$77:$LE$151,'información graf'!$G$2,FALSE) -> 0 | AF156: =+VLOOKUP($AA156&AF$144,'td1'!$KS$77:$LE$151,'información graf'!$G$2,FALSE) -> 3 | AG156: =+SUM(AB156:AF156) -> 3
M157: PE2 | N157: Direccionamiento Estratégico | Z157: Evaluación | AB157: =+AB158+AB159 -> 0 | AC157: =+AC158+AC159 -> 0 | AD157: =+AD158+AD159 -> 0 | AE157: =+AE158+AE159 -> 1 | AF157: =+AF158+AF159 -> 1 | AG157: 2
M158: PE3 | N158: Comunicación estratégica | AA158: PEV1 | AB158: =+VLOOKUP($AA158&AB$144,'td1'!$KS$77:$LE$151,'información graf'!$G$2,FALSE) -> 0 | AC158: =+VLOOKUP($AA158&AC$144,'td1'!$KS$77:$LE$151,'información graf'!$G$2,FALSE) -> 0 | AD158: =+VLOOKUP($AA158&AD$144,'td1'!$KS$77:$LE$151,'información graf'!$G$2,FALSE) -> 0 | AE158: =+VLOOKUP($AA158&AE$144,'td1'!$KS$77:$LE$151,'información graf'!$G$2,FALSE) -> 1 | AF158: =+VLOOKUP($AA158&AF$144,'td1'!$KS$77:$LE$151,'información graf'!$G$2,FALSE) -> 0 | AG158: 1
M159: Evaluación | AA159: PEV3 | AB159: =+VLOOKUP($AA159&AB$144,'td1'!$KS$77:$LE$151,'información graf'!$G$2,FALSE) -> 0 | AC159: =+VLOOKUP($AA159&AC$144,'td1'!$KS$77:$LE$151,'información graf'!$G$2,FALSE) -> 0 | AD159: =+VLOOKUP($AA159&AD$144,'td1'!$KS$77:$LE$151,'información graf'!$G$2,FALSE) -> 0 | AE159: =+VLOOKUP($AA159&AE$144,'td1'!$KS$77:$LE$151,'información graf'!$G$2,FALSE) -> 0 | AF159: =+VLOOKUP($AA159&AF$144,'td1'!$KS$77:$LE$151,'información graf'!$G$2,FALSE) -> 1 | AG159: 1
M160: PEV1 | N160: Inspección vigilancia y control a operadores | Z160: Transversales | AB160: =+AB161+AB162+AB163 -> 2 | AC160: =+AC161+AC162+AC163 -> 4 | AD160: =+AD161+AD162+AD163 -> 0 | AE160: =+AE161+AE162+AE163 -> 1 | AF160: =+AF161+AF162+AF163 -> 9 | AG160: 16
M161: PEV3 | N161: Evaluación independiente | AA161: PT1 | AB161: =+VLOOKUP($AA161&AB$144,'td1'!$KS$77:$LE$151,'información graf'!$G$2,FALSE) -> 2 | AC161: =+VLOOKUP($AA161&AC$144,'td1'!$KS$77:$LE$151,'información graf'!$G$2,FALSE) -> 4 | AD161: =+VLOOKUP($AA161&AD$144,'td1'!$KS$77:$LE$151,'información graf'!$G$2,FALSE) -> 0 | AE161: =+VLOOKUP($AA161&AE$144,'td1'!$KS$77:$LE$151,'información graf'!$G$2,FALSE) -> 1 | AF161: =+VLOOKUP($AA161&AF$144,'td1'!$KS$77:$LE$151,'información graf'!$G$2,FALSE) -> 1 | AG161: 8
M162: Transversales | AA162: PT2 | AB162: =+VLOOKUP($AA162&AB$144,'td1'!$KS$77:$LE$151,'información graf'!$G$2,FALSE) -> 0 | AC162: =+VLOOKUP($AA162&AC$144,'td1'!$KS$77:$LE$151,'información graf'!$G$2,FALSE) -> 0 | AD162: =+VLOOKUP($AA162&AD$144,'td1'!$KS$77:$LE$151,'información graf'!$G$2,FALSE) -> 0 | AE162: =+VLOOKUP($AA162&AE$144,'td1'!$KS$77:$LE$151,'información graf'!$G$2,FALSE) -> 0 | AF162: =+VLOOKUP($AA162&AF$144,'td1'!$KS$77:$LE$151,'información graf'!$G$2,FALSE) -> 6 | AG162: 6
M163: PT1 | N163: Relación con el ciudadano | AA163: PT3 | AB163: =+VLOOKUP($AA163&AB$144,'td1'!$KS$77:$LE$151,'información graf'!$G$2,FALSE) -> 0 | AC163: =+VLOOKUP($AA163&AC$144,'td1'!$KS$77:$LE$151,'información graf'!$G$2,FALSE) -> 0 | AD163: =+VLOOKUP($AA163&AD$144,'td1'!$KS$77:$LE$151,'información graf'!$G$2,FALSE) -> 0 | AE163: =+VLOOKUP($AA163&AE$144,'td1'!$KS$77:$LE$151,'información graf'!$G$2,FALSE) -> 0 | AF163: =+VLOOKUP($AA163&AF$144,'td1'!$KS$77:$LE$151,'información graf'!$G$2,FALSE) -> 2 | AG163: 2
M164: PT2 | N164: Mejora e Innovación | Z164: Total | AB164: =+AB146+AB149+AB155+AB157+AB160 -> 7 | AC164: =+AC146+AC149+AC155+AC157+AC160 -> 8 | AD164: =+AD146+AD149+AD155+AD157+AD160 -> 2 | AE164: =+AE146+AE149+AE155+AE157+AE160 -> 3 | AF164: =+AF146+AF149+AF155+AF157+AF160 -> 50 | AG164: 70
M165: PT3 | N165: Gestión de la tecnología e información | AB165: =+AB164/$AG$164 -> 0.1 | AC165: =+AC164/$AG$164 -> 0.1142857143 | AD165: =+AD164/$AG$164 -> 0.02857142857 | AE165: =+AE164/$AG$164 -> 0.04285714286 | AF165: =+AF164/$AG$164 -> 0.7142857143
Z166: =+"Corte "&$E$6 -> Corte Febrero
C176: Áreas del CIBF
P179: Áreas | U179: Comportamiento agregado de indicadores
P180: 32 | V180: 7 | W180: optimo | X180: adecuado | Y180: en riesgo | Z180: critico | AA180: NA
AB181: Total
V182: Misionales | W182: =+W183+W184+W185+W186+W187 -> 4 | X182: =+X183+X184+X185+X186+X187 -> 2 | Y182: =+Y183+Y184+Y185+Y186+Y187 -> 2 | Z182: =+Z183+Z184+Z185+Z186+Z187 -> 1 | AA182: =+AA183+AA184+AA185+AA186+AA187 -> 22 | AB182: =+SUM(W182:AA182) -> 31
V183: M1 | W183: =+VLOOKUP($V183&W$180,'td1'!$NE$77:$NQ$186,'información graf'!$G$2,FALSE) -> 0 | X183: =+VLOOKUP($V183&X$180,'td1'!$NE$77:$NQ$186,'información graf'!$G$2,FALSE) -> 1 | Y183: =+VLOOKUP($V183&Y$180,'td1'!$NE$77:$NQ$186,'información graf'!$G$2,FALSE) -> 0 | Z183: =+VLOOKUP($V183&Z$180,'td1'!$NE$77:$NQ$186,'información graf'!$G$2,FALSE) -> 1 | AA183: =+VLOOKUP($V183&AA$180,'td1'!$NE$77:$NQ$186,'información graf'!$G$2,FALSE) -> 6 | AB183: 8
V184: M2 | W184: =+VLOOKUP($V184&W$180,'td1'!$NE$77:$NQ$186,'información graf'!$G$2,FALSE) -> 1 | X184: =+VLOOKUP($V184&X$180,'td1'!$NE$77:$NQ$186,'información graf'!$G$2,FALSE) -> 0 | Y184: =+VLOOKUP($V184&Y$180,'td1'!$NE$77:$NQ$186,'información graf'!$G$2,FALSE) -> 0 | Z184: =+VLOOKUP($V184&Z$180,'td1'!$NE$77:$NQ$186,'información graf'!$G$2,FALSE) -> 0 | AA184: =+VLOOKUP($V184&AA$180,'td1'!$NE$77:$NQ$186,'información graf'!$G$2,FALSE) -> 4 | AB184: 5
V185: M3 | W185: =+VLOOKUP($V185&W$180,'td1'!$NE$77:$NQ$186,'información graf'!$G$2,FALSE) -> 0 | X185: =+VLOOKUP($V185&X$180,'td1'!$NE$77:$NQ$186,'información graf'!$G$2,FALSE) -> 0 | Y185: =+VLOOKUP($V185&Y$180,'td1'!$NE$77:$NQ$186,'información graf'!$G$2,FALSE) -> 0 | Z185: =+VLOOKUP($V185&Z$180,'td1'!$NE$77:$NQ$186,'información graf'!$G$2,FALSE) -> 0 | AA185: =+VLOOKUP($V185&AA$180,'td1'!$NE$77:$NQ$186,'información graf'!$G$2,FALSE) -> 2 | AB185: 2
V186: M4 | W186: =+VLOOKUP($V186&W$180,'td1'!$NE$77:$NQ$186,'información graf'!$G$2,FALSE) -> 0 | X186: =+VLOOKUP($V186&X$180,'td1'!$NE$77:$NQ$186,'información graf'!$G$2,FALSE) -> 0 | Y186: =+VLOOKUP($V186&Y$180,'td1'!$NE$77:$NQ$186,'información graf'!$G$2,FALSE) -> 0 | Z186: =+VLOOKUP($V186&Z$180,'td1'!$NE$77:$NQ$186,'información graf'!$G$2,FALSE) -> 0 | AA186: =+VLOOKUP($V186&AA$180,'td1'!$NE$77:$NQ$186,'información graf'!$G$2,FALSE) -> 3 | AB186: 3
V187: M5 | W187: =+VLOOKUP($V187&W$180,'td1'!$NE$77:$NQ$186,'información graf'!$G$2,FALSE) -> 3 | X187: =+VLOOKUP($V187&X$180,'td1'!$NE$77:$NQ$186,'información graf'!$G$2,FALSE) -> 1 | Y187: =+VLOOKUP($V187&Y$180,'td1'!$NE$77:$NQ$186,'información graf'!$G$2,FALSE) -> 2 | Z187: =+VLOOKUP($V187&Z$180,'td1'!$NE$77:$NQ$186,'información graf'!$G$2,FALSE) -> 0 | AA187: =+VLOOKUP($V187&AA$180,'td1'!$NE$77:$NQ$186,'información graf'!$G$2,FALSE) -> 7 | AB187: 13
V188: Apoyo | W188: =+SUM(W189:W199) -> 3 | X188: 6 | Y188: 0 | Z188: 2 | AA188: 28 | AB188: 39
V189: A1 | W189: =+VLOOKUP($V189&W$180,'td1'!$NE$77:$NQ$156,'información graf'!$G$2,FALSE) -> 1 | X189: =+VLOOKUP($V189&X$180,'td1'!$NE$77:$NQ$156,'información graf'!$G$2,FALSE) -> 0 | Y189: =+VLOOKUP($V189&Y$180,'td1'!$NE$77:$NQ$156,'información graf'!$G$2,FALSE) -> 0 | Z189: =+VLOOKUP($V189&Z$180,'td1'!$NE$77:$NQ$156,'información graf'!$G$2,FALSE) -> 1 | AA189: =+VLOOKUP($V189&AA$180,'td1'!$NE$77:$NQ$156,'información graf'!$G$2,FALSE) -> 2 | AB189: =+SUM(W189:AA189) -> 4
V190: A2 | W190: =+VLOOKUP($V190&W$180,'td1'!$NE$77:$NQ$156,'información graf'!$G$2,FALSE) -> 0 | X190: =+VLOOKUP($V190&X$180,'td1'!$NE$77:$NQ$156,'información graf'!$G$2,FALSE) -> 2 | Y190: =+VLOOKUP($V190&Y$180,'td1'!$NE$77:$NQ$156,'información graf'!$G$2,FALSE) -> 0 | Z190: =+VLOOKUP($V190&Z$180,'td1'!$NE$77:$NQ$156,'información graf'!$G$2,FALSE) -> 0 | AA190: =+VLOOKUP($V190&AA$180,'td1'!$NE$77:$NQ$156,'información graf'!$G$2,FALSE) -> 3 | AB190: 5
V191: A4 | W191: =+VLOOKUP($V191&W$180,'td1'!$NE$77:$NQ$156,'información graf'!$G$2,FALSE) -> 0 | X191: =+VLOOKUP($V191&X$180,'td1'!$NE$77:$NQ$156,'información graf'!$G$2,FALSE) -> 0 | Y191: =+VLOOKUP($V191&Y$180,'td1'!$NE$77:$NQ$156,'información graf'!$G$2,FALSE) -> 0 | Z191: =+VLOOKUP($V191&Z$180,'td1'!$NE$77:$NQ$156,'información graf'!$G$2,FALSE) -> 0 | AA191: =+VLOOKUP($V191&AA$180,'td1'!$NE$77:$NQ$156,'información graf'!$G$2,FALSE) -> 1 | AB191: 1
V192: A5 | W192: =+VLOOKUP($V192&W$180,'td1'!$NE$77:$NQ$156,'información graf'!$G$2,FALSE) -> 0 | X192: =+VLOOKUP($V192&X$180,'td1'!$NE$77:$NQ$156,'información graf'!$G$2,FALSE) -> 0 | Y192: =+VLOOKUP($V192&Y$180,'td1'!$NE$77:$NQ$156,'información graf'!$G$2,FALSE) -> 0 | Z192: =+VLOOKUP($V192&Z$180,'td1'!$NE$77:$NQ$156,'información graf'!$G$2,FALSE) -> 0 | AA192: =+VLOOKUP($V192&AA$180,'td1'!$NE$77:$NQ$156,'información graf'!$G$2,FALSE) -> 6 | AB192: 6
V193: A6 | W193: =+VLOOKUP($V193&W$180,'td1'!$NE$77:$NQ$156,'información graf'!$G$2,FALSE) -> 0 | X193: =+VLOOKUP($V193&X$180,'td1'!$NE$77:$NQ$156,'información graf'!$G$2,FALSE) -> 0 | Y193: =+VLOOKUP($V193&Y$180,'td1'!$NE$77:$NQ$156,'información graf'!$G$2,FALSE) -> 0 | Z193: =+VLOOKUP($V193&Z$180,'td1'!$NE$77:$NQ$156,'información graf'!$G$2,FALSE) -> 0 | AA193: =+VLOOKUP($V193&AA$180,'td1'!$NE$77:$NQ$156,'información graf'!$G$2,FALSE) -> 2 | AB193: 2
V194: A7 | W194: =+VLOOKUP($V194&W$180,'td1'!$NE$77:$NQ$156,'información graf'!$G$2,FALSE) -> 0 | X194: =+VLOOKUP($V194&X$180,'td1'!$NE$77:$NQ$156,'información graf'!$G$2,FALSE) -> 0 | Y194: =+VLOOKUP($V194&Y$180,'td1'!$NE$77:$NQ$156,'información graf'!$G$2,FALSE) -> 0 | Z194: =+VLOOKUP($V194&Z$180,'td1'!$NE$77:$NQ$156,'información graf'!$G$2,FALSE) -> 0 | AA194: =+VLOOKUP($V194&AA$180,'td1'!$NE$77:$NQ$156,'información graf'!$G$2,FALSE) -> 2 | AB194: 2
V195: A10 | W195: =+VLOOKUP($V195&W$180,'td1'!$NE$77:$NQ$156,'información graf'!$G$2,FALSE) -> 2 | X195: =+VLOOKUP($V195&X$180,'td1'!$NE$77:$NQ$156,'información graf'!$G$2,FALSE) -> 4 | Y195: =+VLOOKUP($V195&Y$180,'td1'!$NE$77:$NQ$156,'información graf'!$G$2,FALSE) -> 0 | Z195: =+VLOOKUP($V195&Z$180,'td1'!$NE$77:$NQ$156,'información graf'!$G$2,FALSE) -> 1 | AA195: =+VLOOKUP($V195&AA$180,'td1'!$NE$77:$NQ$156,'información graf'!$G$2,FALSE) -> 0 | AB195: 7
V196: A11 | W196: =+VLOOKUP($V196&W$180,'td1'!$NE$77:$NQ$156,'información graf'!$G$2,FALSE) -> 0 | X196: =+VLOOKUP($V196&X$180,'td1'!$NE$77:$NQ$156,'información graf'!$G$2,FALSE) -> 0 | Y196: =+VLOOKUP($V196&Y$180,'td1'!$NE$77:$NQ$156,'información graf'!$G$2,FALSE) -> 0 | Z196: =+VLOOKUP($V196&Z$180,'td1'!$NE$77:$NQ$156,'información graf'!$G$2,FALSE) -> 0 | AA196: =+VLOOKUP($V196&AA$180,'td1'!$NE$77:$NQ$156,'información graf'!$G$2,FALSE) -> 2 | AB196: 2
V197: A13 | W197: =+VLOOKUP($V197&W$180,'td1'!$NE$77:$NQ$156,'información graf'!$G$2,FALSE) -> 0 | X197: =+VLOOKUP($V197&X$180,'td1'!$NE$77:$NQ$156,'información graf'!$G$2,FALSE) -> 0 | Y197: =+VLOOKUP($V197&Y$180,'td1'!$NE$77:$NQ$156,'información graf'!$G$2,FALSE) -> 0 | Z197: =+VLOOKUP($V197&Z$180,'td1'!$NE$77:$NQ$156,'información graf'!$G$2,FALSE) -> 0 | AA197: =+VLOOKUP($V197&AA$180,'td1'!$NE$77:$NQ$156,'información graf'!$G$2,FALSE) -> 6 | AB197: 6
V198: A14 | W198: =+VLOOKUP($V198&W$180,'td1'!$NE$77:$NQ$156,'información graf'!$G$2,FALSE) -> 0 | X198: =+VLOOKUP($V198&X$180,'td1'!$NE$77:$NQ$156,'información graf'!$G$2,FALSE) -> 0 | Y198: =+VLOOKUP($V198&Y$180,'td1'!$NE$77:$NQ$156,'información graf'!$G$2,FALSE) -> 0 | Z198: =+VLOOKUP($V198&Z$180,'td1'!$NE$77:$NQ$156,'información graf'!$G$2,FALSE) -> 0 | AA198: =+VLOOKUP($V198&AA$180,'td1'!$NE$77:$NQ$156,'información graf'!$G$2,FALSE) -> 3 | AB198: 3
V199: A15 | W199: =+VLOOKUP($V199&W$180,'td1'!$NE$77:$NQ$156,'información graf'!$G$2,FALSE) -> 0 | X199: =+VLOOKUP($V199&X$180,'td1'!$NE$77:$NQ$156,'información graf'!$G$2,FALSE) -> 0 | Y199: =+VLOOKUP($V199&Y$180,'td1'!$NE$77:$NQ$156,'información graf'!$G$2,FALSE) -> 0 | Z199: =+VLOOKUP($V199&Z$180,'td1'!$NE$77:$NQ$156,'información graf'!$G$2,FALSE) -> 0 | AA199: =+VLOOKUP($V199&AA$180,'td1'!$NE$77:$NQ$156,'información graf'!$G$2,FALSE) -> 1 | AB199: 1
U200: Total | V200: Total | W200: =+W182+W188 -> 7 | X200: 8 | Y200: 2 | Z200: 3 | AA200: 50 | AB200: 70
W201: =+W200/$AB$200 -> 0.1 | X201: =+X200/$AB$200 -> 0.1142857143 | Y201: =+Y200/$AB$200 -> 0.02857142857 | Z201: =+Z200/$AB$200 -> 0.04285714286 | AA201: =+AA200/$AB$200 -> 0.7142857143
U202: =+"Corte "&$E$6 -> Corte Febrero
C214: Sistema Integrado de Gestión - Objetivos SIGE
Q215: SIGE1 | R215: Ampliar cobertura y mejorar calidad en la atención integral a la Primera Infancia.
Q216: SIGE2 | R216: Promover los derechos de los NNA y prevenir los riesgos o amenazas de vulneración de los mismos
Q217: SIGE3 | R217: Fortalecer en las familias y comunidades, capacidades que promuevan su desarrollo, fortalezcan sus vínculos de cuidado mutuo y prevengan la violencia intrafamiliar y de género.
Q219: SIGE4 | R219: Promover la seguridad alimentaria y nutricional en el desarrollo de la primera infancia, los NNA y la familia.
Q220: SIGE5 | R220: Garantizar la protección integral de los NNA en coordinación con las instancias del SNBF.
Q221: SIGE6 | R221: Lograr una adecuada y eficiente gestión institucional a través de la articulación entre servidores, áreas y niveles territoriales; el apoyo administrativo a los procesos misionales, la apropiación de una cultura de la evaluación y la optimización del uso de los recursos
Q223: SIGE7 | R223: Promover condiciones laborales que hagan del ICBF el mejor lugar para trabajar.
Q224: SIGE8 | R224: Reducir los impactos ambientales generados por nuestra actividad.
Q225: SIGE9 | R225: Impulsar una cultura de gestión de la calidad y el mejoramiento continuo.
Q226: SIGE10 | R226: Gestionar el conocimiento institucional, con sistemas de información confiables, integrados y disponibles.
R228: Objetivos SIGE
X230: optimo | Y230: adecuado | Z230: en riesgo | AA230: critico | AB230: NA
W231: Comportamiento agregado de indicadores
AC232: Total
W233: SIGE1 | X233: =+VLOOKUP($W233&X$230,'td1'!$MO$77:$NA$126,'información graf'!$G$2,FALSE) -> 0 | Y233: =+VLOOKUP($W233&Y$230,'td1'!$MO$77:$NA$126,'información graf'!$G$2,FALSE) -> 1 | Z233: =+VLOOKUP($W233&Z$230,'td1'!$MO$77:$NA$126,'información graf'!$G$2,FALSE) -> 0 | AA233: =+VLOOKUP($W233&AA$230,'td1'!$MO$77:$NA$126,'información graf'!$G$2,FALSE) -> 1 | AB233: =+VLOOKUP($W233&AB$230,'td1'!$MO$77:$NA$126,'información graf'!$G$2,FALSE) -> 6 | AC233: =+SUM(X233:AB233) -> 8
W234: SIGE2 | X234: =+VLOOKUP($W234&X$230,'td1'!$MO$77:$NA$126,'información graf'!$G$2,FALSE) -> 1 | Y234: =+VLOOKUP($W234&Y$230,'td1'!$MO$77:$NA$126,'información graf'!$G$2,FALSE) -> 0 | Z234: =+VLOOKUP($W234&Z$230,'td1'!$MO$77:$NA$126,'información graf'!$G$2,FALSE) -> 0 | AA234: =+VLOOKUP($W234&AA$230,'td1'!$MO$77:$NA$126,'información graf'!$G$2,FALSE) -> 0 | AB234: =+VLOOKUP($W234&AB$230,'td1'!$MO$77:$NA$126,'información graf'!$G$2,FALSE) -> 4 | AC234: 5
W235: SIGE3 | X235: =+VLOOKUP($W235&X$230,'td1'!$MO$77:$NA$126,'información graf'!$G$2,FALSE) -> 0 | Y235: =+VLOOKUP($W235&Y$230,'td1'!$MO$77:$NA$126,'información graf'!$G$2,FALSE) -> 0 | Z235: =+VLOOKUP($W235&Z$230,'td1'!$MO$77:$NA$126,'información graf'!$G$2,FALSE) -> 0 | AA235: =+VLOOKUP($W235&AA$230,'td1'!$MO$77:$NA$126,'información graf'!$G$2,FALSE) -> 0 | AB235: =+VLOOKUP($W235&AB$230,'td1'!$MO$77:$NA$126,'información graf'!$G$2,FALSE) -> 2 | AC235: 2
W236: SIGE4 | X236: =+VLOOKUP($W236&X$230,'td1'!$MO$77:$NA$126,'información graf'!$G$2,FALSE) -> 0 | Y236: =+VLOOKUP($W236&Y$230,'td1'!$MO$77:$NA$126,'información graf'!$G$2,FALSE) -> 0 | Z236: =+VLOOKUP($W236&Z$230,'td1'!$MO$77:$NA$126,'información graf'!$G$2,FALSE) -> 0 | AA236: =+VLOOKUP($W236&AA$230,'td1'!$MO$77:$NA$126,'información graf'!$G$2,FALSE) -> 0 | AB236: =+VLOOKUP($W236&AB$230,'td1'!$MO$77:$NA$126,'información graf'!$G$2,FALSE) -> 3 | AC236: 3
W237: SIGE5 | X237: =+VLOOKUP($W237&X$230,'td1'!$MO$77:$NA$126,'información graf'!$G$2,FALSE) -> 3 | Y237: =+VLOOKUP($W237&Y$230,'td1'!$MO$77:$NA$126,'información graf'!$G$2,FALSE) -> 1 | Z237: =+VLOOKUP($W237&Z$230,'td1'!$MO$77:$NA$126,'información graf'!$G$2,FALSE) -> 2 | AA237: =+VLOOKUP($W237&AA$230,'td1'!$MO$77:$NA$126,'información graf'!$G$2,FALSE) -> 0 | AB237: =+VLOOKUP($W237&AB$230,'td1'!$MO$77:$NA$126,'información graf'!$G$2,FALSE) -> 7 | AC237: 13
W238: SIGE6 | X238: =+VLOOKUP($W238&X$230,'td1'!$MO$77:$NA$126,'información graf'!$G$2,FALSE) -> 2 | Y238: =+VLOOKUP($W238&Y$230,'td1'!$MO$77:$NA$126,'información graf'!$G$2,FALSE) -> 6 | Z238: =+VLOOKUP($W238&Z$230,'td1'!$MO$77:$NA$126,'información graf'!$G$2,FALSE) -> 0 | AA238: =+VLOOKUP($W238&AA$230,'td1'!$MO$77:$NA$126,'información graf'!$G$2,FALSE) -> 2 | AB238: =+VLOOKUP($W238&AB$230,'td1'!$MO$77:$NA$126,'información graf'!$G$2,FALSE) -> 18 | AC238: 28
W239: SIGE7 | X239: =+VLOOKUP($W239&X$230,'td1'!$MO$77:$NA$126,'información graf'!$G$2,FALSE) -> 1 | Y239: =+VLOOKUP($W239&Y$230,'td1'!$MO$77:$NA$126,'información graf'!$G$2,FALSE) -> 0 | Z239: =+VLOOKUP($W239&Z$230,'td1'!$MO$77:$NA$126,'información graf'!$G$2,FALSE) -> 0 | AA239: =+VLOOKUP($W239&AA$230,'td1'!$MO$77:$NA$126,'información graf'!$G$2,FALSE) -> 0 | AB239: =+VLOOKUP($W239&AB$230,'td1'!$MO$77:$NA$126,'información graf'!$G$2,FALSE) -> 1 | AC239: 2
W240: SIGE8 | X240: =+VLOOKUP($W240&X$230,'td1'!$MO$77:$NA$126,'información graf'!$G$2,FALSE) -> 0 | Y240: =+VLOOKUP($W240&Y$230,'td1'!$MO$77:$NA$126,'información graf'!$G$2,FALSE) -> 0 | Z240: =+VLOOKUP($W240&Z$230,'td1'!$MO$77:$NA$126,'información graf'!$G$2,FALSE) -> 0 | AA240: =+VLOOKUP($W240&AA$230,'td1'!$MO$77:$NA$126,'información graf'!$G$2,FALSE) -> 0 | AB240: =+VLOOKUP($W240&AB$230,'td1'!$MO$77:$NA$126,'información graf'!$G$2,FALSE) -> 3 | AC240: 3
W241: SIGE9 | X241: =+VLOOKUP($W241&X$230,'td1'!$MO$77:$NA$126,'información graf'!$G$2,FALSE) -> 0 | Y241: =+VLOOKUP($W241&Y$230,'td1'!$MO$77:$NA$126,'información graf'!$G$2,FALSE) -> 0 | Z241: =+VLOOKUP($W241&Z$230,'td1'!$MO$77:$NA$126,'información graf'!$G$2,FALSE) -> 0 | AA241: =+VLOOKUP($W241&AA$230,'td1'!$MO$77:$NA$126,'información graf'!$G$2,FALSE) -> 0 | AB241: =+VLOOKUP($W241&AB$230,'td1'!$MO$77:$NA$126,'información graf'!$G$2,FALSE) -> 5 | AC241: 5
W242: SIGE10 | X242: =+VLOOKUP($W242&X$230,'td1'!$MO$77:$NA$126,'información graf'!$G$2,FALSE) -> 0 | Y242: =+VLOOKUP($W242&Y$230,'td1'!$MO$77:$NA$126,'información graf'!$G$2,FALSE) -> 0 | Z242: =+VLOOKUP($W242&Z$230,'td1'!$MO$77:$NA$126,'información graf'!$G$2,FALSE) -> 0 | AA242: =+VLOOKUP($W242&AA$230,'td1'!$MO$77:$NA$126,'información graf'!$G$2,FALSE) -> 0 | AB242: =+VLOOKUP($W242&AB$230,'td1'!$MO$77:$NA$126,'información graf'!$G$2,FALSE) -> 1 | AC242: 1
W243: Total | X243: =SUM(X233:X242) -> 7 | Y243: 8 | Z243: 2 | AA243: 3 | AB243: 50 | AC243: =SUM(AC233:AC242) -> 70
X244: =+X243/$AC$243 -> 0.1 | Y244: =+Y243/$AC$243 -> 0.1142857143 | Z244: =+Z243/$AC$243 -> 0.02857142857 | AA244: =+AA243/$AC$243 -> 0.04285714286 | AB244: =+AB243/$AC$243 -> 0.7142857143

Sheet zonal
C2: TABLERO DE CONTROL 2018 INSTITUTO COLOMBIANO DE BIENESTAR FAMILIAR ICBF SEGUIMIENTO TABLERO DE CONTROL - ANÁLISIS GENERAL
C3: =+"Regional "&VLOOKUP(Menu!C37,Referencias!$R$2:$T$34,3,FALSE)&" - "&Menu!G49 -> Regional Bogotá - CZ Ciudad Bolivar
C6: Mes analisis | E6: =+Menu!C7 -> Febrero | S6: Volver al menú
D7: Ene
S8: Revisar tablero de control del centro zonal
D12: Comportamiento centros zonales
I13: =+"Comportamiento mes a mes - "&Menu!G49 -> Comportamiento mes a mes - CZ Ciudad Bolivar
D14: =Menu!C37 -> Bogotá | V14: =+"Seguimiento mes a mes centros zonales - "&regional!C3 -> Seguimiento mes a mes centros zonales - Regional Bogotá
V15: 2 | W15: 3 | X15: 4 | Y15: 5 | Z15: 6 | AA15: 7 | AB15: 8 | AC15: 9 | AD15: 10 | AE15: 11 | AF15: 12 | AG15: 13
D16: # | E16: Centro zonal | G16: % | V16: Ene | W16: Feb | X16: Mar | Y16: Abr | Z16: May | AA16: Jun | AB16: Jul | AC16: Agt | AD16: Sep | AE16: Oct | AF16: Nov | AG16: Dic
D17: =+regional!L41 -> 1 | E17: =+regional!M41 -> CZ Puente Aranda | G17: =+regional!O41 -> 1 | U17: =+regional!M41 -> CZ Puente Aranda | V17: =IFERROR(VLOOKUP("tc."&$AH17,'td1'!$AC$2690:$AO$2898,V$15,FALSE),"") -> 1 | W17: =IFERROR(VLOOKUP("tc."&$AH17,'td1'!$AC$2690:$AO$2898,W$15,FALSE),"") -> 1 | X17: =IFERROR(VLOOKUP("tc."&$AH17,'td1'!$AC$2690:$AO$2898,X$15,FALSE),"") ->  | Y17: =IFERROR(VLOOKUP("tc."&$AH17,'td1'!$AC$2690:$AO$2898,Y$15,FALSE),"") ->  | Z17: =IFERROR(VLOOKUP("tc."&$AH17,'td1'!$AC$2690:$AO$2898,Z$15,FALSE),"") ->  | AA17: =IFERROR(VLOOKUP("tc."&$AH17,'td1'!$AC$2690:$AO$2898,AA$15,FALSE),"") ->  | AB17: =IFERROR(VLOOKUP("tc."&$AH17,'td1'!$AC$2690:$AO$2898,AB$15,FALSE),"") ->  | AC17: =IFERROR(VLOOKUP("tc."&$AH17,'td1'!$AC$2690:$AO$2898,AC$15,FALSE),"") ->  | AD17: =IFERROR(VLOOKUP("tc."&$AH17,'td1'!$AC$2690:$AO$2898,AD$15,FALSE),"") ->  | AE17: =IFERROR(VLOOKUP("tc."&$AH17,'td1'!$AC$2690:$AO$2898,AE$15,FALSE),"") ->  | AF17: =IFERROR(VLOOKUP("tc."&$AH17,'td1'!$AC$2690:$AO$2898,AF$15,FALSE),"") ->  | AG17: =IFERROR(VLOOKUP("tc."&$AH17,'td1'!$AC$2690:$AO$2898,AG$15,FALSE),"") ->  | AH17: =+regional!P41 -> 1107
D18: =+regional!L42 -> 2 | E18: =+regional!M42 -> CZ Tunjuelito | G18: =+regional!O42 -> 0.971048132 | U18: =+regional!M42 -> CZ Tunjuelito | V18: =IFERROR(VLOOKUP("tc."&$AH18,'td1'!$AC$2690:$AO$2898,V$15,FALSE),"") -> 1 | W18: =IFERROR(VLOOKUP("tc."&$AH18,'td1'!$AC$2690:$AO$2898,W$15,FALSE),"") -> 0.971048132 | X18: =IFERROR(VLOOKUP("tc."&$AH18,'td1'!$AC$2690:$AO$2898,X$15,FALSE),"") ->  | Y18: =IFERROR(VLOOKUP("tc."&$AH18,'td1'!$AC$2690:$AO$2898,Y$15,FALSE),"") ->  | Z18: =IFERROR(VLOOKUP("tc."&$AH18,'td1'!$AC$2690:$AO$2898,Z$15,FALSE),"") ->  | AA18: =IFERROR(VLOOKUP("tc."&$AH18,'td1'!$AC$2690:$AO$2898,AA$15,FALSE),"") ->  | AB18: =IFERROR(VLOOKUP("tc."&$AH18,'td1'!$AC$2690:$AO$2898,AB$15,FALSE),"") ->  | AC18: =IFERROR(VLOOKUP("tc."&$AH18,'td1'!$AC$2690:$AO$2898,AC$15,FALSE),"") ->  | AD18: =IFERROR(VLOOKUP("tc."&$AH18,'td1'!$AC$2690:$AO$2898,AD$15,FALSE),"") ->  | AE18: =IFERROR(VLOOKUP("tc."&$AH18,'td1'!$AC$2690:$AO$2898,AE$15,FALSE),"") ->  | AF18: =IFERROR(VLOOKUP("tc."&$AH18,'td1'!$AC$2690:$AO$2898,AF$15,FALSE),"") ->  | AG18: =IFERROR(VLOOKUP("tc."&$AH18,'td1'!$AC$2690:$AO$2898,AG$15,FALSE),"") ->  | AH18: =+regional!P42 -> 1102
D19: =+regional!L43 -> 3 | E19: =+regional!M43 -> CZ Martires | G19: =+regional!O43 -> 0.9677972985 | U19: =+regional!M43 -> CZ Martires | V19: =IFERROR(VLOOKUP("tc."&$AH19,'td1'!$AC$2690:$AO$2898,V$15,FALSE),"") -> 1 | W19: =IFERROR(VLOOKUP("tc."&$AH19,'td1'!$AC$2690:$AO$2898,W$15,FALSE),"") -> 0.9677972985 | X19: =IFERROR(VLOOKUP("tc."&$AH19,'td1'!$AC$2690:$AO$2898,X$15,FALSE),"") ->  | Y19: =IFERROR(VLOOKUP("tc."&$AH19,'td1'!$AC$2690:$AO$2898,Y$15,FALSE),"") ->  | Z19: =IFERROR(VLOOKUP("tc."&$AH19,'td1'!$AC$2690:$AO$2898,Z$15,FALSE),"") ->  | AA19: =IFERROR(VLOOKUP("tc."&$AH19,'td1'!$AC$2690:$AO$2898,AA$15,FALSE),"") ->  | AB19: =IFERROR(VLOOKUP("tc."&$AH19,'td1'!$AC$2690:$AO$2898,AB$15,FALSE),"") ->  | AC19: =IFERROR(VLOOKUP("tc."&$AH19,'td1'!$AC$2690:$AO$2898,AC$15,FALSE),"") ->  | AD19: =IFERROR(VLOOKUP("tc."&$AH19,'td1'!$AC$2690:$AO$2898,AD$15,FALSE),"") ->  | AE19: =IFERROR(VLOOKUP("tc."&$AH19,'td1'!$AC$2690:$AO$2898,AE$15,FALSE),"") ->  | AF19: =IFERROR(VLOOKUP("tc."&$AH19,'td1'!$AC$2690:$AO$2898,AF$15,FALSE),"") ->  | AG19: =IFERROR(VLOOKUP("tc."&$AH19,'td1'!$AC$2690:$AO$2898,AG$15,FALSE),"") ->  | AH19: =+regional!P43 -> 1116
D20: =+regional!L44 -> 4 | E20: =+regional!M44 -> CZ Fontibon | G20: =+regional!O44 -> 0.9661118733 | U20: =+regional!M44 -> CZ Fontibon | V20: =IFERROR(VLOOKUP("tc."&$AH20,'td1'!$AC$2690:$AO$2898,V$15,FALSE),"") -> 1 | W20: =IFERROR(VLOOKUP("tc."&$AH20,'td1'!$AC$2690:$AO$2898,W$15,FALSE),"") -> 0.9661118733 | X20: =IFERROR(VLOOKUP("tc."&$AH20,'td1'!$AC$2690:$AO$2898,X$15,FALSE),"") ->  | Y20: =IFERROR(VLOOKUP("tc."&$AH20,'td1'!$AC$2690:$AO$2898,Y$15,FALSE),"") ->  | Z20: =IFERROR(VLOOKUP("tc."&$AH20,'td1'!$AC$2690:$AO$2898,Z$15,FALSE),"") ->  | AA20: =IFERROR(VLOOKUP("tc."&$AH20,'td1'!$AC$2690:$AO$2898,AA$15,FALSE),"") ->  | AB20: =IFERROR(VLOOKUP("tc."&$AH20,'td1'!$AC$2690:$AO$2898,AB$15,FALSE),"") ->  | AC20: =IFERROR(VLOOKUP("tc."&$AH20,'td1'!$AC$2690:$AO$2898,AC$15,FALSE),"") ->  | AD20: =IFERROR(VLOOKUP("tc."&$AH20,'td1'!$AC$2690:$AO$2898,AD$15,FALSE),"") ->  | AE20: =IFERROR(VLOOKUP("tc."&$AH20,'td1'!$AC$2690:$AO$2898,AE$15,FALSE),"") ->  | AF20: =IFERROR(VLOOKUP("tc."&$AH20,'td1'!$AC$2690:$AO$2898,AF$15,FALSE),"") ->  | AG20: =IFERROR(VLOOKUP("tc."&$AH20,'td1'!$AC$2690:$AO$2898,AG$15,FALSE),"") ->  | AH20: =+regional!P44 -> 1111
D21: =+regional!L45 -> 5 | E21: =+regional!M45 -> CZ Rafael Uribe | G21: =+regional!O45 -> 0.965662713 | U21: =+regional!M45 -> CZ Rafael Uribe | V21: =IFERROR(VLOOKUP("tc."&$AH21,'td1'!$AC$2690:$AO$2898,V$15,FALSE),"") -> 0.9884562842 | W21: =IFERROR(VLOOKUP("tc."&$AH21,'td1'!$AC$2690:$AO$2898,W$15,FALSE),"") -> 0.965662713 | X21: =IFERROR(VLOOKUP("tc."&$AH21,'td1'!$AC$2690:$AO$2898,X$15,FALSE),"") ->  | Y21: =IFERROR(VLOOKUP("tc."&$AH21,'td1'!$AC$2690:$AO$2898,Y$15,FALSE),"") ->  | Z21: =IFERROR(VLOOKUP("tc."&$AH21,'td1'!$AC$2690:$AO$2898,Z$15,FALSE),"") ->  | AA21: =IFERROR(VLOOKUP("tc."&$AH21,'td1'!$AC$2690:$AO$2898,AA$15,FALSE),"") ->  | AB21: =IFERROR(VLOOKUP("tc."&$AH21,'td1'!$AC$2690:$AO$2898,AB$15,FALSE),"") ->  | AC21: =IFERROR(VLOOKUP("tc."&$AH21,'td1'!$AC$2690:$AO$2898,AC$15,FALSE),"") ->  | AD21: =IFERROR(VLOOKUP("tc."&$AH21,'td1'!$AC$2690:$AO$2898,AD$15,FALSE),"") ->  | AE21: =IFERROR(VLOOKUP("tc."&$AH21,'td1'!$AC$2690:$AO$2898,AE$15,FALSE),"") ->  | AF21: =IFERROR(VLOOKUP("tc."&$AH21,'td1'!$AC$2690:$AO$2898,AF$15,FALSE),"") ->  | AG21: =IFERROR(VLOOKUP("tc."&$AH21,'td1'!$AC$2690:$AO$2898,AG$15,FALSE),"") ->  | AH21: =+regional!P45 -> 1109
D22: =+regional!L46 -> 6 | E22: =+regional!M46 -> CZ Kennedy | G22: =+regional!O46 -> 0.9612956314 | U22: =+regional!M46 -> CZ Kennedy | V22: =IFERROR(VLOOKUP("tc."&$AH22,'td1'!$AC$2690:$AO$2898,V$15,FALSE),"") -> 0.6413962033 | W22: =IFERROR(VLOOKUP("tc."&$AH22,'td1'!$AC$2690:$AO$2898,W$15,FALSE),"") -> 0.9612956314 | X22: =IFERROR(VLOOKUP("tc."&$AH22,'td1'!$AC$2690:$AO$2898,X$15,FALSE),"") ->  | Y22: =IFERROR(VLOOKUP("tc."&$AH22,'td1'!$AC$2690:$AO$2898,Y$15,FALSE),"") ->  | Z22: =IFERROR(VLOOKUP("tc."&$AH22,'td1'!$AC$2690:$AO$2898,Z$15,FALSE),"") ->  | AA22: =IFERROR(VLOOKUP("tc."&$AH22,'td1'!$AC$2690:$AO$2898,AA$15,FALSE),"") ->  | AB22: =IFERROR(VLOOKUP("tc."&$AH22,'td1'!$AC$2690:$AO$2898,AB$15,FALSE),"") ->  | AC22: =IFERROR(VLOOKUP("tc."&$AH22,'td1'!$AC$2690:$AO$2898,AC$15,FALSE),"") ->  | AD22: =IFERROR(VLOOKUP("tc."&$AH22,'td1'!$AC$2690:$AO$2898,AD$15,FALSE),"") ->  | AE22: =IFERROR(VLOOKUP("tc."&$AH22,'td1'!$AC$2690:$AO$2898,AE$15,FALSE),"") ->  | AF22: =IFERROR(VLOOKUP("tc."&$AH22,'td1'!$AC$2690:$AO$2898,AF$15,FALSE),"") ->  | AG22: =IFERROR(VLOOKUP("tc."&$AH22,'td1'!$AC$2690:$AO$2898,AG$15,FALSE),"") ->  | AH22: =+regional!P46 -> 1105
D23: =+regional!L47 -> 7 | E23: =+regional!M47 -> CZ Creer | G23: =+regional!O47 -> 0.9577968923 | U23: =+regional!M47 -> CZ Creer | V23: =IFERROR(VLOOKUP("tc."&$AH23,'td1'!$AC$2690:$AO$2898,V$15,FALSE),"") -> 0.9275566442 | W23: =IFERROR(VLOOKUP("tc."&$AH23,'td1'!$AC$2690:$AO$2898,W$15,FALSE),"") -> 0.9577968923 | X23: =IFERROR(VLOOKUP("tc."&$AH23,'td1'!$AC$2690:$AO$2898,X$15,FALSE),"") ->  | Y23: =IFERROR(VLOOKUP("tc."&$AH23,'td1'!$AC$2690:$AO$2898,Y$15,FALSE),"") ->  | Z23: =IFERROR(VLOOKUP("tc."&$AH23,'td1'!$AC$2690:$AO$2898,Z$15,FALSE),"") ->  | AA23: =IFERROR(VLOOKUP("tc."&$AH23,'td1'!$AC$2690:$AO$2898,AA$15,FALSE),"") ->  | AB23: =IFERROR(VLOOKUP("tc."&$AH23,'td1'!$AC$2690:$AO$2898,AB$15,FALSE),"") ->  | AC23: =IFERROR(VLOOKUP("tc."&$AH23,'td1'!$AC$2690:$AO$2898,AC$15,FALSE),"") ->  | AD23: =IFERROR(VLOOKUP("tc."&$AH23,'td1'!$AC$2690:$AO$2898,AD$15,FALSE),"") ->  | AE23: =IFERROR(VLOOKUP("tc."&$AH23,'td1'!$AC$2690:$AO$2898,AE$15,FALSE),"") ->  | AF23: =IFERROR(VLOOKUP("tc."&$AH23,'td1'!$AC$2690:$AO$2898,AF$15,FALSE),"") ->  | AG23: =IFERROR(VLOOKUP("tc."&$AH23,'td1'!$AC$2690:$AO$2898,AG$15,FALSE),"") ->  | AH23: =+regional!P47 -> 1130
D24: =+regional!L48 -> 8 | E24: =+regional!M48 -> CZ Engativa | G24: =+regional!O48 -> 0.956217268 | U24: =+regional!M48 -> CZ Engativa | V24: =IFERROR(VLOOKUP("tc."&$AH24,'td1'!$AC$2690:$AO$2898,V$15,FALSE),"") -> 0.9275566442 | W24: =IFERROR(VLOOKUP("tc."&$AH24,'td1'!$AC$2690:$AO$2898,W$15,FALSE),"") -> 0.956217268 | X24: =IFERROR(VLOOKUP("tc."&$AH24,'td1'!$AC$2690:$AO$2898,X$15,FALSE),"") ->  | Y24: =IFERROR(VLOOKUP("tc."&$AH24,'td1'!$AC$2690:$AO$2898,Y$15,FALSE),"") ->  | Z24: =IFERROR(VLOOKUP("tc."&$AH24,'td1'!$AC$2690:$AO$2898,Z$15,FALSE),"") ->  | AA24: =IFERROR(VLOOKUP("tc."&$AH24,'td1'!$AC$2690:$AO$2898,AA$15,FALSE),"") ->  | AB24: =IFERROR(VLOOKUP("tc."&$AH24,'td1'!$AC$2690:$AO$2898,AB$15,FALSE),"") ->  | AC24: =IFERROR(VLOOKUP("tc."&$AH24,'td1'!$AC$2690:$AO$2898,AC$15,FALSE),"") ->  | AD24: =IFERROR(VLOOKUP("tc."&$AH24,'td1'!$AC$2690:$AO$2898,AD$15,FALSE),"") ->  | AE24: =IFERROR(VLOOKUP("tc."&$AH24,'td1'!$AC$2690:$AO$2898,AE$15,FALSE),"") ->  | AF24: =IFERROR(VLOOKUP("tc."&$AH24,'td1'!$AC$2690:$AO$2898,AF$15,FALSE),"") ->  | AG24: =IFERROR(VLOOKUP("tc."&$AH24,'td1'!$AC$2690:$AO$2898,AG$15,FALSE),"") ->  | AH24: =+regional!P48 -> 1113
D25: =+regional!L49 -> 9 | E25: =+regional!M49 -> CZ Revivir | G25: =+regional!O49 -> 0.9249722531 | U25: =+regional!M49 -> CZ Revivir | V25: =IFERROR(VLOOKUP("tc."&$AH25,'td1'!$AC$2690:$AO$2898,V$15,FALSE),"") -> 0.9482547459 | W25: =IFERROR(VLOOKUP("tc."&$AH25,'td1'!$AC$2690:$AO$2898,W$15,FALSE),"") -> 0.9249722531 | X25: =IFERROR(VLOOKUP("tc."&$AH25,'td1'!$AC$2690:$AO$2898,X$15,FALSE),"") ->  | Y25: =IFERROR(VLOOKUP("tc."&$AH25,'td1'!$AC$2690:$AO$2898,Y$15,FALSE),"") ->  | Z25: =IFERROR(VLOOKUP("tc."&$AH25,'td1'!$AC$2690:$AO$2898,Z$15,FALSE),"") ->  | AA25: =IFERROR(VLOOKUP("tc."&$AH25,'td1'!$AC$2690:$AO$2898,AA$15,FALSE),"") ->  | AB25: =IFERROR(VLOOKUP("tc."&$AH25,'td1'!$AC$2690:$AO$2898,AB$15,FALSE),"") ->  | AC25: =IFERROR(VLOOKUP("tc."&$AH25,'td1'!$AC$2690:$AO$2898,AC$15,FALSE),"") ->  | AD25: =IFERROR(VLOOKUP("tc."&$AH25,'td1'!$AC$2690:$AO$2898,AD$15,FALSE),"") ->  | AE25: =IFERROR(VLOOKUP("tc."&$AH25,'td1'!$AC$2690:$AO$2898,AE$15,FALSE),"") ->  | AF25: =IFERROR(VLOOKUP("tc."&$AH25,'td1'!$AC$2690:$AO$2898,AF$15,FALSE),"") ->  | AG25: =IFERROR(VLOOKUP("tc."&$AH25,'td1'!$AC$2690:$AO$2898,AG$15,FALSE),"") ->  | AH25: =+regional!P49 -> 1106
D26: =+regional!L50 -> 10 | E26: =+regional!M50 -> CZ Barrios Unidos | G26: =+regional!O50 -> 0.8808989287 | U26: =+regional!M50 -> CZ Barrios Unidos | V26: =IFERROR(VLOOKUP("tc."&$AH26,'td1'!$AC$2690:$AO$2898,V$15,FALSE),"") -> 1 | W26: =IFERROR(VLOOKUP("tc."&$AH26,'td1'!$AC$2690:$AO$2898,W$15,FALSE),"") -> 0.8808989287 | X26: =IFERROR(VLOOKUP("tc."&$AH26,'td1'!$AC$2690:$AO$2898,X$15,FALSE),"") ->  | Y26: =IFERROR(VLOOKUP("tc."&$AH26,'td1'!$AC$2690:$AO$2898,Y$15,FALSE),"") ->  | Z26: =IFERROR(VLOOKUP("tc."&$AH26,'td1'!$AC$2690:$AO$2898,Z$15,FALSE),"") ->  | AA26: =IFERROR(VLOOKUP("tc."&$AH26,'td1'!$AC$2690:$AO$2898,AA$15,FALSE),"") ->  | AB26: =IFERROR(VLOOKUP("tc."&$AH26,'td1'!$AC$2690:$AO$2898,AB$15,FALSE),"") ->  | AC26: =IFERROR(VLOOKUP("tc."&$AH26,'td1'!$AC$2690:$AO$2898,AC$15,FALSE),"") ->  | AD26: =IFERROR(VLOOKUP("tc."&$AH26,'td1'!$AC$2690:$AO$2898,AD$15,FALSE),"") ->  | AE26: =IFERROR(VLOOKUP("tc."&$AH26,'td1'!$AC$2690:$AO$2898,AE$15,FALSE),"") ->  | AF26: =IFERROR(VLOOKUP("tc."&$AH26,'td1'!$AC$2690:$AO$2898,AF$15,FALSE),"") ->  | AG26: =IFERROR(VLOOKUP("tc."&$AH26,'td1'!$AC$2690:$AO$2898,AG$15,FALSE),"") ->  | AH26: =+regional!P50 -> 1112
D27: =+regional!L51 -> 11 | E27: =+regional!M51 -> CZ Bosa | G27: =+regional!O51 -> 0.8660104742 | U27: =+regional!M51 -> CZ Bosa | V27: =IFERROR(VLOOKUP("tc."&$AH27,'td1'!$AC$2690:$AO$2898,V$15,FALSE),"") -> 0.8861604409 | W27: =IFERROR(VLOOKUP("tc."&$AH27,'td1'!$AC$2690:$AO$2898,W$15,FALSE),"") -> 0.8660104742 | X27: =IFERROR(VLOOKUP("tc."&$AH27,'td1'!$AC$2690:$AO$2898,X$15,FALSE),"") ->  | Y27: =IFERROR(VLOOKUP("tc."&$AH27,'td1'!$AC$2690:$AO$2898,Y$15,FALSE),"") ->  | Z27: =IFERROR(VLOOKUP("tc."&$AH27,'td1'!$AC$2690:$AO$2898,Z$15,FALSE),"") ->  | AA27: =IFERROR(VLOOKUP("tc."&$AH27,'td1'!$AC$2690:$AO$2898,AA$15,FALSE),"") ->  | AB27: =IFERROR(VLOOKUP("tc."&$AH27,'td1'!$AC$2690:$AO$2898,AB$15,FALSE),"") ->  | AC27: =IFERROR(VLOOKUP("tc."&$AH27,'td1'!$AC$2690:$AO$2898,AC$15,FALSE),"") ->  | AD27: =IFERROR(VLOOKUP("tc."&$AH27,'td1'!$AC$2690:$AO$2898,AD$15,FALSE),"") ->  | AE27: =IFERROR(VLOOKUP("tc."&$AH27,'td1'!$AC$2690:$AO$2898,AE$15,FALSE),"") ->  | AF27: =IFERROR(VLOOKUP("tc."&$AH27,'td1'!$AC$2690:$AO$2898,AF$15,FALSE),"") ->  | AG27: =IFERROR(VLOOKUP("tc."&$AH27,'td1'!$AC$2690:$AO$2898,AG$15,FALSE),"") ->  | AH27: =+regional!P51 -> 1108
D28: =+regional!L52 -> 12 | E28: =+regional!M52 -> CZ Usme | G28: =+regional!O52 -> 0.8616546978 | U28: =+regional!M52 -> CZ Usme | V28: =IFERROR(VLOOKUP("tc."&$AH28,'td1'!$AC$2690:$AO$2898,V$15,FALSE),"") -> 1 | W28: =IFERROR(VLOOKUP("tc."&$AH28,'td1'!$AC$2690:$AO$2898,W$15,FALSE),"") -> 0.8616546978 | X28: =IFERROR(VLOOKUP("tc."&$AH28,'td1'!$AC$2690:$AO$2898,X$15,FALSE),"") ->  | Y28: =IFERROR(VLOOKUP("tc."&$AH28,'td1'!$AC$2690:$AO$2898,Y$15,FALSE),"") ->  | Z28: =IFERROR(VLOOKUP("tc."&$AH28,'td1'!$AC$2690:$AO$2898,Z$15,FALSE),"") ->  | AA28: =IFERROR(VLOOKUP("tc."&$AH28,'td1'!$AC$2690:$AO$2898,AA$15,FALSE),"") ->  | AB28: =IFERROR(VLOOKUP("tc."&$AH28,'td1'!$AC$2690:$AO$2898,AB$15,FALSE),"") ->  | AC28: =IFERROR(VLOOKUP("tc."&$AH28,'td1'!$AC$2690:$AO$2898,AC$15,FALSE),"") ->  | AD28: =IFERROR(VLOOKUP("tc."&$AH28,'td1'!$AC$2690:$AO$2898,AD$15,FALSE),"") ->  | AE28: =IFERROR(VLOOKUP("tc."&$AH28,'td1'!$AC$2690:$AO$2898,AE$15,FALSE),"") ->  | AF28: =IFERROR(VLOOKUP("tc."&$AH28,'td1'!$AC$2690:$AO$2898,AF$15,FALSE),"") ->  | AG28: =IFERROR(VLOOKUP("tc."&$AH28,'td1'!$AC$2690:$AO$2898,AG$15,FALSE),"") ->  | AH28: =+regional!P52 -> 1103
D29: =+regional!L53 -> 13 | E29: =+regional!M53 -> CZ Usaquen | G29: =+regional!O53 -> 0.7999296197 | U29: =+regional!M53 -> CZ Usaquen | V29: =IFERROR(VLOOKUP("tc."&$AH29,'td1'!$AC$2690:$AO$2898,V$15,FALSE),"") -> 1 | W29: =IFERROR(VLOOKUP("tc."&$AH29,'td1'!$AC$2690:$AO$2898,W$15,FALSE),"") -> 0.7999296197 | X29: =IFERROR(VLOOKUP("tc."&$AH29,'td1'!$AC$2690:$AO$2898,X$15,FALSE),"") ->  | Y29: =IFERROR(VLOOKUP("tc."&$AH29,'td1'!$AC$2690:$AO$2898,Y$15,FALSE),"") ->  | Z29: =IFERROR(VLOOKUP("tc."&$AH29,'td1'!$AC$2690:$AO$2898,Z$15,FALSE),"") ->  | AA29: =IFERROR(VLOOKUP("tc."&$AH29,'td1'!$AC$2690:$AO$2898,AA$15,FALSE),"") ->  | AB29: =IFERROR(VLOOKUP("tc."&$AH29,'td1'!$AC$2690:$AO$2898,AB$15,FALSE),"") ->  | AC29: =IFERROR(VLOOKUP("tc."&$AH29,'td1'!$AC$2690:$AO$2898,AC$15,FALSE),"") ->  | AD29: =IFERROR(VLOOKUP("tc."&$AH29,'td1'!$AC$2690:$AO$2898,AD$15,FALSE),"") ->  | AE29: =IFERROR(VLOOKUP("tc."&$AH29,'td1'!$AC$2690:$AO$2898,AE$15,FALSE),"") ->  | AF29: =IFERROR(VLOOKUP("tc."&$AH29,'td1'!$AC$2690:$AO$2898,AF$15,FALSE),"") ->  | AG29: =IFERROR(VLOOKUP("tc."&$AH29,'td1'!$AC$2690:$AO$2898,AG$15,FALSE),"") ->  | AH29: =+regional!P53 -> 1115
D30: =+regional!L54 -> 14 | E30: =+regional!M54 -> CZ Santa Fe | G30: =+regional!O54 -> 0.7869239976 | U30: =+regional!M54 -> CZ Santa Fe | V30: =IFERROR(VLOOKUP("tc."&$AH30,'td1'!$AC$2690:$AO$2898,V$15,FALSE),"") -> 0.6 | W30: =IFERROR(VLOOKUP("tc."&$AH30,'td1'!$AC$2690:$AO$2898,W$15,FALSE),"") -> 0.7869239976 | X30: =IFERROR(VLOOKUP("tc."&$AH30,'td1'!$AC$2690:$AO$2898,X$15,FALSE),"") ->  | Y30: =IFERROR(VLOOKUP("tc."&$AH30,'td1'!$AC$2690:$AO$2898,Y$15,FALSE),"") ->  | Z30: =IFERROR(VLOOKUP("tc."&$AH30,'td1'!$AC$2690:$AO$2898,Z$15,FALSE),"") ->  | AA30: =IFERROR(VLOOKUP("tc."&$AH30,'td1'!$AC$2690:$AO$2898,AA$15,FALSE),"") ->  | AB30: =IFERROR(VLOOKUP("tc."&$AH30,'td1'!$AC$2690:$AO$2898,AB$15,FALSE),"") ->  | AC30: =IFERROR(VLOOKUP("tc."&$AH30,'td1'!$AC$2690:$AO$2898,AC$15,FALSE),"") ->  | AD30: =IFERROR(VLOOKUP("tc."&$AH30,'td1'!$AC$2690:$AO$2898,AD$15,FALSE),"") ->  | AE30: =IFERROR(VLOOKUP("tc."&$AH30,'td1'!$AC$2690:$AO$2898,AE$15,FALSE),"") ->  | AF30: =IFERROR(VLOOKUP("tc."&$AH30,'td1'!$AC$2690:$AO$2898,AF$15,FALSE),"") ->  | AG30: =IFERROR(VLOOKUP("tc."&$AH30,'td1'!$AC$2690:$AO$2898,AG$15,FALSE),"") ->  | AH30: =+regional!P54 -> 1110
D31: =+regional!L55 -> 15 | E31: =+regional!M55 -> CZ Suba | G31: =+regional!O55 -> 0.7652963216 | U31: =+regional!M55 -> CZ Suba | V31: =IFERROR(VLOOKUP("tc."&$AH31,'td1'!$AC$2690:$AO$2898,V$15,FALSE),"") -> 0.3724433558 | W31: =IFERROR(VLOOKUP("tc."&$AH31,'td1'!$AC$2690:$AO$2898,W$15,FALSE),"") -> 0.7652963216 | X31: =IFERROR(VLOOKUP("tc."&$AH31,'td1'!$AC$2690:$AO$2898,X$15,FALSE),"") ->  | Y31: =IFERROR(VLOOKUP("tc."&$AH31,'td1'!$AC$2690:$AO$2898,Y$15,FALSE),"") ->  | Z31: =IFERROR(VLOOKUP("tc."&$AH31,'td1'!$AC$2690:$AO$2898,Z$15,FALSE),"") ->  | AA31: =IFERROR(VLOOKUP("tc."&$AH31,'td1'!$AC$2690:$AO$2898,AA$15,FALSE),"") ->  | AB31: =IFERROR(VLOOKUP("tc."&$AH31,'td1'!$AC$2690:$AO$2898,AB$15,FALSE),"") ->  | AC31: =IFERROR(VLOOKUP("tc."&$AH31,'td1'!$AC$2690:$AO$2898,AC$15,FALSE),"") ->  | AD31: =IFERROR(VLOOKUP("tc."&$AH31,'td1'!$AC$2690:$AO$2898,AD$15,FALSE),"") ->  | AE31: =IFERROR(VLOOKUP("tc."&$AH31,'td1'!$AC$2690:$AO$2898,AE$15,FALSE),"") ->  | AF31: =IFERROR(VLOOKUP("tc."&$AH31,'td1'!$AC$2690:$AO$2898,AF$15,FALSE),"") ->  | AG31: =IFERROR(VLOOKUP("tc."&$AH31,'td1'!$AC$2690:$AO$2898,AG$15,FALSE),"") ->  | AH31: =+regional!P55 -> 1114
D32: =+regional!L56 -> 16 | E32: =+regional!M56 -> CZ San Cristobal Sur | G32: =+regional!O56 -> 0.7600612722 | U32: =+regional!M56 -> CZ San Cristobal Sur | V32: =IFERROR(VLOOKUP("tc."&$AH32,'td1'!$AC$2690:$AO$2898,V$15,FALSE),"") -> 0.8551132884 | W32: =IFERROR(VLOOKUP("tc."&$AH32,'td1'!$AC$2690:$AO$2898,W$15,FALSE),"") -> 0.7600612722 | X32: =IFERROR(VLOOKUP("tc."&$AH32,'td1'!$AC$2690:$AO$2898,X$15,FALSE),"") ->  | Y32: =IFERROR(VLOOKUP("tc."&$AH32,'td1'!$AC$2690:$AO$2898,Y$15,FALSE),"") ->  | Z32: =IFERROR(VLOOKUP("tc."&$AH32,'td1'!$AC$2690:$AO$2898,Z$15,FALSE),"") ->  | AA32: =IFERROR(VLOOKUP("tc."&$AH32,'td1'!$AC$2690:$AO$2898,AA$15,FALSE),"") ->  | AB32: =IFERROR(VLOOKUP("tc."&$AH32,'td1'!$AC$2690:$AO$2898,AB$15,FALSE),"") ->  | AC32: =IFERROR(VLOOKUP("tc."&$AH32,'td1'!$AC$2690:$AO$2898,AC$15,FALSE),"") ->  | AD32: =IFERROR(VLOOKUP("tc."&$AH32,'td1'!$AC$2690:$AO$2898,AD$15,FALSE),"") ->  | AE32: =IFERROR(VLOOKUP("tc."&$AH32,'td1'!$AC$2690:$AO$2898,AE$15,FALSE),"") ->  | AF32: =IFERROR(VLOOKUP("tc."&$AH32,'td1'!$AC$2690:$AO$2898,AF$15,FALSE),"") ->  | AG32: =IFERROR(VLOOKUP("tc."&$AH32,'td1'!$AC$2690:$AO$2898,AG$15,FALSE),"") ->  | AH32: =+regional!P56 -> 1104
D33: =+regional!L57 -> 17 | E33: =+regional!M57 -> CZ Ciudad Bolivar | G33: =+regional!O57 -> 0.5743753752 | U33: =+regional!M57 -> CZ Ciudad Bolivar | V33: =IFERROR(VLOOKUP("tc."&$AH33,'td1'!$AC$2690:$AO$2898,V$15,FALSE),"") -> 0.3 | W33: =IFERROR(VLOOKUP("tc."&$AH33,'td1'!$AC$2690:$AO$2898,W$15,FALSE),"") -> 0.5743753752 | X33: =IFERROR(VLOOKUP("tc."&$AH33,'td1'!$AC$2690:$AO$2898,X$15,FALSE),"") ->  | Y33: =IFERROR(VLOOKUP("tc."&$AH33,'td1'!$AC$2690:$AO$2898,Y$15,FALSE),"") ->  | Z33: =IFERROR(VLOOKUP("tc."&$AH33,'td1'!$AC$2690:$AO$2898,Z$15,FALSE),"") ->  | AA33: =IFERROR(VLOOKUP("tc."&$AH33,'td1'!$AC$2690:$AO$2898,AA$15,FALSE),"") ->  | AB33: =IFERROR(VLOOKUP("tc."&$AH33,'td1'!$AC$2690:$AO$2898,AB$15,FALSE),"") ->  | AC33: =IFERROR(VLOOKUP("tc."&$AH33,'td1'!$AC$2690:$AO$2898,AC$15,FALSE),"") ->  | AD33: =IFERROR(VLOOKUP("tc."&$AH33,'td1'!$AC$2690:$AO$2898,AD$15,FALSE),"") ->  | AE33: =IFERROR(VLOOKUP("tc."&$AH33,'td1'!$AC$2690:$AO$2898,AE$15,FALSE),"") ->  | AF33: =IFERROR(VLOOKUP("tc."&$AH33,'td1'!$AC$2690:$AO$2898,AF$15,FALSE),"") ->  | AG33: =IFERROR(VLOOKUP("tc."&$AH33,'td1'!$AC$2690:$AO$2898,AG$15,FALSE),"") ->  | AH33: =+regional!P57 -> 1101
D34: =+regional!L58 ->  | E34: =+regional!M58 ->  | G34: =+regional!O58 ->  | U34: =+regional!M58 ->  | V34: =IFERROR(VLOOKUP("tc."&$AH34,'td1'!$AC$2690:$AO$2898,V$15,FALSE),"") ->  | W34: =IFERROR(VLOOKUP("tc."&$AH34,'td1'!$AC$2690:$AO$2898,W$15,FALSE),"") ->  | X34: =IFERROR(VLOOKUP("tc."&$AH34,'td1'!$AC$2690:$AO$2898,X$15,FALSE),"") ->  | Y34: =IFERROR(VLOOKUP("tc."&$AH34,'td1'!$AC$2690:$AO$2898,Y$15,FALSE),"") ->  | Z34: =IFERROR(VLOOKUP("tc."&$AH34,'td1'!$AC$2690:$AO$2898,Z$15,FALSE),"") ->  | AA34: =IFERROR(VLOOKUP("tc."&$AH34,'td1'!$AC$2690:$AO$2898,AA$15,FALSE),"") ->  | AB34: =IFERROR(VLOOKUP("tc."&$AH34,'td1'!$AC$2690:$AO$2898,AB$15,FALSE),"") ->  | AC34: =IFERROR(VLOOKUP("tc."&$AH34,'td1'!$AC$2690:$AO$2898,AC$15,FALSE),"") ->  | AD34: =IFERROR(VLOOKUP("tc."&$AH34,'td1'!$AC$2690:$AO$2898,AD$15,FALSE),"") ->  | AE34: =IFERROR(VLOOKUP("tc."&$AH34,'td1'!$AC$2690:$AO$2898,AE$15,FALSE),"") ->  | AF34: =IFERROR(VLOOKUP("tc."&$AH34,'td1'!$AC$2690:$AO$2898,AF$15,FALSE),"") ->  | AG34: =IFERROR(VLOOKUP("tc."&$AH34,'td1'!$AC$2690:$AO$2898,AG$15,FALSE),"") ->  | AH34: =+regional!P58 -> 
E36: Comportamiento objetivos SIGE -
W38: Comparación Centros zonales 2017 vs 2018
Z40: =Menu!C7 -> Febrero
Z41: 2017 | AA41: 2018 | AB41: ∆
V42: 1 | Y42: =+U17 -> CZ Puente Aranda | Z42: =+'información graf'!ET65 -> 1 | AA42: =+'información graf'!EU65 -> 1 | AB42: =+IFERROR((AA42/Z42)-1,0) -> 0 | AC42: =+IF(AB42>0,"mejoró",IF(AB42=0,"","desmejoró")) -> 
V43: =+IF(Y43="","",V42+1) -> 2 | Y43: CZ Tunjuelito | Z43: =+'información graf'!ET66 -> 1 | AA43: =+'información graf'!EU66 -> 0.971048132 | AB43: -0.028951868 | AC43: desmejoró
V44: 3 | Y44: CZ Martires | Z44: =+'información graf'!ET67 -> 0.6122748092 | AA44: =+'información graf'!EU67 -> 0.9677972985 | AB44: 0.5806583645 | AC44: mejoró
V45: 4 | Y45: CZ Fontibon | Z45: =+'información graf'!ET68 -> 0.9961832061 | AA45: =+'información graf'!EU68 -> 0.9661118733 | AB45: -0.03018654861 | AC45: desmejoró
V46: 5 | Y46: CZ Rafael Uribe | Z46: =+'información graf'!ET69 -> 0.7556946565 | AA46: =+'información graf'!EU69 -> 0.965662713 | AB46: 0.2778477453 | AC46: mejoró
V47: 6 | Y47: CZ Kennedy | Z47: =+'información graf'!ET70 -> 0.7480610687 | AA47: =+'información graf'!EU70 -> 0.9612956314 | AB47: 0.2850496725 | AC47: mejoró
V48: 7 | Y48: CZ Creer | Z48: =+'información graf'!ET71 -> 0.7251459979 | AA48: =+'información graf'!EU71 -> 0.9577968923 | AB48: 0.3208331771 | AC48: mejoró
V49: 8 | Y49: CZ Engativa | Z49: =+'información graf'!ET72 -> 0.8231111111 | AA49: =+'información graf'!EU72 -> 0.956217268 | AB49: 0.1617110437 | AC49: mejoró
V50: 9 | Y50: CZ Revivir | Z50: =+'información graf'!ET73 -> 0.5594984541 | AA50: =+'información graf'!EU73 -> 0.9249722531 | AB50: 0.6532168163 | AC50: mejoró
A51: - | V51: 10 | Y51: CZ Barrios Unidos | Z51: =+'información graf'!ET74 -> 0.7556946565 | AA51: =+'información graf'!EU74 -> 0.8808989287 | AB51: 0.1656810342 | AC51: mejoró
V52: 11 | Y52: CZ Bosa | Z52: =+'información graf'!ET75 -> 0.7518778626 | AA52: =+'información graf'!EU75 -> 0.8660104742 | AB52: 0.1517967443 | AC52: mejoró
V53: 12 | Y53: CZ Usme | Z53: =+'información graf'!ET76 -> 0.7518778626 | AA53: =+'información graf'!EU76 -> 0.8616546978 | AB53: 0.1460035475 | AC53: mejoró
V54: 13 | Y54: CZ Usaquen | Z54: =+'información graf'!ET77 -> 0.9732824427 | AA54: =+'información graf'!EU77 -> 0.7999296197 | AB54: -0.178111528 | AC54: desmejoró
V55: 14 | Y55: CZ Santa Fe | Z55: =+'información graf'!ET78 -> 0.9923664122 | AA55: =+'información graf'!EU78 -> 0.7869239976 | AB55: -0.2070227409 | AC55: desmejoró
V56: 15 | Y56: CZ Suba | Z56: =+'información graf'!ET79 -> 0.7207938931 | AA56: =+'información graf'!EU79 -> 0.7652963216 | AB56: 0.06174085115 | AC56: mejoró
V57: 16 | Y57: CZ San Cristobal Sur | Z57: =+'información graf'!ET80 -> 0.996031746 | AA57: =+'información graf'!EU80 -> 0.7600612722 | AB57: -0.2369105952 | AC57: desmejoró
V58: 17 | Y58: CZ Ciudad Bolivar | Z58: =+'información graf'!ET81 -> 0.8527633588 | AA58: =+'información graf'!EU81 -> 0.5743753752 | AB58: -0.3264539696 | AC58: desmejoró
Z59: =+'información graf'!ET82 ->  | AA59: =+'información graf'!EU82 ->  | AB59: 0

Sheet Plan Indicativo Institucional
B2: TABLERO DE CONTROL 2018 INSTITUTO COLOMBIANO DE BIENESTAR FAMILIAR PLAN INDICATIVO INSTITUCIONAL 2015-2018 "Estamos Cambiando El Mundo"
B5: Mes analisis | D5: Finalizó medición | E5: LB cuatrienio | P5: Volver al menú | Z5: =VLOOKUP(Z$8,Referencias!$A$132:$G$143,7,FALSE) -> 7 | AA5: =VLOOKUP(AA$8,Referencias!$A$132:$G$143,7,FALSE) -> 12 | AB5: =VLOOKUP(AB$8,Referencias!$A$132:$G$143,7,FALSE) -> 17 | AC5: =VLOOKUP(AC$8,Referencias!$A$132:$G$143,7,FALSE) -> 22 | AD5: =VLOOKUP(AD$8,Referencias!$A$132:$G$143,7,FALSE) -> 27 | AE5: =VLOOKUP(AE$8,Referencias!$A$132:$G$143,7,FALSE) -> 32 | AF5: =VLOOKUP(AF$8,Referencias!$A$132:$G$143,7,FALSE) -> 37 | AG5: =VLOOKUP(AG$8,Referencias!$A$132:$G$143,7,FALSE) -> 42 | AH5: =VLOOKUP(AH$8,Referencias!$A$132:$G$143,7,FALSE) -> 47 | AI5: =VLOOKUP(AI$8,Referencias!$A$132:$G$143,7,FALSE) -> 52 | AJ5: =VLOOKUP(AJ$8,Referencias!$A$132:$G$143,7,FALSE) -> 57 | AK5: =VLOOKUP(AK$8,Referencias!$A$132:$G$143,7,FALSE) -> 62
B6: =+Menu!C7 -> Febrero | E6: LB año | P6: =+VLOOKUP(B6,Referencias!$A$132:$H$143,6,FALSE) -> 11 | Z6: =VLOOKUP(Z$8,Referencias!$A$132:$G$143,6,FALSE) -> 6 | AA6: =VLOOKUP(AA$8,Referencias!$A$132:$G$143,6,FALSE) -> 11 | AB6: =VLOOKUP(AB$8,Referencias!$A$132:$G$143,6,FALSE) -> 16 | AC6: =VLOOKUP(AC$8,Referencias!$A$132:$G$143,6,FALSE) -> 21 | AD6: =VLOOKUP(AD$8,Referencias!$A$132:$G$143,6,FALSE) -> 26 | AE6: =VLOOKUP(AE$8,Referencias!$A$132:$G$143,6,FALSE) -> 31 | AF6: =VLOOKUP(AF$8,Referencias!$A$132:$G$143,6,FALSE) -> 36 | AG6: =VLOOKUP(AG$8,Referencias!$A$132:$G$143,6,FALSE) -> 41 | AH6: =VLOOKUP(AH$8,Referencias!$A$132:$G$143,6,FALSE) -> 46 | AI6: =VLOOKUP(AI$8,Referencias!$A$132:$G$143,6,FALSE) -> 51 | AJ6: =VLOOKUP(AJ$8,Referencias!$A$132:$G$143,6,FALSE) -> 56 | AK6: =VLOOKUP(AK$8,Referencias!$A$132:$G$143,6,FALSE) -> 61
F7: Cuatrienio | I7: 2015 | L7: 2016 | O7: 2017 | R7: 2018 | Z7: Resultados 2018
B8: Cod | C8: Indicador tablero vigencia 2017 | D8: Meta gob | E8: Linea base | F8: Meta | G8: Avance | H8: % cuatrienio | I8: Meta | J8: Avance | K8: 20.15 | L8: Meta | M8: Avance | N8: 20.16 | O8: Meta | P8: Avance | Q8: 20.17 | R8: Meta | S8: Avance | T8: 20.18 | Z8: Enero | AA8: Febrero | AB8: Marzo | AC8: Abril | AD8: Mayo | AE8: Junio | AF8: Julio | AG8: Agosto | AH8: Septiembre | AI8: Octubre | AJ8: Noviembre | AK8: Diciembre
B9: PA-01 | C9: =+VLOOKUP(B9,'tablero nal'!$W$9:$X$171,2,FALSE) -> Número de niños y niñas atendidos en el marco de la Atención Integral. | D9: X | E9: 1054857 | F9: =+VLOOKUP(B9,'tablero nal'!$W$9:$BB$171,4,FALSE) -> 1350000 | G9: =IF(S9="NA",P9,S9) -> 1208216 | H9: =+IFERROR(G9/F9,"-") -> 0.8949748148 | I9: 1100000 | J9: 1123376 | K9: 1.021250909 | L9: 1150000 | M9: 1236100 | N9: 1.074869565 | O9: 1150000 | P9: 1208216 | Q9: =IFERROR(P9/O9,"NA") -> 1.050622609 | R9: =+VLOOKUP(B9,'tablero nal'!$W$9:$AB$171,6,FALSE) -> 1350000 | S9: =+IFERROR(LOOKUP(10000000,$Z9:$AK9),"NA") -> NA | T9: =IFERROR(S9/R9,"NA") -> NA | Y9: =+VLOOKUP(B9,'tablero nal'!$W$9:$AL$171,16,FALSE) -> Número | Z9: =IF(IF($Y9="Número",VLOOKUP($B9&"_1",Base!$E$4:$BO$7841,Z$6,FALSE),VLOOKUP($B9&"_1",Base!$E$4:$BO$7841,Z$5,FALSE))="","",IF($Y9="Número",VLOOKUP($B9&"_1",Base!$E$4:$BO$7841,Z$6,FALSE),VLOOKUP($B9&"_1",Base!$E$4:$BO$7841,Z$5,FALSE))) -> NA | AA9: =IF(IF($Y9="Número",VLOOKUP($B9&"_1",Base!$E$4:$BO$7841,AA$6,FALSE),VLOOKUP($B9&"_1",Base!$E$4:$BO$7841,AA$5,FALSE))="","",IF($Y9="Número",VLOOKUP($B9&"_1",Base!$E$4:$BO$7841,AA$6,FALSE),VLOOKUP($B9&"_1",Base!$E$4:$BO$7841,AA$5,FALSE))) -> NA | AB9: =IF(IF($Y9="Número",VLOOKUP($B9&"_1",Base!$E$4:$BO$7841,AB$6,FALSE),VLOOKUP($B9&"_1",Base!$E$4:$BO$7841,AB$5,FALSE))="","",IF($Y9="Número",VLOOKUP($B9&"_1",Base!$E$4:$BO$7841,AB$6,FALSE),VLOOKUP($B9&"_1",Base!$E$4:$BO$7841,AB$5,FALSE))) ->  | AC9: =IF(IF($Y9="Número",VLOOKUP($B9&"_1",Base!$E$4:$BO$7841,AC$6,FALSE),VLOOKUP($B9&"_1",Base!$E$4:$BO$7841,AC$5,FALSE))="","",IF($Y9="Número",VLOOKUP($B9&"_1",Base!$E$4:$BO$7841,AC$6,FALSE),VLOOKUP($B9&"_1",Base!$E$4:$BO$7841,AC$5,FALSE))) ->  | AD9: =IF(IF($Y9="Número",VLOOKUP($B9&"_1",Base!$E$4:$BO$7841,AD$6,FALSE),VLOOKUP($B9&"_1",Base!$E$4:$BO$7841,AD$5,FALSE))="","",IF($Y9="Número",VLOOKUP($B9&"_1",Base!$E$4:$BO$7841,AD$6,FALSE),VLOOKUP($B9&"_1",Base!$E$4:$BO$7841,AD$5,FALSE))) ->  | AE9: =IF(IF($Y9="Número",VLOOKUP($B9&"_1",Base!$E$4:$BO$7841,AE$6,FALSE),VLOOKUP($B9&"_1",Base!$E$4:$BO$7841,AE$5,FALSE))="","",IF($Y9="Número",VLOOKUP($B9&"_1",Base!$E$4:$BO$7841,AE$6,FALSE),VLOOKUP($B9&"_1",Base!$E$4:$BO$7841,AE$5,FALSE))) ->  | AF9: =IF(IF($Y9="Número",VLOOKUP($B9&"_1",Base!$E$4:$BO$7841,AF$6,FALSE),VLOOKUP($B9&"_1",Base!$E$4:$BO$7841,AF$5,FALSE))="","",IF($Y9="Número",VLOOKUP($B9&"_1",Base!$E$4:$BO$7841,AF$6,FALSE),VLOOKUP($B9&"_1",Base!$E$4:$BO$7841,AF$5,FALSE))) ->  | AG9: =IF(IF($Y9="Número",VLOOKUP($B9&"_1",Base!$E$4:$BO$7841,AG$6,FALSE),VLOOKUP($B9&"_1",Base!$E$4:$BO$7841,AG$5,FALSE))="","",IF($Y9="Número",VLOOKUP($B9&"_1",Base!$E$4:$BO$7841,AG$6,FALSE),VLOOKUP($B9&"_1",Base!$E$4:$BO$7841,AG$5,FALSE))) ->  | AH9: =IF(IF($Y9="Número",VLOOKUP($B9&"_1",Base!$E$4:$BO$7841,AH$6,FALSE),VLOOKUP($B9&"_1",Base!$E$4:$BO$7841,AH$5,FALSE))="","",IF($Y9="Número",VLOOKUP($B9&"_1",Base!$E$4:$BO$7841,AH$6,FALSE),VLOOKUP($B9&"_1",Base!$E$4:$BO$7841,AH$5,FALSE))) ->  | AI9: =IF(IF($Y9="Número",VLOOKUP($B9&"_1",Base!$E$4:$BO$7841,AI$6,FALSE),VLOOKUP($B9&"_1",Base!$E$4:$BO$7841,AI$5,FALSE))="","",IF($Y9="Número",VLOOKUP($B9&"_1",Base!$E$4:$BO$7841,AI$6,FALSE),VLOOKUP($B9&"_1",Base!$E$4:$BO$7841,AI$5,FALSE))) ->  | AJ9: =IF(IF($Y9="Número",VLOOKUP($B9&"_1",Base!$E$4:$BO$7841,AJ$6,FALSE),VLOOKUP($B9&"_1",Base!$E$4:$BO$7841,AJ$5,FALSE))="","",IF($Y9="Número",VLOOKUP($B9&"_1",Base!$E$4:$BO$7841,AJ$6,FALSE),VLOOKUP($B9&"_1",Base!$E$4:$BO$7841,AJ$5,FALSE))) ->  | AK9: =IF(IF($Y9="Número",VLOOKUP($B9&"_1",Base!$E$4:$BO$7841,AK$6,FALSE),VLOOKUP($B9&"_1",Base!$E$4:$BO$7841,AK$5,FALSE))="","",IF($Y9="Número",VLOOKUP($B9&"_1",Base!$E$4:$BO$7841,AK$6,FALSE),VLOOKUP($B9&"_1",Base!$E$4:$BO$7841,AK$5,FALSE))) -> 
B10: PA-02 | C10: Porcentaje de niños y niñas atendidos en Hogares Comunitarios que transitaron de modalidad tradicional a Modalidad de Atención Integral | E10: - | F10: 0.13 | G10: =+P10 -> 0.137 | H10: =+IFERROR(G10/F10,"-") -> 1.053846154 | I10: 0.09 | J10: 0.0994 | K10: 1.104444444 | L10: 0.13 | M10: 0.1 | N10: 0.7692307692 | O10: 0.13 | P10: 0.137 | Q10: =IFERROR(P10/O10,"NA") -> 1.053846154 | R10: NA | S10: NA | T10: NA | Y10: =+VLOOKUP(B10,'tablero nal'!$W$9:$AL$171,16,FALSE) ->  | Z10: =IF(IF($Y10="Número",VLOOKUP($B10&"_1",Base!$E$4:$BO$7841,Z$6,FALSE),VLOOKUP($B10&"_1",Base!$E$4:$BO$7841,Z$5,FALSE))="","",IF($Y10="Número",VLOOKUP($B10&"_1",Base!$E$4:$BO$7841,Z$6,FALSE),VLOOKUP($B10&"_1",Base!$E$4:$BO$7841,Z$5,FALSE))) ->  | AA10: =IF(IF($Y10="Número",VLOOKUP($B10&"_1",Base!$E$4:$BO$7841,AA$6,FALSE),VLOOKUP($B10&"_1",Base!$E$4:$BO$7841,AA$5,FALSE))="","",IF($Y10="Número",VLOOKUP($B10&"_1",Base!$E$4:$BO$7841,AA$6,FALSE),VLOOKUP($B10&"_1",Base!$E$4:$BO$7841,AA$5,FALSE))) ->  | AB10: =IF(IF($Y10="Número",VLOOKUP($B10&"_1",Base!$E$4:$BO$7841,AB$6,FALSE),VLOOKUP($B10&"_1",Base!$E$4:$BO$7841,AB$5,FALSE))="","",IF($Y10="Número",VLOOKUP($B10&"_1",Base!$E$4:$BO$7841,AB$6,FALSE),VLOOKUP($B10&"_1",Base!$E$4:$BO$7841,AB$5,FALSE))) ->  | AC10: =IF(IF($Y10="Número",VLOOKUP($B10&"_1",Base!$E$4:$BO$7841,AC$6,FALSE),VLOOKUP($B10&"_1",Base!$E$4:$BO$7841,AC$5,FALSE))="","",IF($Y10="Número",VLOOKUP($B10&"_1",Base!$E$4:$BO$7841,AC$6,FALSE),VLOOKUP($B10&"_1",Base!$E$4:$BO$7841,AC$5,FALSE))) ->  | AD10: =IF(IF($Y10="Número",VLOOKUP($B10&"_1",Base!$E$4:$BO$7841,AD$6,FALSE),VLOOKUP($B10&"_1",Base!$E$4:$BO$7841,AD$5,FALSE))="","",IF($Y10="Número",VLOOKUP($B10&"_1",Base!$E$4:$BO$7841,AD$6,FALSE),VLOOKUP($B10&"_1",Base!$E$4:$BO$7841,AD$5,FALSE))) ->  | AE10: =IF(IF($Y10="Número",VLOOKUP($B10&"_1",Base!$E$4:$BO$7841,AE$6,FALSE),VLOOKUP($B10&"_1",Base!$E$4:$BO$7841,AE$5,FALSE))="","",IF($Y10="Número",VLOOKUP($B10&"_1",Base!$E$4:$BO$7841,AE$6,FALSE),VLOOKUP($B10&"_1",Base!$E$4:$BO$7841,AE$5,FALSE))) ->  | AF10: =IF(IF($Y10="Número",VLOOKUP($B10&"_1",Base!$E$4:$BO$7841,AF$6,FALSE),VLOOKUP($B10&"_1",Base!$E$4:$BO$7841,AF$5,FALSE))="","",IF($Y10="Número",VLOOKUP($B10&"_1",Base!$E$4:$BO$7841,AF$6,FALSE),VLOOKUP($B10&"_1",Base!$E$4:$BO$7841,AF$5,FALSE))) ->  | AG10: =IF(IF($Y10="Número",VLOOKUP($B10&"_1",Base!$E$4:$BO$7841,AG$6,FALSE),VLOOKUP($B10&"_1",Base!$E$4:$BO$7841,AG$5,FALSE))="","",IF($Y10="Número",VLOOKUP($B10&"_1",Base!$E$4:$BO$7841,AG$6,FALSE),VLOOKUP($B10&"_1",Base!$E$4:$BO$7841,AG$5,FALSE))) ->  | AH10: =IF(IF($Y10="Número",VLOOKUP($B10&"_1",Base!$E$4:$BO$7841,AH$6,FALSE),VLOOKUP($B10&"_1",Base!$E$4:$BO$7841,AH$5,FALSE))="","",IF($Y10="Número",VLOOKUP($B10&"_1",Base!$E$4:$BO$7841,AH$6,FALSE),VLOOKUP($B10&"_1",Base!$E$4:$BO$7841,AH$5,FALSE))) ->  | AI10: =IF(IF($Y10="Número",VLOOKUP($B10&"_1",Base!$E$4:$BO$7841,AI$6,FALSE),VLOOKUP($B10&"_1",Base!$E$4:$BO$7841,AI$5,FALSE))="","",IF($Y10="Número",VLOOKUP($B10&"_1",Base!$E$4:$BO$7841,AI$6,FALSE),VLOOKUP($B10&"_1",Base!$E$4:$BO$7841,AI$5,FALSE))) ->  | AJ10: =IF(IF($Y10="Número",VLOOKUP($B10&"_1",Base!$E$4:$BO$7841,AJ$6,FALSE),VLOOKUP($B10&"_1",Base!$E$4:$BO$7841,AJ$5,FALSE))="","",IF($Y10="Número",VLOOKUP($B10&"_1",Base!$E$4:$BO$7841,AJ$6,FALSE),VLOOKUP($B10&"_1",Base!$E$4:$BO$7841,AJ$5,FALSE))) ->  | AK10: =IF(IF($Y10="Número",VLOOKUP($B10&"_1",Base!$E$4:$BO$7841,AK$6,FALSE),VLOOKUP($B10&"_1",Base!$E$4:$BO$7841,AK$5,FALSE))="","",IF($Y10="Número",VLOOKUP($B10&"_1",Base!$E$4:$BO$7841,AK$6,FALSE),VLOOKUP($B10&"_1",Base!$E$4:$BO$7841,AK$5,FALSE))) -> 
B11: PA-03 | C11: =+VLOOKUP(B11,'tablero nal'!$W$9:$X$171,2,FALSE) -> Porcentaje de niños y niñas de las modalidades de Primera Infancia, reportados al Ministerio de Educación para la matricula al sistema educativo. | E11: - | F11: =+VLOOKUP(B11,'tablero nal'!$W$9:$BB$171,4,FALSE) -> 1 | G11: =IF(S11="NA",P11,S11) -> 1 | H11: 1 | I11: 0.8 | J11: 0.9998 | K11: 1.24975 | L11: 0.8 | M11: 1 | N11: 1.25 | O11: 1 | P11: 1 | Q11: 1 | R11: =+VLOOKUP(B11,'tablero nal'!$W$9:$AB$171,6,FALSE) -> 1 | S11: =+IFERROR(LOOKUP(10000000,$Z11:$AK11),"NA") -> NA | T11: =IFERROR(S11/R11,"NA") -> NA | Y11: =+VLOOKUP(B11,'tablero nal'!$W$9:$AL$171,16,FALSE) -> Porcentaje | Z11: =IF(IF($Y11="Número",VLOOKUP($B11&"_1",Base!$E$4:$BO$7841,Z$6,FALSE),VLOOKUP($B11&"_1",Base!$E$4:$BO$7841,Z$5,FALSE))="","",IF($Y11="Número",VLOOKUP($B11&"_1",Base!$E$4:$BO$7841,Z$6,FALSE),VLOOKUP($B11&"_1",Base!$E$4:$BO$7841,Z$5,FALSE))) -> NA | AA11: =IF(IF($Y11="Número",VLOOKUP($B11&"_1",Base!$E$4:$BO$7841,AA$6,FALSE),VLOOKUP($B11&"_1",Base!$E$4:$BO$7841,AA$5,FALSE))="","",IF($Y11="Número",VLOOKUP($B11&"_1",Base!$E$4:$BO$7841,AA$6,FALSE),VLOOKUP($B11&"_1",Base!$E$4:$BO$7841,AA$5,FALSE))) -> NA | AB11: =IF(IF($Y11="Número",VLOOKUP($B11&"_1",Base!$E$4:$BO$7841,AB$6,FALSE),VLOOKUP($B11&"_1",Base!$E$4:$BO$7841,AB$5,FALSE))="","",IF($Y11="Número",VLOOKUP($B11&"_1",Base!$E$4:$BO$7841,AB$6,FALSE),VLOOKUP($B11&"_1",Base!$E$4:$BO$7841,AB$5,FALSE))) ->  | AC11: =IF(IF($Y11="Número",VLOOKUP($B11&"_1",Base!$E$4:$BO$7841,AC$6,FALSE),VLOOKUP($B11&"_1",Base!$E$4:$BO$7841,AC$5,FALSE))="","",IF($Y11="Número",VLOOKUP($B11&"_1",Base!$E$4:$BO$7841,AC$6,FALSE),VLOOKUP($B11&"_1",Base!$E$4:$BO$7841,AC$5,FALSE))) ->  | AD11: =IF(IF($Y11="Número",VLOOKUP($B11&"_1",Base!$E$4:$BO$7841,AD$6,FALSE),VLOOKUP($B11&"_1",Base!$E$4:$BO$7841,AD$5,FALSE))="","",IF($Y11="Número",VLOOKUP($B11&"_1",Base!$E$4:$BO$7841,AD$6,FALSE),VLOOKUP($B11&"_1",Base!$E$4:$BO$7841,AD$5,FALSE))) ->  | AE11: =IF(IF($Y11="Número",VLOOKUP($B11&"_1",Base!$E$4:$BO$7841,AE$6,FALSE),VLOOKUP($B11&"_1",Base!$E$4:$BO$7841,AE$5,FALSE))="","",IF($Y11="Número",VLOOKUP($B11&"_1",Base!$E$4:$BO$7841,AE$6,FALSE),VLOOKUP($B11&"_1",Base!$E$4:$BO$7841,AE$5,FALSE))) ->  | AF11: =IF(IF($Y11="Número",VLOOKUP($B11&"_1",Base!$E$4:$BO$7841,AF$6,FALSE),VLOOKUP($B11&"_1",Base!$E$4:$BO$7841,AF$5,FALSE))="","",IF($Y11="Número",VLOOKUP($B11&"_1",Base!$E$4:$BO$7841,AF$6,FALSE),VLOOKUP($B11&"_1",Base!$E$4:$BO$7841,AF$5,FALSE))) ->  | AG11: =IF(IF($Y11="Número",VLOOKUP($B11&"_1",Base!$E$4:$BO$7841,AG$6,FALSE),VLOOKUP($B11&"_1",Base!$E$4:$BO$7841,AG$5,FALSE))="","",IF($Y11="Número",VLOOKUP($B11&"_1",Base!$E$4:$BO$7841,AG$6,FALSE),VLOOKUP($B11&"_1",Base!$E$4:$BO$7841,AG$5,FALSE))) ->  | AH11: =IF(IF($Y11="Número",VLOOKUP($B11&"_1",Base!$E$4:$BO$7841,AH$6,FALSE),VLOOKUP($B11&"_1",Base!$E$4:$BO$7841,AH$5,FALSE))="","",IF($Y11="Número",VLOOKUP($B11&"_1",Base!$E$4:$BO$7841,AH$6,FALSE),VLOOKUP($B11&"_1",Base!$E$4:$BO$7841,AH$5,FALSE))) ->  | AI11: =IF(IF($Y11="Número",VLOOKUP($B11&"_1",Base!$E$4:$BO$7841,AI$6,FALSE),VLOOKUP($B11&"_1",Base!$E$4:$BO$7841,AI$5,FALSE))="","",IF($Y11="Número",VLOOKUP($B11&"_1",Base!$E$4:$BO$7841,AI$6,FALSE),VLOOKUP($B11&"_1",Base!$E$4:$BO$7841,AI$5,FALSE))) ->  | AJ11: =IF(IF($Y11="Número",VLOOKUP($B11&"_1",Base!$E$4:$BO$7841,AJ$6,FALSE),VLOOKUP($B11&"_1",Base!$E$4:$BO$7841,AJ$5,FALSE))="","",IF($Y11="Número",VLOOKUP($B11&"_1",Base!$E$4:$BO$7841,AJ$6,FALSE),VLOOKUP($B11&"_1",Base!$E$4:$BO$7841,AJ$5,FALSE))) ->  | AK11: =IF(IF($Y11="Número",VLOOKUP($B11&"_1",Base!$E$4:$BO$7841,AK$6,FALSE),VLOOKUP($B11&"_1",Base!$E$4:$BO$7841,AK$5,FALSE))="","",IF($Y11="Número",VLOOKUP($B11&"_1",Base!$E$4:$BO$7841,AK$6,FALSE),VLOOKUP($B11&"_1",Base!$E$4:$BO$7841,AK$5,FALSE))) -> 
B12: PA-04 | C12: Porcentaje de Hogares Comunitarios que cumplen los estándares de la estrategia de Cero a Siempre | D12: X | E12: - | F12: 0.5 | G12: =+P12 -> 0.502 | H12: 1.004 | I12: 0.2 | J12: 0.2889 | K12: 1.4445 | L12: 0.3 | M12: 0.325 | N12: 1.083333333 | O12: 0.4 | P12: 0.502 | Q12: 1.255 | R12: NA | S12: NA | T12: NA | Y12: =+VLOOKUP(B12,'tablero nal'!$W$9:$AL$171,16,FALSE) ->  | Z12: =IF(IF($Y12="Número",VLOOKUP($B12&"_1",Base!$E$4:$BO$7841,Z$6,FALSE),VLOOKUP($B12&"_1",Base!$E$4:$BO$7841,Z$5,FALSE))="","",IF($Y12="Número",VLOOKUP($B12&"_1",Base!$E$4:$BO$7841,Z$6,FALSE),VLOOKUP($B12&"_1",Base!$E$4:$BO$7841,Z$5,FALSE))) ->  | AA12: =IF(IF($Y12="Número",VLOOKUP($B12&"_1",Base!$E$4:$BO$7841,AA$6,FALSE),VLOOKUP($B12&"_1",Base!$E$4:$BO$7841,AA$5,FALSE))="","",IF($Y12="Número",VLOOKUP($B12&"_1",Base!$E$4:$BO$7841,AA$6,FALSE),VLOOKUP($B12&"_1",Base!$E$4:$BO$7841,AA$5,FALSE))) ->  | AB12: =IF(IF($Y12="Número",VLOOKUP($B12&"_1",Base!$E$4:$BO$7841,AB$6,FALSE),VLOOKUP($B12&"_1",Base!$E$4:$BO$7841,AB$5,FALSE))="","",IF($Y12="Número",VLOOKUP($B12&"_1",Base!$E$4:$BO$7841,AB$6,FALSE),VLOOKUP($B12&"_1",Base!$E$4:$BO$7841,AB$5,FALSE))) ->  | AC12: =IF(IF($Y12="Número",VLOOKUP($B12&"_1",Base!$E$4:$BO$7841,AC$6,FALSE),VLOOKUP($B12&"_1",Base!$E$4:$BO$7841,AC$5,FALSE))="","",IF($Y12="Número",VLOOKUP($B12&"_1",Base!$E$4:$BO$7841,AC$6,FALSE),VLOOKUP($B12&"_1",Base!$E$4:$BO$7841,AC$5,FALSE))) ->  | AD12: =IF(IF($Y12="Número",VLOOKUP($B12&"_1",Base!$E$4:$BO$7841,AD$6,FALSE),VLOOKUP($B12&"_1",Base!$E$4:$BO$7841,AD$5,FALSE))="","",IF($Y12="Número",VLOOKUP($B12&"_1",Base!$E$4:$BO$7841,AD$6,FALSE),VLOOKUP($B12&"_1",Base!$E$4:$BO$7841,AD$5,FALSE))) ->  | AE12: =IF(IF($Y12="Número",VLOOKUP($B12&"_1",Base!$E$4:$BO$7841,AE$6,FALSE),VLOOKUP($B12&"_1",Base!$E$4:$BO$7841,AE$5,FALSE))="","",IF($Y12="Número",VLOOKUP($B12&"_1",Base!$E$4:$BO$7841,AE$6,FALSE),VLOOKUP($B12&"_1",Base!$E$4:$BO$7841,AE$5,FALSE))) ->  | AF12: =IF(IF($Y12="Número",VLOOKUP($B12&"_1",Base!$E$4:$BO$7841,AF$6,FALSE),VLOOKUP($B12&"_1",Base!$E$4:$BO$7841,AF$5,FALSE))="","",IF($Y12="Número",VLOOKUP($B12&"_1",Base!$E$4:$BO$7841,AF$6,FALSE),VLOOKUP($B12&"_1",Base!$E$4:$BO$7841,AF$5,FALSE))) ->  | AG12: =IF(IF($Y12="Número",VLOOKUP($B12&"_1",Base!$E$4:$BO$7841,AG$6,FALSE),VLOOKUP($B12&"_1",Base!$E$4:$BO$7841,AG$5,FALSE))="","",IF($Y12="Número",VLOOKUP($B12&"_1",Base!$E$4:$BO$7841,AG$6,FALSE),VLOOKUP($B12&"_1",Base!$E$4:$BO$7841,AG$5,FALSE))) ->  | AH12: =IF(IF($Y12="Número",VLOOKUP($B12&"_1",Base!$E$4:$BO$7841,AH$6,FALSE),VLOOKUP($B12&"_1",Base!$E$4:$BO$7841,AH$5,FALSE))="","",IF($Y12="Número",VLOOKUP($B12&"_1",Base!$E$4:$BO$7841,AH$6,FALSE),VLOOKUP($B12&"_1",Base!$E$4:$BO$7841,AH$5,FALSE))) ->  | AI12: =IF(IF($Y12="Número",VLOOKUP($B12&"_1",Base!$E$4:$BO$7841,AI$6,FALSE),VLOOKUP($B12&"_1",Base!$E$4:$BO$7841,AI$5,FALSE))="","",IF($Y12="Número",VLOOKUP($B12&"_1",Base!$E$4:$BO$7841,AI$6,FALSE),VLOOKUP($B12&"_1",Base!$E$4:$BO$7841,AI$5,FALSE))) ->  | AJ12: =IF(IF($Y12="Número",VLOOKUP($B12&"_1",Base!$E$4:$BO$7841,AJ$6,FALSE),VLOOKUP($B12&"_1",Base!$E$4:$BO$7841,AJ$5,FALSE))="","",IF($Y12="Número",VLOOKUP($B12&"_1",Base!$E$4:$BO$7841,AJ$6,FALSE),VLOOKUP($B12&"_1",Base!$E$4:$BO$7841,AJ$5,FALSE))) ->  | AK12: =IF(IF($Y12="Número",VLOOKUP($B12&"_1",Base!$E$4:$BO$7841,AK$6,FALSE),VLOOKUP($B12&"_1",Base!$E$4:$BO$7841,AK$5,FALSE))="","",IF($Y12="Número",VLOOKUP($B12&"_1",Base!$E$4:$BO$7841,AK$6,FALSE),VLOOKUP($B12&"_1",Base!$E$4:$BO$7841,AK$5,FALSE))) -> 
B13: PA-05 | C13: =+VLOOKUP(B13,'tablero nal'!$W$9:$X$171,2,FALSE) -> Número de agentes educativos en proceso de formación y/o cualificación en Atención Integral a la Primera Infancia. | D13: X | E13: 49672 | F13: =+VLOOKUP(B13,'tablero nal'!$W$9:$BB$171,4,FALSE) -> 60000 | G13: 45544 | H13: 0.7590666667 | I13: 20000 | J13: 20000 | K13: 1 | L13: 30000 | M13: 30271 | N13: 1.009033333 | O13: 45000 | P13: 45544 | Q13: 1.012088889 | R13: =+VLOOKUP(B13,'tablero nal'!$W$9:$AB$171,6,FALSE) -> 60000 | S13: NA | T13: NA | Y13: =+VLOOKUP(B13,'tablero nal'!$W$9:$AL$171,16,FALSE) -> Número | Z13: =IF(IF($Y13="Número",VLOOKUP($B13&"_1",Base!$E$4:$BO$7841,Z$6,FALSE),VLOOKUP($B13&"_1",Base!$E$4:$BO$7841,Z$5,FALSE))="","",IF($Y13="Número",VLOOKUP($B13&"_1",Base!$E$4:$BO$7841,Z$6,FALSE),VLOOKUP($B13&"_1",Base!$E$4:$BO$7841,Z$5,FALSE))) -> NA | AA13: =IF(IF($Y13="Número",VLOOKUP($B13&"_1",Base!$E$4:$BO$7841,AA$6,FALSE),VLOOKUP($B13&"_1",Base!$E$4:$BO$7841,AA$5,FALSE))="","",IF($Y13="Número",VLOOKUP($B13&"_1",Base!$E$4:$BO$7841,AA$6,FALSE),VLOOKUP($B13&"_1",Base!$E$4:$BO$7841,AA$5,FALSE))) -> NA | AB13: =IF(IF($Y13="Número",VLOOKUP($B13&"_1",Base!$E$4:$BO$7841,AB$6,FALSE),VLOOKUP($B13&"_1",Base!$E$4:$BO$7841,AB$5,FALSE))="","",IF($Y13="Número",VLOOKUP($B13&"_1",Base!$E$4:$BO$7841,AB$6,FALSE),VLOOKUP($B13&"_1",Base!$E$4:$BO$7841,AB$5,FALSE))) ->  | AC13: =IF(IF($Y13="Número",VLOOKUP($B13&"_1",Base!$E$4:$BO$7841,AC$6,FALSE),VLOOKUP($B13&"_1",Base!$E$4:$BO$7841,AC$5,FALSE))="","",IF($Y13="Número",VLOOKUP($B13&"_1",Base!$E$4:$BO$7841,AC$6,FALSE),VLOOKUP($B13&"_1",Base!$E$4:$BO$7841,AC$5,FALSE))) ->  | AD13: =IF(IF($Y13="Número",VLOOKUP($B13&"_1",Base!$E$4:$BO$7841,AD$6,FALSE),VLOOKUP($B13&"_1",Base!$E$4:$BO$7841,AD$5,FALSE))="","",IF($Y13="Número",VLOOKUP($B13&"_1",Base!$E$4:$BO$7841,AD$6,FALSE),VLOOKUP($B13&"_1",Base!$E$4:$BO$7841,AD$5,FALSE))) ->  | AE13: =IF(IF($Y13="Número",VLOOKUP($B13&"_1",Base!$E$4:$BO$7841,AE$6,FALSE),VLOOKUP($B13&"_1",Base!$E$4:$BO$7841,AE$5,FALSE))="","",IF($Y13="Número",VLOOKUP($B13&"_1",Base!$E$4:$BO$7841,AE$6,FALSE),VLOOKUP($B13&"_1",Base!$E$4:$BO$7841,AE$5,FALSE))) ->  | AF13: =IF(IF($Y13="Número",VLOOKUP($B13&"_1",Base!$E$4:$BO$7841,AF$6,FALSE),VLOOKUP($B13&"_1",Base!$E$4:$BO$7841,AF$5,FALSE))="","",IF($Y13="Número",VLOOKUP($B13&"_1",Base!$E$4:$BO$7841,AF$6,FALSE),VLOOKUP($B13&"_1",Base!$E$4:$BO$7841,AF$5,FALSE))) ->  | AG13: =IF(IF($Y13="Número",VLOOKUP($B13&"_1",Base!$E$4:$BO$7841,AG$6,FALSE),VLOOKUP($B13&"_1",Base!$E$4:$BO$7841,AG$5,FALSE))="","",IF($Y13="Número",VLOOKUP($B13&"_1",Base!$E$4:$BO$7841,AG$6,FALSE),VLOOKUP($B13&"_1",Base!$E$4:$BO$7841,AG$5,FALSE))) ->  | AH13: =IF(IF($Y13="Número",VLOOKUP($B13&"_1",Base!$E$4:$BO$7841,AH$6,FALSE),VLOOKUP($B13&"_1",Base!$E$4:$BO$7841,AH$5,FALSE))="","",IF($Y13="Número",VLOOKUP($B13&"_1",Base!$E$4:$BO$7841,AH$6,FALSE),VLOOKUP($B13&"_1",Base!$E$4:$BO$7841,AH$5,FALSE))) ->  | AI13: =IF(IF($Y13="Número",VLOOKUP($B13&"_1",Base!$E$4:$BO$7841,AI$6,FALSE),VLOOKUP($B13&"_1",Base!$E$4:$BO$7841,AI$5,FALSE))="","",IF($Y13="Número",VLOOKUP($B13&"_1",Base!$E$4:$BO$7841,AI$6,FALSE),VLOOKUP($B13&"_1",Base!$E$4:$BO$7841,AI$5,FALSE))) ->  | AJ13: =IF(IF($Y13="Número",VLOOKUP($B13&"_1",Base!$E$4:$BO$7841,AJ$6,FALSE),VLOOKUP($B13&"_1",Base!$E$4:$BO$7841,AJ$5,FALSE))="","",IF($Y13="Número",VLOOKUP($B13&"_1",Base!$E$4:$BO$7841,AJ$6,FALSE),VLOOKUP($B13&"_1",Base!$E$4:$BO$7841,AJ$5,FALSE))) ->  | AK13: =IF(IF($Y13="Número",VLOOKUP($B13&"_1",Base!$E$4:$BO$7841,AK$6,FALSE),VLOOKUP($B13&"_1",Base!$E$4:$BO$7841,AK$5,FALSE))="","",IF($Y13="Número",VLOOKUP($B13&"_1",Base!$E$4:$BO$7841,AK$6,FALSE),VLOOKUP($B13&"_1",Base!$E$4:$BO$7841,AK$5,FALSE))) -> 
B14: PA-06 | C14: =+VLOOKUP(B14,'tablero nal'!$W$9:$X$171,2,FALSE) -> Número de infraestructuras entregadas para operación de la modalidades de Atención Integral a la Primera Infancia | E14: - | F14: =+VLOOKUP(B14,'tablero nal'!$W$9:$BB$171,4,FALSE) -> 150 | G14: 123 | H14: 0.82 | I14: 50 | J14: 77 | K14: 1.54 | L14: 80 | M14: 80 | N14: 1 | O14: 120 | P14: 123 | Q14: 1.025 | R14: =+VLOOKUP(B14,'tablero nal'!$W$9:$AB$171,6,FALSE) -> 150 | S14: NA | T14: NA | Y14: =+VLOOKUP(B14,'tablero nal'!$W$9:$AL$171,16,FALSE) -> Número | Z14: =IF(IF($Y14="Número",VLOOKUP($B14&"_1",Base!$E$4:$BO$7841,Z$6,FALSE),VLOOKUP($B14&"_1",Base!$E$4:$BO$7841,Z$5,FALSE))="","",IF($Y14="Número",VLOOKUP($B14&"_1",Base!$E$4:$BO$7841,Z$6,FALSE),VLOOKUP($B14&"_1",Base!$E$4:$BO$7841,Z$5,FALSE))) -> NA | AA14: =IF(IF($Y14="Número",VLOOKUP($B14&"_1",Base!$E$4:$BO$7841,AA$6,FALSE),VLOOKUP($B14&"_1",Base!$E$4:$BO$7841,AA$5,FALSE))="","",IF($Y14="Número",VLOOKUP($B14&"_1",Base!$E$4:$BO$7841,AA$6,FALSE),VLOOKUP($B14&"_1",Base!$E$4:$BO$7841,AA$5,FALSE))) -> NA | AB14: =IF(IF($Y14="Número",VLOOKUP($B14&"_1",Base!$E$4:$BO$7841,AB$6,FALSE),VLOOKUP($B14&"_1",Base!$E$4:$BO$7841,AB$5,FALSE))="","",IF($Y14="Número",VLOOKUP($B14&"_1",Base!$E$4:$BO$7841,AB$6,FALSE),VLOOKUP($B14&"_1",Base!$E$4:$BO$7841,AB$5,FALSE))) ->  | AC14: =IF(IF($Y14="Número",VLOOKUP($B14&"_1",Base!$E$4:$BO$7841,AC$6,FALSE),VLOOKUP($B14&"_1",Base!$E$4:$BO$7841,AC$5,FALSE))="","",IF($Y14="Número",VLOOKUP($B14&"_1",Base!$E$4:$BO$7841,AC$6,FALSE),VLOOKUP($B14&"_1",Base!$E$4:$BO$7841,AC$5,FALSE))) ->  | AD14: =IF(IF($Y14="Número",VLOOKUP($B14&"_1",Base!$E$4:$BO$7841,AD$6,FALSE),VLOOKUP($B14&"_1",Base!$E$4:$BO$7841,AD$5,FALSE))="","",IF($Y14="Número",VLOOKUP($B14&"_1",Base!$E$4:$BO$7841,AD$6,FALSE),VLOOKUP($B14&"_1",Base!$E$4:$BO$7841,AD$5,FALSE))) ->  | AE14: =IF(IF($Y14="Número",VLOOKUP($B14&"_1",Base!$E$4:$BO$7841,AE$6,FALSE),VLOOKUP($B14&"_1",Base!$E$4:$BO$7841,AE$5,FALSE))="","",IF($Y14="Número",VLOOKUP($B14&"_1",Base!$E$4:$BO$7841,AE$6,FALSE),VLOOKUP($B14&"_1",Base!$E$4:$BO$7841,AE$5,FALSE))) ->  | AF14: =IF(IF($Y14="Número",VLOOKUP($B14&"_1",Base!$E$4:$BO$7841,AF$6,FALSE),VLOOKUP($B14&"_1",Base!$E$4:$BO$7841,AF$5,FALSE))="","",IF($Y14="Número",VLOOKUP($B14&"_1",Base!$E$4:$BO$7841,AF$6,FALSE),VLOOKUP($B14&"_1",Base!$E$4:$BO$7841,AF$5,FALSE))) ->  | AG14: =IF(IF($Y14="Número",VLOOKUP($B14&"_1",Base!$E$4:$BO$7841,AG$6,FALSE),VLOOKUP($B14&"_1",Base!$E$4:$BO$7841,AG$5,FALSE))="","",IF($Y14="Número",VLOOKUP($B14&"_1",Base!$E$4:$BO$7841,AG$6,FALSE),VLOOKUP($B14&"_1",Base!$E$4:$BO$7841,AG$5,FALSE))) ->  | AH14: =IF(IF($Y14="Número",VLOOKUP($B14&"_1",Base!$E$4:$BO$7841,AH$6,FALSE),VLOOKUP($B14&"_1",Base!$E$4:$BO$7841,AH$5,FALSE))="","",IF($Y14="Número",VLOOKUP($B14&"_1",Base!$E$4:$BO$7841,AH$6,FALSE),VLOOKUP($B14&"_1",Base!$E$4:$BO$7841,AH$5,FALSE))) ->  | AI14: =IF(IF($Y14="Número",VLOOKUP($B14&"_1",Base!$E$4:$BO$7841,AI$6,FALSE),VLOOKUP($B14&"_1",Base!$E$4:$BO$7841,AI$5,FALSE))="","",IF($Y14="Número",VLOOKUP($B14&"_1",Base!$E$4:$BO$7841,AI$6,FALSE),VLOOKUP($B14&"_1",Base!$E$4:$BO$7841,AI$5,FALSE))) ->  | AJ14: =IF(IF($Y14="Número",VLOOKUP($B14&"_1",Base!$E$4:$BO$7841,AJ$6,FALSE),VLOOKUP($B14&"_1",Base!$E$4:$BO$7841,AJ$5,FALSE))="","",IF($Y14="Número",VLOOKUP($B14&"_1",Base!$E$4:$BO$7841,AJ$6,FALSE),VLOOKUP($B14&"_1",Base!$E$4:$BO$7841,AJ$5,FALSE))) ->  | AK14: =IF(IF($Y14="Número",VLOOKUP($B14&"_1",Base!$E$4:$BO$7841,AK$6,FALSE),VLOOKUP($B14&"_1",Base!$E$4:$BO$7841,AK$5,FALSE))="","",IF($Y14="Número",VLOOKUP($B14&"_1",Base!$E$4:$BO$7841,AK$6,FALSE),VLOOKUP($B14&"_1",Base!$E$4:$BO$7841,AK$5,FALSE))) -> 
B15: PA-07 | C15: Número de Unidades de servicio con planes de implementación para salas de lectura. | D15: X | E15: 28 | F15: 150 | G15: =+P15 -> 150 | H15: 1 | I15: 70 | J15: 70 | K15: 1 | L15: 110 | M15: 148 | N15: 1.345454545 | O15: 150 | P15: 150 | Q15: 1 | R15: NA | S15: NA | T15: NA | Y15: =+VLOOKUP(B15,'tablero nal'!$W$9:$AL$171,16,FALSE) ->  | Z15: =IF(IF($Y15="Número",VLOOKUP($B15&"_1",Base!$E$4:$BO$7841,Z$6,FALSE),VLOOKUP($B15&"_1",Base!$E$4:$BO$7841,Z$5,FALSE))="","",IF($Y15="Número",VLOOKUP($B15&"_1",Base!$E$4:$BO$7841,Z$6,FALSE),VLOOKUP($B15&"_1",Base!$E$4:$BO$7841,Z$5,FALSE))) ->  | AA15: =IF(IF($Y15="Número",VLOOKUP($B15&"_1",Base!$E$4:$BO$7841,AA$6,FALSE),VLOOKUP($B15&"_1",Base!$E$4:$BO$7841,AA$5,FALSE))="","",IF($Y15="Número",VLOOKUP($B15&"_1",Base!$E$4:$BO$7841,AA$6,FALSE),VLOOKUP($B15&"_1",Base!$E$4:$BO$7841,AA$5,FALSE))) ->  | AB15: =IF(IF($Y15="Número",VLOOKUP($B15&"_1",Base!$E$4:$BO$7841,AB$6,FALSE),VLOOKUP($B15&"_1",Base!$E$4:$BO$7841,AB$5,FALSE))="","",IF($Y15="Número",VLOOKUP($B15&"_1",Base!$E$4:$BO$7841,AB$6,FALSE),VLOOKUP($B15&"_1",Base!$E$4:$BO$7841,AB$5,FALSE))) ->  | AC15: =IF(IF($Y15="Número",VLOOKUP($B15&"_1",Base!$E$4:$BO$7841,AC$6,FALSE),VLOOKUP($B15&"_1",Base!$E$4:$BO$7841,AC$5,FALSE))="","",IF($Y15="Número",VLOOKUP($B15&"_1",Base!$E$4:$BO$7841,AC$6,FALSE),VLOOKUP($B15&"_1",Base!$E$4:$BO$7841,AC$5,FALSE))) ->  | AD15: =IF(IF($Y15="Número",VLOOKUP($B15&"_1",Base!$E$4:$BO$7841,AD$6,FALSE),VLOOKUP($B15&"_1",Base!$E$4:$BO$7841,AD$5,FALSE))="","",IF($Y15="Número",VLOOKUP($B15&"_1",Base!$E$4:$BO$7841,AD$6,FALSE),VLOOKUP($B15&"_1",Base!$E$4:$BO$7841,AD$5,FALSE))) ->  | AE15: =IF(IF($Y15="Número",VLOOKUP($B15&"_1",Base!$E$4:$BO$7841,AE$6,FALSE),VLOOKUP($B15&"_1",Base!$E$4:$BO$7841,AE$5,FALSE))="","",IF($Y15="Número",VLOOKUP($B15&"_1",Base!$E$4:$BO$7841,AE$6,FALSE),VLOOKUP($B15&"_1",Base!$E$4:$BO$7841,AE$5,FALSE))) ->  | AF15: =IF(IF($Y15="Número",VLOOKUP($B15&"_1",Base!$E$4:$BO$7841,AF$6,FALSE),VLOOKUP($B15&"_1",Base!$E$4:$BO$7841,AF$5,FALSE))="","",IF($Y15="Número",VLOOKUP($B15&"_1",Base!$E$4:$BO$7841,AF$6,FALSE),VLOOKUP($B15&"_1",Base!$E$4:$BO$7841,AF$5,FALSE))) ->  | AG15: =IF(IF($Y15="Número",VLOOKUP($B15&"_1",Base!$E$4:$BO$7841,AG$6,FALSE),VLOOKUP($B15&"_1",Base!$E$4:$BO$7841,AG$5,FALSE))="","",IF($Y15="Número",VLOOKUP($B15&"_1",Base!$E$4:$BO$7841,AG$6,FALSE),VLOOKUP($B15&"_1",Base!$E$4:$BO$7841,AG$5,FALSE))) ->  | AH15: =IF(IF($Y15="Número",VLOOKUP($B15&"_1",Base!$E$4:$BO$7841,AH$6,FALSE),VLOOKUP($B15&"_1",Base!$E$4:$BO$7841,AH$5,FALSE))="","",IF($Y15="Número",VLOOKUP($B15&"_1",Base!$E$4:$BO$7841,AH$6,FALSE),VLOOKUP($B15&"_1",Base!$E$4:$BO$7841,AH$5,FALSE))) ->  | AI15: =IF(IF($Y15="Número",VLOOKUP($B15&"_1",Base!$E$4:$BO$7841,AI$6,FALSE),VLOOKUP($B15&"_1",Base!$E$4:$BO$7841,AI$5,FALSE))="","",IF($Y15="Número",VLOOKUP($B15&"_1",Base!$E$4:$BO$7841,AI$6,FALSE),VLOOKUP($B15&"_1",Base!$E$4:$BO$7841,AI$5,FALSE))) ->  | AJ15: =IF(IF($Y15="Número",VLOOKUP($B15&"_1",Base!$E$4:$BO$7841,AJ$6,FALSE),VLOOKUP($B15&"_1",Base!$E$4:$BO$7841,AJ$5,FALSE))="","",IF($Y15="Número",VLOOKUP($B15&"_1",Base!$E$4:$BO$7841,AJ$6,FALSE),VLOOKUP($B15&"_1",Base!$E$4:$BO$7841,AJ$5,FALSE))) ->  | AK15: =IF(IF($Y15="Número",VLOOKUP($B15&"_1",Base!$E$4:$BO$7841,AK$6,FALSE),VLOOKUP($B15&"_1",Base!$E$4:$BO$7841,AK$5,FALSE))="","",IF($Y15="Número",VLOOKUP($B15&"_1",Base!$E$4:$BO$7841,AK$6,FALSE),VLOOKUP($B15&"_1",Base!$E$4:$BO$7841,AK$5,FALSE))) -> 
B16: PA-08 | C16: =+VLOOKUP(B16,'tablero nal'!$W$9:$X$171,2,FALSE) -> Porcentaje de Entidades Administradoras de Servicio Integral con esquemas de fortalecimiento implementados que generen capacidades para gestionar procesos de calidad. | D16: X | E16: - | F16: 0.5 | G16: 0.664 | H16: 1.328 | I16: 0.5 | J16: 0.5015 | K16: 1.003 | L16: 0.9 | M16: 0.689 | N16: 0.7655555556 | O16: 0.5 | P16: 0.664 | Q16: 1.328 | R16: =+VLOOKUP(B16,'tablero nal'!$W$9:$AB$171,6,FALSE) -> 0.5 | S16: NA | T16: NA | Y16: =+VLOOKUP(B16,'tablero nal'!$W$9:$AL$171,16,FALSE) -> Porcentaje | Z16: =IF(IF($Y16="Número",VLOOKUP($B16&"_1",Base!$E$4:$BO$7841,Z$6,FALSE),VLOOKUP($B16&"_1",Base!$E$4:$BO$7841,Z$5,FALSE))="","",IF($Y16="Número",VLOOKUP($B16&"_1",Base!$E$4:$BO$7841,Z$6,FALSE),VLOOKUP($B16&"_1",Base!$E$4:$BO$7841,Z$5,FALSE))) -> NA | AA16: =IF(IF($Y16="Número",VLOOKUP($B16&"_1",Base!$E$4:$BO$7841,AA$6,FALSE),VLOOKUP($B16&"_1",Base!$E$4:$BO$7841,AA$5,FALSE))="","",IF($Y16="Número",VLOOKUP($B16&"_1",Base!$E$4:$BO$7841,AA$6,FALSE),VLOOKUP($B16&"_1",Base!$E$4:$BO$7841,AA$5,FALSE))) -> NA | AB16: =IF(IF($Y16="Número",VLOOKUP($B16&"_1",Base!$E$4:$BO$7841,AB$6,FALSE),VLOOKUP($B16&"_1",Base!$E$4:$BO$7841,AB$5,FALSE))="","",IF($Y16="Número",VLOOKUP($B16&"_1",Base!$E$4:$BO$7841,AB$6,FALSE),VLOOKUP($B16&"_1",Base!$E$4:$BO$7841,AB$5,FALSE))) ->  | AC16: =IF(IF($Y16="Número",VLOOKUP($B16&"_1",Base!$E$4:$BO$7841,AC$6,FALSE),VLOOKUP($B16&"_1",Base!$E$4:$BO$7841,AC$5,FALSE))="","",IF($Y16="Número",VLOOKUP($B16&"_1",Base!$E$4:$BO$7841,AC$6,FALSE),VLOOKUP($B16&"_1",Base!$E$4:$BO$7841,AC$5,FALSE))) ->  | AD16: =IF(IF($Y16="Número",VLOOKUP($B16&"_1",Base!$E$4:$BO$7841,AD$6,FALSE),VLOOKUP($B16&"_1",Base!$E$4:$BO$7841,AD$5,FALSE))="","",IF($Y16="Número",VLOOKUP($B16&"_1",Base!$E$4:$BO$7841,AD$6,FALSE),VLOOKUP($B16&"_1",Base!$E$4:$BO$7841,AD$5,FALSE))) ->  | AE16: =IF(IF($Y16="Número",VLOOKUP($B16&"_1",Base!$E$4:$BO$7841,AE$6,FALSE),VLOOKUP($B16&"_1",Base!$E$4:$BO$7841,AE$5,FALSE))="","",IF($Y16="Número",VLOOKUP($B16&"_1",Base!$E$4:$BO$7841,AE$6,FALSE),VLOOKUP($B16&"_1",Base!$E$4:$BO$7841,AE$5,FALSE))) ->  | AF16: =IF(IF($Y16="Número",VLOOKUP($B16&"_1",Base!$E$4:$BO$7841,AF$6,FALSE),VLOOKUP($B16&"_1",Base!$E$4:$BO$7841,AF$5,FALSE))="","",IF($Y16="Número",VLOOKUP($B16&"_1",Base!$E$4:$BO$7841,AF$6,FALSE),VLOOKUP($B16&"_1",Base!$E$4:$BO$7841,AF$5,FALSE))) ->  | AG16: =IF(IF($Y16="Número",VLOOKUP($B16&"_1",Base!$E$4:$BO$7841,AG$6,FALSE),VLOOKUP($B16&"_1",Base!$E$4:$BO$7841,AG$5,FALSE))="","",IF($Y16="Número",VLOOKUP($B16&"_1",Base!$E$4:$BO$7841,AG$6,FALSE),VLOOKUP($B16&"_1",Base!$E$4:$BO$7841,AG$5,FALSE))) ->  | AH16: =IF(IF($Y16="Número",VLOOKUP($B16&"_1",Base!$E$4:$BO$7841,AH$6,FALSE),VLOOKUP($B16&"_1",Base!$E$4:$BO$7841,AH$5,FALSE))="","",IF($Y16="Número",VLOOKUP($B16&"_1",Base!$E$4:$BO$7841,AH$6,FALSE),VLOOKUP($B16&"_1",Base!$E$4:$BO$7841,AH$5,FALSE))) ->  | AI16: =IF(IF($Y16="Número",VLOOKUP($B16&"_1",Base!$E$4:$BO$7841,AI$6,FALSE),VLOOKUP($B16&"_1",Base!$E$4:$BO$7841,AI$5,FALSE))="","",IF($Y16="Número",VLOOKUP($B16&"_1",Base!$E$4:$BO$7841,AI$6,FALSE),VLOOKUP($B16&"_1",Base!$E$4:$BO$7841,AI$5,FALSE))) ->  | AJ16: =IF(IF($Y16="Número",VLOOKUP($B16&"_1",Base!$E$4:$BO$7841,AJ$6,FALSE),VLOOKUP($B16&"_1",Base!$E$4:$BO$7841,AJ$5,FALSE))="","",IF($Y16="Número",VLOOKUP($B16&"_1",Base!$E$4:$BO$7841,AJ$6,FALSE),VLOOKUP($B16&"_1",Base!$E$4:$BO$7841,AJ$5,FALSE))) ->  | AK16: =IF(IF($Y16="Número",VLOOKUP($B16&"_1",Base!$E$4:$BO$7841,AK$6,FALSE),VLOOKUP($B16&"_1",Base!$E$4:$BO$7841,AK$5,FALSE))="","",IF($Y16="Número",VLOOKUP($B16&"_1",Base!$E$4:$BO$7841,AK$6,FALSE),VLOOKUP($B16&"_1",Base!$E$4:$BO$7841,AK$5,FALSE))) -> 
B17: PA-10 | C17: =+VLOOKUP(B17,'tablero nal'!$W$9:$X$171,2,FALSE) -> Número de visitas de supervisión realizadas a las modalidades de Primera Infancia. | E17: - | F17: =+VLOOKUP(B17,'tablero nal'!$W$9:$BB$171,4,FALSE) -> 240000 | G17: 72632 | H17: 0.3026333333 | I17: 54000 | J17: 62948 | K17: 1.165703704 | L17: 50000 | M17: 67851 | N17: 1.35702 | O17: 50000 | P17: 72632 | Q17: 1.45264 | R17: =+VLOOKUP(B17,'tablero nal'!$W$9:$AB$171,6,FALSE) -> 240000 | S17: NA | T17: NA | Y17: =+VLOOKUP(B17,'tablero nal'!$W$9:$AL$171,16,FALSE) -> Número | Z17: =IF(IF($Y17="Número",VLOOKUP($B17&"_1",Base!$E$4:$BO$7841,Z$6,FALSE),VLOOKUP($B17&"_1",Base!$E$4:$BO$7841,Z$5,FALSE))="","",IF($Y17="Número",VLOOKUP($B17&"_1",Base!$E$4:$BO$7841,Z$6,FALSE),VLOOKUP($B17&"_1",Base!$E$4:$BO$7841,Z$5,FALSE))) -> NA | AA17: =IF(IF($Y17="Número",VLOOKUP($B17&"_1",Base!$E$4:$BO$7841,AA$6,FALSE),VLOOKUP($B17&"_1",Base!$E$4:$BO$7841,AA$5,FALSE))="","",IF($Y17="Número",VLOOKUP($B17&"_1",Base!$E$4:$BO$7841,AA$6,FALSE),VLOOKUP($B17&"_1",Base!$E$4:$BO$7841,AA$5,FALSE))) -> NA | AB17: =IF(IF($Y17="Número",VLOOKUP($B17&"_1",Base!$E$4:$BO$7841,AB$6,FALSE),VLOOKUP($B17&"_1",Base!$E$4:$BO$7841,AB$5,FALSE))="","",IF($Y17="Número",VLOOKUP($B17&"_1",Base!$E$4:$BO$7841,AB$6,FALSE),VLOOKUP($B17&"_1",Base!$E$4:$BO$7841,AB$5,FALSE))) ->  | AC17: =IF(IF($Y17="Número",VLOOKUP($B17&"_1",Base!$E$4:$BO$7841,AC$6,FALSE),VLOOKUP($B17&"_1",Base!$E$4:$BO$7841,AC$5,FALSE))="","",IF($Y17="Número",VLOOKUP($B17&"_1",Base!$E$4:$BO$7841,AC$6,FALSE),VLOOKUP($B17&"_1",Base!$E$4:$BO$7841,AC$5,FALSE))) ->  | AD17: =IF(IF($Y17="Número",VLOOKUP($B17&"_1",Base!$E$4:$BO$7841,AD$6,FALSE),VLOOKUP($B17&"_1",Base!$E$4:$BO$7841,AD$5,FALSE))="","",IF($Y17="Número",VLOOKUP($B17&"_1",Base!$E$4:$BO$7841,AD$6,FALSE),VLOOKUP($B17&"_1",Base!$E$4:$BO$7841,AD$5,FALSE))) ->  | AE17: =IF(IF($Y17="Número",VLOOKUP($B17&"_1",Base!$E$4:$BO$7841,AE$6,FALSE),VLOOKUP($B17&"_1",Base!$E$4:$BO$7841,AE$5,FALSE))="","",IF($Y17="Número",VLOOKUP($B17&"_1",Base!$E$4:$BO$7841,AE$6,FALSE),VLOOKUP($B17&"_1",Base!$E$4:$BO$7841,AE$5,FALSE))) ->  | AF17: =IF(IF($Y17="Número",VLOOKUP($B17&"_1",Base!$E$4:$BO$7841,AF$6,FALSE),VLOOKUP($B17&"_1",Base!$E$4:$BO$7841,AF$5,FALSE))="","",IF($Y17="Número",VLOOKUP($B17&"_1",Base!$E$4:$BO$7841,AF$6,FALSE),VLOOKUP($B17&"_1",Base!$E$4:$BO$7841,AF$5,FALSE))) ->  | AG17: =IF(IF($Y17="Número",VLOOKUP($B17&"_1",Base!$E$4:$BO$7841,AG$6,FALSE),VLOOKUP($B17&"_1",Base!$E$4:$BO$7841,AG$5,FALSE))="","",IF($Y17="Número",VLOOKUP($B17&"_1",Base!$E$4:$BO$7841,AG$6,FALSE),VLOOKUP($B17&"_1",Base!$E$4:$BO$7841,AG$5,FALSE))) ->  | AH17: =IF(IF($Y17="Número",VLOOKUP($B17&"_1",Base!$E$4:$BO$7841,AH$6,FALSE),VLOOKUP($B17&"_1",Base!$E$4:$BO$7841,AH$5,FALSE))="","",IF($Y17="Número",VLOOKUP($B17&"_1",Base!$E$4:$BO$7841,AH$6,FALSE),VLOOKUP($B17&"_1",Base!$E$4:$BO$7841,AH$5,FALSE))) ->  | AI17: =IF(IF($Y17="Número",VLOOKUP($B17&"_1",Base!$E$4:$BO$7841,AI$6,FALSE),VLOOKUP($B17&"_1",Base!$E$4:$BO$7841,AI$5,FALSE))="","",IF($Y17="Número",VLOOKUP($B17&"_1",Base!$E$4:$BO$7841,AI$6,FALSE),VLOOKUP($B17&"_1",Base!$E$4:$BO$7841,AI$5,FALSE))) ->  | AJ17: =IF(IF($Y17="Número",VLOOKUP($B17&"_1",Base!$E$4:$BO$7841,AJ$6,FALSE),VLOOKUP($B17&"_1",Base!$E$4:$BO$7841,AJ$5,FALSE))="","",IF($Y17="Número",VLOOKUP($B17&"_1",Base!$E$4:$BO$7841,AJ$6,FALSE),VLOOKUP($B17&"_1",Base!$E$4:$BO$7841,AJ$5,FALSE))) ->  | AK17: =IF(IF($Y17="Número",VLOOKUP($B17&"_1",Base!$E$4:$BO$7841,AK$6,FALSE),VLOOKUP($B17&"_1",Base!$E$4:$BO$7841,AK$5,FALSE))="","",IF($Y17="Número",VLOOKUP($B17&"_1",Base!$E$4:$BO$7841,AK$6,FALSE),VLOOKUP($B17&"_1",Base!$E$4:$BO$7841,AK$5,FALSE))) -> 
B18: PA-11 | C18: =+VLOOKUP(B18,'tablero nal'!$W$9:$X$171,2,FALSE) -> Porcentaje del diseño e implementación de la ruta integral de atenciones para la infancia y la adolescencia. | E18: - | F18: =+VLOOKUP(B18,'tablero nal'!$W$9:$BB$171,4,FALSE) -> 1 | G18: 0.934 | H18: 0.934 | I18: 0.3 | J18: 0.3529 | K18: 1.176333333 | L18: 0.5 | M18: 0.529 | N18: 1.058 | O18: 0.76 | P18: 0.934 | Q18: 1.228947368 | R18: =+VLOOKUP(B18,'tablero nal'!$W$9:$AB$171,6,FALSE) -> 1 | S18: NA | T18: NA | Y18: =+VLOOKUP(B18,'tablero nal'!$W$9:$AL$171,16,FALSE) -> Porcentaje | Z18: =IF(IF($Y18="Número",VLOOKUP($B18&"_1",Base!$E$4:$BO$7841,Z$6,FALSE),VLOOKUP($B18&"_1",Base!$E$4:$BO$7841,Z$5,FALSE))="","",IF($Y18="Número",VLOOKUP($B18&"_1",Base!$E$4:$BO$7841,Z$6,FALSE),VLOOKUP($B18&"_1",Base!$E$4:$BO$7841,Z$5,FALSE))) -> NA | AA18: =IF(IF($Y18="Número",VLOOKUP($B18&"_1",Base!$E$4:$BO$7841,AA$6,FALSE),VLOOKUP($B18&"_1",Base!$E$4:$BO$7841,AA$5,FALSE))="","",IF($Y18="Número",VLOOKUP($B18&"_1",Base!$E$4:$BO$7841,AA$6,FALSE),VLOOKUP($B18&"_1",Base!$E$4:$BO$7841,AA$5,FALSE))) -> NA | AB18: =IF(IF($Y18="Número",VLOOKUP($B18&"_1",Base!$E$4:$BO$7841,AB$6,FALSE),VLOOKUP($B18&"_1",Base!$E$4:$BO$7841,AB$5,FALSE))="","",IF($Y18="Número",VLOOKUP($B18&"_1",Base!$E$4:$BO$7841,AB$6,FALSE),VLOOKUP($B18&"_1",Base!$E$4:$BO$7841,AB$5,FALSE))) ->  | AC18: =IF(IF($Y18="Número",VLOOKUP($B18&"_1",Base!$E$4:$BO$7841,AC$6,FALSE),VLOOKUP($B18&"_1",Base!$E$4:$BO$7841,AC$5,FALSE))="","",IF($Y18="Número",VLOOKUP($B18&"_1",Base!$E$4:$BO$7841,AC$6,FALSE),VLOOKUP($B18&"_1",Base!$E$4:$BO$7841,AC$5,FALSE))) ->  | AD18: =IF(IF($Y18="Número",VLOOKUP($B18&"_1",Base!$E$4:$BO$7841,AD$6,FALSE),VLOOKUP($B18&"_1",Base!$E$4:$BO$7841,AD$5,FALSE))="","",IF($Y18="Número",VLOOKUP($B18&"_1",Base!$E$4:$BO$7841,AD$6,FALSE),VLOOKUP($B18&"_1",Base!$E$4:$BO$7841,AD$5,FALSE))) ->  | AE18: =IF(IF($Y18="Número",VLOOKUP($B18&"_1",Base!$E$4:$BO$7841,AE$6,FALSE),VLOOKUP($B18&"_1",Base!$E$4:$BO$7841,AE$5,FALSE))="","",IF($Y18="Número",VLOOKUP($B18&"_1",Base!$E$4:$BO$7841,AE$6,FALSE),VLOOKUP($B18&"_1",Base!$E$4:$BO$7841,AE$5,FALSE))) ->  | AF18: =IF(IF($Y18="Número",VLOOKUP($B18&"_1",Base!$E$4:$BO$7841,AF$6,FALSE),VLOOKUP($B18&"_1",Base!$E$4:$BO$7841,AF$5,FALSE))="","",IF($Y18="Número",VLOOKUP($B18&"_1",Base!$E$4:$BO$7841,AF$6,FALSE),VLOOKUP($B18&"_1",Base!$E$4:$BO$7841,AF$5,FALSE))) ->  | AG18: =IF(IF($Y18="Número",VLOOKUP($B18&"_1",Base!$E$4:$BO$7841,AG$6,FALSE),VLOOKUP($B18&"_1",Base!$E$4:$BO$7841,AG$5,FALSE))="","",IF($Y18="Número",VLOOKUP($B18&"_1",Base!$E$4:$BO$7841,AG$6,FALSE),VLOOKUP($B18&"_1",Base!$E$4:$BO$7841,AG$5,FALSE))) ->  | AH18: =IF(IF($Y18="Número",VLOOKUP($B18&"_1",Base!$E$4:$BO$7841,AH$6,FALSE),VLOOKUP($B18&"_1",Base!$E$4:$BO$7841,AH$5,FALSE))="","",IF($Y18="Número",VLOOKUP($B18&"_1",Base!$E$4:$BO$7841,AH$6,FALSE),VLOOKUP($B18&"_1",Base!$E$4:$BO$7841,AH$5,FALSE))) ->  | AI18: =IF(IF($Y18="Número",VLOOKUP($B18&"_1",Base!$E$4:$BO$7841,AI$6,FALSE),VLOOKUP($B18&"_1",Base!$E$4:$BO$7841,AI$5,FALSE))="","",IF($Y18="Número",VLOOKUP($B18&"_1",Base!$E$4:$BO$7841,AI$6,FALSE),VLOOKUP($B18&"_1",Base!$E$4:$BO$7841,AI$5,FALSE))) ->  | AJ18: =IF(IF($Y18="Número",VLOOKUP($B18&"_1",Base!$E$4:$BO$7841,AJ$6,FALSE),VLOOKUP($B18&"_1",Base!$E$4:$BO$7841,AJ$5,FALSE))="","",IF($Y18="Número",VLOOKUP($B18&"_1",Base!$E$4:$BO$7841,AJ$6,FALSE),VLOOKUP($B18&"_1",Base!$E$4:$BO$7841,AJ$5,FALSE))) ->  | AK18: =IF(IF($Y18="Número",VLOOKUP($B18&"_1",Base!$E$4:$BO$7841,AK$6,FALSE),VLOOKUP($B18&"_1",Base!$E$4:$BO$7841,AK$5,FALSE))="","",IF($Y18="Número",VLOOKUP($B18&"_1",Base!$E$4:$BO$7841,AK$6,FALSE),VLOOKUP($B18&"_1",Base!$E$4:$BO$7841,AK$5,FALSE))) -> 
B19: PA-12 | C19: =+VLOOKUP(B19,'tablero nal'!$W$9:$X$171,2,FALSE) -> Porcentaje del diseño e implementación de la política Nacional para la infancia y la adolescencia. | E19: - | F19: =+VLOOKUP(B19,'tablero nal'!$W$9:$BB$171,4,FALSE) -> 1 | G19: 0.934 | H19: 0.934 | I19: 0.3 | J19: 0.3529 | K19: 1.176333333 | L19: 0.5 | M19: 0.529 | N19: 1.058 | O19: 0.76 | P19: 0.934 | Q19: 1.228947368 | R19: =+VLOOKUP(B19,'tablero nal'!$W$9:$AB$171,6,FALSE) -> 1 | S19: NA | T19: NA | Y19: =+VLOOKUP(B19,'tablero nal'!$W$9:$AL$171,16,FALSE) -> Porcentaje | Z19: =IF(IF($Y19="Número",VLOOKUP($B19&"_1",Base!$E$4:$BO$7841,Z$6,FALSE),VLOOKUP($B19&"_1",Base!$E$4:$BO$7841,Z$5,FALSE))="","",IF($Y19="Número",VLOOKUP($B19&"_1",Base!$E$4:$BO$7841,Z$6,FALSE),VLOOKUP($B19&"_1",Base!$E$4:$BO$7841,Z$5,FALSE))) -> NA | AA19: =IF(IF($Y19="Número",VLOOKUP($B19&"_1",Base!$E$4:$BO$7841,AA$6,FALSE),VLOOKUP($B19&"_1",Base!$E$4:$BO$7841,AA$5,FALSE))="","",IF($Y19="Número",VLOOKUP($B19&"_1",Base!$E$4:$BO$7841,AA$6,FALSE),VLOOKUP($B19&"_1",Base!$E$4:$BO$7841,AA$5,FALSE))) -> NA | AB19: =IF(IF($Y19="Número",VLOOKUP($B19&"_1",Base!$E$4:$BO$7841,AB$6,FALSE),VLOOKUP($B19&"_1",Base!$E$4:$BO$7841,AB$5,FALSE))="","",IF($Y19="Número",VLOOKUP($B19&"_1",Base!$E$4:$BO$7841,AB$6,FALSE),VLOOKUP($B19&"_1",Base!$E$4:$BO$7841,AB$5,FALSE))) ->  | AC19: =IF(IF($Y19="Número",VLOOKUP($B19&"_1",Base!$E$4:$BO$7841,AC$6,FALSE),VLOOKUP($B19&"_1",Base!$E$4:$BO$7841,AC$5,FALSE))="","",IF($Y19="Número",VLOOKUP($B19&"_1",Base!$E$4:$BO$7841,AC$6,FALSE),VLOOKUP($B19&"_1",Base!$E$4:$BO$7841,AC$5,FALSE))) ->  | AD19: =IF(IF($Y19="Número",VLOOKUP($B19&"_1",Base!$E$4:$BO$7841,AD$6,FALSE),VLOOKUP($B19&"_1",Base!$E$4:$BO$7841,AD$5,FALSE))="","",IF($Y19="Número",VLOOKUP($B19&"_1",Base!$E$4:$BO$7841,AD$6,FALSE),VLOOKUP($B19&"_1",Base!$E$4:$BO$7841,AD$5,FALSE))) ->  | AE19: =IF(IF($Y19="Número",VLOOKUP($B19&"_1",Base!$E$4:$BO$7841,AE$6,FALSE),VLOOKUP($B19&"_1",Base!$E$4:$BO$7841,AE$5,FALSE))="","",IF($Y19="Número",VLOOKUP($B19&"_1",Base!$E$4:$BO$7841,AE$6,FALSE),VLOOKUP($B19&"_1",Base!$E$4:$BO$7841,AE$5,FALSE))) ->  | AF19: =IF(IF($Y19="Número",VLOOKUP($B19&"_1",Base!$E$4:$BO$7841,AF$6,FALSE),VLOOKUP($B19&"_1",Base!$E$4:$BO$7841,AF$5,FALSE))="","",IF($Y19="Número",VLOOKUP($B19&"_1",Base!$E$4:$BO$7841,AF$6,FALSE),VLOOKUP($B19&"_1",Base!$E$4:$BO$7841,AF$5,FALSE))) ->  | AG19: =IF(IF($Y19="Número",VLOOKUP($B19&"_1",Base!$E$4:$BO$7841,AG$6,FALSE),VLOOKUP($B19&"_1",Base!$E$4:$BO$7841,AG$5,FALSE))="","",IF($Y19="Número",VLOOKUP($B19&"_1",Base!$E$4:$BO$7841,AG$6,FALSE),VLOOKUP($B19&"_1",Base!$E$4:$BO$7841,AG$5,FALSE))) ->  | AH19: =IF(IF($Y19="Número",VLOOKUP($B19&"_1",Base!$E$4:$BO$7841,AH$6,FALSE),VLOOKUP($B19&"_1",Base!$E$4:$BO$7841,AH$5,FALSE))="","",IF($Y19="Número",VLOOKUP($B19&"_1",Base!$E$4:$BO$7841,AH$6,FALSE),VLOOKUP($B19&"_1",Base!$E$4:$BO$7841,AH$5,FALSE))) ->  | AI19: =IF(IF($Y19="Número",VLOOKUP($B19&"_1",Base!$E$4:$BO$7841,AI$6,FALSE),VLOOKUP($B19&"_1",Base!$E$4:$BO$7841,AI$5,FALSE))="","",IF($Y19="Número",VLOOKUP($B19&"_1",Base!$E$4:$BO$7841,AI$6,FALSE),VLOOKUP($B19&"_1",Base!$E$4:$BO$7841,AI$5,FALSE))) ->  | AJ19: =IF(IF($Y19="Número",VLOOKUP($B19&"_1",Base!$E$4:$BO$7841,AJ$6,FALSE),VLOOKUP($B19&"_1",Base!$E$4:$BO$7841,AJ$5,FALSE))="","",IF($Y19="Número",VLOOKUP($B19&"_1",Base!$E$4:$BO$7841,AJ$6,FALSE),VLOOKUP($B19&"_1",Base!$E$4:$BO$7841,AJ$5,FALSE))) ->  | AK19: =IF(IF($Y19="Número",VLOOKUP($B19&"_1",Base!$E$4:$BO$7841,AK$6,FALSE),VLOOKUP($B19&"_1",Base!$E$4:$BO$7841,AK$5,FALSE))="","",IF($Y19="Número",VLOOKUP($B19&"_1",Base!$E$4:$BO$7841,AK$6,FALSE),VLOOKUP($B19&"_1",Base!$E$4:$BO$7841,AK$5,FALSE))) -> 
B20: PA-13 | C20: =+VLOOKUP(B20,'tablero nal'!$W$9:$X$171,2,FALSE) -> Número de departamentos con la estrategia de prevención de embarazo en la adolescencia implementada | E20: - | F20: =+VLOOKUP(B20,'tablero nal'!$W$9:$BB$171,4,FALSE) -> 33 | G20: 24 | H20: 0.7272727273 | I20: 6 | J20: 6 | K20: 1 | L20: 15 | M20: 15 | N20: 1 | O20: 24 | P20: 24 | Q20: 1 | R20: =+VLOOKUP(B20,'tablero nal'!$W$9:$AB$171,6,FALSE) -> 33 | S20: NA | T20: NA | Y20: =+VLOOKUP(B20,'tablero nal'!$W$9:$AL$171,16,FALSE) -> Número | Z20: =IF(IF($Y20="Número",VLOOKUP($B20&"_1",Base!$E$4:$BO$7841,Z$6,FALSE),VLOOKUP($B20&"_1",Base!$E$4:$BO$7841,Z$5,FALSE))="","",IF($Y20="Número",VLOOKUP($B20&"_1",Base!$E$4:$BO$7841,Z$6,FALSE),VLOOKUP($B20&"_1",Base!$E$4:$BO$7841,Z$5,FALSE))) -> NA | AA20: =IF(IF($Y20="Número",VLOOKUP($B20&"_1",Base!$E$4:$BO$7841,AA$6,FALSE),VLOOKUP($B20&"_1",Base!$E$4:$BO$7841,AA$5,FALSE))="","",IF($Y20="Número",VLOOKUP($B20&"_1",Base!$E$4:$BO$7841,AA$6,FALSE),VLOOKUP($B20&"_1",Base!$E$4:$BO$7841,AA$5,FALSE))) -> NA | AB20: =IF(IF($Y20="Número",VLOOKUP($B20&"_1",Base!$E$4:$BO$7841,AB$6,FALSE),VLOOKUP($B20&"_1",Base!$E$4:$BO$7841,AB$5,FALSE))="","",IF($Y20="Número",VLOOKUP($B20&"_1",Base!$E$4:$BO$7841,AB$6,FALSE),VLOOKUP($B20&"_1",Base!$E$4:$BO$7841,AB$5,FALSE))) ->  | AC20: =IF(IF($Y20="Número",VLOOKUP($B20&"_1",Base!$E$4:$BO$7841,AC$6,FALSE),VLOOKUP($B20&"_1",Base!$E$4:$BO$7841,AC$5,FALSE))="","",IF($Y20="Número",VLOOKUP($B20&"_1",Base!$E$4:$BO$7841,AC$6,FALSE),VLOOKUP($B20&"_1",Base!$E$4:$BO$7841,AC$5,FALSE))) ->  | AD20: =IF(IF($Y20="Número",VLOOKUP($B20&"_1",Base!$E$4:$BO$7841,AD$6,FALSE),VLOOKUP($B20&"_1",Base!$E$4:$BO$7841,AD$5,FALSE))="","",IF($Y20="Número",VLOOKUP($B20&"_1",Base!$E$4:$BO$7841,AD$6,FALSE),VLOOKUP($B20&"_1",Base!$E$4:$BO$7841,AD$5,FALSE))) ->  | AE20: =IF(IF($Y20="Número",VLOOKUP($B20&"_1",Base!$E$4:$BO$7841,AE$6,FALSE),VLOOKUP($B20&"_1",Base!$E$4:$BO$7841,AE$5,FALSE))="","",IF($Y20="Número",VLOOKUP($B20&"_1",Base!$E$4:$BO$7841,AE$6,FALSE),VLOOKUP($B20&"_1",Base!$E$4:$BO$7841,AE$5,FALSE))) ->  | AF20: =IF(IF($Y20="Número",VLOOKUP($B20&"_1",Base!$E$4:$BO$7841,AF$6,FALSE),VLOOKUP($B20&"_1",Base!$E$4:$BO$7841,AF$5,FALSE))="","",IF($Y20="Número",VLOOKUP($B20&"_1",Base!$E$4:$BO$7841,AF$6,FALSE),VLOOKUP($B20&"_1",Base!$E$4:$BO$7841,AF$5,FALSE))) ->  | AG20: =IF(IF($Y20="Número",VLOOKUP($B20&"_1",Base!$E$4:$BO$7841,AG$6,FALSE),VLOOKUP($B20&"_1",Base!$E$4:$BO$7841,AG$5,FALSE))="","",IF($Y20="Número",VLOOKUP($B20&"_1",Base!$E$4:$BO$7841,AG$6,FALSE),VLOOKUP($B20&"_1",Base!$E$4:$BO$7841,AG$5,FALSE))) ->  | AH20: =IF(IF($Y20="Número",VLOOKUP($B20&"_1",Base!$E$4:$BO$7841,AH$6,FALSE),VLOOKUP($B20&"_1",Base!$E$4:$BO$7841,AH$5,FALSE))="","",IF($Y20="Número",VLOOKUP($B20&"_1",Base!$E$4:$BO$7841,AH$6,FALSE),VLOOKUP($B20&"_1",Base!$E$4:$BO$7841,AH$5,FALSE))) ->  | AI20: =IF(IF($Y20="Número",VLOOKUP($B20&"_1",Base!$E$4:$BO$7841,AI$6,FALSE),VLOOKUP($B20&"_1",Base!$E$4:$BO$7841,AI$5,FALSE))="","",IF($Y20="Número",VLOOKUP($B20&"_1",Base!$E$4:$BO$7841,AI$6,FALSE),VLOOKUP($B20&"_1",Base!$E$4:$BO$7841,AI$5,FALSE))) ->  | AJ20: =IF(IF($Y20="Número",VLOOKUP($B20&"_1",Base!$E$4:$BO$7841,AJ$6,FALSE),VLOOKUP($B20&"_1",Base!$E$4:$BO$7841,AJ$5,FALSE))="","",IF($Y20="Número",VLOOKUP($B20&"_1",Base!$E$4:$BO$7841,AJ$6,FALSE),VLOOKUP($B20&"_1",Base!$E$4:$BO$7841,AJ$5,FALSE))) ->  | AK20: =IF(IF($Y20="Número",VLOOKUP($B20&"_1",Base!$E$4:$BO$7841,AK$6,FALSE),VLOOKUP($B20&"_1",Base!$E$4:$BO$7841,AK$5,FALSE))="","",IF($Y20="Número",VLOOKUP($B20&"_1",Base!$E$4:$BO$7841,AK$6,FALSE),VLOOKUP($B20&"_1",Base!$E$4:$BO$7841,AK$5,FALSE))) -> 
B21: PA-14 | C21: =+VLOOKUP(B21,'tablero nal'!$W$9:$X$171,2,FALSE) -> Número de Municipios priorizados con la implementación de la estrategia de prevención de embarazo en la adolescencia | D21: X | E21: 192 | F21: =+VLOOKUP(B21,'tablero nal'!$W$9:$BB$171,4,FALSE) -> 353 | G21: 313 | H21: 0.8866855524 | I21: 75 | J21: 75 | K21: 1 | L21: 190 | M21: 190 | N21: 1 | O21: 305 | P21: 313 | Q21: 1.026229508 | R21: =+VLOOKUP(B21,'tablero nal'!$W$9:$AB$171,6,FALSE) -> 353 | S21: NA | T21: NA | Y21: =+VLOOKUP(B21,'tablero nal'!$W$9:$AL$171,16,FALSE) -> Número | Z21: =IF(IF($Y21="Número",VLOOKUP($B21&"_1",Base!$E$4:$BO$7841,Z$6,FALSE),VLOOKUP($B21&"_1",Base!$E$4:$BO$7841,Z$5,FALSE))="","",IF($Y21="Número",VLOOKUP($B21&"_1",Base!$E$4:$BO$7841,Z$6,FALSE),VLOOKUP($B21&"_1",Base!$E$4:$BO$7841,Z$5,FALSE))) -> NA | AA21: =IF(IF($Y21="Número",VLOOKUP($B21&"_1",Base!$E$4:$BO$7841,AA$6,FALSE),VLOOKUP($B21&"_1",Base!$E$4:$BO$7841,AA$5,FALSE))="","",IF($Y21="Número",VLOOKUP($B21&"_1",Base!$E$4:$BO$7841,AA$6,FALSE),VLOOKUP($B21&"_1",Base!$E$4:$BO$7841,AA$5,FALSE))) -> NA | AB21: =IF(IF($Y21="Número",VLOOKUP($B21&"_1",Base!$E$4:$BO$7841,AB$6,FALSE),VLOOKUP($B21&"_1",Base!$E$4:$BO$7841,AB$5,FALSE))="","",IF($Y21="Número",VLOOKUP($B21&"_1",Base!$E$4:$BO$7841,AB$6,FALSE),VLOOKUP($B21&"_1",Base!$E$4:$BO$7841,AB$5,FALSE))) ->  | AC21: =IF(IF($Y21="Número",VLOOKUP($B21&"_1",Base!$E$4:$BO$7841,AC$6,FALSE),VLOOKUP($B21&"_1",Base!$E$4:$BO$7841,AC$5,FALSE))="","",IF($Y21="Número",VLOOKUP($B21&"_1",Base!$E$4:$BO$7841,AC$6,FALSE),VLOOKUP($B21&"_1",Base!$E$4:$BO$7841,AC$5,FALSE))) ->  | AD21: =IF(IF($Y21="Número",VLOOKUP($B21&"_1",Base!$E$4:$BO$7841,AD$6,FALSE),VLOOKUP($B21&"_1",Base!$E$4:$BO$7841,AD$5,FALSE))="","",IF($Y21="Número",VLOOKUP($B21&"_1",Base!$E$4:$BO$7841,AD$6,FALSE),VLOOKUP($B21&"_1",Base!$E$4:$BO$7841,AD$5,FALSE))) ->  | AE21: =IF(IF($Y21="Número",VLOOKUP($B21&"_1",Base!$E$4:$BO$7841,AE$6,FALSE),VLOOKUP($B21&"_1",Base!$E$4:$BO$7841,AE$5,FALSE))="","",IF($Y21="Número",VLOOKUP($B21&"_1",Base!$E$4:$BO$7841,AE$6,FALSE),VLOOKUP($B21&"_1",Base!$E$4:$BO$7841,AE$5,FALSE))) ->  | AF21: =IF(IF($Y21="Número",VLOOKUP($B21&"_1",Base!$E$4:$BO$7841,AF$6,FALSE),VLOOKUP($B21&"_1",Base!$E$4:$BO$7841,AF$5,FALSE))="","",IF($Y21="Número",VLOOKUP($B21&"_1",Base!$E$4:$BO$7841,AF$6,FALSE),VLOOKUP($B21&"_1",Base!$E$4:$BO$7841,AF$5,FALSE))) ->  | AG21: =IF(IF($Y21="Número",VLOOKUP($B21&"_1",Base!$E$4:$BO$7841,AG$6,FALSE),VLOOKUP($B21&"_1",Base!$E$4:$BO$7841,AG$5,FALSE))="","",IF($Y21="Número",VLOOKUP($B21&"_1",Base!$E$4:$BO$7841,AG$6,FALSE),VLOOKUP($B21&"_1",Base!$E$4:$BO$7841,AG$5,FALSE))) ->  | AH21: =IF(IF($Y21="Número",VLOOKUP($B21&"_1",Base!$E$4:$BO$7841,AH$6,FALSE),VLOOKUP($B21&"_1",Base!$E$4:$BO$7841,AH$5,FALSE))="","",IF($Y21="Número",VLOOKUP($B21&"_1",Base!$E$4:$BO$7841,AH$6,FALSE),VLOOKUP($B21&"_1",Base!$E$4:$BO$7841,AH$5,FALSE))) ->  | AI21: =IF(IF($Y21="Número",VLOOKUP($B21&"_1",Base!$E$4:$BO$7841,AI$6,FALSE),VLOOKUP($B21&"_1",Base!$E$4:$BO$7841,AI$5,FALSE))="","",IF($Y21="Número",VLOOKUP($B21&"_1",Base!$E$4:$BO$7841,AI$6,FALSE),VLOOKUP($B21&"_1",Base!$E$4:$BO$7841,AI$5,FALSE))) ->  | AJ21: =IF(IF($Y21="Número",VLOOKUP($B21&"_1",Base!$E$4:$BO$7841,AJ$6,FALSE),VLOOKUP($B21&"_1",Base!$E$4:$BO$7841,AJ$5,FALSE))="","",IF($Y21="Número",VLOOKUP($B21&"_1",Base!$E$4:$BO$7841,AJ$6,FALSE),VLOOKUP($B21&"_1",Base!$E$4:$BO$7841,AJ$5,FALSE))) ->  | AK21: =IF(IF($Y21="Número",VLOOKUP($B21&"_1",Base!$E$4:$BO$7841,AK$6,FALSE),VLOOKUP($B21&"_1",Base!$E$4:$BO$7841,AK$5,FALSE))="","",IF($Y21="Número",VLOOKUP($B21&"_1",Base!$E$4:$BO$7841,AK$6,FALSE),VLOOKUP($B21&"_1",Base!$E$4:$BO$7841,AK$5,FALSE))) -> 
B22: PA-15 | C22: =+VLOOKUP(B22,'tablero nal'!$W$9:$X$171,2,FALSE) -> Número de Agentes educativos, institucionales y comunitarios de Programas del ICBF formados en derechos sexuales y reproductivos y prevención del embarazo en la adolescencia | E22: 3790 | F22: =+VLOOKUP(B22,'tablero nal'!$W$9:$BB$171,4,FALSE) -> 15042 | G22: 12574 | H22: 0.8359260737 | I22: 4000 | J22: 934 | K22: 0.2335 | L22: 5800 | M22: 7499 | N22: 1.292931034 | O22: 11600 | P22: 12574 | Q22: 1.083965517 | R22: =+VLOOKUP(B22,'tablero nal'!$W$9:$AB$171,6,FALSE) -> 15042 | S22: NA | T22: NA | Y22: =+VLOOKUP(B22,'tablero nal'!$W$9:$AL$171,16,FALSE) -> Número | Z22: =IF(IF($Y22="Número",VLOOKUP($B22&"_1",Base!$E$4:$BO$7841,Z$6,FALSE),VLOOKUP($B22&"_1",Base!$E$4:$BO$7841,Z$5,FALSE))="","",IF($Y22="Número",VLOOKUP($B22&"_1",Base!$E$4:$BO$7841,Z$6,FALSE),VLOOKUP($B22&"_1",Base!$E$4:$BO$7841,Z$5,FALSE))) -> NA | AA22: =IF(IF($Y22="Número",VLOOKUP($B22&"_1",Base!$E$4:$BO$7841,AA$6,FALSE),VLOOKUP($B22&"_1",Base!$E$4:$BO$7841,AA$5,FALSE))="","",IF($Y22="Número",VLOOKUP($B22&"_1",Base!$E$4:$BO$7841,AA$6,FALSE),VLOOKUP($B22&"_1",Base!$E$4:$BO$7841,AA$5,FALSE))) -> NA | AB22: =IF(IF($Y22="Número",VLOOKUP($B22&"_1",Base!$E$4:$BO$7841,AB$6,FALSE),VLOOKUP($B22&"_1",Base!$E$4:$BO$7841,AB$5,FALSE))="","",IF($Y22="Número",VLOOKUP($B22&"_1",Base!$E$4:$BO$7841,AB$6,FALSE),VLOOKUP($B22&"_1",Base!$E$4:$BO$7841,AB$5,FALSE))) ->  | AC22: =IF(IF($Y22="Número",VLOOKUP($B22&"_1",Base!$E$4:$BO$7841,AC$6,FALSE),VLOOKUP($B22&"_1",Base!$E$4:$BO$7841,AC$5,FALSE))="","",IF($Y22="Número",VLOOKUP($B22&"_1",Base!$E$4:$BO$7841,AC$6,FALSE),VLOOKUP($B22&"_1",Base!$E$4:$BO$7841,AC$5,FALSE))) ->  | AD22: =IF(IF($Y22="Número",VLOOKUP($B22&"_1",Base!$E$4:$BO$7841,AD$6,FALSE),VLOOKUP($B22&"_1",Base!$E$4:$BO$7841,AD$5,FALSE))="","",IF($Y22="Número",VLOOKUP($B22&"_1",Base!$E$4:$BO$7841,AD$6,FALSE),VLOOKUP($B22&"_1",Base!$E$4:$BO$7841,AD$5,FALSE))) ->  | AE22: =IF(IF($Y22="Número",VLOOKUP($B22&"_1",Base!$E$4:$BO$7841,AE$6,FALSE),VLOOKUP($B22&"_1",Base!$E$4:$BO$7841,AE$5,FALSE))="","",IF($Y22="Número",VLOOKUP($B22&"_1",Base!$E$4:$BO$7841,AE$6,FALSE),VLOOKUP($B22&"_1",Base!$E$4:$BO$7841,AE$5,FALSE))) ->  | AF22: =IF(IF($Y22="Número",VLOOKUP($B22&"_1",Base!$E$4:$BO$7841,AF$6,FALSE),VLOOKUP($B22&"_1",Base!$E$4:$BO$7841,AF$5,FALSE))="","",IF($Y22="Número",VLOOKUP($B22&"_1",Base!$E$4:$BO$7841,AF$6,FALSE),VLOOKUP($B22&"_1",Base!$E$4:$BO$7841,AF$5,FALSE))) ->  | AG22: =IF(IF($Y22="Número",VLOOKUP($B22&"_1",Base!$E$4:$BO$7841,AG$6,FALSE),VLOOKUP($B22&"_1",Base!$E$4:$BO$7841,AG$5,FALSE))="","",IF($Y22="Número",VLOOKUP($B22&"_1",Base!$E$4:$BO$7841,AG$6,FALSE),VLOOKUP($B22&"_1",Base!$E$4:$BO$7841,AG$5,FALSE))) ->  | AH22: =IF(IF($Y22="Número",VLOOKUP($B22&"_1",Base!$E$4:$BO$7841,AH$6,FALSE),VLOOKUP($B22&"_1",Base!$E$4:$BO$7841,AH$5,FALSE))="","",IF($Y22="Número",VLOOKUP($B22&"_1",Base!$E$4:$BO$7841,AH$6,FALSE),VLOOKUP($B22&"_1",Base!$E$4:$BO$7841,AH$5,FALSE))) ->  | AI22: =IF(IF($Y22="Número",VLOOKUP($B22&"_1",Base!$E$4:$BO$7841,AI$6,FALSE),VLOOKUP($B22&"_1",Base!$E$4:$BO$7841,AI$5,FALSE))="","",IF($Y22="Número",VLOOKUP($B22&"_1",Base!$E$4:$BO$7841,AI$6,FALSE),VLOOKUP($B22&"_1",Base!$E$4:$BO$7841,AI$5,FALSE))) ->  | AJ22: =IF(IF($Y22="Número",VLOOKUP($B22&"_1",Base!$E$4:$BO$7841,AJ$6,FALSE),VLOOKUP($B22&"_1",Base!$E$4:$BO$7841,AJ$5,FALSE))="","",IF($Y22="Número",VLOOKUP($B22&"_1",Base!$E$4:$BO$7841,AJ$6,FALSE),VLOOKUP($B22&"_1",Base!$E$4:$BO$7841,AJ$5,FALSE))) ->  | AK22: =IF(IF($Y22="Número",VLOOKUP($B22&"_1",Base!$E$4:$BO$7841,AK$6,FALSE),VLOOKUP($B22&"_1",Base!$E$4:$BO$7841,AK$5,FALSE))="","",IF($Y22="Número",VLOOKUP($B22&"_1",Base!$E$4:$BO$7841,AK$6,FALSE),VLOOKUP($B22&"_1",Base!$E$4:$BO$7841,AK$5,FALSE))) -> 
B23: PA-16 | C23: =+VLOOKUP(B23,'tablero nal'!$W$9:$X$171,2,FALSE) -> Número de niños, niñas y adolescentes participantes en estrategias de prevención | D23: X | E23: 712188 | F23: =+VLOOKUP(B23,'tablero nal'!$W$9:$BB$171,4,FALSE) -> 770000 | G23: 797741 | H23: 1.036027273 | I23: 195600 | J23: 206060 | K23: 1.053476483 | L23: 348675 | M23: =151665+206060 -> 357725 | N23: =+M23/L23 -> 1.025955403 | O23: 548675 | P23: 598840 | Q23: 1.091429353 | R23: =+VLOOKUP(B23,'tablero nal'!$W$9:$AB$171,6,FALSE) -> 770000 | S23: 797741 | T23: 1.036027273 | Y23: =+VLOOKUP(B23,'tablero nal'!$W$9:$AL$171,16,FALSE) -> Número | Z23: =IF(IF($Y23="Número",VLOOKUP($B23&"_1",Base!$E$4:$BO$7841,Z$6,FALSE),VLOOKUP($B23&"_1",Base!$E$4:$BO$7841,Z$5,FALSE))="","",IF($Y23="Número",VLOOKUP($B23&"_1",Base!$E$4:$BO$7841,Z$6,FALSE),VLOOKUP($B23&"_1",Base!$E$4:$BO$7841,Z$5,FALSE))) -> NA | AA23: =IF(IF($Y23="Número",VLOOKUP($B23&"_1",Base!$E$4:$BO$7841,AA$6,FALSE),VLOOKUP($B23&"_1",Base!$E$4:$BO$7841,AA$5,FALSE))="","",IF($Y23="Número",VLOOKUP($B23&"_1",Base!$E$4:$BO$7841,AA$6,FALSE),VLOOKUP($B23&"_1",Base!$E$4:$BO$7841,AA$5,FALSE))) -> 797741 | AB23: =IF(IF($Y23="Número",VLOOKUP($B23&"_1",Base!$E$4:$BO$7841,AB$6,FALSE),VLOOKUP($B23&"_1",Base!$E$4:$BO$7841,AB$5,FALSE))="","",IF($Y23="Número",VLOOKUP($B23&"_1",Base!$E$4:$BO$7841,AB$6,FALSE),VLOOKUP($B23&"_1",Base!$E$4:$BO$7841,AB$5,FALSE))) ->  | AC23: =IF(IF($Y23="Número",VLOOKUP($B23&"_1",Base!$E$4:$BO$7841,AC$6,FALSE),VLOOKUP($B23&"_1",Base!$E$4:$BO$7841,AC$5,FALSE))="","",IF($Y23="Número",VLOOKUP($B23&"_1",Base!$E$4:$BO$7841,AC$6,FALSE),VLOOKUP($B23&"_1",Base!$E$4:$BO$7841,AC$5,FALSE))) ->  | AD23: =IF(IF($Y23="Número",VLOOKUP($B23&"_1",Base!$E$4:$BO$7841,AD$6,FALSE),VLOOKUP($B23&"_1",Base!$E$4:$BO$7841,AD$5,FALSE))="","",IF($Y23="Número",VLOOKUP($B23&"_1",Base!$E$4:$BO$7841,AD$6,FALSE),VLOOKUP($B23&"_1",Base!$E$4:$BO$7841,AD$5,FALSE))) ->  | AE23: =IF(IF($Y23="Número",VLOOKUP($B23&"_1",Base!$E$4:$BO$7841,AE$6,FALSE),VLOOKUP($B23&"_1",Base!$E$4:$BO$7841,AE$5,FALSE))="","",IF($Y23="Número",VLOOKUP($B23&"_1",Base!$E$4:$BO$7841,AE$6,FALSE),VLOOKUP($B23&"_1",Base!$E$4:$BO$7841,AE$5,FALSE))) ->  | AF23: =IF(IF($Y23="Número",VLOOKUP($B23&"_1",Base!$E$4:$BO$7841,AF$6,FALSE),VLOOKUP($B23&"_1",Base!$E$4:$BO$7841,AF$5,FALSE))="","",IF($Y23="Número",VLOOKUP($B23&"_1",Base!$E$4:$BO$7841,AF$6,FALSE),VLOOKUP($B23&"_1",Base!$E$4:$BO$7841,AF$5,FALSE))) ->  | AG23: =IF(IF($Y23="Número",VLOOKUP($B23&"_1",Base!$E$4:$BO$7841,AG$6,FALSE),VLOOKUP($B23&"_1",Base!$E$4:$BO$7841,AG$5,FALSE))="","",IF($Y23="Número",VLOOKUP($B23&"_1",Base!$E$4:$BO$7841,AG$6,FALSE),VLOOKUP($B23&"_1",Base!$E$4:$BO$7841,AG$5,FALSE))) ->  | AH23: =IF(IF($Y23="Número",VLOOKUP($B23&"_1",Base!$E$4:$BO$7841,AH$6,FALSE),VLOOKUP($B23&"_1",Base!$E$4:$BO$7841,AH$5,FALSE))="","",IF($Y23="Número",VLOOKUP($B23&"_1",Base!$E$4:$BO$7841,AH$6,FALSE),VLOOKUP($B23&"_1",Base!$E$4:$BO$7841,AH$5,FALSE))) ->  | AI23: =IF(IF($Y23="Número",VLOOKUP($B23&"_1",Base!$E$4:$BO$7841,AI$6,FALSE),VLOOKUP($B23&"_1",Base!$E$4:$BO$7841,AI$5,FALSE))="","",IF($Y23="Número",VLOOKUP($B23&"_1",Base!$E$4:$BO$7841,AI$6,FALSE),VLOOKUP($B23&"_1",Base!$E$4:$BO$7841,AI$5,FALSE))) ->  | AJ23: =IF(IF($Y23="Número",VLOOKUP($B23&"_1",Base!$E$4:$BO$7841,AJ$6,FALSE),VLOOKUP($B23&"_1",Base!$E$4:$BO$7841,AJ$5,FALSE))="","",IF($Y23="Número",VLOOKUP($B23&"_1",Base!$E$4:$BO$7841,AJ$6,FALSE),VLOOKUP($B23&"_1",Base!$E$4:$BO$7841,AJ$5,FALSE))) ->  | AK23: =IF(IF($Y23="Número",VLOOKUP($B23&"_1",Base!$E$4:$BO$7841,AK$6,FALSE),VLOOKUP($B23&"_1",Base!$E$4:$BO$7841,AK$5,FALSE))="","",IF($Y23="Número",VLOOKUP($B23&"_1",Base!$E$4:$BO$7841,AK$6,FALSE),VLOOKUP($B23&"_1",Base!$E$4:$BO$7841,AK$5,FALSE))) -> 
B24: PA-17 | C24: =+VLOOKUP(B24,'tablero nal'!$W$9:$X$171,2,FALSE) -> Número de ejercicios de promoción de la participación significativa de niños, niñas y adolescentes en políticas, programas, proyectos y estrategias desarrollados en los territorios. | E24: - | F24: =+VLOOKUP(B24,'tablero nal'!$W$9:$BB$171,4,FALSE) -> 5000 | G24: 5121 | H24: 1.0242 | I24: 436 | J24: 1016 | K24: 2.330275229 | L24: 1200 | M24: 3069 | N24: 2.5575 | O24: 4034 | P24: 5121 | Q24: 1.269459593 | R24: =+VLOOKUP(B24,'tablero nal'!$W$9:$AB$171,6,FALSE) -> 5000 | S24: NA | T24: NA | Y24: =+VLOOKUP(B24,'tablero nal'!$W$9:$AL$171,16,FALSE) -> Número | Z24: =IF(IF($Y24="Número",VLOOKUP($B24&"_1",Base!$E$4:$BO$7841,Z$6,FALSE),VLOOKUP($B24&"_1",Base!$E$4:$BO$7841,Z$5,FALSE))="","",IF($Y24="Número",VLOOKUP($B24&"_1",Base!$E$4:$BO$7841,Z$6,FALSE),VLOOKUP($B24&"_1",Base!$E$4:$BO$7841,Z$5,FALSE))) -> NA | AA24: =IF(IF($Y24="Número",VLOOKUP($B24&"_1",Base!$E$4:$BO$7841,AA$6,FALSE),VLOOKUP($B24&"_1",Base!$E$4:$BO$7841,AA$5,FALSE))="","",IF($Y24="Número",VLOOKUP($B24&"_1",Base!$E$4:$BO$7841,AA$6,FALSE),VLOOKUP($B24&"_1",Base!$E$4:$BO$7841,AA$5,FALSE))) -> NA | AB24: =IF(IF($Y24="Número",VLOOKUP($B24&"_1",Base!$E$4:$BO$7841,AB$6,FALSE),VLOOKUP($B24&"_1",Base!$E$4:$BO$7841,AB$5,FALSE))="","",IF($Y24="Número",VLOOKUP($B24&"_1",Base!$E$4:$BO$7841,AB$6,FALSE),VLOOKUP($B24&"_1",Base!$E$4:$BO$7841,AB$5,FALSE))) ->  | AC24: =IF(IF($Y24="Número",VLOOKUP($B24&"_1",Base!$E$4:$BO$7841,AC$6,FALSE),VLOOKUP($B24&"_1",Base!$E$4:$BO$7841,AC$5,FALSE))="","",IF($Y24="Número",VLOOKUP($B24&"_1",Base!$E$4:$BO$7841,AC$6,FALSE),VLOOKUP($B24&"_1",Base!$E$4:$BO$7841,AC$5,FALSE))) ->  | AD24: =IF(IF($Y24="Número",VLOOKUP($B24&"_1",Base!$E$4:$BO$7841,AD$6,FALSE),VLOOKUP($B24&"_1",Base!$E$4:$BO$7841,AD$5,FALSE))="","",IF($Y24="Número",VLOOKUP($B24&"_1",Base!$E$4:$BO$7841,AD$6,FALSE),VLOOKUP($B24&"_1",Base!$E$4:$BO$7841,AD$5,FALSE))) ->  | AE24: =IF(IF($Y24="Número",VLOOKUP($B24&"_1",Base!$E$4:$BO$7841,AE$6,FALSE),VLOOKUP($B24&"_1",Base!$E$4:$BO$7841,AE$5,FALSE))="","",IF($Y24="Número",VLOOKUP($B24&"_1",Base!$E$4:$BO$7841,AE$6,FALSE),VLOOKUP($B24&"_1",Base!$E$4:$BO$7841,AE$5,FALSE))) ->  | AF24: =IF(IF($Y24="Número",VLOOKUP($B24&"_1",Base!$E$4:$BO$7841,AF$6,FALSE),VLOOKUP($B24&"_1",Base!$E$4:$BO$7841,AF$5,FALSE))="","",IF($Y24="Número",VLOOKUP($B24&"_1",Base!$E$4:$BO$7841,AF$6,FALSE),VLOOKUP($B24&"_1",Base!$E$4:$BO$7841,AF$5,FALSE))) ->  | AG24: =IF(IF($Y24="Número",VLOOKUP($B24&"_1",Base!$E$4:$BO$7841,AG$6,FALSE),VLOOKUP($B24&"_1",Base!$E$4:$BO$7841,AG$5,FALSE))="","",IF($Y24="Número",VLOOKUP($B24&"_1",Base!$E$4:$BO$7841,AG$6,FALSE),VLOOKUP($B24&"_1",Base!$E$4:$BO$7841,AG$5,FALSE))) ->  | AH24: =IF(IF($Y24="Número",VLOOKUP($B24&"_1",Base!$E$4:$BO$7841,AH$6,FALSE),VLOOKUP($B24&"_1",Base!$E$4:$BO$7841,AH$5,FALSE))="","",IF($Y24="Número",VLOOKUP($B24&"_1",Base!$E$4:$BO$7841,AH$6,FALSE),VLOOKUP($B24&"_1",Base!$E$4:$BO$7841,AH$5,FALSE))) ->  | AI24: =IF(IF($Y24="Número",VLOOKUP($B24&"_1",Base!$E$4:$BO$7841,AI$6,FALSE),VLOOKUP($B24&"_1",Base!$E$4:$BO$7841,AI$5,FALSE))="","",IF($Y24="Número",VLOOKUP($B24&"_1",Base!$E$4:$BO$7841,AI$6,FALSE),VLOOKUP($B24&"_1",Base!$E$4:$BO$7841,AI$5,FALSE))) ->  | AJ24: =IF(IF($Y24="Número",VLOOKUP($B24&"_1",Base!$E$4:$BO$7841,AJ$6,FALSE),VLOOKUP($B24&"_1",Base!$E$4:$BO$7841,AJ$5,FALSE))="","",IF($Y24="Número",VLOOKUP($B24&"_1",Base!$E$4:$BO$7841,AJ$6,FALSE),VLOOKUP($B24&"_1",Base!$E$4:$BO$7841,AJ$5,FALSE))) ->  | AK24: =IF(IF($Y24="Número",VLOOKUP($B24&"_1",Base!$E$4:$BO$7841,AK$6,FALSE),VLOOKUP($B24&"_1",Base!$E$4:$BO$7841,AK$5,FALSE))="","",IF($Y24="Número",VLOOKUP($B24&"_1",Base!$E$4:$BO$7841,AK$6,FALSE),VLOOKUP($B24&"_1",Base!$E$4:$BO$7841,AK$5,FALSE))) -> 
B25: PA-18 | C25: =+VLOOKUP(B25,'tablero nal'!$W$9:$X$171,2,FALSE) -> Familias en situación de vulnerabilidad afectadas en su estructura y dinámica relacional atendidas mediante la estrategia Familias para la Paz. | D25: X | E25: 541854 | F25: =+VLOOKUP(B25,'tablero nal'!$W$9:$BB$171,4,FALSE) -> 560000 | G25: 411739 | H25: 0.7352482143 | I25: 105488 | J25: 105473 | K25: 0.9998578037 | L25: 264916 | M25: 265264 | N25: 1.001313624 | O25: 411391 | P25: 411739 | Q25: 1.000845911 | R25: =+VLOOKUP(B25,'tablero nal'!$W$9:$AB$171,6,FALSE) -> 560000 | S25: NA | T25: NA | Y25: =+VLOOKUP(B25,'tablero nal'!$W$9:$AL$171,16,FALSE) -> Número | Z25: =IF(IF($Y25="Número",VLOOKUP($B25&"_1",Base!$E$4:$BO$7841,Z$6,FALSE),VLOOKUP($B25&"_1",Base!$E$4:$BO$7841,Z$5,FALSE))="","",IF($Y25="Número",VLOOKUP($B25&"_1",Base!$E$4:$BO$7841,Z$6,FALSE),VLOOKUP($B25&"_1",Base!$E$4:$BO$7841,Z$5,FALSE))) -> NA | AA25: =IF(IF($Y25="Número",VLOOKUP($B25&"_1",Base!$E$4:$BO$7841,AA$6,FALSE),VLOOKUP($B25&"_1",Base!$E$4:$BO$7841,AA$5,FALSE))="","",IF($Y25="Número",VLOOKUP($B25&"_1",Base!$E$4:$BO$7841,AA$6,FALSE),VLOOKUP($B25&"_1",Base!$E$4:$BO$7841,AA$5,FALSE))) -> NA | AB25: =IF(IF($Y25="Número",VLOOKUP($B25&"_1",Base!$E$4:$BO$7841,AB$6,FALSE),VLOOKUP($B25&"_1",Base!$E$4:$BO$7841,AB$5,FALSE))="","",IF($Y25="Número",VLOOKUP($B25&"_1",Base!$E$4:$BO$7841,AB$6,FALSE),VLOOKUP($B25&"_1",Base!$E$4:$BO$7841,AB$5,FALSE))) ->  | AC25: =IF(IF($Y25="Número",VLOOKUP($B25&"_1",Base!$E$4:$BO$7841,AC$6,FALSE),VLOOKUP($B25&"_1",Base!$E$4:$BO$7841,AC$5,FALSE))="","",IF($Y25="Número",VLOOKUP($B25&"_1",Base!$E$4:$BO$7841,AC$6,FALSE),VLOOKUP($B25&"_1",Base!$E$4:$BO$7841,AC$5,FALSE))) ->  | AD25: =IF(IF($Y25="Número",VLOOKUP($B25&"_1",Base!$E$4:$BO$7841,AD$6,FALSE),VLOOKUP($B25&"_1",Base!$E$4:$BO$7841,AD$5,FALSE))="","",IF($Y25="Número",VLOOKUP($B25&"_1",Base!$E$4:$BO$7841,AD$6,FALSE),VLOOKUP($B25&"_1",Base!$E$4:$BO$7841,AD$5,FALSE))) ->  | AE25: =IF(IF($Y25="Número",VLOOKUP($B25&"_1",Base!$E$4:$BO$7841,AE$6,FALSE),VLOOKUP($B25&"_1",Base!$E$4:$BO$7841,AE$5,FALSE))="","",IF($Y25="Número",VLOOKUP($B25&"_1",Base!$E$4:$BO$7841,AE$6,FALSE),VLOOKUP($B25&"_1",Base!$E$4:$BO$7841,AE$5,FALSE))) ->  | AF25: =IF(IF($Y25="Número",VLOOKUP($B25&"_1",Base!$E$4:$BO$7841,AF$6,FALSE),VLOOKUP($B25&"_1",Base!$E$4:$BO$7841,AF$5,FALSE))="","",IF($Y25="Número",VLOOKUP($B25&"_1",Base!$E$4:$BO$7841,AF$6,FALSE),VLOOKUP($B25&"_1",Base!$E$4:$BO$7841,AF$5,FALSE))) ->  | AG25: =IF(IF($Y25="Número",VLOOKUP($B25&"_1",Base!$E$4:$BO$7841,AG$6,FALSE),VLOOKUP($B25&"_1",Base!$E$4:$BO$7841,AG$5,FALSE))="","",IF($Y25="Número",VLOOKUP($B25&"_1",Base!$E$4:$BO$7841,AG$6,FALSE),VLOOKUP($B25&"_1",Base!$E$4:$BO$7841,AG$5,FALSE))) ->  | AH25: =IF(IF($Y25="Número",VLOOKUP($B25&"_1",Base!$E$4:$BO$7841,AH$6,FALSE),VLOOKUP($B25&"_1",Base!$E$4:$BO$7841,AH$5,FALSE))="","",IF($Y25="Número",VLOOKUP($B25&"_1",Base!$E$4:$BO$7841,AH$6,FALSE),VLOOKUP($B25&"_1",Base!$E$4:$BO$7841,AH$5,FALSE))) ->  | AI25: =IF(IF($Y25="Número",VLOOKUP($B25&"_1",Base!$E$4:$BO$7841,AI$6,FALSE),VLOOKUP($B25&"_1",Base!$E$4:$BO$7841,AI$5,FALSE))="","",IF($Y25="Número",VLOOKUP($B25&"_1",Base!$E$4:$BO$7841,AI$6,FALSE),VLOOKUP($B25&"_1",Base!$E$4:$BO$7841,AI$5,FALSE))) ->  | AJ25: =IF(IF($Y25="Número",VLOOKUP($B25&"_1",Base!$E$4:$BO$7841,AJ$6,FALSE),VLOOKUP($B25&"_1",Base!$E$4:$BO$7841,AJ$5,FALSE))="","",IF($Y25="Número",VLOOKUP($B25&"_1",Base!$E$4:$BO$7841,AJ$6,FALSE),VLOOKUP($B25&"_1",Base!$E$4:$BO$7841,AJ$5,FALSE))) ->  | AK25: =IF(IF($Y25="Número",VLOOKUP($B25&"_1",Base!$E$4:$BO$7841,AK$6,FALSE),VLOOKUP($B25&"_1",Base!$E$4:$BO$7841,AK$5,FALSE))="","",IF($Y25="Número",VLOOKUP($B25&"_1",Base!$E$4:$BO$7841,AK$6,FALSE),VLOOKUP($B25&"_1",Base!$E$4:$BO$7841,AK$5,FALSE))) -> 
B26: PA-19 | C26: =+VLOOKUP(B26,'tablero nal'!$W$9:$X$171,2,FALSE) -> Número de Familias de Grupos Étnicos atendidas por la modalidad | E26: 21000 | F26: =+VLOOKUP(B26,'tablero nal'!$W$9:$BB$171,4,FALSE) -> 114000 | G26: 115831 | H26: 1.016061404 | I26: 22000 | J26: 37033 | K26: 1.683318182 | L26: 49300 | M26: 64049 | N26: 1.299168357 | O26: 79189 | P26: 93736 | Q26: 1.183699756 | R26: =+VLOOKUP(B26,'tablero nal'!$W$9:$AB$171,6,FALSE) -> 114000 | S26: 115831 | T26: 1.016061404 | Y26: =+VLOOKUP(B26,'tablero nal'!$W$9:$AL$171,16,FALSE) -> Número | Z26: =IF(IF($Y26="Número",VLOOKUP($B26&"_1",Base!$E$4:$BO$7841,Z$6,FALSE),VLOOKUP($B26&"_1",Base!$E$4:$BO$7841,Z$5,FALSE))="","",IF($Y26="Número",VLOOKUP($B26&"_1",Base!$E$4:$BO$7841,Z$6,FALSE),VLOOKUP($B26&"_1",Base!$E$4:$BO$7841,Z$5,FALSE))) -> NA | AA26: =IF(IF($Y26="Número",VLOOKUP($B26&"_1",Base!$E$4:$BO$7841,AA$6,FALSE),VLOOKUP($B26&"_1",Base!$E$4:$BO$7841,AA$5,FALSE))="","",IF($Y26="Número",VLOOKUP($B26&"_1",Base!$E$4:$BO$7841,AA$6,FALSE),VLOOKUP($B26&"_1",Base!$E$4:$BO$7841,AA$5,FALSE))) -> 115831 | AB26: =IF(IF($Y26="Número",VLOOKUP($B26&"_1",Base!$E$4:$BO$7841,AB$6,FALSE),VLOOKUP($B26&"_1",Base!$E$4:$BO$7841,AB$5,FALSE))="","",IF($Y26="Número",VLOOKUP($B26&"_1",Base!$E$4:$BO$7841,AB$6,FALSE),VLOOKUP($B26&"_1",Base!$E$4:$BO$7841,AB$5,FALSE))) ->  | AC26: =IF(IF($Y26="Número",VLOOKUP($B26&"_1",Base!$E$4:$BO$7841,AC$6,FALSE),VLOOKUP($B26&"_1",Base!$E$4:$BO$7841,AC$5,FALSE))="","",IF($Y26="Número",VLOOKUP($B26&"_1",Base!$E$4:$BO$7841,AC$6,FALSE),VLOOKUP($B26&"_1",Base!$E$4:$BO$7841,AC$5,FALSE))) ->  | AD26: =IF(IF($Y26="Número",VLOOKUP($B26&"_1",Base!$E$4:$BO$7841,AD$6,FALSE),VLOOKUP($B26&"_1",Base!$E$4:$BO$7841,AD$5,FALSE))="","",IF($Y26="Número",VLOOKUP($B26&"_1",Base!$E$4:$BO$7841,AD$6,FALSE),VLOOKUP($B26&"_1",Base!$E$4:$BO$7841,AD$5,FALSE))) ->  | AE26: =IF(IF($Y26="Número",VLOOKUP($B26&"_1",Base!$E$4:$BO$7841,AE$6,FALSE),VLOOKUP($B26&"_1",Base!$E$4:$BO$7841,AE$5,FALSE))="","",IF($Y26="Número",VLOOKUP($B26&"_1",Base!$E$4:$BO$7841,AE$6,FALSE),VLOOKUP($B26&"_1",Base!$E$4:$BO$7841,AE$5,FALSE))) ->  | AF26: =IF(IF($Y26="Número",VLOOKUP($B26&"_1",Base!$E$4:$BO$7841,AF$6,FALSE),VLOOKUP($B26&"_1",Base!$E$4:$BO$7841,AF$5,FALSE))="","",IF($Y26="Número",VLOOKUP($B26&"_1",Base!$E$4:$BO$7841,AF$6,FALSE),VLOOKUP($B26&"_1",Base!$E$4:$BO$7841,AF$5,FALSE))) ->  | AG26: =IF(IF($Y26="Número",VLOOKUP($B26&"_1",Base!$E$4:$BO$7841,AG$6,FALSE),VLOOKUP($B26&"_1",Base!$E$4:$BO$7841,AG$5,FALSE))="","",IF($Y26="Número",VLOOKUP($B26&"_1",Base!$E$4:$BO$7841,AG$6,FALSE),VLOOKUP($B26&"_1",Base!$E$4:$BO$7841,AG$5,FALSE))) ->  | AH26: =IF(IF($Y26="Número",VLOOKUP($B26&"_1",Base!$E$4:$BO$7841,AH$6,FALSE),VLOOKUP($B26&"_1",Base!$E$4:$BO$7841,AH$5,FALSE))="","",IF($Y26="Número",VLOOKUP($B26&"_1",Base!$E$4:$BO$7841,AH$6,FALSE),VLOOKUP($B26&"_1",Base!$E$4:$BO$7841,AH$5,FALSE))) ->  | AI26: =IF(IF($Y26="Número",VLOOKUP($B26&"_1",Base!$E$4:$BO$7841,AI$6,FALSE),VLOOKUP($B26&"_1",Base!$E$4:$BO$7841,AI$5,FALSE))="","",IF($Y26="Número",VLOOKUP($B26&"_1",Base!$E$4:$BO$7841,AI$6,FALSE),VLOOKUP($B26&"_1",Base!$E$4:$BO$7841,AI$5,FALSE))) ->  | AJ26: =IF(IF($Y26="Número",VLOOKUP($B26&"_1",Base!$E$4:$BO$7841,AJ$6,FALSE),VLOOKUP($B26&"_1",Base!$E$4:$BO$7841,AJ$5,FALSE))="","",IF($Y26="Número",VLOOKUP($B26&"_1",Base!$E$4:$BO$7841,AJ$6,FALSE),VLOOKUP($B26&"_1",Base!$E$4:$BO$7841,AJ$5,FALSE))) ->  | AK26: =IF(IF($Y26="Número",VLOOKUP($B26&"_1",Base!$E$4:$BO$7841,AK$6,FALSE),VLOOKUP($B26&"_1",Base!$E$4:$BO$7841,AK$5,FALSE))="","",IF($Y26="Número",VLOOKUP($B26&"_1",Base!$E$4:$BO$7841,AK$6,FALSE),VLOOKUP($B26&"_1",Base!$E$4:$BO$7841,AK$5,FALSE))) -> 
B27: PA-20 | C27: =+VLOOKUP(B27,'tablero nal'!$W$9:$X$171,2,FALSE) -> Porcentaje de avance en el diseño e implementación de un modelo de enfoque conceptual de inclusión y atención a las familias con las áreas misionales | E27: - | F27: =+VLOOKUP(B27,'tablero nal'!$W$9:$BB$171,4,FALSE) -> 1 | G27: 0.75 | H27: 0.75 | I27: 0.2 | J27: 0.192 | K27: 0.96 | L27: 0.5 | M27: 0.492 | N27: 0.984 | O27: 0.75 | P27: 0.75 | Q27: 1 | R27: =+VLOOKUP(B27,'tablero nal'!$W$9:$AB$171,6,FALSE) -> 1 | S27: NA | T27: NA | Y27: =+VLOOKUP(B27,'tablero nal'!$W$9:$AL$171,16,FALSE) -> Porcentaje Avance | Z27: =IF(IF($Y27="Número",VLOOKUP($B27&"_1",Base!$E$4:$BO$7841,Z$6,FALSE),VLOOKUP($B27&"_1",Base!$E$4:$BO$7841,Z$5,FALSE))="","",IF($Y27="Número",VLOOKUP($B27&"_1",Base!$E$4:$BO$7841,Z$6,FALSE),VLOOKUP($B27&"_1",Base!$E$4:$BO$7841,Z$5,FALSE))) -> NA | AA27: =IF(IF($Y27="Número",VLOOKUP($B27&"_1",Base!$E$4:$BO$7841,AA$6,FALSE),VLOOKUP($B27&"_1",Base!$E$4:$BO$7841,AA$5,FALSE))="","",IF($Y27="Número",VLOOKUP($B27&"_1",Base!$E$4:$BO$7841,AA$6,FALSE),VLOOKUP($B27&"_1",Base!$E$4:$BO$7841,AA$5,FALSE))) -> NA | AB27: =IF(IF($Y27="Número",VLOOKUP($B27&"_1",Base!$E$4:$BO$7841,AB$6,FALSE),VLOOKUP($B27&"_1",Base!$E$4:$BO$7841,AB$5,FALSE))="","",IF($Y27="Número",VLOOKUP($B27&"_1",Base!$E$4:$BO$7841,AB$6,FALSE),VLOOKUP($B27&"_1",Base!$E$4:$BO$7841,AB$5,FALSE))) ->  | AC27: =IF(IF($Y27="Número",VLOOKUP($B27&"_1",Base!$E$4:$BO$7841,AC$6,FALSE),VLOOKUP($B27&"_1",Base!$E$4:$BO$7841,AC$5,FALSE))="","",IF($Y27="Número",VLOOKUP($B27&"_1",Base!$E$4:$BO$7841,AC$6,FALSE),VLOOKUP($B27&"_1",Base!$E$4:$BO$7841,AC$5,FALSE))) ->  | AD27: =IF(IF($Y27="Número",VLOOKUP($B27&"_1",Base!$E$4:$BO$7841,AD$6,FALSE),VLOOKUP($B27&"_1",Base!$E$4:$BO$7841,AD$5,FALSE))="","",IF($Y27="Número",VLOOKUP($B27&"_1",Base!$E$4:$BO$7841,AD$6,FALSE),VLOOKUP($B27&"_1",Base!$E$4:$BO$7841,AD$5,FALSE))) ->  | AE27: =IF(IF($Y27="Número",VLOOKUP($B27&"_1",Base!$E$4:$BO$7841,AE$6,FALSE),VLOOKUP($B27&"_1",Base!$E$4:$BO$7841,AE$5,FALSE))="","",IF($Y27="Número",VLOOKUP($B27&"_1",Base!$E$4:$BO$7841,AE$6,FALSE),VLOOKUP($B27&"_1",Base!$E$4:$BO$7841,AE$5,FALSE))) ->  | AF27: =IF(IF($Y27="Número",VLOOKUP($B27&"_1",Base!$E$4:$BO$7841,AF$6,FALSE),VLOOKUP($B27&"_1",Base!$E$4:$BO$7841,AF$5,FALSE))="","",IF($Y27="Número",VLOOKUP($B27&"_1",Base!$E$4:$BO$7841,AF$6,FALSE),VLOOKUP($B27&"_1",Base!$E$4:$BO$7841,AF$5,FALSE))) ->  | AG27: =IF(IF($Y27="Número",VLOOKUP($B27&"_1",Base!$E$4:$BO$7841,AG$6,FALSE),VLOOKUP($B27&"_1",Base!$E$4:$BO$7841,AG$5,FALSE))="","",IF($Y27="Número",VLOOKUP($B27&"_1",Base!$E$4:$BO$7841,AG$6,FALSE),VLOOKUP($B27&"_1",Base!$E$4:$BO$7841,AG$5,FALSE))) ->  | AH27: =IF(IF($Y27="Número",VLOOKUP($B27&"_1",Base!$E$4:$BO$7841,AH$6,FALSE),VLOOKUP($B27&"_1",Base!$E$4:$BO$7841,AH$5,FALSE))="","",IF($Y27="Número",VLOOKUP($B27&"_1",Base!$E$4:$BO$7841,AH$6,FALSE),VLOOKUP($B27&"_1",Base!$E$4:$BO$7841,AH$5,FALSE))) ->  | AI27: =IF(IF($Y27="Número",VLOOKUP($B27&"_1",Base!$E$4:$BO$7841,AI$6,FALSE),VLOOKUP($B27&"_1",Base!$E$4:$BO$7841,AI$5,FALSE))="","",IF($Y27="Número",VLOOKUP($B27&"_1",Base!$E$4:$BO$7841,AI$6,FALSE),VLOOKUP($B27&"_1",Base!$E$4:$BO$7841,AI$5,FALSE))) ->  | AJ27: =IF(IF($Y27="Número",VLOOKUP($B27&"_1",Base!$E$4:$BO$7841,AJ$6,FALSE),VLOOKUP($B27&"_1",Base!$E$4:$BO$7841,AJ$5,FALSE))="","",IF($Y27="Número",VLOOKUP($B27&"_1",Base!$E$4:$BO$7841,AJ$6,FALSE),VLOOKUP($B27&"_1",Base!$E$4:$BO$7841,AJ$5,FALSE))) ->  | AK27: =IF(IF($Y27="Número",VLOOKUP($B27&"_1",Base!$E$4:$BO$7841,AK$6,FALSE),VLOOKUP($B27&"_1",Base!$E$4:$BO$7841,AK$5,FALSE))="","",IF($Y27="Número",VLOOKUP($B27&"_1",Base!$E$4:$BO$7841,AK$6,FALSE),VLOOKUP($B27&"_1",Base!$E$4:$BO$7841,AK$5,FALSE))) -> 
B28: PA-21 | C28: =+VLOOKUP(B28,'tablero nal'!$W$9:$X$171,2,FALSE) -> Número de Familias atendidas mediante formas innovadoras de intervención | E28: - | F28: =+VLOOKUP(B28,'tablero nal'!$W$9:$BB$171,4,FALSE) -> 34078 | G28: 40424 | H28: 1.186219849 | I28: 1028 | J28: 1028 | K28: 1 | L28: 8078 | M28: 8078 | N28: 1 | O28: 21181 | P28: 24447 | Q28: 1.154194797 | R28: =+VLOOKUP(B28,'tablero nal'!$W$9:$AB$171,6,FALSE) -> 34078 | S28: 40424 | T28: 1.186219849 | Y28: =+VLOOKUP(B28,'tablero nal'!$W$9:$AL$171,16,FALSE) -> Número | Z28: =IF(IF($Y28="Número",VLOOKUP($B28&"_1",Base!$E$4:$BO$7841,Z$6,FALSE),VLOOKUP($B28&"_1",Base!$E$4:$BO$7841,Z$5,FALSE))="","",IF($Y28="Número",VLOOKUP($B28&"_1",Base!$E$4:$BO$7841,Z$6,FALSE),VLOOKUP($B28&"_1",Base!$E$4:$BO$7841,Z$5,FALSE))) -> NA | AA28: =IF(IF($Y28="Número",VLOOKUP($B28&"_1",Base!$E$4:$BO$7841,AA$6,FALSE),VLOOKUP($B28&"_1",Base!$E$4:$BO$7841,AA$5,FALSE))="","",IF($Y28="Número",VLOOKUP($B28&"_1",Base!$E$4:$BO$7841,AA$6,FALSE),VLOOKUP($B28&"_1",Base!$E$4:$BO$7841,AA$5,FALSE))) -> 40424 | AB28: =IF(IF($Y28="Número",VLOOKUP($B28&"_1",Base!$E$4:$BO$7841,AB$6,FALSE),VLOOKUP($B28&"_1",Base!$E$4:$BO$7841,AB$5,FALSE))="","",IF($Y28="Número",VLOOKUP($B28&"_1",Base!$E$4:$BO$7841,AB$6,FALSE),VLOOKUP($B28&"_1",Base!$E$4:$BO$7841,AB$5,FALSE))) ->  | AC28: =IF(IF($Y28="Número",VLOOKUP($B28&"_1",Base!$E$4:$BO$7841,AC$6,FALSE),VLOOKUP($B28&"_1",Base!$E$4:$BO$7841,AC$5,FALSE))="","",IF($Y28="Número",VLOOKUP($B28&"_1",Base!$E$4:$BO$7841,AC$6,FALSE),VLOOKUP($B28&"_1",Base!$E$4:$BO$7841,AC$5,FALSE))) ->  | AD28: =IF(IF($Y28="Número",VLOOKUP($B28&"_1",Base!$E$4:$BO$7841,AD$6,FALSE),VLOOKUP($B28&"_1",Base!$E$4:$BO$7841,AD$5,FALSE))="","",IF($Y28="Número",VLOOKUP($B28&"_1",Base!$E$4:$BO$7841,AD$6,FALSE),VLOOKUP($B28&"_1",Base!$E$4:$BO$7841,AD$5,FALSE))) ->  | AE28: =IF(IF($Y28="Número",VLOOKUP($B28&"_1",Base!$E$4:$BO$7841,AE$6,FALSE),VLOOKUP($B28&"_1",Base!$E$4:$BO$7841,AE$5,FALSE))="","",IF($Y28="Número",VLOOKUP($B28&"_1",Base!$E$4:$BO$7841,AE$6,FALSE),VLOOKUP($B28&"_1",Base!$E$4:$BO$7841,AE$5,FALSE))) ->  | AF28: =IF(IF($Y28="Número",VLOOKUP($B28&"_1",Base!$E$4:$BO$7841,AF$6,FALSE),VLOOKUP($B28&"_1",Base!$E$4:$BO$7841,AF$5,FALSE))="","",IF($Y28="Número",VLOOKUP($B28&"_1",Base!$E$4:$BO$7841,AF$6,FALSE),VLOOKUP($B28&"_1",Base!$E$4:$BO$7841,AF$5,FALSE))) ->  | AG28: =IF(IF($Y28="Número",VLOOKUP($B28&"_1",Base!$E$4:$BO$7841,AG$6,FALSE),VLOOKUP($B28&"_1",Base!$E$4:$BO$7841,AG$5,FALSE))="","",IF($Y28="Número",VLOOKUP($B28&"_1",Base!$E$4:$BO$7841,AG$6,FALSE),VLOOKUP($B28&"_1",Base!$E$4:$BO$7841,AG$5,FALSE))) ->  | AH28: =IF(IF($Y28="Número",VLOOKUP($B28&"_1",Base!$E$4:$BO$7841,AH$6,FALSE),VLOOKUP($B28&"_1",Base!$E$4:$BO$7841,AH$5,FALSE))="","",IF($Y28="Número",VLOOKUP($B28&"_1",Base!$E$4:$BO$7841,AH$6,FALSE),VLOOKUP($B28&"_1",Base!$E$4:$BO$7841,AH$5,FALSE))) ->  | AI28: =IF(IF($Y28="Número",VLOOKUP($B28&"_1",Base!$E$4:$BO$7841,AI$6,FALSE),VLOOKUP($B28&"_1",Base!$E$4:$BO$7841,AI$5,FALSE))="","",IF($Y28="Número",VLOOKUP($B28&"_1",Base!$E$4:$BO$7841,AI$6,FALSE),VLOOKUP($B28&"_1",Base!$E$4:$BO$7841,AI$5,FALSE))) ->  | AJ28: =IF(IF($Y28="Número",VLOOKUP($B28&"_1",Base!$E$4:$BO$7841,AJ$6,FALSE),VLOOKUP($B28&"_1",Base!$E$4:$BO$7841,AJ$5,FALSE))="","",IF($Y28="Número",VLOOKUP($B28&"_1",Base!$E$4:$BO$7841,AJ$6,FALSE),VLOOKUP($B28&"_1",Base!$E$4:$BO$7841,AJ$5,FALSE))) ->  | AK28: =IF(IF($Y28="Número",VLOOKUP($B28&"_1",Base!$E$4:$BO$7841,AK$6,FALSE),VLOOKUP($B28&"_1",Base!$E$4:$BO$7841,AK$5,FALSE))="","",IF($Y28="Número",VLOOKUP($B28&"_1",Base!$E$4:$BO$7841,AK$6,FALSE),VLOOKUP($B28&"_1",Base!$E$4:$BO$7841,AK$5,FALSE))) -> 
B29: PA-24 | C29: =+VLOOKUP(B29,'tablero nal'!$W$9:$X$171,2,FALSE) -> Número de Toneladas distribuidas de Alimentos de Alto Valor Nutricional | E29: 21427.6608 | F29: =+VLOOKUP(B29,'tablero nal'!$W$9:$BB$171,4,FALSE) -> 80000 | G29: 69341 | H29: 0.8667625 | I29: 22000 | J29: 26893 | K29: 1.222409091 | L29: 44000 | M29: 47493.5 | N29: NA | O29: 62000 | P29: 66440 | Q29: 1.071612903 | R29: =+VLOOKUP(B29,'tablero nal'!$W$9:$AB$171,6,FALSE) -> 80000 | S29: 69341 | T29: 0.8667625 | Y29: =+VLOOKUP(B29,'tablero nal'!$W$9:$AL$171,16,FALSE) -> Número | Z29: =IF(IF($Y29="Número",VLOOKUP($B29&"_1",Base!$E$4:$BO$7841,Z$6,FALSE),VLOOKUP($B29&"_1",Base!$E$4:$BO$7841,Z$5,FALSE))="","",IF($Y29="Número",VLOOKUP($B29&"_1",Base!$E$4:$BO$7841,Z$6,FALSE),VLOOKUP($B29&"_1",Base!$E$4:$BO$7841,Z$5,FALSE))) -> 67122 | AA29: =IF(IF($Y29="Número",VLOOKUP($B29&"_1",Base!$E$4:$BO$7841,AA$6,FALSE),VLOOKUP($B29&"_1",Base!$E$4:$BO$7841,AA$5,FALSE))="","",IF($Y29="Número",VLOOKUP($B29&"_1",Base!$E$4:$BO$7841,AA$6,FALSE),VLOOKUP($B29&"_1",Base!$E$4:$BO$7841,AA$5,FALSE))) -> 69341 | AB29: =IF(IF($Y29="Número",VLOOKUP($B29&"_1",Base!$E$4:$BO$7841,AB$6,FALSE),VLOOKUP($B29&"_1",Base!$E$4:$BO$7841,AB$5,FALSE))="","",IF($Y29="Número",VLOOKUP($B29&"_1",Base!$E$4:$BO$7841,AB$6,FALSE),VLOOKUP($B29&"_1",Base!$E$4:$BO$7841,AB$5,FALSE))) ->  | AC29: =IF(IF($Y29="Número",VLOOKUP($B29&"_1",Base!$E$4:$BO$7841,AC$6,FALSE),VLOOKUP($B29&"_1",Base!$E$4:$BO$7841,AC$5,FALSE))="","",IF($Y29="Número",VLOOKUP($B29&"_1",Base!$E$4:$BO$7841,AC$6,FALSE),VLOOKUP($B29&"_1",Base!$E$4:$BO$7841,AC$5,FALSE))) ->  | AD29: =IF(IF($Y29="Número",VLOOKUP($B29&"_1",Base!$E$4:$BO$7841,AD$6,FALSE),VLOOKUP($B29&"_1",Base!$E$4:$BO$7841,AD$5,FALSE))="","",IF($Y29="Número",VLOOKUP($B29&"_1",Base!$E$4:$BO$7841,AD$6,FALSE),VLOOKUP($B29&"_1",Base!$E$4:$BO$7841,AD$5,FALSE))) ->  | AE29: =IF(IF($Y29="Número",VLOOKUP($B29&"_1",Base!$E$4:$BO$7841,AE$6,FALSE),VLOOKUP($B29&"_1",Base!$E$4:$BO$7841,AE$5,FALSE))="","",IF($Y29="Número",VLOOKUP($B29&"_1",Base!$E$4:$BO$7841,AE$6,FALSE),VLOOKUP($B29&"_1",Base!$E$4:$BO$7841,AE$5,FALSE))) ->  | AF29: =IF(IF($Y29="Número",VLOOKUP($B29&"_1",Base!$E$4:$BO$7841,AF$6,FALSE),VLOOKUP($B29&"_1",Base!$E$4:$BO$7841,AF$5,FALSE))="","",IF($Y29="Número",VLOOKUP($B29&"_1",Base!$E$4:$BO$7841,AF$6,FALSE),VLOOKUP($B29&"_1",Base!$E$4:$BO$7841,AF$5,FALSE))) ->  | AG29: =IF(IF($Y29="Número",VLOOKUP($B29&"_1",Base!$E$4:$BO$7841,AG$6,FALSE),VLOOKUP($B29&"_1",Base!$E$4:$BO$7841,AG$5,FALSE))="","",IF($Y29="Número",VLOOKUP($B29&"_1",Base!$E$4:$BO$7841,AG$6,FALSE),VLOOKUP($B29&"_1",Base!$E$4:$BO$7841,AG$5,FALSE))) ->  | AH29: =IF(IF($Y29="Número",VLOOKUP($B29&"_1",Base!$E$4:$BO$7841,AH$6,FALSE),VLOOKUP($B29&"_1",Base!$E$4:$BO$7841,AH$5,FALSE))="","",IF($Y29="Número",VLOOKUP($B29&"_1",Base!$E$4:$BO$7841,AH$6,FALSE),VLOOKUP($B29&"_1",Base!$E$4:$BO$7841,AH$5,FALSE))) ->  | AI29: =IF(IF($Y29="Número",VLOOKUP($B29&"_1",Base!$E$4:$BO$7841,AI$6,FALSE),VLOOKUP($B29&"_1",Base!$E$4:$BO$7841,AI$5,FALSE))="","",IF($Y29="Número",VLOOKUP($B29&"_1",Base!$E$4:$BO$7841,AI$6,FALSE),VLOOKUP($B29&"_1",Base!$E$4:$BO$7841,AI$5,FALSE))) ->  | AJ29: =IF(IF($Y29="Número",VLOOKUP($B29&"_1",Base!$E$4:$BO$7841,AJ$6,FALSE),VLOOKUP($B29&"_1",Base!$E$4:$BO$7841,AJ$5,FALSE))="","",IF($Y29="Número",VLOOKUP($B29&"_1",Base!$E$4:$BO$7841,AJ$6,FALSE),VLOOKUP($B29&"_1",Base!$E$4:$BO$7841,AJ$5,FALSE))) ->  | AK29: =IF(IF($Y29="Número",VLOOKUP($B29&"_1",Base!$E$4:$BO$7841,AK$6,FALSE),VLOOKUP($B29&"_1",Base!$E$4:$BO$7841,AK$5,FALSE))="","",IF($Y29="Número",VLOOKUP($B29&"_1",Base!$E$4:$BO$7841,AK$6,FALSE),VLOOKUP($B29&"_1",Base!$E$4:$BO$7841,AK$5,FALSE))) -> 
B30: PA-25 | C30: =+VLOOKUP(B30,'tablero nal'!$W$9:$X$171,2,FALSE) -> Número de Toneladas producidas de Alimentos de Alto Valor Nutricional | E30: 22074.198 | F30: =+VLOOKUP(B30,'tablero nal'!$W$9:$BB$171,4,FALSE) -> 80000 | G30: 66686.3 | H30: 0.83357875 | I30: 22000 | J30: 26741 | K30: 1.2155 | L30: 44000 | M30: 44769 | N30: 1.017477273 | O30: 62000 | P30: 63198.1 | Q30: 1.019324194 | R30: =+VLOOKUP(B30,'tablero nal'!$W$9:$AB$171,6,FALSE) -> 80000 | S30: 66686.3 | T30: 0.83357875 | Y30: =+VLOOKUP(B30,'tablero nal'!$W$9:$AL$171,16,FALSE) -> Número | Z30: =IF(IF($Y30="Número",VLOOKUP($B30&"_1",Base!$E$4:$BO$7841,Z$6,FALSE),VLOOKUP($B30&"_1",Base!$E$4:$BO$7841,Z$5,FALSE))="","",IF($Y30="Número",VLOOKUP($B30&"_1",Base!$E$4:$BO$7841,Z$6,FALSE),VLOOKUP($B30&"_1",Base!$E$4:$BO$7841,Z$5,FALSE))) -> 64015.5 | AA30: =IF(IF($Y30="Número",VLOOKUP($B30&"_1",Base!$E$4:$BO$7841,AA$6,FALSE),VLOOKUP($B30&"_1",Base!$E$4:$BO$7841,AA$5,FALSE))="","",IF($Y30="Número",VLOOKUP($B30&"_1",Base!$E$4:$BO$7841,AA$6,FALSE),VLOOKUP($B30&"_1",Base!$E$4:$BO$7841,AA$5,FALSE))) -> 66686.3 | AB30: =IF(IF($Y30="Número",VLOOKUP($B30&"_1",Base!$E$4:$BO$7841,AB$6,FALSE),VLOOKUP($B30&"_1",Base!$E$4:$BO$7841,AB$5,FALSE))="","",IF($Y30="Número",VLOOKUP($B30&"_1",Base!$E$4:$BO$7841,AB$6,FALSE),VLOOKUP($B30&"_1",Base!$E$4:$BO$7841,AB$5,FALSE))) ->  | AC30: =IF(IF($Y30="Número",VLOOKUP($B30&"_1",Base!$E$4:$BO$7841,AC$6,FALSE),VLOOKUP($B30&"_1",Base!$E$4:$BO$7841,AC$5,FALSE))="","",IF($Y30="Número",VLOOKUP($B30&"_1",Base!$E$4:$BO$7841,AC$6,FALSE),VLOOKUP($B30&"_1",Base!$E$4:$BO$7841,AC$5,FALSE))) ->  | AD30: =IF(IF($Y30="Número",VLOOKUP($B30&"_1",Base!$E$4:$BO$7841,AD$6,FALSE),VLOOKUP($B30&"_1",Base!$E$4:$BO$7841,AD$5,FALSE))="","",IF($Y30="Número",VLOOKUP($B30&"_1",Base!$E$4:$BO$7841,AD$6,FALSE),VLOOKUP($B30&"_1",Base!$E$4:$BO$7841,AD$5,FALSE))) ->  | AE30: =IF(IF($Y30="Número",VLOOKUP($B30&"_1",Base!$E$4:$BO$7841,AE$6,FALSE),VLOOKUP($B30&"_1",Base!$E$4:$BO$7841,AE$5,FALSE))="","",IF($Y30="Número",VLOOKUP($B30&"_1",Base!$E$4:$BO$7841,AE$6,FALSE),VLOOKUP($B30&"_1",Base!$E$4:$BO$7841,AE$5,FALSE))) ->  | AF30: =IF(IF($Y30="Número",VLOOKUP($B30&"_1",Base!$E$4:$BO$7841,AF$6,FALSE),VLOOKUP($B30&"_1",Base!$E$4:$BO$7841,AF$5,FALSE))="","",IF($Y30="Número",VLOOKUP($B30&"_1",Base!$E$4:$BO$7841,AF$6,FALSE),VLOOKUP($B30&"_1",Base!$E$4:$BO$7841,AF$5,FALSE))) ->  | AG30: =IF(IF($Y30="Número",VLOOKUP($B30&"_1",Base!$E$4:$BO$7841,AG$6,FALSE),VLOOKUP($B30&"_1",Base!$E$4:$BO$7841,AG$5,FALSE))="","",IF($Y30="Número",VLOOKUP($B30&"_1",Base!$E$4:$BO$7841,AG$6,FALSE),VLOOKUP($B30&"_1",Base!$E$4:$BO$7841,AG$5,FALSE))) ->  | AH30: =IF(IF($Y30="Número",VLOOKUP($B30&"_1",Base!$E$4:$BO$7841,AH$6,FALSE),VLOOKUP($B30&"_1",Base!$E$4:$BO$7841,AH$5,FALSE))="","",IF($Y30="Número",VLOOKUP($B30&"_1",Base!$E$4:$BO$7841,AH$6,FALSE),VLOOKUP($B30&"_1",Base!$E$4:$BO$7841,AH$5,FALSE))) ->  | AI30: =IF(IF($Y30="Número",VLOOKUP($B30&"_1",Base!$E$4:$BO$7841,AI$6,FALSE),VLOOKUP($B30&"_1",Base!$E$4:$BO$7841,AI$5,FALSE))="","",IF($Y30="Número",VLOOKUP($B30&"_1",Base!$E$4:$BO$7841,AI$6,FALSE),VLOOKUP($B30&"_1",Base!$E$4:$BO$7841,AI$5,FALSE))) ->  | AJ30: =IF(IF($Y30="Número",VLOOKUP($B30&"_1",Base!$E$4:$BO$7841,AJ$6,FALSE),VLOOKUP($B30&"_1",Base!$E$4:$BO$7841,AJ$5,FALSE))="","",IF($Y30="Número",VLOOKUP($B30&"_1",Base!$E$4:$BO$7841,AJ$6,FALSE),VLOOKUP($B30&"_1",Base!$E$4:$BO$7841,AJ$5,FALSE))) ->  | AK30: =IF(IF($Y30="Número",VLOOKUP($B30&"_1",Base!$E$4:$BO$7841,AK$6,FALSE),VLOOKUP($B30&"_1",Base!$E$4:$BO$7841,AK$5,FALSE))="","",IF($Y30="Número",VLOOKUP($B30&"_1",Base!$E$4:$BO$7841,AK$6,FALSE),VLOOKUP($B30&"_1",Base!$E$4:$BO$7841,AK$5,FALSE))) -> 
B31: PA-26 | C31: =+VLOOKUP(B31,'tablero nal'!$W$9:$X$171,2,FALSE) -> Porcentaje de mujeres en periodo de gestación atendidas en la modalidad 1.000 días para cambiar el mundo que mejoran su estado nutricional | E31: - | F31: =+VLOOKUP(B31,'tablero nal'!$W$9:$BB$171,4,FALSE) -> 0.65 | G31: 0.501 | H31: 0.7707692308 | I31: 0.7 | J31: 0.5703 | K31: 0.8147142857 | L31: 0.7 | M31: 0.407 | N31: 0.5814285714 | O31: 0.5 | P31: 0.501 | Q31: 1.002 | R31: =+VLOOKUP(B31,'tablero nal'!$W$9:$AB$171,6,FALSE) -> 0.65 | S31: NA | T31: NA | Y31: =+VLOOKUP(B31,'tablero nal'!$W$9:$AL$171,16,FALSE) -> Porcentaje | Z31: =IF(IF($Y31="Número",VLOOKUP($B31&"_1",Base!$E$4:$BO$7841,Z$6,FALSE),VLOOKUP($B31&"_1",Base!$E$4:$BO$7841,Z$5,FALSE))="","",IF($Y31="Número",VLOOKUP($B31&"_1",Base!$E$4:$BO$7841,Z$6,FALSE),VLOOKUP($B31&"_1",Base!$E$4:$BO$7841,Z$5,FALSE))) -> NA | AA31: =IF(IF($Y31="Número",VLOOKUP($B31&"_1",Base!$E$4:$BO$7841,AA$6,FALSE),VLOOKUP($B31&"_1",Base!$E$4:$BO$7841,AA$5,FALSE))="","",IF($Y31="Número",VLOOKUP($B31&"_1",Base!$E$4:$BO$7841,AA$6,FALSE),VLOOKUP($B31&"_1",Base!$E$4:$BO$7841,AA$5,FALSE))) -> NA | AB31: =IF(IF($Y31="Número",VLOOKUP($B31&"_1",Base!$E$4:$BO$7841,AB$6,FALSE),VLOOKUP($B31&"_1",Base!$E$4:$BO$7841,AB$5,FALSE))="","",IF($Y31="Número",VLOOKUP($B31&"_1",Base!$E$4:$BO$7841,AB$6,FALSE),VLOOKUP($B31&"_1",Base!$E$4:$BO$7841,AB$5,FALSE))) ->  | AC31: =IF(IF($Y31="Número",VLOOKUP($B31&"_1",Base!$E$4:$BO$7841,AC$6,FALSE),VLOOKUP($B31&"_1",Base!$E$4:$BO$7841,AC$5,FALSE))="","",IF($Y31="Número",VLOOKUP($B31&"_1",Base!$E$4:$BO$7841,AC$6,FALSE),VLOOKUP($B31&"_1",Base!$E$4:$BO$7841,AC$5,FALSE))) ->  | AD31: =IF(IF($Y31="Número",VLOOKUP($B31&"_1",Base!$E$4:$BO$7841,AD$6,FALSE),VLOOKUP($B31&"_1",Base!$E$4:$BO$7841,AD$5,FALSE))="","",IF($Y31="Número",VLOOKUP($B31&"_1",Base!$E$4:$BO$7841,AD$6,FALSE),VLOOKUP($B31&"_1",Base!$E$4:$BO$7841,AD$5,FALSE))) ->  | AE31: =IF(IF($Y31="Número",VLOOKUP($B31&"_1",Base!$E$4:$BO$7841,AE$6,FALSE),VLOOKUP($B31&"_1",Base!$E$4:$BO$7841,AE$5,FALSE))="","",IF($Y31="Número",VLOOKUP($B31&"_1",Base!$E$4:$BO$7841,AE$6,FALSE),VLOOKUP($B31&"_1",Base!$E$4:$BO$7841,AE$5,FALSE))) ->  | AF31: =IF(IF($Y31="Número",VLOOKUP($B31&"_1",Base!$E$4:$BO$7841,AF$6,FALSE),VLOOKUP($B31&"_1",Base!$E$4:$BO$7841,AF$5,FALSE))="","",IF($Y31="Número",VLOOKUP($B31&"_1",Base!$E$4:$BO$7841,AF$6,FALSE),VLOOKUP($B31&"_1",Base!$E$4:$BO$7841,AF$5,FALSE))) ->  | AG31: =IF(IF($Y31="Número",VLOOKUP($B31&"_1",Base!$E$4:$BO$7841,AG$6,FALSE),VLOOKUP($B31&"_1",Base!$E$4:$BO$7841,AG$5,FALSE))="","",IF($Y31="Número",VLOOKUP($B31&"_1",Base!$E$4:$BO$7841,AG$6,FALSE),VLOOKUP($B31&"_1",Base!$E$4:$BO$7841,AG$5,FALSE))) ->  | AH31: =IF(IF($Y31="Número",VLOOKUP($B31&"_1",Base!$E$4:$BO$7841,AH$6,FALSE),VLOOKUP($B31&"_1",Base!$E$4:$BO$7841,AH$5,FALSE))="","",IF($Y31="Número",VLOOKUP($B31&"_1",Base!$E$4:$BO$7841,AH$6,FALSE),VLOOKUP($B31&"_1",Base!$E$4:$BO$7841,AH$5,FALSE))) ->  | AI31: =IF(IF($Y31="Número",VLOOKUP($B31&"_1",Base!$E$4:$BO$7841,AI$6,FALSE),VLOOKUP($B31&"_1",Base!$E$4:$BO$7841,AI$5,FALSE))="","",IF($Y31="Número",VLOOKUP($B31&"_1",Base!$E$4:$BO$7841,AI$6,FALSE),VLOOKUP($B31&"_1",Base!$E$4:$BO$7841,AI$5,FALSE))) ->  | AJ31: =IF(IF($Y31="Número",VLOOKUP($B31&"_1",Base!$E$4:$BO$7841,AJ$6,FALSE),VLOOKUP($B31&"_1",Base!$E$4:$BO$7841,AJ$5,FALSE))="","",IF($Y31="Número",VLOOKUP($B31&"_1",Base!$E$4:$BO$7841,AJ$6,FALSE),VLOOKUP($B31&"_1",Base!$E$4:$BO$7841,AJ$5,FALSE))) ->  | AK31: =IF(IF($Y31="Número",VLOOKUP($B31&"_1",Base!$E$4:$BO$7841,AK$6,FALSE),VLOOKUP($B31&"_1",Base!$E$4:$BO$7841,AK$5,FALSE))="","",IF($Y31="Número",VLOOKUP($B31&"_1",Base!$E$4:$BO$7841,AK$6,FALSE),VLOOKUP($B31&"_1",Base!$E$4:$BO$7841,AK$5,FALSE))) -> 
B32: PA-27 | C32: =+VLOOKUP(B32,'tablero nal'!$W$9:$X$171,2,FALSE) -> Porcentaje de niños y niñas menores de 2 años que mejoraron su estado nutricional atendidos en la modalidad 1.000 días para cambiar el mundo. | E32: 0.7 | F32: =+VLOOKUP(B32,'tablero nal'!$W$9:$BB$171,4,FALSE) -> 0.8 | G32: 0.8 | H32: 1 | I32: 0.8 | J32: 0.7089 | K32: 0.886125 | L32: 0.8 | M32: 0.775 | N32: 0.96875 | O32: 0.8 | P32: 0.8 | Q32: 1 | R32: =+VLOOKUP(B32,'tablero nal'!$W$9:$AB$171,6,FALSE) -> 0.8 | S32: NA | T32: NA | Y32: =+VLOOKUP(B32,'tablero nal'!$W$9:$AL$171,16,FALSE) -> Porcentaje | Z32: =IF(IF($Y32="Número",VLOOKUP($B32&"_1",Base!$E$4:$BO$7841,Z$6,FALSE),VLOOKUP($B32&"_1",Base!$E$4:$BO$7841,Z$5,FALSE))="","",IF($Y32="Número",VLOOKUP($B32&"_1",Base!$E$4:$BO$7841,Z$6,FALSE),VLOOKUP($B32&"_1",Base!$E$4:$BO$7841,Z$5,FALSE))) -> NA | AA32: =IF(IF($Y32="Número",VLOOKUP($B32&"_1",Base!$E$4:$BO$7841,AA$6,FALSE),VLOOKUP($B32&"_1",Base!$E$4:$BO$7841,AA$5,FALSE))="","",IF($Y32="Número",VLOOKUP($B32&"_1",Base!$E$4:$BO$7841,AA$6,FALSE),VLOOKUP($B32&"_1",Base!$E$4:$BO$7841,AA$5,FALSE))) -> NA | AB32: =IF(IF($Y32="Número",VLOOKUP($B32&"_1",Base!$E$4:$BO$7841,AB$6,FALSE),VLOOKUP($B32&"_1",Base!$E$4:$BO$7841,AB$5,FALSE))="","",IF($Y32="Número",VLOOKUP($B32&"_1",Base!$E$4:$BO$7841,AB$6,FALSE),VLOOKUP($B32&"_1",Base!$E$4:$BO$7841,AB$5,FALSE))) ->  | AC32: =IF(IF($Y32="Número",VLOOKUP($B32&"_1",Base!$E$4:$BO$7841,AC$6,FALSE),VLOOKUP($B32&"_1",Base!$E$4:$BO$7841,AC$5,FALSE))="","",IF($Y32="Número",VLOOKUP($B32&"_1",Base!$E$4:$BO$7841,AC$6,FALSE),VLOOKUP($B32&"_1",Base!$E$4:$BO$7841,AC$5,FALSE))) ->  | AD32: =IF(IF($Y32="Número",VLOOKUP($B32&"_1",Base!$E$4:$BO$7841,AD$6,FALSE),VLOOKUP($B32&"_1",Base!$E$4:$BO$7841,AD$5,FALSE))="","",IF($Y32="Número",VLOOKUP($B32&"_1",Base!$E$4:$BO$7841,AD$6,FALSE),VLOOKUP($B32&"_1",Base!$E$4:$BO$7841,AD$5,FALSE))) ->  | AE32: =IF(IF($Y32="Número",VLOOKUP($B32&"_1",Base!$E$4:$BO$7841,AE$6,FALSE),VLOOKUP($B32&"_1",Base!$E$4:$BO$7841,AE$5,FALSE))="","",IF($Y32="Número",VLOOKUP($B32&"_1",Base!$E$4:$BO$7841,AE$6,FALSE),VLOOKUP($B32&"_1",Base!$E$4:$BO$7841,AE$5,FALSE))) ->  | AF32: =IF(IF($Y32="Número",VLOOKUP($B32&"_1",Base!$E$4:$BO$7841,AF$6,FALSE),VLOOKUP($B32&"_1",Base!$E$4:$BO$7841,AF$5,FALSE))="","",IF($Y32="Número",VLOOKUP($B32&"_1",Base!$E$4:$BO$7841,AF$6,FALSE),VLOOKUP($B32&"_1",Base!$E$4:$BO$7841,AF$5,FALSE))) ->  | AG32: =IF(IF($Y32="Número",VLOOKUP($B32&"_1",Base!$E$4:$BO$7841,AG$6,FALSE),VLOOKUP($B32&"_1",Base!$E$4:$BO$7841,AG$5,FALSE))="","",IF($Y32="Número",VLOOKUP($B32&"_1",Base!$E$4:$BO$7841,AG$6,FALSE),VLOOKUP($B32&"_1",Base!$E$4:$BO$7841,AG$5,FALSE))) ->  | AH32: =IF(IF($Y32="Número",VLOOKUP($B32&"_1",Base!$E$4:$BO$7841,AH$6,FALSE),VLOOKUP($B32&"_1",Base!$E$4:$BO$7841,AH$5,FALSE))="","",IF($Y32="Número",VLOOKUP($B32&"_1",Base!$E$4:$BO$7841,AH$6,FALSE),VLOOKUP($B32&"_1",Base!$E$4:$BO$7841,AH$5,FALSE))) ->  | AI32: =IF(IF($Y32="Número",VLOOKUP($B32&"_1",Base!$E$4:$BO$7841,AI$6,FALSE),VLOOKUP($B32&"_1",Base!$E$4:$BO$7841,AI$5,FALSE))="","",IF($Y32="Número",VLOOKUP($B32&"_1",Base!$E$4:$BO$7841,AI$6,FALSE),VLOOKUP($B32&"_1",Base!$E$4:$BO$7841,AI$5,FALSE))) ->  | AJ32: =IF(IF($Y32="Número",VLOOKUP($B32&"_1",Base!$E$4:$BO$7841,AJ$6,FALSE),VLOOKUP($B32&"_1",Base!$E$4:$BO$7841,AJ$5,FALSE))="","",IF($Y32="Número",VLOOKUP($B32&"_1",Base!$E$4:$BO$7841,AJ$6,FALSE),VLOOKUP($B32&"_1",Base!$E$4:$BO$7841,AJ$5,FALSE))) ->  | AK32: =IF(IF($Y32="Número",VLOOKUP($B32&"_1",Base!$E$4:$BO$7841,AK$6,FALSE),VLOOKUP($B32&"_1",Base!$E$4:$BO$7841,AK$5,FALSE))="","",IF($Y32="Número",VLOOKUP($B32&"_1",Base!$E$4:$BO$7841,AK$6,FALSE),VLOOKUP($B32&"_1",Base!$E$4:$BO$7841,AK$5,FALSE))) -> 
B33: PA-28 | C33: =+VLOOKUP(B33,'tablero nal'!$W$9:$X$171,2,FALSE) -> Porcentaje de Regionales del ICBF asesoradas en las acciones propias de los ejes de acceso y consumo establecidos en la política de seguridad alimentaria y nutricional. | E33: - | F33: =+VLOOKUP(B33,'tablero nal'!$W$9:$BB$171,4,FALSE) -> 1 | G33: 1 | H33: 1 | I33: 16 | J33: 19 | K33: 1.1875 | L33: 33 | M33: 33 | N33: 1 | O33: 1 | P33: 1 | Q33: 1 | R33: =+VLOOKUP(B33,'tablero nal'!$W$9:$AB$171,6,FALSE) -> 1 | S33: NA | T33: NA | Y33: =+VLOOKUP(B33,'tablero nal'!$W$9:$AL$171,16,FALSE) -> Porcentaje | Z33: =IF(IF($Y33="Número",VLOOKUP($B33&"_1",Base!$E$4:$BO$7841,Z$6,FALSE),VLOOKUP($B33&"_1",Base!$E$4:$BO$7841,Z$5,FALSE))="","",IF($Y33="Número",VLOOKUP($B33&"_1",Base!$E$4:$BO$7841,Z$6,FALSE),VLOOKUP($B33&"_1",Base!$E$4:$BO$7841,Z$5,FALSE))) -> NA | AA33: =IF(IF($Y33="Número",VLOOKUP($B33&"_1",Base!$E$4:$BO$7841,AA$6,FALSE),VLOOKUP($B33&"_1",Base!$E$4:$BO$7841,AA$5,FALSE))="","",IF($Y33="Número",VLOOKUP($B33&"_1",Base!$E$4:$BO$7841,AA$6,FALSE),VLOOKUP($B33&"_1",Base!$E$4:$BO$7841,AA$5,FALSE))) -> NA | AB33: =IF(IF($Y33="Número",VLOOKUP($B33&"_1",Base!$E$4:$BO$7841,AB$6,FALSE),VLOOKUP($B33&"_1",Base!$E$4:$BO$7841,AB$5,FALSE))="","",IF($Y33="Número",VLOOKUP($B33&"_1",Base!$E$4:$BO$7841,AB$6,FALSE),VLOOKUP($B33&"_1",Base!$E$4:$BO$7841,AB$5,FALSE))) ->  | AC33: =IF(IF($Y33="Número",VLOOKUP($B33&"_1",Base!$E$4:$BO$7841,AC$6,FALSE),VLOOKUP($B33&"_1",Base!$E$4:$BO$7841,AC$5,FALSE))="","",IF($Y33="Número",VLOOKUP($B33&"_1",Base!$E$4:$BO$7841,AC$6,FALSE),VLOOKUP($B33&"_1",Base!$E$4:$BO$7841,AC$5,FALSE))) ->  | AD33: =IF(IF($Y33="Número",VLOOKUP($B33&"_1",Base!$E$4:$BO$7841,AD$6,FALSE),VLOOKUP($B33&"_1",Base!$E$4:$BO$7841,AD$5,FALSE))="","",IF($Y33="Número",VLOOKUP($B33&"_1",Base!$E$4:$BO$7841,AD$6,FALSE),VLOOKUP($B33&"_1",Base!$E$4:$BO$7841,AD$5,FALSE))) ->  | AE33: =IF(IF($Y33="Número",VLOOKUP($B33&"_1",Base!$E$4:$BO$7841,AE$6,FALSE),VLOOKUP($B33&"_1",Base!$E$4:$BO$7841,AE$5,FALSE))="","",IF($Y33="Número",VLOOKUP($B33&"_1",Base!$E$4:$BO$7841,AE$6,FALSE),VLOOKUP($B33&"_1",Base!$E$4:$BO$7841,AE$5,FALSE))) ->  | AF33: =IF(IF($Y33="Número",VLOOKUP($B33&"_1",Base!$E$4:$BO$7841,AF$6,FALSE),VLOOKUP($B33&"_1",Base!$E$4:$BO$7841,AF$5,FALSE))="","",IF($Y33="Número",VLOOKUP($B33&"_1",Base!$E$4:$BO$7841,AF$6,FALSE),VLOOKUP($B33&"_1",Base!$E$4:$BO$7841,AF$5,FALSE))) ->  | AG33: =IF(IF($Y33="Número",VLOOKUP($B33&"_1",Base!$E$4:$BO$7841,AG$6,FALSE),VLOOKUP($B33&"_1",Base!$E$4:$BO$7841,AG$5,FALSE))="","",IF($Y33="Número",VLOOKUP($B33&"_1",Base!$E$4:$BO$7841,AG$6,FALSE),VLOOKUP($B33&"_1",Base!$E$4:$BO$7841,AG$5,FALSE))) ->  | AH33: =IF(IF($Y33="Número",VLOOKUP($B33&"_1",Base!$E$4:$BO$7841,AH$6,FALSE),VLOOKUP($B33&"_1",Base!$E$4:$BO$7841,AH$5,FALSE))="","",IF($Y33="Número",VLOOKUP($B33&"_1",Base!$E$4:$BO$7841,AH$6,FALSE),VLOOKUP($B33&"_1",Base!$E$4:$BO$7841,AH$5,FALSE))) ->  | AI33: =IF(IF($Y33="Número",VLOOKUP($B33&"_1",Base!$E$4:$BO$7841,AI$6,FALSE),VLOOKUP($B33&"_1",Base!$E$4:$BO$7841,AI$5,FALSE))="","",IF($Y33="Número",VLOOKUP($B33&"_1",Base!$E$4:$BO$7841,AI$6,FALSE),VLOOKUP($B33&"_1",Base!$E$4:$BO$7841,AI$5,FALSE))) ->  | AJ33: =IF(IF($Y33="Número",VLOOKUP($B33&"_1",Base!$E$4:$BO$7841,AJ$6,FALSE),VLOOKUP($B33&"_1",Base!$E$4:$BO$7841,AJ$5,FALSE))="","",IF($Y33="Número",VLOOKUP($B33&"_1",Base!$E$4:$BO$7841,AJ$6,FALSE),VLOOKUP($B33&"_1",Base!$E$4:$BO$7841,AJ$5,FALSE))) ->  | AK33: =IF(IF($Y33="Número",VLOOKUP($B33&"_1",Base!$E$4:$BO$7841,AK$6,FALSE),VLOOKUP($B33&"_1",Base!$E$4:$BO$7841,AK$5,FALSE))="","",IF($Y33="Número",VLOOKUP($B33&"_1",Base!$E$4:$BO$7841,AK$6,FALSE),VLOOKUP($B33&"_1",Base!$E$4:$BO$7841,AK$5,FALSE))) -> 
B34: PA-29 | C34: =+VLOOKUP(B34,'tablero nal'!$W$9:$X$171,2,FALSE) -> Número de Servidores Públicos, contratistas y Agentes del Sistema Nacional de Bienestar Familiar capacitados en las acciones propias de la Política de Seguridad Alimentaria y Nutricional | E34: - | F34: =+VLOOKUP(B34,'tablero nal'!$W$9:$BB$171,4,FALSE) -> 4758 | G34: 3499 | H34: 0.7353930223 | I34: 1050 | J34: 1050 | K34: 1 | L34: 2240 | M34: 2240 | N34: 1 | O34: 3499 | P34: 3499 | Q34: 1 | R34: =+VLOOKUP(B34,'tablero nal'!$W$9:$AB$171,6,FALSE) -> 4758 | S34: NA | T34: NA | Y34: =+VLOOKUP(B34,'tablero nal'!$W$9:$AL$171,16,FALSE) -> Número | Z34: =IF(IF($Y34="Número",VLOOKUP($B34&"_1",Base!$E$4:$BO$7841,Z$6,FALSE),VLOOKUP($B34&"_1",Base!$E$4:$BO$7841,Z$5,FALSE))="","",IF($Y34="Número",VLOOKUP($B34&"_1",Base!$E$4:$BO$7841,Z$6,FALSE),VLOOKUP($B34&"_1",Base!$E$4:$BO$7841,Z$5,FALSE))) -> NA | AA34: =IF(IF($Y34="Número",VLOOKUP($B34&"_1",Base!$E$4:$BO$7841,AA$6,FALSE),VLOOKUP($B34&"_1",Base!$E$4:$BO$7841,AA$5,FALSE))="","",IF($Y34="Número",VLOOKUP($B34&"_1",Base!$E$4:$BO$7841,AA$6,FALSE),VLOOKUP($B34&"_1",Base!$E$4:$BO$7841,AA$5,FALSE))) -> NA | AB34: =IF(IF($Y34="Número",VLOOKUP($B34&"_1",Base!$E$4:$BO$7841,AB$6,FALSE),VLOOKUP($B34&"_1",Base!$E$4:$BO$7841,AB$5,FALSE))="","",IF($Y34="Número",VLOOKUP($B34&"_1",Base!$E$4:$BO$7841,AB$6,FALSE),VLOOKUP($B34&"_1",Base!$E$4:$BO$7841,AB$5,FALSE))) ->  | AC34: =IF(IF($Y34="Número",VLOOKUP($B34&"_1",Base!$E$4:$BO$7841,AC$6,FALSE),VLOOKUP($B34&"_1",Base!$E$4:$BO$7841,AC$5,FALSE))="","",IF($Y34="Número",VLOOKUP($B34&"_1",Base!$E$4:$BO$7841,AC$6,FALSE),VLOOKUP($B34&"_1",Base!$E$4:$BO$7841,AC$5,FALSE))) ->  | AD34: =IF(IF($Y34="Número",VLOOKUP($B34&"_1",Base!$E$4:$BO$7841,AD$6,FALSE),VLOOKUP($B34&"_1",Base!$E$4:$BO$7841,AD$5,FALSE))="","",IF($Y34="Número",VLOOKUP($B34&"_1",Base!$E$4:$BO$7841,AD$6,FALSE),VLOOKUP($B34&"_1",Base!$E$4:$BO$7841,AD$5,FALSE))) ->  | AE34: =IF(IF($Y34="Número",VLOOKUP($B34&"_1",Base!$E$4:$BO$7841,AE$6,FALSE),VLOOKUP($B34&"_1",Base!$E$4:$BO$7841,AE$5,FALSE))="","",IF($Y34="Número",VLOOKUP($B34&"_1",Base!$E$4:$BO$7841,AE$6,FALSE),VLOOKUP($B34&"_1",Base!$E$4:$BO$7841,AE$5,FALSE))) ->  | AF34: =IF(IF($Y34="Número",VLOOKUP($B34&"_1",Base!$E$4:$BO$7841,AF$6,FALSE),VLOOKUP($B34&"_1",Base!$E$4:$BO$7841,AF$5,FALSE))="","",IF($Y34="Número",VLOOKUP($B34&"_1",Base!$E$4:$BO$7841,AF$6,FALSE),VLOOKUP($B34&"_1",Base!$E$4:$BO$7841,AF$5,FALSE))) ->  | AG34: =IF(IF($Y34="Número",VLOOKUP($B34&"_1",Base!$E$4:$BO$7841,AG$6,FALSE),VLOOKUP($B34&"_1",Base!$E$4:$BO$7841,AG$5,FALSE))="","",IF($Y34="Número",VLOOKUP($B34&"_1",Base!$E$4:$BO$7841,AG$6,FALSE),VLOOKUP($B34&"_1",Base!$E$4:$BO$7841,AG$5,FALSE))) ->  | AH34: =IF(IF($Y34="Número",VLOOKUP($B34&"_1",Base!$E$4:$BO$7841,AH$6,FALSE),VLOOKUP($B34&"_1",Base!$E$4:$BO$7841,AH$5,FALSE))="","",IF($Y34="Número",VLOOKUP($B34&"_1",Base!$E$4:$BO$7841,AH$6,FALSE),VLOOKUP($B34&"_1",Base!$E$4:$BO$7841,AH$5,FALSE))) ->  | AI34: =IF(IF($Y34="Número",VLOOKUP($B34&"_1",Base!$E$4:$BO$7841,AI$6,FALSE),VLOOKUP($B34&"_1",Base!$E$4:$BO$7841,AI$5,FALSE))="","",IF($Y34="Número",VLOOKUP($B34&"_1",Base!$E$4:$BO$7841,AI$6,FALSE),VLOOKUP($B34&"_1",Base!$E$4:$BO$7841,AI$5,FALSE))) ->  | AJ34: =IF(IF($Y34="Número",VLOOKUP($B34&"_1",Base!$E$4:$BO$7841,AJ$6,FALSE),VLOOKUP($B34&"_1",Base!$E$4:$BO$7841,AJ$5,FALSE))="","",IF($Y34="Número",VLOOKUP($B34&"_1",Base!$E$4:$BO$7841,AJ$6,FALSE),VLOOKUP($B34&"_1",Base!$E$4:$BO$7841,AJ$5,FALSE))) ->  | AK34: =IF(IF($Y34="Número",VLOOKUP($B34&"_1",Base!$E$4:$BO$7841,AK$6,FALSE),VLOOKUP($B34&"_1",Base!$E$4:$BO$7841,AK$5,FALSE))="","",IF($Y34="Número",VLOOKUP($B34&"_1",Base!$E$4:$BO$7841,AK$6,FALSE),VLOOKUP($B34&"_1",Base!$E$4:$BO$7841,AK$5,FALSE))) -> 
B35: PA-30 | C35: =+VLOOKUP(B35,'tablero nal'!$W$9:$X$171,2,FALSE) -> Niñas y niños menores de 5 años y mujeres gestantes microfocalizados en el marco de la prestación del servicio del ICBF. | D35: X | E35: 44049 | F35: =+VLOOKUP(B35,'tablero nal'!$W$9:$BB$171,4,FALSE) -> 376528 | G35: 223070 | H35: 0.5924393405 | I35: 40000 | J35: 38689 | K35: 0.967225 | L35: 130000 | M35: 127893 | N35: 0.9837923077 | O35: 220000 | P35: 223070 | Q35: 1.013954545 | R35: =+VLOOKUP(B35,'tablero nal'!$W$9:$AB$171,6,FALSE) -> 376528 | S35: NA | T35: NA | Y35: =+VLOOKUP(B35,'tablero nal'!$W$9:$AL$171,16,FALSE) -> Número | Z35: =IF(IF($Y35="Número",VLOOKUP($B35&"_1",Base!$E$4:$BO$7841,Z$6,FALSE),VLOOKUP($B35&"_1",Base!$E$4:$BO$7841,Z$5,FALSE))="","",IF($Y35="Número",VLOOKUP($B35&"_1",Base!$E$4:$BO$7841,Z$6,FALSE),VLOOKUP($B35&"_1",Base!$E$4:$BO$7841,Z$5,FALSE))) -> NA | AA35: =IF(IF($Y35="Número",VLOOKUP($B35&"_1",Base!$E$4:$BO$7841,AA$6,FALSE),VLOOKUP($B35&"_1",Base!$E$4:$BO$7841,AA$5,FALSE))="","",IF($Y35="Número",VLOOKUP($B35&"_1",Base!$E$4:$BO$7841,AA$6,FALSE),VLOOKUP($B35&"_1",Base!$E$4:$BO$7841,AA$5,FALSE))) -> NA | AB35: =IF(IF($Y35="Número",VLOOKUP($B35&"_1",Base!$E$4:$BO$7841,AB$6,FALSE),VLOOKUP($B35&"_1",Base!$E$4:$BO$7841,AB$5,FALSE))="","",IF($Y35="Número",VLOOKUP($B35&"_1",Base!$E$4:$BO$7841,AB$6,FALSE),VLOOKUP($B35&"_1",Base!$E$4:$BO$7841,AB$5,FALSE))) ->  | AC35: =IF(IF($Y35="Número",VLOOKUP($B35&"_1",Base!$E$4:$BO$7841,AC$6,FALSE),VLOOKUP($B35&"_1",Base!$E$4:$BO$7841,AC$5,FALSE))="","",IF($Y35="Número",VLOOKUP($B35&"_1",Base!$E$4:$BO$7841,AC$6,FALSE),VLOOKUP($B35&"_1",Base!$E$4:$BO$7841,AC$5,FALSE))) ->  | AD35: =IF(IF($Y35="Número",VLOOKUP($B35&"_1",Base!$E$4:$BO$7841,AD$6,FALSE),VLOOKUP($B35&"_1",Base!$E$4:$BO$7841,AD$5,FALSE))="","",IF($Y35="Número",VLOOKUP($B35&"_1",Base!$E$4:$BO$7841,AD$6,FALSE),VLOOKUP($B35&"_1",Base!$E$4:$BO$7841,AD$5,FALSE))) ->  | AE35: =IF(IF($Y35="Número",VLOOKUP($B35&"_1",Base!$E$4:$BO$7841,AE$6,FALSE),VLOOKUP($B35&"_1",Base!$E$4:$BO$7841,AE$5,FALSE))="","",IF($Y35="Número",VLOOKUP($B35&"_1",Base!$E$4:$BO$7841,AE$6,FALSE),VLOOKUP($B35&"_1",Base!$E$4:$BO$7841,AE$5,FALSE))) ->  | AF35: =IF(IF($Y35="Número",VLOOKUP($B35&"_1",Base!$E$4:$BO$7841,AF$6,FALSE),VLOOKUP($B35&"_1",Base!$E$4:$BO$7841,AF$5,FALSE))="","",IF($Y35="Número",VLOOKUP($B35&"_1",Base!$E$4:$BO$7841,AF$6,FALSE),VLOOKUP($B35&"_1",Base!$E$4:$BO$7841,AF$5,FALSE))) ->  | AG35: =IF(IF($Y35="Número",VLOOKUP($B35&"_1",Base!$E$4:$BO$7841,AG$6,FALSE),VLOOKUP($B35&"_1",Base!$E$4:$BO$7841,AG$5,FALSE))="","",IF($Y35="Número",VLOOKUP($B35&"_1",Base!$E$4:$BO$7841,AG$6,FALSE),VLOOKUP($B35&"_1",Base!$E$4:$BO$7841,AG$5,FALSE))) ->  | AH35: =IF(IF($Y35="Número",VLOOKUP($B35&"_1",Base!$E$4:$BO$7841,AH$6,FALSE),VLOOKUP($B35&"_1",Base!$E$4:$BO$7841,AH$5,FALSE))="","",IF($Y35="Número",VLOOKUP($B35&"_1",Base!$E$4:$BO$7841,AH$6,FALSE),VLOOKUP($B35&"_1",Base!$E$4:$BO$7841,AH$5,FALSE))) ->  | AI35: =IF(IF($Y35="Número",VLOOKUP($B35&"_1",Base!$E$4:$BO$7841,AI$6,FALSE),VLOOKUP($B35&"_1",Base!$E$4:$BO$7841,AI$5,FALSE))="","",IF($Y35="Número",VLOOKUP($B35&"_1",Base!$E$4:$BO$7841,AI$6,FALSE),VLOOKUP($B35&"_1",Base!$E$4:$BO$7841,AI$5,FALSE))) ->  | AJ35: =IF(IF($Y35="Número",VLOOKUP($B35&"_1",Base!$E$4:$BO$7841,AJ$6,FALSE),VLOOKUP($B35&"_1",Base!$E$4:$BO$7841,AJ$5,FALSE))="","",IF($Y35="Número",VLOOKUP($B35&"_1",Base!$E$4:$BO$7841,AJ$6,FALSE),VLOOKUP($B35&"_1",Base!$E$4:$BO$7841,AJ$5,FALSE))) ->  | AK35: =IF(IF($Y35="Número",VLOOKUP($B35&"_1",Base!$E$4:$BO$7841,AK$6,FALSE),VLOOKUP($B35&"_1",Base!$E$4:$BO$7841,AK$5,FALSE))="","",IF($Y35="Número",VLOOKUP($B35&"_1",Base!$E$4:$BO$7841,AK$6,FALSE),VLOOKUP($B35&"_1",Base!$E$4:$BO$7841,AK$5,FALSE))) -> 
B36: PA-36 | C36: =+VLOOKUP(B36,'tablero nal'!$W$9:$X$171,2,FALSE) -> Porcentaje de Autoridades Administrativas y Equipos Técnicos Interdisciplinarios, capacitados en el proceso Administrativo de Restablecimiento de Derechos y temáticas afines. | E36: 0.22 | F36: =+VLOOKUP(B36,'tablero nal'!$W$9:$BB$171,4,FALSE) -> 1 | G36: 0.935 | H36: 0.935 | I36: 0.44 | J36: 0.5735 | K36: 1.303409091 | L36: 0.62 | M36: 0.62 | N36: 1 | O36: 0.8 | P36: 0.935 | Q36: 1.16875 | R36: =+VLOOKUP(B36,'tablero nal'!$W$9:$AB$171,6,FALSE) -> 1 | S36: NA | T36: NA | Y36: =+VLOOKUP(B36,'tablero nal'!$W$9:$AL$171,16,FALSE) -> Porcentaje | Z36: =IF(IF($Y36="Número",VLOOKUP($B36&"_1",Base!$E$4:$BO$7841,Z$6,FALSE),VLOOKUP($B36&"_1",Base!$E$4:$BO$7841,Z$5,FALSE))="","",IF($Y36="Número",VLOOKUP($B36&"_1",Base!$E$4:$BO$7841,Z$6,FALSE),VLOOKUP($B36&"_1",Base!$E$4:$BO$7841,Z$5,FALSE))) -> NA | AA36: =IF(IF($Y36="Número",VLOOKUP($B36&"_1",Base!$E$4:$BO$7841,AA$6,FALSE),VLOOKUP($B36&"_1",Base!$E$4:$BO$7841,AA$5,FALSE))="","",IF($Y36="Número",VLOOKUP($B36&"_1",Base!$E$4:$BO$7841,AA$6,FALSE),VLOOKUP($B36&"_1",Base!$E$4:$BO$7841,AA$5,FALSE))) -> NA | AB36: =IF(IF($Y36="Número",VLOOKUP($B36&"_1",Base!$E$4:$BO$7841,AB$6,FALSE),VLOOKUP($B36&"_1",Base!$E$4:$BO$7841,AB$5,FALSE))="","",IF($Y36="Número",VLOOKUP($B36&"_1",Base!$E$4:$BO$7841,AB$6,FALSE),VLOOKUP($B36&"_1",Base!$E$4:$BO$7841,AB$5,FALSE))) ->  | AC36: =IF(IF($Y36="Número",VLOOKUP($B36&"_1",Base!$E$4:$BO$7841,AC$6,FALSE),VLOOKUP($B36&"_1",Base!$E$4:$BO$7841,AC$5,FALSE))="","",IF($Y36="Número",VLOOKUP($B36&"_1",Base!$E$4:$BO$7841,AC$6,FALSE),VLOOKUP($B36&"_1",Base!$E$4:$BO$7841,AC$5,FALSE))) ->  | AD36: =IF(IF($Y36="Número",VLOOKUP($B36&"_1",Base!$E$4:$BO$7841,AD$6,FALSE),VLOOKUP($B36&"_1",Base!$E$4:$BO$7841,AD$5,FALSE))="","",IF($Y36="Número",VLOOKUP($B36&"_1",Base!$E$4:$BO$7841,AD$6,FALSE),VLOOKUP($B36&"_1",Base!$E$4:$BO$7841,AD$5,FALSE))) ->  | AE36: =IF(IF($Y36="Número",VLOOKUP($B36&"_1",Base!$E$4:$BO$7841,AE$6,FALSE),VLOOKUP($B36&"_1",Base!$E$4:$BO$7841,AE$5,FALSE))="","",IF($Y36="Número",VLOOKUP($B36&"_1",Base!$E$4:$BO$7841,AE$6,FALSE),VLOOKUP($B36&"_1",Base!$E$4:$BO$7841,AE$5,FALSE))) ->  | AF36: =IF(IF($Y36="Número",VLOOKUP($B36&"_1",Base!$E$4:$BO$7841,AF$6,FALSE),VLOOKUP($B36&"_1",Base!$E$4:$BO$7841,AF$5,FALSE))="","",IF($Y36="Número",VLOOKUP($B36&"_1",Base!$E$4:$BO$7841,AF$6,FALSE),VLOOKUP($B36&"_1",Base!$E$4:$BO$7841,AF$5,FALSE))) ->  | AG36: =IF(IF($Y36="Número",VLOOKUP($B36&"_1",Base!$E$4:$BO$7841,AG$6,FALSE),VLOOKUP($B36&"_1",Base!$E$4:$BO$7841,AG$5,FALSE))="","",IF($Y36="Número",VLOOKUP($B36&"_1",Base!$E$4:$BO$7841,AG$6,FALSE),VLOOKUP($B36&"_1",Base!$E$4:$BO$7841,AG$5,FALSE))) ->  | AH36: =IF(IF($Y36="Número",VLOOKUP($B36&"_1",Base!$E$4:$BO$7841,AH$6,FALSE),VLOOKUP($B36&"_1",Base!$E$4:$BO$7841,AH$5,FALSE))="","",IF($Y36="Número",VLOOKUP($B36&"_1",Base!$E$4:$BO$7841,AH$6,FALSE),VLOOKUP($B36&"_1",Base!$E$4:$BO$7841,AH$5,FALSE))) ->  | AI36: =IF(IF($Y36="Número",VLOOKUP($B36&"_1",Base!$E$4:$BO$7841,AI$6,FALSE),VLOOKUP($B36&"_1",Base!$E$4:$BO$7841,AI$5,FALSE))="","",IF($Y36="Número",VLOOKUP($B36&"_1",Base!$E$4:$BO$7841,AI$6,FALSE),VLOOKUP($B36&"_1",Base!$E$4:$BO$7841,AI$5,FALSE))) ->  | AJ36: =IF(IF($Y36="Número",VLOOKUP($B36&"_1",Base!$E$4:$BO$7841,AJ$6,FALSE),VLOOKUP($B36&"_1",Base!$E$4:$BO$7841,AJ$5,FALSE))="","",IF($Y36="Número",VLOOKUP($B36&"_1",Base!$E$4:$BO$7841,AJ$6,FALSE),VLOOKUP($B36&"_1",Base!$E$4:$BO$7841,AJ$5,FALSE))) ->  | AK36: =IF(IF($Y36="Número",VLOOKUP($B36&"_1",Base!$E$4:$BO$7841,AK$6,FALSE),VLOOKUP($B36&"_1",Base!$E$4:$BO$7841,AK$5,FALSE))="","",IF($Y36="Número",VLOOKUP($B36&"_1",Base!$E$4:$BO$7841,AK$6,FALSE),VLOOKUP($B36&"_1",Base!$E$4:$BO$7841,AK$5,FALSE))) -> 
B37: PA-37 | C37: =+VLOOKUP(B37,'tablero nal'!$W$9:$X$171,2,FALSE) -> Porcentaje de Autoridades Administrativas, Equipos Técnicos, capacitados en la Ruta de Restablecimiento de Derechos con Enfoque Diferencial Étnico. | E37: 0.12 | F37: =+VLOOKUP(B37,'tablero nal'!$W$9:$BB$171,4,FALSE) -> 1 | G37: 0.78 | H37: 0.78 | I37: 0.34 | J37: 0.3286 | K37: 0.9664705882 | L37: 0.56 | M37: 0.47 | N37: 0.8392857143 | O37: 0.78 | P37: 0.78 | Q37: 1 | R37: =+VLOOKUP(B37,'tablero nal'!$W$9:$AB$171,6,FALSE) -> 1 | S37: NA | T37: NA | Y37: =+VLOOKUP(B37,'tablero nal'!$W$9:$AL$171,16,FALSE) -> Porcentaje | Z37: =IF(IF($Y37="Número",VLOOKUP($B37&"_1",Base!$E$4:$BO$7841,Z$6,FALSE),VLOOKUP($B37&"_1",Base!$E$4:$BO$7841,Z$5,FALSE))="","",IF($Y37="Número",VLOOKUP($B37&"_1",Base!$E$4:$BO$7841,Z$6,FALSE),VLOOKUP($B37&"_1",Base!$E$4:$BO$7841,Z$5,FALSE))) -> NA | AA37: =IF(IF($Y37="Número",VLOOKUP($B37&"_1",Base!$E$4:$BO$7841,AA$6,FALSE),VLOOKUP($B37&"_1",Base!$E$4:$BO$7841,AA$5,FALSE))="","",IF($Y37="Número",VLOOKUP($B37&"_1",Base!$E$4:$BO$7841,AA$6,FALSE),VLOOKUP($B37&"_1",Base!$E$4:$BO$7841,AA$5,FALSE))) -> NA | AB37: =IF(IF($Y37="Número",VLOOKUP($B37&"_1",Base!$E$4:$BO$7841,AB$6,FALSE),VLOOKUP($B37&"_1",Base!$E$4:$BO$7841,AB$5,FALSE))="","",IF($Y37="Número",VLOOKUP($B37&"_1",Base!$E$4:$BO$7841,AB$6,FALSE),VLOOKUP($B37&"_1",Base!$E$4:$BO$7841,AB$5,FALSE))) ->  | AC37: =IF(IF($Y37="Número",VLOOKUP($B37&"_1",Base!$E$4:$BO$7841,AC$6,FALSE),VLOOKUP($B37&"_1",Base!$E$4:$BO$7841,AC$5,FALSE))="","",IF($Y37="Número",VLOOKUP($B37&"_1",Base!$E$4:$BO$7841,AC$6,FALSE),VLOOKUP($B37&"_1",Base!$E$4:$BO$7841,AC$5,FALSE))) ->  | AD37: =IF(IF($Y37="Número",VLOOKUP($B37&"_1",Base!$E$4:$BO$7841,AD$6,FALSE),VLOOKUP($B37&"_1",Base!$E$4:$BO$7841,AD$5,FALSE))="","",IF($Y37="Número",VLOOKUP($B37&"_1",Base!$E$4:$BO$7841,AD$6,FALSE),VLOOKUP($B37&"_1",Base!$E$4:$BO$7841,AD$5,FALSE))) ->  | AE37: =IF(IF($Y37="Número",VLOOKUP($B37&"_1",Base!$E$4:$BO$7841,AE$6,FALSE),VLOOKUP($B37&"_1",Base!$E$4:$BO$7841,AE$5,FALSE))="","",IF($Y37="Número",VLOOKUP($B37&"_1",Base!$E$4:$BO$7841,AE$6,FALSE),VLOOKUP($B37&"_1",Base!$E$4:$BO$7841,AE$5,FALSE))) ->  | AF37: =IF(IF($Y37="Número",VLOOKUP($B37&"_1",Base!$E$4:$BO$7841,AF$6,FALSE),VLOOKUP($B37&"_1",Base!$E$4:$BO$7841,AF$5,FALSE))="","",IF($Y37="Número",VLOOKUP($B37&"_1",Base!$E$4:$BO$7841,AF$6,FALSE),VLOOKUP($B37&"_1",Base!$E$4:$BO$7841,AF$5,FALSE))) ->  | AG37: =IF(IF($Y37="Número",VLOOKUP($B37&"_1",Base!$E$4:$BO$7841,AG$6,FALSE),VLOOKUP($B37&"_1",Base!$E$4:$BO$7841,AG$5,FALSE))="","",IF($Y37="Número",VLOOKUP($B37&"_1",Base!$E$4:$BO$7841,AG$6,FALSE),VLOOKUP($B37&"_1",Base!$E$4:$BO$7841,AG$5,FALSE))) ->  | AH37: =IF(IF($Y37="Número",VLOOKUP($B37&"_1",Base!$E$4:$BO$7841,AH$6,FALSE),VLOOKUP($B37&"_1",Base!$E$4:$BO$7841,AH$5,FALSE))="","",IF($Y37="Número",VLOOKUP($B37&"_1",Base!$E$4:$BO$7841,AH$6,FALSE),VLOOKUP($B37&"_1",Base!$E$4:$BO$7841,AH$5,FALSE))) ->  | AI37: =IF(IF($Y37="Número",VLOOKUP($B37&"_1",Base!$E$4:$BO$7841,AI$6,FALSE),VLOOKUP($B37&"_1",Base!$E$4:$BO$7841,AI$5,FALSE))="","",IF($Y37="Número",VLOOKUP($B37&"_1",Base!$E$4:$BO$7841,AI$6,FALSE),VLOOKUP($B37&"_1",Base!$E$4:$BO$7841,AI$5,FALSE))) ->  | AJ37: =IF(IF($Y37="Número",VLOOKUP($B37&"_1",Base!$E$4:$BO$7841,AJ$6,FALSE),VLOOKUP($B37&"_1",Base!$E$4:$BO$7841,AJ$5,FALSE))="","",IF($Y37="Número",VLOOKUP($B37&"_1",Base!$E$4:$BO$7841,AJ$6,FALSE),VLOOKUP($B37&"_1",Base!$E$4:$BO$7841,AJ$5,FALSE))) ->  | AK37: =IF(IF($Y37="Número",VLOOKUP($B37&"_1",Base!$E$4:$BO$7841,AK$6,FALSE),VLOOKUP($B37&"_1",Base!$E$4:$BO$7841,AK$5,FALSE))="","",IF($Y37="Número",VLOOKUP($B37&"_1",Base!$E$4:$BO$7841,AK$6,FALSE),VLOOKUP($B37&"_1",Base!$E$4:$BO$7841,AK$5,FALSE))) -> 
B38: PA-38 | C38: =+VLOOKUP(B38,'tablero nal'!$W$9:$X$171,2,FALSE) -> Número de municipios con asistencia técnica para la implementación de las rutas de atención integral para el Restablecimiento de Derechos de la menor de 14 años embarazada. | D38: X | E38: 20 | F38: =+VLOOKUP(B38,'tablero nal'!$W$9:$BB$171,4,FALSE) -> 700 | G38: 650 | H38: 0.9285714286 | I38: 100 | J38: 120 | K38: 1.2 | L38: 350 | M38: 380 | N38: 1.085714286 | O38: 600 | P38: 650 | Q38: 1.083333333 | R38: =+VLOOKUP(B38,'tablero nal'!$W$9:$AB$171,6,FALSE) -> 700 | S38: NA | T38: NA | Y38: =+VLOOKUP(B38,'tablero nal'!$W$9:$AL$171,16,FALSE) -> Número | Z38: =IF(IF($Y38="Número",VLOOKUP($B38&"_1",Base!$E$4:$BO$7841,Z$6,FALSE),VLOOKUP($B38&"_1",Base!$E$4:$BO$7841,Z$5,FALSE))="","",IF($Y38="Número",VLOOKUP($B38&"_1",Base!$E$4:$BO$7841,Z$6,FALSE),VLOOKUP($B38&"_1",Base!$E$4:$BO$7841,Z$5,FALSE))) -> NA | AA38: =IF(IF($Y38="Número",VLOOKUP($B38&"_1",Base!$E$4:$BO$7841,AA$6,FALSE),VLOOKUP($B38&"_1",Base!$E$4:$BO$7841,AA$5,FALSE))="","",IF($Y38="Número",VLOOKUP($B38&"_1",Base!$E$4:$BO$7841,AA$6,FALSE),VLOOKUP($B38&"_1",Base!$E$4:$BO$7841,AA$5,FALSE))) -> NA | AB38: =IF(IF($Y38="Número",VLOOKUP($B38&"_1",Base!$E$4:$BO$7841,AB$6,FALSE),VLOOKUP($B38&"_1",Base!$E$4:$BO$7841,AB$5,FALSE))="","",IF($Y38="Número",VLOOKUP($B38&"_1",Base!$E$4:$BO$7841,AB$6,FALSE),VLOOKUP($B38&"_1",Base!$E$4:$BO$7841,AB$5,FALSE))) ->  | AC38: =IF(IF($Y38="Número",VLOOKUP($B38&"_1",Base!$E$4:$BO$7841,AC$6,FALSE),VLOOKUP($B38&"_1",Base!$E$4:$BO$7841,AC$5,FALSE))="","",IF($Y38="Número",VLOOKUP($B38&"_1",Base!$E$4:$BO$7841,AC$6,FALSE),VLOOKUP($B38&"_1",Base!$E$4:$BO$7841,AC$5,FALSE))) ->  | AD38: =IF(IF($Y38="Número",VLOOKUP($B38&"_1",Base!$E$4:$BO$7841,AD$6,FALSE),VLOOKUP($B38&"_1",Base!$E$4:$BO$7841,AD$5,FALSE))="","",IF($Y38="Número",VLOOKUP($B38&"_1",Base!$E$4:$BO$7841,AD$6,FALSE),VLOOKUP($B38&"_1",Base!$E$4:$BO$7841,AD$5,FALSE))) ->  | AE38: =IF(IF($Y38="Número",VLOOKUP($B38&"_1",Base!$E$4:$BO$7841,AE$6,FALSE),VLOOKUP($B38&"_1",Base!$E$4:$BO$7841,AE$5,FALSE))="","",IF($Y38="Número",VLOOKUP($B38&"_1",Base!$E$4:$BO$7841,AE$6,FALSE),VLOOKUP($B38&"_1",Base!$E$4:$BO$7841,AE$5,FALSE))) ->  | AF38: =IF(IF($Y38="Número",VLOOKUP($B38&"_1",Base!$E$4:$BO$7841,AF$6,FALSE),VLOOKUP($B38&"_1",Base!$E$4:$BO$7841,AF$5,FALSE))="","",IF($Y38="Número",VLOOKUP($B38&"_1",Base!$E$4:$BO$7841,AF$6,FALSE),VLOOKUP($B38&"_1",Base!$E$4:$BO$7841,AF$5,FALSE))) ->  | AG38: =IF(IF($Y38="Número",VLOOKUP($B38&"_1",Base!$E$4:$BO$7841,AG$6,FALSE),VLOOKUP($B38&"_1",Base!$E$4:$BO$7841,AG$5,FALSE))="","",IF($Y38="Número",VLOOKUP($B38&"_1",Base!$E$4:$BO$7841,AG$6,FALSE),VLOOKUP($B38&"_1",Base!$E$4:$BO$7841,AG$5,FALSE))) ->  | AH38: =IF(IF($Y38="Número",VLOOKUP($B38&"_1",Base!$E$4:$BO$7841,AH$6,FALSE),VLOOKUP($B38&"_1",Base!$E$4:$BO$7841,AH$5,FALSE))="","",IF($Y38="Número",VLOOKUP($B38&"_1",Base!$E$4:$BO$7841,AH$6,FALSE),VLOOKUP($B38&"_1",Base!$E$4:$BO$7841,AH$5,FALSE))) ->  | AI38: =IF(IF($Y38="Número",VLOOKUP($B38&"_1",Base!$E$4:$BO$7841,AI$6,FALSE),VLOOKUP($B38&"_1",Base!$E$4:$BO$7841,AI$5,FALSE))="","",IF($Y38="Número",VLOOKUP($B38&"_1",Base!$E$4:$BO$7841,AI$6,FALSE),VLOOKUP($B38&"_1",Base!$E$4:$BO$7841,AI$5,FALSE))) ->  | AJ38: =IF(IF($Y38="Número",VLOOKUP($B38&"_1",Base!$E$4:$BO$7841,AJ$6,FALSE),VLOOKUP($B38&"_1",Base!$E$4:$BO$7841,AJ$5,FALSE))="","",IF($Y38="Número",VLOOKUP($B38&"_1",Base!$E$4:$BO$7841,AJ$6,FALSE),VLOOKUP($B38&"_1",Base!$E$4:$BO$7841,AJ$5,FALSE))) ->  | AK38: =IF(IF($Y38="Número",VLOOKUP($B38&"_1",Base!$E$4:$BO$7841,AK$6,FALSE),VLOOKUP($B38&"_1",Base!$E$4:$BO$7841,AK$5,FALSE))="","",IF($Y38="Número",VLOOKUP($B38&"_1",Base!$E$4:$BO$7841,AK$6,FALSE),VLOOKUP($B38&"_1",Base!$E$4:$BO$7841,AK$5,FALSE))) -> 
B39: PA-40 | C39: =+VLOOKUP(B39,'tablero nal'!$W$9:$X$171,2,FALSE) -> Porcentaje de niños, niñas y adolescentes CON características y necesidades especiales, con familia asignada. | D39: X | E39: 0.65 | F39: =+VLOOKUP(B39,'tablero nal'!$W$9:$BB$171,4,FALSE) -> 0.7 | G39: 0.797 | H39: 1.138571429 | I39: 0.65 | J39: 0.7444 | K39: 1.145230769 | L39: 0.65 | M39: 0.759 | N39: 1.167692308 | O39: 0.67 | P39: 0.795 | Q39: 1.186567164 | R39: =+VLOOKUP(B39,'tablero nal'!$W$9:$AB$171,6,FALSE) -> 0.7 | S39: 0.797 | T39: 1.138571429 | Y39: =+VLOOKUP(B39,'tablero nal'!$W$9:$AL$171,16,FALSE) -> Porcentaje | Z39: =IF(IF($Y39="Número",VLOOKUP($B39&"_1",Base!$E$4:$BO$7841,Z$6,FALSE),VLOOKUP($B39&"_1",Base!$E$4:$BO$7841,Z$5,FALSE))="","",IF($Y39="Número",VLOOKUP($B39&"_1",Base!$E$4:$BO$7841,Z$6,FALSE),VLOOKUP($B39&"_1",Base!$E$4:$BO$7841,Z$5,FALSE))) -> 0.786 | AA39: =IF(IF($Y39="Número",VLOOKUP($B39&"_1",Base!$E$4:$BO$7841,AA$6,FALSE),VLOOKUP($B39&"_1",Base!$E$4:$BO$7841,AA$5,FALSE))="","",IF($Y39="Número",VLOOKUP($B39&"_1",Base!$E$4:$BO$7841,AA$6,FALSE),VLOOKUP($B39&"_1",Base!$E$4:$BO$7841,AA$5,FALSE))) -> 0.797 | AB39: =IF(IF($Y39="Número",VLOOKUP($B39&"_1",Base!$E$4:$BO$7841,AB$6,FALSE),VLOOKUP($B39&"_1",Base!$E$4:$BO$7841,AB$5,FALSE))="","",IF($Y39="Número",VLOOKUP($B39&"_1",Base!$E$4:$BO$7841,AB$6,FALSE),VLOOKUP($B39&"_1",Base!$E$4:$BO$7841,AB$5,FALSE))) ->  | AC39: =IF(IF($Y39="Número",VLOOKUP($B39&"_1",Base!$E$4:$BO$7841,AC$6,FALSE),VLOOKUP($B39&"_1",Base!$E$4:$BO$7841,AC$5,FALSE))="","",IF($Y39="Número",VLOOKUP($B39&"_1",Base!$E$4:$BO$7841,AC$6,FALSE),VLOOKUP($B39&"_1",Base!$E$4:$BO$7841,AC$5,FALSE))) ->  | AD39: =IF(IF($Y39="Número",VLOOKUP($B39&"_1",Base!$E$4:$BO$7841,AD$6,FALSE),VLOOKUP($B39&"_1",Base!$E$4:$BO$7841,AD$5,FALSE))="","",IF($Y39="Número",VLOOKUP($B39&"_1",Base!$E$4:$BO$7841,AD$6,FALSE),VLOOKUP($B39&"_1",Base!$E$4:$BO$7841,AD$5,FALSE))) ->  | AE39: =IF(IF($Y39="Número",VLOOKUP($B39&"_1",Base!$E$4:$BO$7841,AE$6,FALSE),VLOOKUP($B39&"_1",Base!$E$4:$BO$7841,AE$5,FALSE))="","",IF($Y39="Número",VLOOKUP($B39&"_1",Base!$E$4:$BO$7841,AE$6,FALSE),VLOOKUP($B39&"_1",Base!$E$4:$BO$7841,AE$5,FALSE))) ->  | AF39: =IF(IF($Y39="Número",VLOOKUP($B39&"_1",Base!$E$4:$BO$7841,AF$6,FALSE),VLOOKUP($B39&"_1",Base!$E$4:$BO$7841,AF$5,FALSE))="","",IF($Y39="Número",VLOOKUP($B39&"_1",Base!$E$4:$BO$7841,AF$6,FALSE),VLOOKUP($B39&"_1",Base!$E$4:$BO$7841,AF$5,FALSE))) ->  | AG39: =IF(IF($Y39="Número",VLOOKUP($B39&"_1",Base!$E$4:$BO$7841,AG$6,FALSE),VLOOKUP($B39&"_1",Base!$E$4:$BO$7841,AG$5,FALSE))="","",IF($Y39="Número",VLOOKUP($B39&"_1",Base!$E$4:$BO$7841,AG$6,FALSE),VLOOKUP($B39&"_1",Base!$E$4:$BO$7841,AG$5,FALSE))) ->  | AH39: =IF(IF($Y39="Número",VLOOKUP($B39&"_1",Base!$E$4:$BO$7841,AH$6,FALSE),VLOOKUP($B39&"_1",Base!$E$4:$BO$7841,AH$5,FALSE))="","",IF($Y39="Número",VLOOKUP($B39&"_1",Base!$E$4:$BO$7841,AH$6,FALSE),VLOOKUP($B39&"_1",Base!$E$4:$BO$7841,AH$5,FALSE))) ->  | AI39: =IF(IF($Y39="Número",VLOOKUP($B39&"_1",Base!$E$4:$BO$7841,AI$6,FALSE),VLOOKUP($B39&"_1",Base!$E$4:$BO$7841,AI$5,FALSE))="","",IF($Y39="Número",VLOOKUP($B39&"_1",Base!$E$4:$BO$7841,AI$6,FALSE),VLOOKUP($B39&"_1",Base!$E$4:$BO$7841,AI$5,FALSE))) ->  | AJ39: =IF(IF($Y39="Número",VLOOKUP($B39&"_1",Base!$E$4:$BO$7841,AJ$6,FALSE),VLOOKUP($B39&"_1",Base!$E$4:$BO$7841,AJ$5,FALSE))="","",IF($Y39="Número",VLOOKUP($B39&"_1",Base!$E$4:$BO$7841,AJ$6,FALSE),VLOOKUP($B39&"_1",Base!$E$4:$BO$7841,AJ$5,FALSE))) ->  | AK39: =IF(IF($Y39="Número",VLOOKUP($B39&"_1",Base!$E$4:$BO$7841,AK$6,FALSE),VLOOKUP($B39&"_1",Base!$E$4:$BO$7841,AK$5,FALSE))="","",IF($Y39="Número",VLOOKUP($B39&"_1",Base!$E$4:$BO$7841,AK$6,FALSE),VLOOKUP($B39&"_1",Base!$E$4:$BO$7841,AK$5,FALSE))) -> 
B40: PA-41 | C40: =+VLOOKUP(B40,'tablero nal'!$W$9:$X$171,2,FALSE) -> Porcentaje de niños, niñas y adolescentes que cumple con el número de informes de seguimientos post adopción | E40: 0.95 | F40: =+VLOOKUP(B40,'tablero nal'!$W$9:$BB$171,4,FALSE) -> 1 | G40: 0.974 | H40: 0.974 | I40: 1 | J40: 0.957 | K40: 0.957 | L40: 1 | M40: 0.96 | N40: 0.96 | O40: 1 | P40: 0.974 | Q40: 0.974 | R40: =+VLOOKUP(B40,'tablero nal'!$W$9:$AB$171,6,FALSE) -> 1 | S40: NA | T40: NA | Y40: =+VLOOKUP(B40,'tablero nal'!$W$9:$AL$171,16,FALSE) -> Porcentaje | Z40: =IF(IF($Y40="Número",VLOOKUP($B40&"_1",Base!$E$4:$BO$7841,Z$6,FALSE),VLOOKUP($B40&"_1",Base!$E$4:$BO$7841,Z$5,FALSE))="","",IF($Y40="Número",VLOOKUP($B40&"_1",Base!$E$4:$BO$7841,Z$6,FALSE),VLOOKUP($B40&"_1",Base!$E$4:$BO$7841,Z$5,FALSE))) -> NA | AA40: =IF(IF($Y40="Número",VLOOKUP($B40&"_1",Base!$E$4:$BO$7841,AA$6,FALSE),VLOOKUP($B40&"_1",Base!$E$4:$BO$7841,AA$5,FALSE))="","",IF($Y40="Número",VLOOKUP($B40&"_1",Base!$E$4:$BO$7841,AA$6,FALSE),VLOOKUP($B40&"_1",Base!$E$4:$BO$7841,AA$5,FALSE))) -> NA | AB40: =IF(IF($Y40="Número",VLOOKUP($B40&"_1",Base!$E$4:$BO$7841,AB$6,FALSE),VLOOKUP($B40&"_1",Base!$E$4:$BO$7841,AB$5,FALSE))="","",IF($Y40="Número",VLOOKUP($B40&"_1",Base!$E$4:$BO$7841,AB$6,FALSE),VLOOKUP($B40&"_1",Base!$E$4:$BO$7841,AB$5,FALSE))) ->  | AC40: =IF(IF($Y40="Número",VLOOKUP($B40&"_1",Base!$E$4:$BO$7841,AC$6,FALSE),VLOOKUP($B40&"_1",Base!$E$4:$BO$7841,AC$5,FALSE))="","",IF($Y40="Número",VLOOKUP($B40&"_1",Base!$E$4:$BO$7841,AC$6,FALSE),VLOOKUP($B40&"_1",Base!$E$4:$BO$7841,AC$5,FALSE))) ->  | AD40: =IF(IF($Y40="Número",VLOOKUP($B40&"_1",Base!$E$4:$BO$7841,AD$6,FALSE),VLOOKUP($B40&"_1",Base!$E$4:$BO$7841,AD$5,FALSE))="","",IF($Y40="Número",VLOOKUP($B40&"_1",Base!$E$4:$BO$7841,AD$6,FALSE),VLOOKUP($B40&"_1",Base!$E$4:$BO$7841,AD$5,FALSE))) ->  | AE40: =IF(IF($Y40="Número",VLOOKUP($B40&"_1",Base!$E$4:$BO$7841,AE$6,FALSE),VLOOKUP($B40&"_1",Base!$E$4:$BO$7841,AE$5,FALSE))="","",IF($Y40="Número",VLOOKUP($B40&"_1",Base!$E$4:$BO$7841,AE$6,FALSE),VLOOKUP($B40&"_1",Base!$E$4:$BO$7841,AE$5,FALSE))) ->  | AF40: =IF(IF($Y40="Número",VLOOKUP($B40&"_1",Base!$E$4:$BO$7841,AF$6,FALSE),VLOOKUP($B40&"_1",Base!$E$4:$BO$7841,AF$5,FALSE))="","",IF($Y40="Número",VLOOKUP($B40&"_1",Base!$E$4:$BO$7841,AF$6,FALSE),VLOOKUP($B40&"_1",Base!$E$4:$BO$7841,AF$5,FALSE))) ->  | AG40: =IF(IF($Y40="Número",VLOOKUP($B40&"_1",Base!$E$4:$BO$7841,AG$6,FALSE),VLOOKUP($B40&"_1",Base!$E$4:$BO$7841,AG$5,FALSE))="","",IF($Y40="Número",VLOOKUP($B40&"_1",Base!$E$4:$BO$7841,AG$6,FALSE),VLOOKUP($B40&"_1",Base!$E$4:$BO$7841,AG$5,FALSE))) ->  | AH40: =IF(IF($Y40="Número",VLOOKUP($B40&"_1",Base!$E$4:$BO$7841,AH$6,FALSE),VLOOKUP($B40&"_1",Base!$E$4:$BO$7841,AH$5,FALSE))="","",IF($Y40="Número",VLOOKUP($B40&"_1",Base!$E$4:$BO$7841,AH$6,FALSE),VLOOKUP($B40&"_1",Base!$E$4:$BO$7841,AH$5,FALSE))) ->  | AI40: =IF(IF($Y40="Número",VLOOKUP($B40&"_1",Base!$E$4:$BO$7841,AI$6,FALSE),VLOOKUP($B40&"_1",Base!$E$4:$BO$7841,AI$5,FALSE))="","",IF($Y40="Número",VLOOKUP($B40&"_1",Base!$E$4:$BO$7841,AI$6,FALSE),VLOOKUP($B40&"_1",Base!$E$4:$BO$7841,AI$5,FALSE))) ->  | AJ40: =IF(IF($Y40="Número",VLOOKUP($B40&"_1",Base!$E$4:$BO$7841,AJ$6,FALSE),VLOOKUP($B40&"_1",Base!$E$4:$BO$7841,AJ$5,FALSE))="","",IF($Y40="Número",VLOOKUP($B40&"_1",Base!$E$4:$BO$7841,AJ$6,FALSE),VLOOKUP($B40&"_1",Base!$E$4:$BO$7841,AJ$5,FALSE))) ->  | AK40: =IF(IF($Y40="Número",VLOOKUP($B40&"_1",Base!$E$4:$BO$7841,AK$6,FALSE),VLOOKUP($B40&"_1",Base!$E$4:$BO$7841,AK$5,FALSE))="","",IF($Y40="Número",VLOOKUP($B40&"_1",Base!$E$4:$BO$7841,AK$6,FALSE),VLOOKUP($B40&"_1",Base!$E$4:$BO$7841,AK$5,FALSE))) -> 
B41: PA-42 | C41: =+VLOOKUP(B41,'tablero nal'!$W$9:$X$171,2,FALSE) -> Porcentaje de adolescentes y jóvenes del SRPA, con más de seis meses de permanencia en el Programa de Atención con la garantía de ejercicio de sus derechos (Identidad, Salud y Educación) | D41: X | E41: - | F41: =+VLOOKUP(B41,'tablero nal'!$W$9:$BB$171,4,FALSE) -> 1 | G41: 0.959 | H41: 0.959 | I41: 0.25 | J41: 0.3592 | K41: 1.4368 | L41: 1 | M41: 0.997 | N41: 0.997 | O41: 1 | P41: 0.959 | Q41: 0.959 | R41: =+VLOOKUP(B41,'tablero nal'!$W$9:$AB$171,6,FALSE) -> 1 | S41: NA | T41: NA | Y41: =+VLOOKUP(B41,'tablero nal'!$W$9:$AL$171,16,FALSE) -> Porcentaje | Z41: =IF(IF($Y41="Número",VLOOKUP($B41&"_1",Base!$E$4:$BO$7841,Z$6,FALSE),VLOOKUP($B41&"_1",Base!$E$4:$BO$7841,Z$5,FALSE))="","",IF($Y41="Número",VLOOKUP($B41&"_1",Base!$E$4:$BO$7841,Z$6,FALSE),VLOOKUP($B41&"_1",Base!$E$4:$BO$7841,Z$5,FALSE))) -> NA | AA41: =IF(IF($Y41="Número",VLOOKUP($B41&"_1",Base!$E$4:$BO$7841,AA$6,FALSE),VLOOKUP($B41&"_1",Base!$E$4:$BO$7841,AA$5,FALSE))="","",IF($Y41="Número",VLOOKUP($B41&"_1",Base!$E$4:$BO$7841,AA$6,FALSE),VLOOKUP($B41&"_1",Base!$E$4:$BO$7841,AA$5,FALSE))) -> NA | AB41: =IF(IF($Y41="Número",VLOOKUP($B41&"_1",Base!$E$4:$BO$7841,AB$6,FALSE),VLOOKUP($B41&"_1",Base!$E$4:$BO$7841,AB$5,FALSE))="","",IF($Y41="Número",VLOOKUP($B41&"_1",Base!$E$4:$BO$7841,AB$6,FALSE),VLOOKUP($B41&"_1",Base!$E$4:$BO$7841,AB$5,FALSE))) ->  | AC41: =IF(IF($Y41="Número",VLOOKUP($B41&"_1",Base!$E$4:$BO$7841,AC$6,FALSE),VLOOKUP($B41&"_1",Base!$E$4:$BO$7841,AC$5,FALSE))="","",IF($Y41="Número",VLOOKUP($B41&"_1",Base!$E$4:$BO$7841,AC$6,FALSE),VLOOKUP($B41&"_1",Base!$E$4:$BO$7841,AC$5,FALSE))) ->  | AD41: =IF(IF($Y41="Número",VLOOKUP($B41&"_1",Base!$E$4:$BO$7841,AD$6,FALSE),VLOOKUP($B41&"_1",Base!$E$4:$BO$7841,AD$5,FALSE))="","",IF($Y41="Número",VLOOKUP($B41&"_1",Base!$E$4:$BO$7841,AD$6,FALSE),VLOOKUP($B41&"_1",Base!$E$4:$BO$7841,AD$5,FALSE))) ->  | AE41: =IF(IF($Y41="Número",VLOOKUP($B41&"_1",Base!$E$4:$BO$7841,AE$6,FALSE),VLOOKUP($B41&"_1",Base!$E$4:$BO$7841,AE$5,FALSE))="","",IF($Y41="Número",VLOOKUP($B41&"_1",Base!$E$4:$BO$7841,AE$6,FALSE),VLOOKUP($B41&"_1",Base!$E$4:$BO$7841,AE$5,FALSE))) ->  | AF41: =IF(IF($Y41="Número",VLOOKUP($B41&"_1",Base!$E$4:$BO$7841,AF$6,FALSE),VLOOKUP($B41&"_1",Base!$E$4:$BO$7841,AF$5,FALSE))="","",IF($Y41="Número",VLOOKUP($B41&"_1",Base!$E$4:$BO$7841,AF$6,FALSE),VLOOKUP($B41&"_1",Base!$E$4:$BO$7841,AF$5,FALSE))) ->  | AG41: =IF(IF($Y41="Número",VLOOKUP($B41&"_1",Base!$E$4:$BO$7841,AG$6,FALSE),VLOOKUP($B41&"_1",Base!$E$4:$BO$7841,AG$5,FALSE))="","",IF($Y41="Número",VLOOKUP($B41&"_1",Base!$E$4:$BO$7841,AG$6,FALSE),VLOOKUP($B41&"_1",Base!$E$4:$BO$7841,AG$5,FALSE))) ->  | AH41: =IF(IF($Y41="Número",VLOOKUP($B41&"_1",Base!$E$4:$BO$7841,AH$6,FALSE),VLOOKUP($B41&"_1",Base!$E$4:$BO$7841,AH$5,FALSE))="","",IF($Y41="Número",VLOOKUP($B41&"_1",Base!$E$4:$BO$7841,AH$6,FALSE),VLOOKUP($B41&"_1",Base!$E$4:$BO$7841,AH$5,FALSE))) ->  | AI41: =IF(IF($Y41="Número",VLOOKUP($B41&"_1",Base!$E$4:$BO$7841,AI$6,FALSE),VLOOKUP($B41&"_1",Base!$E$4:$BO$7841,AI$5,FALSE))="","",IF($Y41="Número",VLOOKUP($B41&"_1",Base!$E$4:$BO$7841,AI$6,FALSE),VLOOKUP($B41&"_1",Base!$E$4:$BO$7841,AI$5,FALSE))) ->  | AJ41: =IF(IF($Y41="Número",VLOOKUP($B41&"_1",Base!$E$4:$BO$7841,AJ$6,FALSE),VLOOKUP($B41&"_1",Base!$E$4:$BO$7841,AJ$5,FALSE))="","",IF($Y41="Número",VLOOKUP($B41&"_1",Base!$E$4:$BO$7841,AJ$6,FALSE),VLOOKUP($B41&"_1",Base!$E$4:$BO$7841,AJ$5,FALSE))) ->  | AK41: =IF(IF($Y41="Número",VLOOKUP($B41&"_1",Base!$E$4:$BO$7841,AK$6,FALSE),VLOOKUP($B41&"_1",Base!$E$4:$BO$7841,AK$5,FALSE))="","",IF($Y41="Número",VLOOKUP($B41&"_1",Base!$E$4:$BO$7841,AK$6,FALSE),VLOOKUP($B41&"_1",Base!$E$4:$BO$7841,AK$5,FALSE))) -> 
B42: PA-43 | C42: =+VLOOKUP(B42,'tablero nal'!$W$9:$X$171,2,FALSE) -> Porcentaje de adolescentes y jóvenes que egresan el ultimo año del SRPA por cumplimiento de sanción privativa de la libertad, atendidos con estrategias post egreso o inclusión social. | D42: X | E42: - | F42: =+VLOOKUP(B42,'tablero nal'!$W$9:$BB$171,4,FALSE) -> 0.65 | G42: 0.5 | H42: 0.7692307692 | I42: 0.12 | J42: 0.1705 | K42: 1.420833333 | L42: 0.55 | M42: 0.549 | N42: 0.9981818182 | O42: 0.6 | P42: 0.5 | Q42: 0.8333333333 | R42: =+VLOOKUP(B42,'tablero nal'!$W$9:$AB$171,6,FALSE) -> 0.65 | S42: NA | T42: NA | Y42: =+VLOOKUP(B42,'tablero nal'!$W$9:$AL$171,16,FALSE) -> Porcentaje | Z42: =IF(IF($Y42="Número",VLOOKUP($B42&"_1",Base!$E$4:$BO$7841,Z$6,FALSE),VLOOKUP($B42&"_1",Base!$E$4:$BO$7841,Z$5,FALSE))="","",IF($Y42="Número",VLOOKUP($B42&"_1",Base!$E$4:$BO$7841,Z$6,FALSE),VLOOKUP($B42&"_1",Base!$E$4:$BO$7841,Z$5,FALSE))) -> NA | AA42: =IF(IF($Y42="Número",VLOOKUP($B42&"_1",Base!$E$4:$BO$7841,AA$6,FALSE),VLOOKUP($B42&"_1",Base!$E$4:$BO$7841,AA$5,FALSE))="","",IF($Y42="Número",VLOOKUP($B42&"_1",Base!$E$4:$BO$7841,AA$6,FALSE),VLOOKUP($B42&"_1",Base!$E$4:$BO$7841,AA$5,FALSE))) -> NA | AB42: =IF(IF($Y42="Número",VLOOKUP($B42&"_1",Base!$E$4:$BO$7841,AB$6,FALSE),VLOOKUP($B42&"_1",Base!$E$4:$BO$7841,AB$5,FALSE))="","",IF($Y42="Número",VLOOKUP($B42&"_1",Base!$E$4:$BO$7841,AB$6,FALSE),VLOOKUP($B42&"_1",Base!$E$4:$BO$7841,AB$5,FALSE))) ->  | AC42: =IF(IF($Y42="Número",VLOOKUP($B42&"_1",Base!$E$4:$BO$7841,AC$6,FALSE),VLOOKUP($B42&"_1",Base!$E$4:$BO$7841,AC$5,FALSE))="","",IF($Y42="Número",VLOOKUP($B42&"_1",Base!$E$4:$BO$7841,AC$6,FALSE),VLOOKUP($B42&"_1",Base!$E$4:$BO$7841,AC$5,FALSE))) ->  | AD42: =IF(IF($Y42="Número",VLOOKUP($B42&"_1",Base!$E$4:$BO$7841,AD$6,FALSE),VLOOKUP($B42&"_1",Base!$E$4:$BO$7841,AD$5,FALSE))="","",IF($Y42="Número",VLOOKUP($B42&"_1",Base!$E$4:$BO$7841,AD$6,FALSE),VLOOKUP($B42&"_1",Base!$E$4:$BO$7841,AD$5,FALSE))) ->  | AE42: =IF(IF($Y42="Número",VLOOKUP($B42&"_1",Base!$E$4:$BO$7841,AE$6,FALSE),VLOOKUP($B42&"_1",Base!$E$4:$BO$7841,AE$5,FALSE))="","",IF($Y42="Número",VLOOKUP($B42&"_1",Base!$E$4:$BO$7841,AE$6,FALSE),VLOOKUP($B42&"_1",Base!$E$4:$BO$7841,AE$5,FALSE))) ->  | AF42: =IF(IF($Y42="Número",VLOOKUP($B42&"_1",Base!$E$4:$BO$7841,AF$6,FALSE),VLOOKUP($B42&"_1",Base!$E$4:$BO$7841,AF$5,FALSE))="","",IF($Y42="Número",VLOOKUP($B42&"_1",Base!$E$4:$BO$7841,AF$6,FALSE),VLOOKUP($B42&"_1",Base!$E$4:$BO$7841,AF$5,FALSE))) ->  | AG42: =IF(IF($Y42="Número",VLOOKUP($B42&"_1",Base!$E$4:$BO$7841,AG$6,FALSE),VLOOKUP($B42&"_1",Base!$E$4:$BO$7841,AG$5,FALSE))="","",IF($Y42="Número",VLOOKUP($B42&"_1",Base!$E$4:$BO$7841,AG$6,FALSE),VLOOKUP($B42&"_1",Base!$E$4:$BO$7841,AG$5,FALSE))) ->  | AH42: =IF(IF($Y42="Número",VLOOKUP($B42&"_1",Base!$E$4:$BO$7841,AH$6,FALSE),VLOOKUP($B42&"_1",Base!$E$4:$BO$7841,AH$5,FALSE))="","",IF($Y42="Número",VLOOKUP($B42&"_1",Base!$E$4:$BO$7841,AH$6,FALSE),VLOOKUP($B42&"_1",Base!$E$4:$BO$7841,AH$5,FALSE))) ->  | AI42: =IF(IF($Y42="Número",VLOOKUP($B42&"_1",Base!$E$4:$BO$7841,AI$6,FALSE),VLOOKUP($B42&"_1",Base!$E$4:$BO$7841,AI$5,FALSE))="","",IF($Y42="Número",VLOOKUP($B42&"_1",Base!$E$4:$BO$7841,AI$6,FALSE),VLOOKUP($B42&"_1",Base!$E$4:$BO$7841,AI$5,FALSE))) ->  | AJ42: =IF(IF($Y42="Número",VLOOKUP($B42&"_1",Base!$E$4:$BO$7841,AJ$6,FALSE),VLOOKUP($B42&"_1",Base!$E$4:$BO$7841,AJ$5,FALSE))="","",IF($Y42="Número",VLOOKUP($B42&"_1",Base!$E$4:$BO$7841,AJ$6,FALSE),VLOOKUP($B42&"_1",Base!$E$4:$BO$7841,AJ$5,FALSE))) ->  | AK42: =IF(IF($Y42="Número",VLOOKUP($B42&"_1",Base!$E$4:$BO$7841,AK$6,FALSE),VLOOKUP($B42&"_1",Base!$E$4:$BO$7841,AK$5,FALSE))="","",IF($Y42="Número",VLOOKUP($B42&"_1",Base!$E$4:$BO$7841,AK$6,FALSE),VLOOKUP($B42&"_1",Base!$E$4:$BO$7841,AK$5,FALSE))) -> 
B43: PA-44 | C43: =+VLOOKUP(B43,'tablero nal'!$W$9:$X$171,2,FALSE) -> Porcentaje de Regionales con la implementación de servicios para el cumplimiento de sanciones no privativas de libertad. | E43: 0.25 | F43: =+VLOOKUP(B43,'tablero nal'!$W$9:$BB$171,4,FALSE) -> 1 | G43: 0.774 | H43: 0.774 | I43: 0.25 | J43: 0.2581 | K43: 1.0324 | L43: 0.5 | M43: 0.516 | N43: 1.032 | O43: 0.75 | P43: 0.774 | Q43: 1.032 | R43: =+VLOOKUP(B43,'tablero nal'!$W$9:$AB$171,6,FALSE) -> 1 | S43: NA | T43: NA | Y43: =+VLOOKUP(B43,'tablero nal'!$W$9:$AL$171,16,FALSE) -> Porcentaje | Z43: =IF(IF($Y43="Número",VLOOKUP($B43&"_1",Base!$E$4:$BO$7841,Z$6,FALSE),VLOOKUP($B43&"_1",Base!$E$4:$BO$7841,Z$5,FALSE))="","",IF($Y43="Número",VLOOKUP($B43&"_1",Base!$E$4:$BO$7841,Z$6,FALSE),VLOOKUP($B43&"_1",Base!$E$4:$BO$7841,Z$5,FALSE))) -> NA | AA43: =IF(IF($Y43="Número",VLOOKUP($B43&"_1",Base!$E$4:$BO$7841,AA$6,FALSE),VLOOKUP($B43&"_1",Base!$E$4:$BO$7841,AA$5,FALSE))="","",IF($Y43="Número",VLOOKUP($B43&"_1",Base!$E$4:$BO$7841,AA$6,FALSE),VLOOKUP($B43&"_1",Base!$E$4:$BO$7841,AA$5,FALSE))) -> NA | AB43: =IF(IF($Y43="Número",VLOOKUP($B43&"_1",Base!$E$4:$BO$7841,AB$6,FALSE),VLOOKUP($B43&"_1",Base!$E$4:$BO$7841,AB$5,FALSE))="","",IF($Y43="Número",VLOOKUP($B43&"_1",Base!$E$4:$BO$7841,AB$6,FALSE),VLOOKUP($B43&"_1",Base!$E$4:$BO$7841,AB$5,FALSE))) ->  | AC43: =IF(IF($Y43="Número",VLOOKUP($B43&"_1",Base!$E$4:$BO$7841,AC$6,FALSE),VLOOKUP($B43&"_1",Base!$E$4:$BO$7841,AC$5,FALSE))="","",IF($Y43="Número",VLOOKUP($B43&"_1",Base!$E$4:$BO$7841,AC$6,FALSE),VLOOKUP($B43&"_1",Base!$E$4:$BO$7841,AC$5,FALSE))) ->  | AD43: =IF(IF($Y43="Número",VLOOKUP($B43&"_1",Base!$E$4:$BO$7841,AD$6,FALSE),VLOOKUP($B43&"_1",Base!$E$4:$BO$7841,AD$5,FALSE))="","",IF($Y43="Número",VLOOKUP($B43&"_1",Base!$E$4:$BO$7841,AD$6,FALSE),VLOOKUP($B43&"_1",Base!$E$4:$BO$7841,AD$5,FALSE))) ->  | AE43: =IF(IF($Y43="Número",VLOOKUP($B43&"_1",Base!$E$4:$BO$7841,AE$6,FALSE),VLOOKUP($B43&"_1",Base!$E$4:$BO$7841,AE$5,FALSE))="","",IF($Y43="Número",VLOOKUP($B43&"_1",Base!$E$4:$BO$7841,AE$6,FALSE),VLOOKUP($B43&"_1",Base!$E$4:$BO$7841,AE$5,FALSE))) ->  | AF43: =IF(IF($Y43="Número",VLOOKUP($B43&"_1",Base!$E$4:$BO$7841,AF$6,FALSE),VLOOKUP($B43&"_1",Base!$E$4:$BO$7841,AF$5,FALSE))="","",IF($Y43="Número",VLOOKUP($B43&"_1",Base!$E$4:$BO$7841,AF$6,FALSE),VLOOKUP($B43&"_1",Base!$E$4:$BO$7841,AF$5,FALSE))) ->  | AG43: =IF(IF($Y43="Número",VLOOKUP($B43&"_1",Base!$E$4:$BO$7841,AG$6,FALSE),VLOOKUP($B43&"_1",Base!$E$4:$BO$7841,AG$5,FALSE))="","",IF($Y43="Número",VLOOKUP($B43&"_1",Base!$E$4:$BO$7841,AG$6,FALSE),VLOOKUP($B43&"_1",Base!$E$4:$BO$7841,AG$5,FALSE))) ->  | AH43: =IF(IF($Y43="Número",VLOOKUP($B43&"_1",Base!$E$4:$BO$7841,AH$6,FALSE),VLOOKUP($B43&"_1",Base!$E$4:$BO$7841,AH$5,FALSE))="","",IF($Y43="Número",VLOOKUP($B43&"_1",Base!$E$4:$BO$7841,AH$6,FALSE),VLOOKUP($B43&"_1",Base!$E$4:$BO$7841,AH$5,FALSE))) ->  | AI43: =IF(IF($Y43="Número",VLOOKUP($B43&"_1",Base!$E$4:$BO$7841,AI$6,FALSE),VLOOKUP($B43&"_1",Base!$E$4:$BO$7841,AI$5,FALSE))="","",IF($Y43="Número",VLOOKUP($B43&"_1",Base!$E$4:$BO$7841,AI$6,FALSE),VLOOKUP($B43&"_1",Base!$E$4:$BO$7841,AI$5,FALSE))) ->  | AJ43: =IF(IF($Y43="Número",VLOOKUP($B43&"_1",Base!$E$4:$BO$7841,AJ$6,FALSE),VLOOKUP($B43&"_1",Base!$E$4:$BO$7841,AJ$5,FALSE))="","",IF($Y43="Número",VLOOKUP($B43&"_1",Base!$E$4:$BO$7841,AJ$6,FALSE),VLOOKUP($B43&"_1",Base!$E$4:$BO$7841,AJ$5,FALSE))) ->  | AK43: =IF(IF($Y43="Número",VLOOKUP($B43&"_1",Base!$E$4:$BO$7841,AK$6,FALSE),VLOOKUP($B43&"_1",Base!$E$4:$BO$7841,AK$5,FALSE))="","",IF($Y43="Número",VLOOKUP($B43&"_1",Base!$E$4:$BO$7841,AK$6,FALSE),VLOOKUP($B43&"_1",Base!$E$4:$BO$7841,AK$5,FALSE))) -> 
B44: PA-45 | C44: =+VLOOKUP(B44,'tablero nal'!$W$9:$X$171,2,FALSE) -> Porcentaje de Unidades de Servicio de Atención a adolescentes y jóvenes del Sistema de Responsbilidad Penal - SRPA, con implementación de procesos de formación en prácticas restaurativas | D44: X | E44: 0.3 | F44: =+VLOOKUP(B44,'tablero nal'!$W$9:$BB$171,4,FALSE) -> 1 | G44: 0.848 | H44: 0.848 | I44: 0.5 | J44: 0.5 | K44: 1 | L44: 0.67 | M44: 0.674 | N44: 1.005970149 | O44: 0.84 | P44: 0.848 | Q44: 1.00952381 | R44: =+VLOOKUP(B44,'tablero nal'!$W$9:$AB$171,6,FALSE) -> 1 | S44: NA | T44: NA | Y44: =+VLOOKUP(B44,'tablero nal'!$W$9:$AL$171,16,FALSE) -> Porcentaje | Z44: =IF(IF($Y44="Número",VLOOKUP($B44&"_1",Base!$E$4:$BO$7841,Z$6,FALSE),VLOOKUP($B44&"_1",Base!$E$4:$BO$7841,Z$5,FALSE))="","",IF($Y44="Número",VLOOKUP($B44&"_1",Base!$E$4:$BO$7841,Z$6,FALSE),VLOOKUP($B44&"_1",Base!$E$4:$BO$7841,Z$5,FALSE))) -> NA | AA44: =IF(IF($Y44="Número",VLOOKUP($B44&"_1",Base!$E$4:$BO$7841,AA$6,FALSE),VLOOKUP($B44&"_1",Base!$E$4:$BO$7841,AA$5,FALSE))="","",IF($Y44="Número",VLOOKUP($B44&"_1",Base!$E$4:$BO$7841,AA$6,FALSE),VLOOKUP($B44&"_1",Base!$E$4:$BO$7841,AA$5,FALSE))) -> NA | AB44: =IF(IF($Y44="Número",VLOOKUP($B44&"_1",Base!$E$4:$BO$7841,AB$6,FALSE),VLOOKUP($B44&"_1",Base!$E$4:$BO$7841,AB$5,FALSE))="","",IF($Y44="Número",VLOOKUP($B44&"_1",Base!$E$4:$BO$7841,AB$6,FALSE),VLOOKUP($B44&"_1",Base!$E$4:$BO$7841,AB$5,FALSE))) ->  | AC44: =IF(IF($Y44="Número",VLOOKUP($B44&"_1",Base!$E$4:$BO$7841,AC$6,FALSE),VLOOKUP($B44&"_1",Base!$E$4:$BO$7841,AC$5,FALSE))="","",IF($Y44="Número",VLOOKUP($B44&"_1",Base!$E$4:$BO$7841,AC$6,FALSE),VLOOKUP($B44&"_1",Base!$E$4:$BO$7841,AC$5,FALSE))) ->  | AD44: =IF(IF($Y44="Número",VLOOKUP($B44&"_1",Base!$E$4:$BO$7841,AD$6,FALSE),VLOOKUP($B44&"_1",Base!$E$4:$BO$7841,AD$5,FALSE))="","",IF($Y44="Número",VLOOKUP($B44&"_1",Base!$E$4:$BO$7841,AD$6,FALSE),VLOOKUP($B44&"_1",Base!$E$4:$BO$7841,AD$5,FALSE))) ->  | AE44: =IF(IF($Y44="Número",VLOOKUP($B44&"_1",Base!$E$4:$BO$7841,AE$6,FALSE),VLOOKUP($B44&"_1",Base!$E$4:$BO$7841,AE$5,FALSE))="","",IF($Y44="Número",VLOOKUP($B44&"_1",Base!$E$4:$BO$7841,AE$6,FALSE),VLOOKUP($B44&"_1",Base!$E$4:$BO$7841,AE$5,FALSE))) ->  | AF44: =IF(IF($Y44="Número",VLOOKUP($B44&"_1",Base!$E$4:$BO$7841,AF$6,FALSE),VLOOKUP($B44&"_1",Base!$E$4:$BO$7841,AF$5,FALSE))="","",IF($Y44="Número",VLOOKUP($B44&"_1",Base!$E$4:$BO$7841,AF$6,FALSE),VLOOKUP($B44&"_1",Base!$E$4:$BO$7841,AF$5,FALSE))) ->  | AG44: =IF(IF($Y44="Número",VLOOKUP($B44&"_1",Base!$E$4:$BO$7841,AG$6,FALSE),VLOOKUP($B44&"_1",Base!$E$4:$BO$7841,AG$5,FALSE))="","",IF($Y44="Número",VLOOKUP($B44&"_1",Base!$E$4:$BO$7841,AG$6,FALSE),VLOOKUP($B44&"_1",Base!$E$4:$BO$7841,AG$5,FALSE))) ->  | AH44: =IF(IF($Y44="Número",VLOOKUP($B44&"_1",Base!$E$4:$BO$7841,AH$6,FALSE),VLOOKUP($B44&"_1",Base!$E$4:$BO$7841,AH$5,FALSE))="","",IF($Y44="Número",VLOOKUP($B44&"_1",Base!$E$4:$BO$7841,AH$6,FALSE),VLOOKUP($B44&"_1",Base!$E$4:$BO$7841,AH$5,FALSE))) ->  | AI44: =IF(IF($Y44="Número",VLOOKUP($B44&"_1",Base!$E$4:$BO$7841,AI$6,FALSE),VLOOKUP($B44&"_1",Base!$E$4:$BO$7841,AI$5,FALSE))="","",IF($Y44="Número",VLOOKUP($B44&"_1",Base!$E$4:$BO$7841,AI$6,FALSE),VLOOKUP($B44&"_1",Base!$E$4:$BO$7841,AI$5,FALSE))) ->  | AJ44: =IF(IF($Y44="Número",VLOOKUP($B44&"_1",Base!$E$4:$BO$7841,AJ$6,FALSE),VLOOKUP($B44&"_1",Base!$E$4:$BO$7841,AJ$5,FALSE))="","",IF($Y44="Número",VLOOKUP($B44&"_1",Base!$E$4:$BO$7841,AJ$6,FALSE),VLOOKUP($B44&"_1",Base!$E$4:$BO$7841,AJ$5,FALSE))) ->  | AK44: =IF(IF($Y44="Número",VLOOKUP($B44&"_1",Base!$E$4:$BO$7841,AK$6,FALSE),VLOOKUP($B44&"_1",Base!$E$4:$BO$7841,AK$5,FALSE))="","",IF($Y44="Número",VLOOKUP($B44&"_1",Base!$E$4:$BO$7841,AK$6,FALSE),VLOOKUP($B44&"_1",Base!$E$4:$BO$7841,AK$5,FALSE))) -> 
B45: PA-49 | C45: =+VLOOKUP(B45,'tablero nal'!$W$9:$X$171,2,FALSE) -> Porcentaje de avance en la implementación del Plan Estratégico de Gestión Humana. | E45: - | F45: =+VLOOKUP(B45,'tablero nal'!$W$9:$BB$171,4,FALSE) -> 1 | G45: 0.76 | H45: 0.76 | I45: 0.35 | J45: 0.3159 | K45: 0.9025714286 | L45: 1 | M45: 0.561 | N45: 0.561 | O45: 0.76 | P45: 0.76 | Q45: 1 | R45: =+VLOOKUP(B45,'tablero nal'!$W$9:$AB$171,6,FALSE) -> 1 | S45: NA | T45: NA | Y45: =+VLOOKUP(B45,'tablero nal'!$W$9:$AL$171,16,FALSE) -> Porcentaje Avance | Z45: =IF(IF($Y45="Número",VLOOKUP($B45&"_1",Base!$E$4:$BO$7841,Z$6,FALSE),VLOOKUP($B45&"_1",Base!$E$4:$BO$7841,Z$5,FALSE))="","",IF($Y45="Número",VLOOKUP($B45&"_1",Base!$E$4:$BO$7841,Z$6,FALSE),VLOOKUP($B45&"_1",Base!$E$4:$BO$7841,Z$5,FALSE))) -> NA | AA45: =IF(IF($Y45="Número",VLOOKUP($B45&"_1",Base!$E$4:$BO$7841,AA$6,FALSE),VLOOKUP($B45&"_1",Base!$E$4:$BO$7841,AA$5,FALSE))="","",IF($Y45="Número",VLOOKUP($B45&"_1",Base!$E$4:$BO$7841,AA$6,FALSE),VLOOKUP($B45&"_1",Base!$E$4:$BO$7841,AA$5,FALSE))) -> NA | AB45: =IF(IF($Y45="Número",VLOOKUP($B45&"_1",Base!$E$4:$BO$7841,AB$6,FALSE),VLOOKUP($B45&"_1",Base!$E$4:$BO$7841,AB$5,FALSE))="","",IF($Y45="Número",VLOOKUP($B45&"_1",Base!$E$4:$BO$7841,AB$6,FALSE),VLOOKUP($B45&"_1",Base!$E$4:$BO$7841,AB$5,FALSE))) ->  | AC45: =IF(IF($Y45="Número",VLOOKUP($B45&"_1",Base!$E$4:$BO$7841,AC$6,FALSE),VLOOKUP($B45&"_1",Base!$E$4:$BO$7841,AC$5,FALSE))="","",IF($Y45="Número",VLOOKUP($B45&"_1",Base!$E$4:$BO$7841,AC$6,FALSE),VLOOKUP($B45&"_1",Base!$E$4:$BO$7841,AC$5,FALSE))) ->  | AD45: =IF(IF($Y45="Número",VLOOKUP($B45&"_1",Base!$E$4:$BO$7841,AD$6,FALSE),VLOOKUP($B45&"_1",Base!$E$4:$BO$7841,AD$5,FALSE))="","",IF($Y45="Número",VLOOKUP($B45&"_1",Base!$E$4:$BO$7841,AD$6,FALSE),VLOOKUP($B45&"_1",Base!$E$4:$BO$7841,AD$5,FALSE))) ->  | AE45: =IF(IF($Y45="Número",VLOOKUP($B45&"_1",Base!$E$4:$BO$7841,AE$6,FALSE),VLOOKUP($B45&"_1",Base!$E$4:$BO$7841,AE$5,FALSE))="","",IF($Y45="Número",VLOOKUP($B45&"_1",Base!$E$4:$BO$7841,AE$6,FALSE),VLOOKUP($B45&"_1",Base!$E$4:$BO$7841,AE$5,FALSE))) ->  | AF45: =IF(IF($Y45="Número",VLOOKUP($B45&"_1",Base!$E$4:$BO$7841,AF$6,FALSE),VLOOKUP($B45&"_1",Base!$E$4:$BO$7841,AF$5,FALSE))="","",IF($Y45="Número",VLOOKUP($B45&"_1",Base!$E$4:$BO$7841,AF$6,FALSE),VLOOKUP($B45&"_1",Base!$E$4:$BO$7841,AF$5,FALSE))) ->  | AG45: =IF(IF($Y45="Número",VLOOKUP($B45&"_1",Base!$E$4:$BO$7841,AG$6,FALSE),VLOOKUP($B45&"_1",Base!$E$4:$BO$7841,AG$5,FALSE))="","",IF($Y45="Número",VLOOKUP($B45&"_1",Base!$E$4:$BO$7841,AG$6,FALSE),VLOOKUP($B45&"_1",Base!$E$4:$BO$7841,AG$5,FALSE))) ->  | AH45: =IF(IF($Y45="Número",VLOOKUP($B45&"_1",Base!$E$4:$BO$7841,AH$6,FALSE),VLOOKUP($B45&"_1",Base!$E$4:$BO$7841,AH$5,FALSE))="","",IF($Y45="Número",VLOOKUP($B45&"_1",Base!$E$4:$BO$7841,AH$6,FALSE),VLOOKUP($B45&"_1",Base!$E$4:$BO$7841,AH$5,FALSE))) ->  | AI45: =IF(IF($Y45="Número",VLOOKUP($B45&"_1",Base!$E$4:$BO$7841,AI$6,FALSE),VLOOKUP($B45&"_1",Base!$E$4:$BO$7841,AI$5,FALSE))="","",IF($Y45="Número",VLOOKUP($B45&"_1",Base!$E$4:$BO$7841,AI$6,FALSE),VLOOKUP($B45&"_1",Base!$E$4:$BO$7841,AI$5,FALSE))) ->  | AJ45: =IF(IF($Y45="Número",VLOOKUP($B45&"_1",Base!$E$4:$BO$7841,AJ$6,FALSE),VLOOKUP($B45&"_1",Base!$E$4:$BO$7841,AJ$5,FALSE))="","",IF($Y45="Número",VLOOKUP($B45&"_1",Base!$E$4:$BO$7841,AJ$6,FALSE),VLOOKUP($B45&"_1",Base!$E$4:$BO$7841,AJ$5,FALSE))) ->  | AK45: =IF(IF($Y45="Número",VLOOKUP($B45&"_1",Base!$E$4:$BO$7841,AK$6,FALSE),VLOOKUP($B45&"_1",Base!$E$4:$BO$7841,AK$5,FALSE))="","",IF($Y45="Número",VLOOKUP($B45&"_1",Base!$E$4:$BO$7841,AK$6,FALSE),VLOOKUP($B45&"_1",Base!$E$4:$BO$7841,AK$5,FALSE))) -> 
B46: PA-50 | C46: =+VLOOKUP(B46,'tablero nal'!$W$9:$X$171,2,FALSE) -> Porcentaje de ejecución de PAC Recursos Nación | E46: - | F46: =+VLOOKUP(B46,'tablero nal'!$W$9:$BB$171,4,FALSE) -> 1 | G46: 0.903 | H46: 0.903 | I46: 1 | J46: 0.9813 | K46: 0.9813 | L46: 1 | M46: 0.994 | N46: 0.994 | O46: 1 | P46: 1 | Q46: 1 | R46: =+VLOOKUP(B46,'tablero nal'!$W$9:$AB$171,6,FALSE) -> 1 | S46: 0.903 | T46: 0.903 | Y46: =+VLOOKUP(B46,'tablero nal'!$W$9:$AL$171,16,FALSE) -> Porcentaje | Z46: =IF(IF($Y46="Número",VLOOKUP($B46&"_1",Base!$E$4:$BO$7841,Z$6,FALSE),VLOOKUP($B46&"_1",Base!$E$4:$BO$7841,Z$5,FALSE))="","",IF($Y46="Número",VLOOKUP($B46&"_1",Base!$E$4:$BO$7841,Z$6,FALSE),VLOOKUP($B46&"_1",Base!$E$4:$BO$7841,Z$5,FALSE))) -> 0.963 | AA46: =IF(IF($Y46="Número",VLOOKUP($B46&"_1",Base!$E$4:$BO$7841,AA$6,FALSE),VLOOKUP($B46&"_1",Base!$E$4:$BO$7841,AA$5,FALSE))="","",IF($Y46="Número",VLOOKUP($B46&"_1",Base!$E$4:$BO$7841,AA$6,FALSE),VLOOKUP($B46&"_1",Base!$E$4:$BO$7841,AA$5,FALSE))) -> 0.903 | AB46: =IF(IF($Y46="Número",VLOOKUP($B46&"_1",Base!$E$4:$BO$7841,AB$6,FALSE),VLOOKUP($B46&"_1",Base!$E$4:$BO$7841,AB$5,FALSE))="","",IF($Y46="Número",VLOOKUP($B46&"_1",Base!$E$4:$BO$7841,AB$6,FALSE),VLOOKUP($B46&"_1",Base!$E$4:$BO$7841,AB$5,FALSE))) ->  | AC46: =IF(IF($Y46="Número",VLOOKUP($B46&"_1",Base!$E$4:$BO$7841,AC$6,FALSE),VLOOKUP($B46&"_1",Base!$E$4:$BO$7841,AC$5,FALSE))="","",IF($Y46="Número",VLOOKUP($B46&"_1",Base!$E$4:$BO$7841,AC$6,FALSE),VLOOKUP($B46&"_1",Base!$E$4:$BO$7841,AC$5,FALSE))) ->  | AD46: =IF(IF($Y46="Número",VLOOKUP($B46&"_1",Base!$E$4:$BO$7841,AD$6,FALSE),VLOOKUP($B46&"_1",Base!$E$4:$BO$7841,AD$5,FALSE))="","",IF($Y46="Número",VLOOKUP($B46&"_1",Base!$E$4:$BO$7841,AD$6,FALSE),VLOOKUP($B46&"_1",Base!$E$4:$BO$7841,AD$5,FALSE))) ->  | AE46: =IF(IF($Y46="Número",VLOOKUP($B46&"_1",Base!$E$4:$BO$7841,AE$6,FALSE),VLOOKUP($B46&"_1",Base!$E$4:$BO$7841,AE$5,FALSE))="","",IF($Y46="Número",VLOOKUP($B46&"_1",Base!$E$4:$BO$7841,AE$6,FALSE),VLOOKUP($B46&"_1",Base!$E$4:$BO$7841,AE$5,FALSE))) ->  | AF46: =IF(IF($Y46="Número",VLOOKUP($B46&"_1",Base!$E$4:$BO$7841,AF$6,FALSE),VLOOKUP($B46&"_1",Base!$E$4:$BO$7841,AF$5,FALSE))="","",IF($Y46="Número",VLOOKUP($B46&"_1",Base!$E$4:$BO$7841,AF$6,FALSE),VLOOKUP($B46&"_1",Base!$E$4:$BO$7841,AF$5,FALSE))) ->  | AG46: =IF(IF($Y46="Número",VLOOKUP($B46&"_1",Base!$E$4:$BO$7841,AG$6,FALSE),VLOOKUP($B46&"_1",Base!$E$4:$BO$7841,AG$5,FALSE))="","",IF($Y46="Número",VLOOKUP($B46&"_1",Base!$E$4:$BO$7841,AG$6,FALSE),VLOOKUP($B46&"_1",Base!$E$4:$BO$7841,AG$5,FALSE))) ->  | AH46: =IF(IF($Y46="Número",VLOOKUP($B46&"_1",Base!$E$4:$BO$7841,AH$6,FALSE),VLOOKUP($B46&"_1",Base!$E$4:$BO$7841,AH$5,FALSE))="","",IF($Y46="Número",VLOOKUP($B46&"_1",Base!$E$4:$BO$7841,AH$6,FALSE),VLOOKUP($B46&"_1",Base!$E$4:$BO$7841,AH$5,FALSE))) ->  | AI46: =IF(IF($Y46="Número",VLOOKUP($B46&"_1",Base!$E$4:$BO$7841,AI$6,FALSE),VLOOKUP($B46&"_1",Base!$E$4:$BO$7841,AI$5,FALSE))="","",IF($Y46="Número",VLOOKUP($B46&"_1",Base!$E$4:$BO$7841,AI$6,FALSE),VLOOKUP($B46&"_1",Base!$E$4:$BO$7841,AI$5,FALSE))) ->  | AJ46: =IF(IF($Y46="Número",VLOOKUP($B46&"_1",Base!$E$4:$BO$7841,AJ$6,FALSE),VLOOKUP($B46&"_1",Base!$E$4:$BO$7841,AJ$5,FALSE))="","",IF($Y46="Número",VLOOKUP($B46&"_1",Base!$E$4:$BO$7841,AJ$6,FALSE),VLOOKUP($B46&"_1",Base!$E$4:$BO$7841,AJ$5,FALSE))) ->  | AK46: =IF(IF($Y46="Número",VLOOKUP($B46&"_1",Base!$E$4:$BO$7841,AK$6,FALSE),VLOOKUP($B46&"_1",Base!$E$4:$BO$7841,AK$5,FALSE))="","",IF($Y46="Número",VLOOKUP($B46&"_1",Base!$E$4:$BO$7841,AK$6,FALSE),VLOOKUP($B46&"_1",Base!$E$4:$BO$7841,AK$5,FALSE))) -> 
B47: PA-51 | C47: =+VLOOKUP(B47,'tablero nal'!$W$9:$X$171,2,FALSE) -> Porcentaje de ejecución de PAC Recursos Propios | E47: - | F47: =+VLOOKUP(B47,'tablero nal'!$W$9:$BB$171,4,FALSE) -> 1 | G47: 0.915 | H47: 0.915 | I47: 1 | J47: 0.8897 | K47: 0.8897 | L47: 1 | M47: 0.994 | N47: 0.994 | O47: 1 | P47: 0.987 | Q47: 0.987 | R47: =+VLOOKUP(B47,'tablero nal'!$W$9:$AB$171,6,FALSE) -> 1 | S47: 0.915 | T47: 0.915 | Y47: =+VLOOKUP(B47,'tablero nal'!$W$9:$AL$171,16,FALSE) -> Porcentaje | Z47: =IF(IF($Y47="Número",VLOOKUP($B47&"_1",Base!$E$4:$BO$7841,Z$6,FALSE),VLOOKUP($B47&"_1",Base!$E$4:$BO$7841,Z$5,FALSE))="","",IF($Y47="Número",VLOOKUP($B47&"_1",Base!$E$4:$BO$7841,Z$6,FALSE),VLOOKUP($B47&"_1",Base!$E$4:$BO$7841,Z$5,FALSE))) -> 1 | AA47: =IF(IF($Y47="Número",VLOOKUP($B47&"_1",Base!$E$4:$BO$7841,AA$6,FALSE),VLOOKUP($B47&"_1",Base!$E$4:$BO$7841,AA$5,FALSE))="","",IF($Y47="Número",VLOOKUP($B47&"_1",Base!$E$4:$BO$7841,AA$6,FALSE),VLOOKUP($B47&"_1",Base!$E$4:$BO$7841,AA$5,FALSE))) -> 0.915 | AB47: =IF(IF($Y47="Número",VLOOKUP($B47&"_1",Base!$E$4:$BO$7841,AB$6,FALSE),VLOOKUP($B47&"_1",Base!$E$4:$BO$7841,AB$5,FALSE))="","",IF($Y47="Número",VLOOKUP($B47&"_1",Base!$E$4:$BO$7841,AB$6,FALSE),VLOOKUP($B47&"_1",Base!$E$4:$BO$7841,AB$5,FALSE))) ->  | AC47: =IF(IF($Y47="Número",VLOOKUP($B47&"_1",Base!$E$4:$BO$7841,AC$6,FALSE),VLOOKUP($B47&"_1",Base!$E$4:$BO$7841,AC$5,FALSE))="","",IF($Y47="Número",VLOOKUP($B47&"_1",Base!$E$4:$BO$7841,AC$6,FALSE),VLOOKUP($B47&"_1",Base!$E$4:$BO$7841,AC$5,FALSE))) ->  | AD47: =IF(IF($Y47="Número",VLOOKUP($B47&"_1",Base!$E$4:$BO$7841,AD$6,FALSE),VLOOKUP($B47&"_1",Base!$E$4:$BO$7841,AD$5,FALSE))="","",IF($Y47="Número",VLOOKUP($B47&"_1",Base!$E$4:$BO$7841,AD$6,FALSE),VLOOKUP($B47&"_1",Base!$E$4:$BO$7841,AD$5,FALSE))) ->  | AE47: =IF(IF($Y47="Número",VLOOKUP($B47&"_1",Base!$E$4:$BO$7841,AE$6,FALSE),VLOOKUP($B47&"_1",Base!$E$4:$BO$7841,AE$5,FALSE))="","",IF($Y47="Número",VLOOKUP($B47&"_1",Base!$E$4:$BO$7841,AE$6,FALSE),VLOOKUP($B47&"_1",Base!$E$4:$BO$7841,AE$5,FALSE))) ->  | AF47: =IF(IF($Y47="Número",VLOOKUP($B47&"_1",Base!$E$4:$BO$7841,AF$6,FALSE),VLOOKUP($B47&"_1",Base!$E$4:$BO$7841,AF$5,FALSE))="","",IF($Y47="Número",VLOOKUP($B47&"_1",Base!$E$4:$BO$7841,AF$6,FALSE),VLOOKUP($B47&"_1",Base!$E$4:$BO$7841,AF$5,FALSE))) ->  | AG47: =IF(IF($Y47="Número",VLOOKUP($B47&"_1",Base!$E$4:$BO$7841,AG$6,FALSE),VLOOKUP($B47&"_1",Base!$E$4:$BO$7841,AG$5,FALSE))="","",IF($Y47="Número",VLOOKUP($B47&"_1",Base!$E$4:$BO$7841,AG$6,FALSE),VLOOKUP($B47&"_1",Base!$E$4:$BO$7841,AG$5,FALSE))) ->  | AH47: =IF(IF($Y47="Número",VLOOKUP($B47&"_1",Base!$E$4:$BO$7841,AH$6,FALSE),VLOOKUP($B47&"_1",Base!$E$4:$BO$7841,AH$5,FALSE))="","",IF($Y47="Número",VLOOKUP($B47&"_1",Base!$E$4:$BO$7841,AH$6,FALSE),VLOOKUP($B47&"_1",Base!$E$4:$BO$7841,AH$5,FALSE))) ->  | AI47: =IF(IF($Y47="Número",VLOOKUP($B47&"_1",Base!$E$4:$BO$7841,AI$6,FALSE),VLOOKUP($B47&"_1",Base!$E$4:$BO$7841,AI$5,FALSE))="","",IF($Y47="Número",VLOOKUP($B47&"_1",Base!$E$4:$BO$7841,AI$6,FALSE),VLOOKUP($B47&"_1",Base!$E$4:$BO$7841,AI$5,FALSE))) ->  | AJ47: =IF(IF($Y47="Número",VLOOKUP($B47&"_1",Base!$E$4:$BO$7841,AJ$6,FALSE),VLOOKUP($B47&"_1",Base!$E$4:$BO$7841,AJ$5,FALSE))="","",IF($Y47="Número",VLOOKUP($B47&"_1",Base!$E$4:$BO$7841,AJ$6,FALSE),VLOOKUP($B47&"_1",Base!$E$4:$BO$7841,AJ$5,FALSE))) ->  | AK47: =IF(IF($Y47="Número",VLOOKUP($B47&"_1",Base!$E$4:$BO$7841,AK$6,FALSE),VLOOKUP($B47&"_1",Base!$E$4:$BO$7841,AK$5,FALSE))="","",IF($Y47="Número",VLOOKUP($B47&"_1",Base!$E$4:$BO$7841,AK$6,FALSE),VLOOKUP($B47&"_1",Base!$E$4:$BO$7841,AK$5,FALSE))) -> 
